Workbook

Sheet Cover
A1: Cover
B2: =+'Primary Input'!G5 -> 0
B3: =+'Primary Input'!E6 -> 0
B5: RENTAL DEVELOPMENT APPLICATION
C7: Version: | D7: 10262021.2021FAHN
D10: Project Name: | E10: =+'Primary Input'!E7 -> 0
D11: Parish: | E11: =+'Primary Input'!E12 -> 0
C42: =PROPER(CELL("filename")) -> Z:\Home\Website Postings\2021\Template Version 10262021\[Noah Chaap Small Project Continuation And Nofa Rental Development Application -- Version 10262021.2021Fahn.Xlsm]Cover

Sheet Primary Input
A1: Primary Input | H1: =+Cover!E10 -> 0
A2: =+Cover!D7 -> 10262021.2021FAHN
AI3: 2017 Median Income
B4: General Information: | E4: Month | F4: Day | G4: Year | Q4: Mixed Income with 60-80% at market | T4: Multifamily | W4: Family | Z4: 20% residents at 50% or less | AF4: No
B5: Application Date
B6: Type of Application
B7: Project Name: | Q7: Mixed Income with 30-60% at market | T7: Single Room Occupancy | W7: Special Needs | Z7: 40% residents at 60% or less | AF7: Yes | AI7: Acadia Parish | AJ7: =24400*2 -> 48800
B8: Project City | Q8: Priority Elderly Rehab Project | T8: Scattered Site | W8: Both | Z8: 15% residents at 40% or less | AI8: Allen Parish | AJ8: =25150*2 -> 50300
B9: Project Zip Code
B10: Census Tract: | Q10: Priority HUD Rehab Project | T10: Townhouse | W10: Other | AC10: Walk Up | AF10: Project Based Rental Assistance | AI10: Ascension Parish | AJ10: =32750*2 -> 65500
B11: Census Tract Unique Identifier
B12: Project Parish: | Q12: Priority Neighborhood Supported | T12: Garden Apartment | AC12: Elevator | AF12: Mixed Income Gap Financing | AI12: Assumption Parish | AJ12: =28500*2 -> 57000
B13: Area of Demonstrated Need | E13: =+Lists!H124 -> 
B14: Applicant Name (Must Be Name before Single-Asset Entity Creation. If CHDO must be the name of the CHDO): | Q14: PSH (with 15% PSH Units) | AC14: Row | AI14: Avoyelles Parish | AJ14: =24400*2 -> 48800
B15: Applicant Address: | Q15: PHA Redevelopment | AC15: Semi-Detached | AI15: Beauregard Parish | AJ15: =29150*2 -> 58300
B16: Applicant City, State & Zip: | Q16: Other - Describe Below | AC16: Detached | AI16: Bienville Parish | AJ16: =24400*2 -> 48800
B17: Applicant Email Address | AC17: Other | AI17: Bossier Parish | AJ17: =28800*2 -> 57600
B18: Project Type | AI18: Caddo Parish | AJ18: =28300*2 -> 56600
B19: Applicant DUNS Number | T19: State Certified CHDO
B20: Legal Structure of Applicant: | T20: Private For-Profit Developer | Z20: New Construction
B21: Qualified Non-Profit Name if Applicable | T21: Not-For-Profit 501(c)(3) and 501(c)(4) Organizations | Z21: Rehab | AI21: Calcasieu Parish | AJ21: =29600*2 -> 59200
B22: Applicant Authorized Representative Name | T22: Public Housing Authorities | AI22: Caldwell Parish | AJ22: =25100*2 -> 50200
B23: Contact Phone Number: | T23: Local Governments | AI23: Cameron Parish | AJ23: =29600*2 -> 59200
B24: Contact Fax Number: | T24: Native American Tribes | Z24: Single Family -- Rental | AI24: Catahoula Parish | AJ24: =24400*2 -> 48800
B25: E-Mail Address: | Z25: Multi-Family -- Rental | AI25: Claiborne Parish | AJ25: =24400*2 -> 48800
B26: Federal ID / SSN: | AI26: Concordia Parish | AJ26: =24400*2 -> 48800
B27: Single-Asset Entity Name
B28: Single-Asset EntityAddress
B29: Single-Asset Entity State of Incorporation
B30: Single-Asset Entity Contact
B31: To be Formed Date | AI31: De Soto Parish | AJ31: =24400*2 -> 48800
B32: Does Applicant have identity of interest with Contractor?: | J32: =E91 -> 0 | AI32: East Baton Rouge Parish | AJ32: =32750*2 -> 65500
B33: Applicant Eligibility | AI33: East Carroll Parish | AJ33: =24400*2 -> 48800
B34: New Construction or Rehab? | AI34: East Feliciana Parish | AJ34: =32750*2 -> 65500
B35: Total Units | H35: =IF(E35>Lists!F46, "Ineligible as submitted. Must be 4 or fewer units for NOAH", "Ok") -> Ok | AI35: Evangeline Parish | AJ35: =24400*2 -> 48800
B36: HOME Assisted Units Proposed By Developer | H36: =IF(E36<'Funding and Units Worksheet'!N20, "Error. Need More HOME Units","") ->  | AI36: Franklin Parish | AJ36: =24400*2 -> 48800
B37: HTF Assisted Units Proposed By Developer | H37: =IF(E37<'Funding and Units Worksheet'!N30, "Error. Need MORE HTF Units", " ") -> 
B39: HOME Request:
B40: Maximum HOME FUNDS Requested: | H40: =IF(E40>Lists!F45, "Invalid Input. Value exceeds per project limit of $2,000,000.", "") ->  | AI40: Grant Parish | AJ40: =25400*2 -> 50800
B41: Maximum HTF FUNDS Requested | H41: =IF(E41>1000000, "Invalid input. Value exceeds perproject limits of $1,000,000", "") -> 
B42: TOTAL LHC Funds Requested | E42: =+E40+E41 -> 0 | H42: =IF(AND(E41>0,E41>=E40),"Invalid Input. HOME Must be the primary source of sofht funding.","") ->  | AI42: Iberia Parish | AJ42: =25950*2 -> 51900
B43: Property Breakdown: | AI43: Iberville Parish | AJ43: =32750*2 -> 65500
B44: Number of Residential Buildings | AI44: Jackson Parish | AJ44: =24750*2 -> 49500
B45: Accessory Buildings | AI45: Jefferson Parish | AJ45: =30000*2 -> 60000
B46: Housing Description | AI46: Jefferson Davis Parish | AJ46: =28100*2 -> 56200
B47: Building Style | AI47: Lafayette Parish | AJ47: =31650*2 -> 63300
B48: Occupancy Type | AI48: Lafourche Parish | AJ48: =29350*2 -> 58700
B49: Electricity Utility Provider
B50: Natural Gas Utility Provider
B51: Water and Sewer Provider
B52: Garbage Pick-Up Provider
AI53: La Salle Parish | AJ53: =27650*2 -> 55300
B54: Residential Unit Mix: | AI54: Lincoln Parish | AJ54: =26700*2 -> 53400
B55: Total
B56: 0 Bedroom (Efficiency)
B57: 1 Bedroom
B58: 2 Bedrooms
B59: 3 Bedrooms
B60: 4 Bedrooms
B61: 5 Bedrooms
B62: Other
C63: Total | E63: =SUM(E56:G62) -> 0
B64: HOME Assisted Units
B65: 0 Bedroom (Efficiency) | H65: =IF(E65<MAX(Underwriting!H95,Underwriting!H136,Underwriting!H171),"Error. NEED MORE HOME UNITS","OK") -> 
B66: 1 Bedroom | H66: =IF(E66<MAX(Underwriting!H96,Underwriting!H137,Underwriting!H172),"Error. NEED MORE HOME UNITS","OK") -> 
B67: 2 Bedrooms | H67: =IF(E67<MAX(Underwriting!H97,Underwriting!H138,Underwriting!H173),"Error. NEED MORE HOME UNITS","OK") -> 
B68: 3 Bedrooms | H68: =IF(E68<MAX(Underwriting!H98,Underwriting!H139,Underwriting!H174),"Error. NEED MORE HOME UNITS","OK") -> 
B69: 4 Bedrooms | H69: =IF(E69<MAX(Underwriting!H99,Underwriting!H140,Underwriting!H175),"Error. NEED MORE HOME UNITS","OK") -> 
B70: 5 Bedrooms | H70: =IF(E70<MAX(Underwriting!H100,Underwriting!H141,Underwriting!H176),"Error. NEED MORE HOME UNITS","OK") -> 
B71: Other
C72: Total | E72: =SUM(E65:G71) -> 0
B73: HTF Assisted Units
B74: 0 Bedroom (Efficiency) | H74: =IF(E74<MAX(Underwriting!H210,Underwriting!H227,Underwriting!H235),"Error. Need More HTF Units", "OK") ->  | AI74: Livingston Parish | AJ74: =32750*2 -> 65500
B75: 1 Bedroom | H75: =IF(E75<MAX(Underwriting!H211,Underwriting!H228,Underwriting!H236),"Error. Need More HTF Units", "OK") ->  | AI75: Madison Parish | AJ75: =24400*2 -> 48800
B76: 2 Bedrooms | H76: =IF(E76<MAX(Underwriting!H212,Underwriting!H229,Underwriting!H237),"Error. Need More HTF Units", "OK") ->  | AI76: Morehouse Parish | AJ76: =24400*2 -> 48800
B77: 3 Bedrooms | H77: =IF(E77<MAX(Underwriting!H213,Underwriting!H230,Underwriting!H238),"Error. Need More HTF Units", "OK") ->  | AI77: Natchitoches Parish | AJ77: =24400*2 -> 48800
B78: 4 Bedrooms | H78: =IF(E78<MAX(Underwriting!H214,Underwriting!H231,Underwriting!H239),"Error. Need More HTF Units", "OK") ->  | AI78: Orleans Parish | AJ78: =30000*2 -> 60000
B79: 5 Bedrooms | H79: =IF(E79<MAX(Underwriting!H215,Underwriting!H232,Underwriting!H240),"Error. Need More HTF Units", "OK") ->  | AI79: Ouachita Parish | AJ79: =25000*2 -> 50000
B80: Other | AI80: Plaquemines Parish | AJ80: =30000*2 -> 60000
C81: Total | E81: =SUM(E74:G80) -> 0
B82: Unassisted Units
B83: 0 Bedroom (Efficiency) | E83: =IF(+E56-(E65+E74)<0,0,E56-(E65+E74)) -> 0
B84: 1 Bedroom | E84: 0
B85: 2 Bedrooms | E85: =IF(+E58-(E67+E76)<0,0,E58-(E67+E76)) -> 0
B86: 3 Bedrooms | E86: =IF(+E59-(E68+E77)<0,0,E59-(E68+E77)) -> 0
B87: 4 Bedrooms | E87: 0
B88: 5 Bedrooms | E88: 0
B89: Other | E89: 0
C90: Total | E90: =SUM(E83:G89) -> 0
B91: GRAND TOTAL | E91: =+E90+E81+E72 -> 0 | H91: =IF(E91<>E35, "Invalid Input. You must adjust either the Total Units or the Unit Mix", "OK") -> OK | AI91: Pointe Coupee Parish | AJ91: =32750*2 -> 65500
AI92: Rapides Parish | AJ92: =25400*2 -> 50800
B93: Maximum Per Unit Subsidy | AI93: Red River Parish | AJ93: =24400*2 -> 48800
B94: 0 Bedroom (Efficiency) | E94: =+Lists!Q76 -> 0 | AI94: Richland Parish | AJ94: =24400*2 -> 48800
B95: 1 Bedroom | E95: =+Lists!R76 -> 0 | AI95: Sabine Parish | AJ95: =24850*2 -> 49700
B96: 2 Bedrooms | E96: =+Lists!S76 -> 0 | AI96: St. Bernard Parish | AJ96: =33450*2 -> 66900
B97: 3 Bedrooms | E97: =+Lists!T76 -> 0 | AI97: St. Charles Parish | AJ97: =30000*2 -> 60000
B98: 4 Bedrooms | E98: =+Lists!U76 -> 0 | AI98: St. Helena Parish | AJ98: =32750*2 -> 65500
B99: 5 Bedrooms | E99: =+E98 -> 0 | AI99: St. James Parish | AJ99: =33450*2 -> 66900
AI100: St. John the Baptist Parish | AJ100: =30000*2 -> 60000
AI101: St. Landry Parish | AJ101: =24400*2 -> 48800
B102: Appraisal: | AI102: St. Martin Parish | AJ102: =31650*2 -> 63300
B103: Appraisal Date: | AI103: St. Mary Parish | AJ103: =25300*2 -> 50600
B104: Purchase Price | AI104: St. Tammany Parish | AJ104: =30000*2 -> 60000
B105: Pre-Rehab Appraisal Value: | AI105: Tangipahoa Parish | AJ105: =24500*2 -> 49000
B106: Post-Rehab Appraisal Value: | AI106: Tensas Parish | AJ106: =24400*2 -> 48800
AI107: Terrebonne Parish | AJ107: =29350*2 -> 58700
AI108: Union Parish | AJ108: =25000*2 -> 50000
AI109: Vermilion Parish | AJ109: =29500*2 -> 59000
AI110: Vernon Parish | AJ110: 27400
AI111: Washington Parish | AJ111: =24400*2 -> 48800
AI112: Webster Parish | AJ112: =24400*2 -> 48800
AI113: West Baton Rouge Parish | AJ113: =32750*2 -> 65500
AI114: West Carroll Parish | AJ114: =24400*2 -> 48800
AI115: West Feliciana Parish | AJ115: =32750*2 -> 65500
AI116: Winn Parish | AJ116: =24400*2 -> 48800
AI122: 2016 | AJ122: 4 Person 50% Limit
AI123: Acadia | AJ123: 23600 | AK123: 2 | AL123: =+AJ123*AK123 -> 47200
AI124: Allen | AJ124: 25400 | AK124: 2 | AL124: =+AJ124*AK124 -> 50800
AI125: Ascension | AJ125: 33950 | AK125: 2 | AL125: 67900
AI126: Assumption | AJ126: 28300 | AK126: 2 | AL126: 56600
AI127: Avoyelles | AJ127: 23600 | AK127: 2 | AL127: 47200
AI128: Beauregard | AJ128: 31200 | AK128: 2 | AL128: 62400
AI129: Bienville | AJ129: 23600 | AK129: 2 | AL129: 47200
AI130: Bossier | AJ130: 28300 | AK130: 2 | AL130: 56600
AI131: Caddo | AJ131: 28300 | AK131: 2 | AL131: 56600
AI132: Calcasieu | AJ132: 29250 | AK132: 2 | AL132: 58500
AI133: Caldwell | AJ133: 24150 | AK133: 2 | AL133: 48300
AI134: Cameron | AJ134: 29250 | AK134: 2 | AL134: 58500
AI135: Catahoula | AJ135: 24550 | AK135: 2 | AL135: 49100
AI136: Claiborne | AJ136: 23600 | AK136: 2 | AL136: 47200
AI137: Concordia | AJ137: 23600 | AK137: 2 | AL137: 47200
AI138: DeSoto | AJ138: 28300 | AK138: 2 | AL138: 56600
AI139: East Baton Rouge | AJ139: 33950 | AK139: 2 | AL139: 67900
AI140: East Carroll | AJ140: 23600 | AK140: 2 | AL140: 47200
AI141: East Feliciana | AJ141: 33950 | AK141: 2 | AL141: 67900
AI142: Evangeline | AJ142: 23600 | AK142: 2 | AL142: 47200
AI143: Franklin | AJ143: 23600 | AK143: 2 | AL143: 47200
AI144: Grant | AJ144: 27150 | AK144: 2 | AL144: 54300
AI145: Iberia | AJ145: 26400 | AK145: 2 | AL145: 52800
AI146: Iberville | AJ146: 27800 | AK146: 2 | AL146: 55600
AI147: Jackson | AJ147: 23750 | AK147: 2 | AL147: 47500
AI148: Jefferson | AJ148: 31650 | AK148: 2 | AL148: 63300
AI149: Jefferson Davis | AJ149: 26200 | AK149: 2 | AL149: 52400
AI150: Lafayette | AJ150: 32750 | AK150: 2 | AL150: 65500
AI151: Lafourche | AJ151: 29300 | AK151: 2 | AL151: 58600
AI152: La Salle | AJ152: 28450 | AK152: 2 | AL152: 56900
AI153: Lincoln | AJ153: 27050 | AK153: 2 | AL153: 54100
AI154: Livingston | AJ154: 33950 | AK154: 2 | AL154: 67900
AI155: Madison | AJ155: 23600 | AK155: 2 | AL155: 47200
AI156: Morehouse | AJ156: 23600 | AK156: 2 | AL156: 47200
AI157: Natchitoches | AJ157: 23600 | AK157: 2 | AL157: 47200
AI158: Orleans | AJ158: 31650 | AK158: 2 | AL158: 63300
AI159: Ouachita | AJ159: 26300 | AK159: 2 | AL159: 52600
AI160: Plaquemines | AJ160: 31650 | AK160: 2 | AL160: 63300
AI161: Pointe Coupee | AJ161: 33950 | AK161: 2 | AL161: 67900
AI162: Rapides | AJ162: 27150 | AK162: 2 | AL162: 54300
AI163: Red River | AJ163: 24550 | AK163: 2 | AL163: 49100
AI164: Richland | AJ164: 23600 | AK164: 2 | AL164: 47200
AI165: Sabine | AJ165: 24950 | AK165: 2 | AL165: 49900
AI166: St. Bernard | AJ166: 31650 | AK166: 2 | AL166: 63300
AI167: St. Charles | AJ167: 31650 | AK167: 2 | AL167: 63300
AI168: St. Helena | AJ168: 33950 | AK168: 2 | AL168: 67900
AI169: St. James | AJ169: 32050 | AK169: 2 | AL169: 64100
AI170: St. John the Baptist | AJ170: 31650 | AK170: 2 | AL170: 63300
AI171: St. Landry | AJ171: 23600 | AK171: 2 | AL171: 47200
AI172: St. Martin | AJ172: 32750 | AK172: 2 | AL172: 65500
AI173: St. Mary | AJ173: 25650 | AK173: 2 | AL173: 51300
AI174: St. Tammany | AJ174: 31650 | AK174: 2 | AL174: 63300
AI175: Tangipahoa | AJ175: 27500 | AK175: 2 | AL175: 55000
AI176: Tensas | AJ176: 23600 | AK176: 2 | AL176: 47200
AI177: Terrebonne | AJ177: 29300 | AK177: 2 | AL177: 58600
AI178: Union | AJ178: 26300 | AK178: 2 | AL178: 52600
AI179: Vermilion | AJ179: 29550 | AK179: 2 | AL179: 59100
AI180: Vernon | AJ180: 26850 | AK180: 2 | AL180: 53700
AI181: Washington | AJ181: 23600 | AK181: 2 | AL181: 47200
AI182: Webster | AJ182: 23600 | AK182: 2 | AL182: 47200
AI183: West Baton Rouge | AJ183: 33950 | AK183: 2 | AL183: 67900
AI184: West Carroll | AJ184: 23600 | AK184: 2 | AL184: 47200
AI185: West Feliciana | AJ185: 33950 | AK185: 2 | AL185: 67900
AI186: Winn | AJ186: 23600 | AK186: 2 | AL186: 47200

Sheet AODN DATA
A1: =+'Primary Input'!A2:C2 -> 10262021.2021FAHN | B1: AREA OF DEMONSTRATED NEED CENSUS TRACT DATA
A2: Parish | B2: City | C2: Tracts.Tract | D2: Census Tract Extended | E2: QCT | F2: QTC Numeric | G2: Points QCT | H2: LHC Unique Identification Number | I2: State | J2: Louisiana.MHV | K2: CitiesTownsVillages.MHV | L2: MHVPerc | M2: MHV | N2: Points MHV | O2: Louisiana.MHHI | P2: CitiesTownsVillages.MHHI | Q2: HHMIPerc | R2: MHHI | S2: Points MHHI | T2: Louisiana.Poverty | U2: CitiesTownsVillages.Poverty | V2: PovertyPerc | W2: POV | AB2: Points POV | AC2: Area of Demonstrated Need | AD2: Area of Demonstrated Need | AE2: Total Points AODN
A3: Acadia | B3: Branch | C3: 9602 | D3: 22001960200 | E3: FALSE | F3: 0 | G3: =IF(E3="TRUE",4,0) -> 0 | H3: 71420210003 | I3: Louisiana | J3: 152900 | M3: =IF(L3>=50%,TRUE,"") ->  | N3: =IF(M3=TRUE,4,0) -> 0 | O3: 46710 | P3: 44808 | Q3: 0.959280668 | R3: =IF(Q3<=65%,TRUE,"") ->  | S3: =IF(R3=TRUE, 4,0) -> 0 | T3: 19.6 | U3: 0 | V3: 0 | W3: =IF(V3>=1.5,TRUE,"") ->  | X3: =IF(M3=TRUE,1,0) -> 0 | Y3: =IF(R3=TRUE,1,0) -> 0 | Z3: =IF(W3=TRUE,1,0) -> 0 | AA3: =SUM(X3:Z3) -> 0 | AB3: =IF(W3=TRUE, 4,0) -> 0 | AC3: =IF(AND(E3="TRUE",AA3>1),"YES","NO") -> NO | AD3: =IF(AND(F3=1,AA3>1), "YES","NO") -> NO | AE3: =+G3+N3+S3+AB3 -> 0
A4: Acadia | B4: Branch | C4: 9604 | D4: 22001960400 | E4: FALSE | F4: 0 | G4: 0 | H4: 71420210004 | I4: Louisiana | J4: 152900 | N4: 0 | O4: 46710 | P4: 44808 | Q4: 0.959280668 | S4: 0 | T4: 19.6 | U4: 0 | V4: 0 | X4: 0 | Y4: 0 | Z4: 0 | AA4: 0 | AB4: 0 | AC4: NO | AD4: NO | AE4: 0
A5: Acadia | B5: Branch | C5: 9605 | D5: 22001960500 | E5: FALSE | F5: 0 | G5: 0 | H5: 71420210005 | I5: Louisiana | J5: 152900 | N5: 0 | O5: 46710 | P5: 44808 | Q5: 0.959280668 | S5: 0 | T5: 19.6 | U5: 0 | V5: 0 | X5: 0 | Y5: 0 | Z5: 0 | AA5: 0 | AB5: 0 | AC5: NO | AD5: NO | AE5: 0
A6: Acadia | B6: Church Point | C6: 9601 | D6: 22001960100 | E6: TRUE | F6: 1 | G6: 4 | H6: 71420210006 | I6: Louisiana | J6: 152900 | K6: 75900 | L6: 0.4964028777 | N6: 0 | O6: 46710 | P6: 32452 | Q6: 0.6947548705 | S6: 0 | T6: 19.6 | U6: 32.5 | V6: 1.658163265 | W6: TRUE | X6: 0 | Y6: 0 | Z6: 1 | AA6: 1 | AB6: 4 | AC6: NO | AD6: NO | AE6: 8
A7: Acadia | B7: Church Point | C7: 9602 | D7: 22001960200 | E7: FALSE | F7: 0 | G7: 0 | H7: 71420210007 | I7: Louisiana | J7: 152900 | K7: 75900 | L7: 0.4964028777 | N7: 0 | O7: 46710 | P7: 32452 | Q7: 0.6947548705 | S7: 0 | T7: 19.6 | U7: 32.5 | V7: 1.658163265 | W7: TRUE | X7: 0 | Y7: 0 | Z7: 1 | AA7: 1 | AB7: 4 | AC7: NO | AD7: NO | AE7: 4
A8: Acadia | B8: Church Point | C8: 9605 | D8: 22001960500 | E8: FALSE | F8: 0 | G8: 0 | H8: 71420210008 | I8: Louisiana | J8: 152900 | K8: 75900 | L8: 0.4964028777 | N8: 0 | O8: 46710 | P8: 32452 | Q8: 0.6947548705 | S8: 0 | T8: 19.6 | U8: 32.5 | V8: 1.658163265 | W8: TRUE | X8: 0 | Y8: 0 | Z8: 1 | AA8: 1 | AB8: 4 | AC8: NO | AD8: NO | AE8: 4
A9: Acadia | B9: Church Point | C9: 21.01 | D9: 22055002101 | E9: FALSE | F9: 0 | G9: 0 | H9: 71420210009 | I9: Louisiana | J9: 152900 | K9: 75900 | L9: 0.4964028777 | N9: 0 | O9: 46710 | P9: 32452 | Q9: 0.6947548705 | S9: 0 | T9: 19.6 | U9: 32.5 | V9: 1.658163265 | W9: TRUE | X9: 0 | Y9: 0 | Z9: 1 | AA9: 1 | AB9: 4 | AC9: NO | AD9: NO | AE9: 4
A10: Acadia | B10: Church Point | C10: 9607 | D10: 22097960700 | E10: FALSE | F10: 0 | G10: 0 | H10: 71420210010 | I10: Louisiana | J10: 152900 | K10: 75900 | L10: 0.4964028777 | N10: 0 | O10: 46710 | P10: 32452 | Q10: 0.6947548705 | S10: 0 | T10: 19.6 | U10: 32.5 | V10: 1.658163265 | W10: TRUE | X10: 0 | Y10: 0 | Z10: 1 | AA10: 1 | AB10: 4 | AC10: NO | AD10: NO | AE10: 4
A11: Acadia | B11: Church Point | C11: 9608 | D11: 22097960800 | E11: FALSE | F11: 0 | G11: 0 | H11: 71420210011 | I11: Louisiana | J11: 152900 | K11: 75900 | L11: 0.4964028777 | N11: 0 | O11: 46710 | P11: 32452 | Q11: 0.6947548705 | S11: 0 | T11: 19.6 | U11: 32.5 | V11: 1.658163265 | W11: TRUE | X11: 0 | Y11: 0 | Z11: 1 | AA11: 1 | AB11: 4 | AC11: NO | AD11: NO | AE11: 4
A12: Acadia | B12: Church Point | C12: 9612 | D12: 22097961200 | E12: FALSE | F12: 0 | G12: 0 | H12: 71420210012 | I12: Louisiana | J12: 152900 | K12: 75900 | L12: 0.4964028777 | N12: 0 | O12: 46710 | P12: 32452 | Q12: 0.6947548705 | S12: 0 | T12: 19.6 | U12: 32.5 | V12: 1.658163265 | W12: TRUE | X12: 0 | Y12: 0 | Z12: 1 | AA12: 1 | AB12: 4 | AC12: NO | AD12: NO | AE12: 4
A13: Acadia | B13: Church Point | C13: 9618 | D13: 22097961800 | E13: FALSE | F13: 0 | G13: 0 | H13: 71420210013 | I13: Louisiana | J13: 152900 | K13: 75900 | L13: 0.4964028777 | N13: 0 | O13: 46710 | P13: 32452 | Q13: 0.6947548705 | S13: 0 | T13: 19.6 | U13: 32.5 | V13: 1.658163265 | W13: TRUE | X13: 0 | Y13: 0 | Z13: 1 | AA13: 1 | AB13: 4 | AC13: NO | AD13: NO | AE13: 4
A14: Acadia | B14: Crowley | C14: 9602 | D14: 22001960200 | E14: FALSE | F14: 0 | G14: 0 | H14: 71420210014 | I14: Louisiana | J14: 152900 | K14: 98100 | L14: 0.6415958143 | M14: TRUE | N14: 4 | O14: 46710 | P14: 26645 | Q14: 0.5704345964 | R14: TRUE | S14: 4 | T14: 19.6 | U14: 34.7 | V14: 1.770408163 | W14: TRUE | X14: 1 | Y14: 1 | Z14: 1 | AA14: 3 | AB14: 4 | AC14: NO | AD14: NO | AE14: 12
A15: Acadia | B15: Crowley | C15: 9604 | D15: 22001960400 | E15: FALSE | F15: 0 | G15: 0 | H15: 71420210015 | I15: Louisiana | J15: 152900 | K15: 98100 | L15: 0.6415958143 | M15: TRUE | N15: 4 | O15: 46710 | P15: 26645 | Q15: 0.5704345964 | R15: TRUE | S15: 4 | T15: 19.6 | U15: 34.7 | V15: 1.770408163 | W15: TRUE | X15: 1 | Y15: 1 | Z15: 1 | AA15: 3 | AB15: 4 | AC15: NO | AD15: NO | AE15: 12
A16: Acadia | B16: Crowley | C16: 9608 | D16: 22001960800 | E16: FALSE | F16: 0 | G16: 0 | H16: 71420210016 | I16: Louisiana | J16: 152900 | K16: 98100 | L16: 0.6415958143 | M16: TRUE | N16: 4 | O16: 46710 | P16: 26645 | Q16: 0.5704345964 | R16: TRUE | S16: 4 | T16: 19.6 | U16: 34.7 | V16: 1.770408163 | W16: TRUE | X16: 1 | Y16: 1 | Z16: 1 | AA16: 3 | AB16: 4 | AC16: NO | AD16: NO | AE16: 12
A17: Acadia | B17: Crowley | C17: 9609 | D17: 22001960900 | E17: TRUE | F17: 1 | G17: 4 | H17: 71420210017 | I17: Louisiana | J17: 152900 | K17: 98100 | L17: 0.6415958143 | M17: TRUE | N17: 4 | O17: 46710 | P17: 26645 | Q17: 0.5704345964 | R17: TRUE | S17: 4 | T17: 19.6 | U17: 34.7 | V17: 1.770408163 | W17: TRUE | X17: 1 | Y17: 1 | Z17: 1 | AA17: 3 | AB17: 4 | AC17: YES | AD17: YES | AE17: 16
A18: Acadia | B18: Crowley | C18: 9610 | D18: 22001961000 | E18: TRUE | F18: 1 | G18: 4 | H18: 71420210018 | I18: Louisiana | J18: 152900 | K18: 98100 | L18: 0.6415958143 | M18: TRUE | N18: 4 | O18: 46710 | P18: 26645 | Q18: 0.5704345964 | R18: TRUE | S18: 4 | T18: 19.6 | U18: 34.7 | V18: 1.770408163 | W18: TRUE | X18: 1 | Y18: 1 | Z18: 1 | AA18: 3 | AB18: 4 | AC18: YES | AD18: YES | AE18: 16
A19: Acadia | B19: Crowley | C19: 9611 | D19: 22001961100 | E19: FALSE | F19: 0 | G19: 0 | H19: 71420210019 | I19: Louisiana | J19: 152900 | K19: 98100 | L19: 0.6415958143 | M19: TRUE | N19: 4 | O19: 46710 | P19: 26645 | Q19: 0.5704345964 | R19: TRUE | S19: 4 | T19: 19.6 | U19: 34.7 | V19: 1.770408163 | W19: TRUE | X19: 1 | Y19: 1 | Z19: 1 | AA19: 3 | AB19: 4 | AC19: NO | AD19: NO | AE19: 12
A20: Acadia | B20: Crowley | C20: 9612 | D20: 22001961200 | E20: FALSE | F20: 0 | G20: 0 | H20: 71420210020 | I20: Louisiana | J20: 152900 | K20: 98100 | L20: 0.6415958143 | M20: TRUE | N20: 4 | O20: 46710 | P20: 26645 | Q20: 0.5704345964 | R20: TRUE | S20: 4 | T20: 19.6 | U20: 34.7 | V20: 1.770408163 | W20: TRUE | X20: 1 | Y20: 1 | Z20: 1 | AA20: 3 | AB20: 4 | AC20: NO | AD20: NO | AE20: 12
A21: Acadia | B21: Crowley | C21: 9501 | D21: 22113950100 | E21: FALSE | F21: 0 | G21: 0 | H21: 71420210021 | I21: Louisiana | J21: 152900 | K21: 98100 | L21: 0.6415958143 | M21: TRUE | N21: 4 | O21: 46710 | P21: 26645 | Q21: 0.5704345964 | R21: TRUE | S21: 4 | T21: 19.6 | U21: 34.7 | V21: 1.770408163 | W21: TRUE | X21: 1 | Y21: 1 | Z21: 1 | AA21: 3 | AB21: 4 | AC21: NO | AD21: NO | AE21: 12
A22: Acadia | B22: Duson | C22: 9606 | D22: 22001960600 | E22: FALSE | F22: 0 | G22: 0 | H22: 71420210022 | I22: Louisiana | J22: 152900 | K22: 72800 | L22: 0.4761281884 | N22: 0 | O22: 46710 | P22: 33472 | Q22: 0.7165917362 | S22: 0 | T22: 19.6 | U22: 21.5 | V22: 1.096938776 | X22: 0 | Y22: 0 | Z22: 0 | AA22: 0 | AB22: 0 | AC22: NO | AD22: NO | AE22: 0
A23: Acadia | B23: Duson | C23: 19.01 | D23: 22055001901 | E23: FALSE | F23: 0 | G23: 0 | H23: 71420210023 | I23: Louisiana | J23: 152900 | K23: 72800 | L23: 0.4761281884 | N23: 0 | O23: 46710 | P23: 33472 | Q23: 0.7165917362 | S23: 0 | T23: 19.6 | U23: 21.5 | V23: 1.096938776 | X23: 0 | Y23: 0 | Z23: 0 | AA23: 0 | AB23: 0 | AC23: NO | AD23: NO | AE23: 0
A24: Acadia | B24: Duson | C24: 19.02 | D24: 22055001902 | E24: FALSE | F24: 0 | G24: 0 | H24: 71420210024 | I24: Louisiana | J24: 152900 | K24: 72800 | L24: 0.4761281884 | N24: 0 | O24: 46710 | P24: 33472 | Q24: 0.7165917362 | S24: 0 | T24: 19.6 | U24: 21.5 | V24: 1.096938776 | X24: 0 | Y24: 0 | Z24: 0 | AA24: 0 | AB24: 0 | AC24: NO | AD24: NO | AE24: 0
A25: Acadia | B25: Duson | C25: 19.03 | D25: 22055001903 | E25: FALSE | F25: 0 | G25: 0 | H25: 71420210025 | I25: Louisiana | J25: 152900 | K25: 72800 | L25: 0.4761281884 | N25: 0 | O25: 46710 | P25: 33472 | Q25: 0.7165917362 | S25: 0 | T25: 19.6 | U25: 21.5 | V25: 1.096938776 | X25: 0 | Y25: 0 | Z25: 0 | AA25: 0 | AB25: 0 | AC25: NO | AD25: NO | AE25: 0
A26: Acadia | B26: Duson | C26: 19.05 | D26: 22055001905 | E26: FALSE | F26: 0 | G26: 0 | H26: 71420210026 | I26: Louisiana | J26: 152900 | K26: 72800 | L26: 0.4761281884 | N26: 0 | O26: 46710 | P26: 33472 | Q26: 0.7165917362 | S26: 0 | T26: 19.6 | U26: 21.5 | V26: 1.096938776 | X26: 0 | Y26: 0 | Z26: 0 | AA26: 0 | AB26: 0 | AC26: NO | AD26: NO | AE26: 0
A27: Acadia | B27: Duson | C27: 20.01 | D27: 22055002001 | E27: TRUE | F27: 1 | G27: 4 | H27: 71420210027 | I27: Louisiana | J27: 152900 | K27: 72800 | L27: 0.4761281884 | N27: 0 | O27: 46710 | P27: 33472 | Q27: 0.7165917362 | S27: 0 | T27: 19.6 | U27: 21.5 | V27: 1.096938776 | X27: 0 | Y27: 0 | Z27: 0 | AA27: 0 | AB27: 0 | AC27: NO | AD27: NO | AE27: 4
A28: Acadia | B28: Duson | C28: 9501 | D28: 22113950100 | E28: FALSE | F28: 0 | G28: 0 | H28: 71420210028 | I28: Louisiana | J28: 152900 | K28: 72800 | L28: 0.4761281884 | N28: 0 | O28: 46710 | P28: 33472 | Q28: 0.7165917362 | S28: 0 | T28: 19.6 | U28: 21.5 | V28: 1.096938776 | X28: 0 | Y28: 0 | Z28: 0 | AA28: 0 | AB28: 0 | AC28: NO | AD28: NO | AE28: 0
A29: Acadia | B29: Egan | C29: 9604 | D29: 22001960400 | E29: FALSE | F29: 0 | G29: 0 | H29: 71420210029 | I29: Louisiana | J29: 152900 | K29: 123800 | L29: 0.8096795291 | M29: TRUE | N29: 4 | O29: 46710 | R29: TRUE | S29: 4 | T29: 19.6 | U29: 29.5 | V29: 1.505102041 | W29: TRUE | X29: 1 | Y29: 1 | Z29: 1 | AA29: 3 | AB29: 4 | AC29: NO | AD29: NO | AE29: 12
A30: Acadia | B30: Estherwood | C30: 9611 | D30: 22001961100 | E30: FALSE | F30: 0 | G30: 0 | H30: 71420210030 | I30: Louisiana | J30: 152900 | K30: 61700 | L30: 0.4035317201 | N30: 0 | O30: 46710 | P30: 36477 | Q30: 0.7809248555 | S30: 0 | T30: 19.6 | U30: 19.1 | V30: 0.9744897959 | X30: 0 | Y30: 0 | Z30: 0 | AA30: 0 | AB30: 0 | AC30: NO | AD30: NO | AE30: 0
A31: Acadia | B31: Eunice | C31: 9602 | D31: 22001960200 | E31: FALSE | F31: 0 | G31: 0 | H31: 71420210031 | I31: Louisiana | J31: 152900 | K31: 97100 | L31: 0.6350555919 | M31: TRUE | N31: 4 | O31: 46710 | P31: 29189 | Q31: 0.6248983087 | R31: TRUE | S31: 4 | T31: 19.6 | U31: 30.5 | V31: 1.556122449 | W31: TRUE | X31: 1 | Y31: 1 | Z31: 1 | AA31: 3 | AB31: 4 | AC31: NO | AD31: NO | AE31: 12
A32: Acadia | B32: Eunice | C32: 9603 | D32: 22001960300 | E32: FALSE | F32: 0 | G32: 0 | H32: 71420210032 | I32: Louisiana | J32: 152900 | K32: 97100 | L32: 0.6350555919 | M32: TRUE | N32: 4 | O32: 46710 | P32: 29189 | Q32: 0.6248983087 | R32: TRUE | S32: 4 | T32: 19.6 | U32: 30.5 | V32: 1.556122449 | W32: TRUE | X32: 1 | Y32: 1 | Z32: 1 | AA32: 3 | AB32: 4 | AC32: NO | AD32: NO | AE32: 12
A33: Acadia | B33: Eunice | C33: 9503 | D33: 22039950300 | E33: FALSE | F33: 0 | G33: 0 | H33: 71420210033 | I33: Louisiana | J33: 152900 | K33: 97100 | L33: 0.6350555919 | M33: TRUE | N33: 4 | O33: 46710 | P33: 29189 | Q33: 0.6248983087 | R33: TRUE | S33: 4 | T33: 19.6 | U33: 30.5 | V33: 1.556122449 | W33: TRUE | X33: 1 | Y33: 1 | Z33: 1 | AA33: 3 | AB33: 4 | AC33: NO | AD33: NO | AE33: 12
A34: Acadia | B34: Eunice | C34: 9508 | D34: 22039950800 | E34: FALSE | F34: 0 | G34: 0 | H34: 71420210034 | I34: Louisiana | J34: 152900 | K34: 97100 | L34: 0.6350555919 | M34: TRUE | N34: 4 | O34: 46710 | P34: 29189 | Q34: 0.6248983087 | R34: TRUE | S34: 4 | T34: 19.6 | U34: 30.5 | V34: 1.556122449 | W34: TRUE | X34: 1 | Y34: 1 | Z34: 1 | AA34: 3 | AB34: 4 | AC34: NO | AD34: NO | AE34: 12
A35: Acadia | B35: Eunice | C35: 9608 | D35: 22097960800 | E35: FALSE | F35: 0 | G35: 0 | H35: 71420210035 | I35: Louisiana | J35: 152900 | K35: 97100 | L35: 0.6350555919 | M35: TRUE | N35: 4 | O35: 46710 | P35: 29189 | Q35: 0.6248983087 | R35: TRUE | S35: 4 | T35: 19.6 | U35: 30.5 | V35: 1.556122449 | W35: TRUE | X35: 1 | Y35: 1 | Z35: 1 | AA35: 3 | AB35: 4 | AC35: NO | AD35: NO | AE35: 12
A36: Acadia | B36: Eunice | C36: 9609 | D36: 22097960900 | E36: FALSE | F36: 0 | G36: 0 | H36: 71420210036 | I36: Louisiana | J36: 152900 | K36: 97100 | L36: 0.6350555919 | M36: TRUE | N36: 4 | O36: 46710 | P36: 29189 | Q36: 0.6248983087 | R36: TRUE | S36: 4 | T36: 19.6 | U36: 30.5 | V36: 1.556122449 | W36: TRUE | X36: 1 | Y36: 1 | Z36: 1 | AA36: 3 | AB36: 4 | AC36: NO | AD36: NO | AE36: 12
A37: Acadia | B37: Eunice | C37: 9610 | D37: 22097961000 | E37: FALSE | F37: 0 | G37: 0 | H37: 71420210037 | I37: Louisiana | J37: 152900 | K37: 97100 | L37: 0.6350555919 | M37: TRUE | N37: 4 | O37: 46710 | P37: 29189 | Q37: 0.6248983087 | R37: TRUE | S37: 4 | T37: 19.6 | U37: 30.5 | V37: 1.556122449 | W37: TRUE | X37: 1 | Y37: 1 | Z37: 1 | AA37: 3 | AB37: 4 | AC37: NO | AD37: NO | AE37: 12
A38: Acadia | B38: Eunice | C38: 9611 | D38: 22097961100 | E38: FALSE | F38: 0 | G38: 0 | H38: 71420210038 | I38: Louisiana | J38: 152900 | K38: 97100 | L38: 0.6350555919 | M38: TRUE | N38: 4 | O38: 46710 | P38: 29189 | Q38: 0.6248983087 | R38: TRUE | S38: 4 | T38: 19.6 | U38: 30.5 | V38: 1.556122449 | W38: TRUE | X38: 1 | Y38: 1 | Z38: 1 | AA38: 3 | AB38: 4 | AC38: NO | AD38: NO | AE38: 12
A39: Acadia | B39: Evangeline | C39: 9603 | D39: 22001960300 | E39: FALSE | F39: 0 | G39: 0 | H39: 71420210039 | I39: Louisiana | J39: 152900 | K39: 0 | L39: 0 | N39: 0 | O39: 46710 | P39: 0 | Q39: 0 | R39: TRUE | S39: 4 | T39: 19.6 | U39: 0 | V39: 0 | X39: 0 | Y39: 1 | Z39: 0 | AA39: 1 | AB39: 0 | AC39: NO | AD39: NO | AE39: 4
A40: Acadia | B40: Evangeline | C40: 9604 | D40: 22001960400 | E40: FALSE | F40: 0 | G40: 0 | H40: 71420210040 | I40: Louisiana | J40: 152900 | K40: 0 | L40: 0 | N40: 0 | O40: 46710 | P40: 0 | Q40: 0 | R40: TRUE | S40: 4 | T40: 19.6 | U40: 0 | V40: 0 | X40: 0 | Y40: 1 | Z40: 0 | AA40: 1 | AB40: 0 | AC40: NO | AD40: NO | AE40: 4
A41: Acadia | B41: Iota | C41: 9602 | D41: 22001960200 | E41: FALSE | F41: 0 | G41: 0 | H41: 71420210041 | I41: Louisiana | J41: 152900 | K41: 115200 | L41: 0.7534336167 | M41: TRUE | N41: 4 | O41: 46710 | P41: 43542 | Q41: 0.932177264 | S41: 0 | T41: 19.6 | U41: 11.4 | V41: 0.5816326531 | X41: 1 | Y41: 0 | Z41: 0 | AA41: 1 | AB41: 0 | AC41: NO | AD41: NO | AE41: 4
A42: Acadia | B42: Iota | C42: 9603 | D42: 22001960300 | E42: FALSE | F42: 0 | G42: 0 | H42: 71420210042 | I42: Louisiana | J42: 152900 | K42: 115200 | L42: 0.7534336167 | M42: TRUE | N42: 4 | O42: 46710 | P42: 43542 | Q42: 0.932177264 | S42: 0 | T42: 19.6 | U42: 11.4 | V42: 0.5816326531 | X42: 1 | Y42: 0 | Z42: 0 | AA42: 1 | AB42: 0 | AC42: NO | AD42: NO | AE42: 4
A43: Acadia | B43: Iota | C43: 9604 | D43: 22001960400 | E43: FALSE | F43: 0 | G43: 0 | H43: 71420210043 | I43: Louisiana | J43: 152900 | K43: 115200 | L43: 0.7534336167 | M43: TRUE | N43: 4 | O43: 46710 | P43: 43542 | Q43: 0.932177264 | S43: 0 | T43: 19.6 | U43: 11.4 | V43: 0.5816326531 | X43: 1 | Y43: 0 | Z43: 0 | AA43: 1 | AB43: 0 | AC43: NO | AD43: NO | AE43: 4
A44: Acadia | B44: Mermentau | C44: 9611 | D44: 22001961100 | E44: FALSE | F44: 0 | G44: 0 | H44: 71420210044 | I44: Louisiana | J44: 152900 | K44: 72600 | L44: 0.4748201439 | N44: 0 | O44: 46710 | P44: 31667 | Q44: 0.6779490473 | S44: 0 | T44: 19.6 | U44: 31.2 | V44: 1.591836735 | W44: TRUE | X44: 0 | Y44: 0 | Z44: 1 | AA44: 1 | AB44: 4 | AC44: NO | AD44: NO | AE44: 4
A45: Acadia | B45: Morse | C45: 9611 | D45: 22001961100 | E45: FALSE | F45: 0 | G45: 0 | H45: 71420210045 | I45: Louisiana | J45: 152900 | K45: 64700 | L45: 0.4231523872 | N45: 0 | O45: 46710 | P45: 46394 | Q45: 0.9932348534 | S45: 0 | T45: 19.6 | U45: 17.2 | V45: 0.8775510204 | X45: 0 | Y45: 0 | Z45: 0 | AA45: 0 | AB45: 0 | AC45: NO | AD45: NO | AE45: 0
A46: Acadia | B46: Morse | C46: 9612 | D46: 22001961200 | E46: FALSE | F46: 0 | G46: 0 | H46: 71420210046 | I46: Louisiana | J46: 152900 | K46: 64700 | L46: 0.4231523872 | N46: 0 | O46: 46710 | P46: 46394 | Q46: 0.9932348534 | S46: 0 | T46: 19.6 | U46: 17.2 | V46: 0.8775510204 | X46: 0 | Y46: 0 | Z46: 0 | AA46: 0 | AB46: 0 | AC46: NO | AD46: NO | AE46: 0
A47: Acadia | B47: Rayne | C47: 9604 | D47: 22001960400 | E47: FALSE | F47: 0 | G47: 0 | H47: 71420210047 | I47: Louisiana | J47: 152900 | K47: 94200 | L47: 0.616088947 | M47: TRUE | N47: 4 | O47: 46710 | P47: 31653 | Q47: 0.6776493256 | S47: 0 | T47: 19.6 | U47: 25.4 | V47: 1.295918367 | X47: 1 | Y47: 0 | Z47: 0 | AA47: 1 | AB47: 0 | AC47: NO | AD47: NO | AE47: 4
A48: Acadia | B48: Rayne | C48: 9605 | D48: 22001960500 | E48: FALSE | F48: 0 | G48: 0 | H48: 71420210048 | I48: Louisiana | J48: 152900 | K48: 94200 | L48: 0.616088947 | M48: TRUE | N48: 4 | O48: 46710 | P48: 31653 | Q48: 0.6776493256 | S48: 0 | T48: 19.6 | U48: 25.4 | V48: 1.295918367 | X48: 1 | Y48: 0 | Z48: 0 | AA48: 1 | AB48: 0 | AC48: NO | AD48: NO | AE48: 4
A49: Acadia | B49: Rayne | C49: 9606 | D49: 22001960600 | E49: FALSE | F49: 0 | G49: 0 | H49: 71420210049 | I49: Louisiana | J49: 152900 | K49: 94200 | L49: 0.616088947 | M49: TRUE | N49: 4 | O49: 46710 | P49: 31653 | Q49: 0.6776493256 | S49: 0 | T49: 19.6 | U49: 25.4 | V49: 1.295918367 | X49: 1 | Y49: 0 | Z49: 0 | AA49: 1 | AB49: 0 | AC49: NO | AD49: NO | AE49: 4
A50: Acadia | B50: Rayne | C50: 9607 | D50: 22001960700 | E50: TRUE | F50: 1 | G50: 4 | H50: 71420210050 | I50: Louisiana | J50: 152900 | K50: 94200 | L50: 0.616088947 | M50: TRUE | N50: 4 | O50: 46710 | P50: 31653 | Q50: 0.6776493256 | S50: 0 | T50: 19.6 | U50: 25.4 | V50: 1.295918367 | X50: 1 | Y50: 0 | Z50: 0 | AA50: 1 | AB50: 0 | AC50: NO | AD50: NO | AE50: 8
A51: Acadia | B51: Rayne | C51: 9608 | D51: 22001960800 | E51: FALSE | F51: 0 | G51: 0 | H51: 71420210051 | I51: Louisiana | J51: 152900 | K51: 94200 | L51: 0.616088947 | M51: TRUE | N51: 4 | O51: 46710 | P51: 31653 | Q51: 0.6776493256 | S51: 0 | T51: 19.6 | U51: 25.4 | V51: 1.295918367 | X51: 1 | Y51: 0 | Z51: 0 | AA51: 1 | AB51: 0 | AC51: NO | AD51: NO | AE51: 4
A52: Acadia | B52: Rayne | C52: 9612 | D52: 22001961200 | E52: FALSE | F52: 0 | G52: 0 | H52: 71420210052 | I52: Louisiana | J52: 152900 | K52: 94200 | L52: 0.616088947 | M52: TRUE | N52: 4 | O52: 46710 | P52: 31653 | Q52: 0.6776493256 | S52: 0 | T52: 19.6 | U52: 25.4 | V52: 1.295918367 | X52: 1 | Y52: 0 | Z52: 0 | AA52: 1 | AB52: 0 | AC52: NO | AD52: NO | AE52: 4
A53: Acadia | B53: Rayne | C53: 19.01 | D53: 22055001901 | E53: FALSE | F53: 0 | G53: 0 | H53: 71420210053 | I53: Louisiana | J53: 152900 | K53: 94200 | L53: 0.616088947 | M53: TRUE | N53: 4 | O53: 46710 | P53: 31653 | Q53: 0.6776493256 | S53: 0 | T53: 19.6 | U53: 25.4 | V53: 1.295918367 | X53: 1 | Y53: 0 | Z53: 0 | AA53: 1 | AB53: 0 | AC53: NO | AD53: NO | AE53: 4
A54: Acadia | B54: Rayne | C54: 9501 | D54: 22113950100 | E54: FALSE | F54: 0 | G54: 0 | H54: 71420210054 | I54: Louisiana | J54: 152900 | K54: 94200 | L54: 0.616088947 | M54: TRUE | N54: 4 | O54: 46710 | P54: 31653 | Q54: 0.6776493256 | S54: 0 | T54: 19.6 | U54: 25.4 | V54: 1.295918367 | X54: 1 | Y54: 0 | Z54: 0 | AA54: 1 | AB54: 0 | AC54: NO | AD54: NO | AE54: 4
A55: Allen | B55: Elizabeth | C55: 9501 | D55: 22003950100 | E55: FALSE | F55: 0 | G55: 0 | H55: 71420210055 | I55: Louisiana | J55: 152900 | K55: 77500 | L55: 0.5068672335 | M55: TRUE | N55: 4 | O55: 46710 | P55: 41250 | Q55: 0.8831085421 | S55: 0 | T55: 19.6 | U55: 18.9 | V55: 0.9642857143 | X55: 1 | Y55: 0 | Z55: 0 | AA55: 1 | AB55: 0 | AC55: NO | AD55: NO | AE55: 4
A56: Allen | B56: Grant | C56: 9501 | D56: 22003950100 | E56: FALSE | F56: 0 | G56: 0 | H56: 71420210056 | I56: Louisiana | J56: 152900 | K56: 0 | L56: 0 | N56: 0 | O56: 46710 | P56: 0 | Q56: 0 | R56: TRUE | S56: 4 | T56: 19.6 | U56: 0 | V56: 0 | X56: 0 | Y56: 1 | Z56: 0 | AA56: 1 | AB56: 0 | AC56: NO | AD56: NO | AE56: 4
A57: Allen | B57: Kinder | C57: 9501 | D57: 22003950100 | E57: FALSE | F57: 0 | G57: 0 | H57: 71420210057 | I57: Louisiana | J57: 152900 | K57: 78800 | L57: 0.5153695226 | M57: TRUE | N57: 4 | O57: 46710 | P57: 42696 | Q57: 0.9140655106 | S57: 0 | T57: 19.6 | U57: 16.1 | V57: 0.8214285714 | X57: 1 | Y57: 0 | Z57: 0 | AA57: 1 | AB57: 0 | AC57: NO | AD57: NO | AE57: 4
A58: Allen | B58: Kinder | C58: 9504 | D58: 22003950400 | E58: FALSE | F58: 0 | G58: 0 | H58: 71420210058 | I58: Louisiana | J58: 152900 | K58: 78800 | L58: 0.5153695226 | M58: TRUE | N58: 4 | O58: 46710 | P58: 42696 | Q58: 0.9140655106 | S58: 0 | T58: 19.6 | U58: 16.1 | V58: 0.8214285714 | X58: 1 | Y58: 0 | Z58: 0 | AA58: 1 | AB58: 0 | AC58: NO | AD58: NO | AE58: 4
A59: Allen | B59: Kinder | C59: 9505 | D59: 22003950500 | E59: FALSE | F59: 0 | G59: 0 | H59: 71420210059 | I59: Louisiana | J59: 152900 | K59: 78800 | L59: 0.5153695226 | M59: TRUE | N59: 4 | O59: 46710 | P59: 42696 | Q59: 0.9140655106 | S59: 0 | T59: 19.6 | U59: 16.1 | V59: 0.8214285714 | X59: 1 | Y59: 0 | Z59: 0 | AA59: 1 | AB59: 0 | AC59: NO | AD59: NO | AE59: 4
A60: Allen | B60: Kinder | C60: 1 | D60: 22053000100 | E60: FALSE | F60: 0 | G60: 0 | H60: 71420210060 | I60: Louisiana | J60: 152900 | K60: 78800 | L60: 0.5153695226 | M60: TRUE | N60: 4 | O60: 46710 | P60: 42696 | Q60: 0.9140655106 | S60: 0 | T60: 19.6 | U60: 16.1 | V60: 0.8214285714 | X60: 1 | Y60: 0 | Z60: 0 | AA60: 1 | AB60: 0 | AC60: NO | AD60: NO | AE60: 4
A61: Allen | B61: Kinder | C61: 2 | D61: 22053000200 | E61: FALSE | F61: 0 | G61: 0 | H61: 71420210061 | I61: Louisiana | J61: 152900 | K61: 78800 | L61: 0.5153695226 | M61: TRUE | N61: 4 | O61: 46710 | P61: 42696 | Q61: 0.9140655106 | S61: 0 | T61: 19.6 | U61: 16.1 | V61: 0.8214285714 | X61: 1 | Y61: 0 | Z61: 0 | AA61: 1 | AB61: 0 | AC61: NO | AD61: NO | AE61: 4
A62: Allen | B62: Leblanc | C62: 9501 | D62: 22003950100 | E62: FALSE | F62: 0 | G62: 0 | H62: 71420210062 | I62: Louisiana | J62: 152900 | K62: 0 | L62: 0 | N62: 0 | O62: 46710 | P62: 0 | Q62: 0 | R62: TRUE | S62: 4 | T62: 19.6 | U62: 0 | V62: 0 | X62: 0 | Y62: 1 | Z62: 0 | AA62: 1 | AB62: 0 | AC62: NO | AD62: NO | AE62: 4
A63: Allen | B63: Mittie | C63: 9501 | D63: 22003950100 | E63: FALSE | F63: 0 | G63: 0 | H63: 71420210063 | I63: Louisiana | J63: 152900 | K63: 0 | L63: 0 | N63: 0 | O63: 46710 | P63: 0 | Q63: 0 | R63: TRUE | S63: 4 | T63: 19.6 | U63: 0 | V63: 0 | X63: 0 | Y63: 1 | Z63: 0 | AA63: 1 | AB63: 0 | AC63: NO | AD63: NO | AE63: 4
A64: Allen | B64: Oakdale | C64: 9501 | D64: 22003950100 | E64: FALSE | F64: 0 | G64: 0 | H64: 71420210064 | I64: Louisiana | J64: 152900 | K64: 59000 | L64: 0.3858731197 | N64: 0 | O64: 46710 | P64: 25893 | Q64: 0.5543352601 | R64: TRUE | S64: 4 | T64: 19.6 | U64: 32.1 | V64: 1.637755102 | W64: TRUE | X64: 0 | Y64: 1 | Z64: 1 | AA64: 2 | AB64: 4 | AC64: NO | AD64: NO | AE64: 8
A65: Allen | B65: Oakdale | C65: 9502 | D65: 22003950200 | E65: FALSE | F65: 0 | G65: 0 | H65: 71420210065 | I65: Louisiana | J65: 152900 | K65: 59000 | L65: 0.3858731197 | N65: 0 | O65: 46710 | P65: 25893 | Q65: 0.5543352601 | R65: TRUE | S65: 4 | T65: 19.6 | U65: 32.1 | V65: 1.637755102 | W65: TRUE | X65: 0 | Y65: 1 | Z65: 1 | AA65: 2 | AB65: 4 | AC65: NO | AD65: NO | AE65: 8
A66: Allen | B66: Oakdale | C66: 9503 | D66: 22003950300 | E66: TRUE | F66: 1 | G66: 4 | H66: 71420210066 | I66: Louisiana | J66: 152900 | K66: 59000 | L66: 0.3858731197 | N66: 0 | O66: 46710 | P66: 25893 | Q66: 0.5543352601 | R66: TRUE | S66: 4 | T66: 19.6 | U66: 32.1 | V66: 1.637755102 | W66: TRUE | X66: 0 | Y66: 1 | Z66: 1 | AA66: 2 | AB66: 4 | AC66: YES | AD66: YES | AE66: 12
A67: Allen | B67: Oakdale | C67: 9504 | D67: 22003950400 | E67: FALSE | F67: 0 | G67: =IF(E67="TRUE",4,0) -> 0 | H67: 71420210067 | I67: Louisiana | J67: 152900 | K67: 59000 | L67: 0.3858731197 | M67: =IF(L67>=50%,TRUE,"") ->  | N67: =IF(M67=TRUE,4,0) -> 0 | O67: 46710 | P67: 25893 | Q67: 0.5543352601 | R67: =IF(Q67<=65%,TRUE,"") -> TRUE | S67: =IF(R67=TRUE, 4,0) -> 4 | T67: 19.6 | U67: 32.1 | V67: 1.637755102 | W67: =IF(V67>=1.5,TRUE,"") -> TRUE | X67: =IF(M67=TRUE,1,0) -> 0 | Y67: =IF(R67=TRUE,1,0) -> 1 | Z67: =IF(W67=TRUE,1,0) -> 1 | AA67: =SUM(X67:Z67) -> 2 | AB67: =IF(W67=TRUE, 4,0) -> 4 | AC67: =IF(AND(E67="TRUE",AA67>1),"YES","NO") -> NO | AD67: =IF(AND(F67=1,AA67>1), "YES","NO") -> NO | AE67: =+G67+N67+S67+AB67 -> 8
A68: Allen | B68: Oakdale | C68: 9502 | D68: 22039950200 | E68: FALSE | F68: 0 | G68: 0 | H68: 71420210068 | I68: Louisiana | J68: 152900 | K68: 59000 | L68: 0.3858731197 | N68: 0 | O68: 46710 | P68: 25893 | Q68: 0.5543352601 | R68: TRUE | S68: 4 | T68: 19.6 | U68: 32.1 | V68: 1.637755102 | W68: TRUE | X68: 0 | Y68: 1 | Z68: 1 | AA68: 2 | AB68: 4 | AC68: NO | AD68: NO | AE68: 8
A69: Allen | B69: Oakdale | C69: 135 | D69: 22079013500 | E69: FALSE | F69: 0 | G69: 0 | H69: 71420210069 | I69: Louisiana | J69: 152900 | K69: 59000 | L69: 0.3858731197 | N69: 0 | O69: 46710 | P69: 25893 | Q69: 0.5543352601 | R69: TRUE | S69: 4 | T69: 19.6 | U69: 32.1 | V69: 1.637755102 | W69: TRUE | X69: 0 | Y69: 1 | Z69: 1 | AA69: 2 | AB69: 4 | AC69: NO | AD69: NO | AE69: 8
A70: Allen | B70: Oakdale | C70: 136 | D70: 22079013600 | E70: FALSE | F70: 0 | G70: 0 | H70: 71420210070 | I70: Louisiana | J70: 152900 | K70: 59000 | L70: 0.3858731197 | N70: 0 | O70: 46710 | P70: 25893 | Q70: 0.5543352601 | R70: TRUE | S70: 4 | T70: 19.6 | U70: 32.1 | V70: 1.637755102 | W70: TRUE | X70: 0 | Y70: 1 | Z70: 1 | AA70: 2 | AB70: 4 | AC70: NO | AD70: NO | AE70: 8
A71: Allen | B71: Oberlin | C71: 9501 | D71: 22003950100 | E71: FALSE | F71: 0 | G71: 0 | H71: 71420210071 | I71: Louisiana | J71: 152900 | K71: 78200 | L71: 0.5114453891 | M71: TRUE | N71: 4 | O71: 46710 | P71: 35441 | Q71: 0.7587454507 | S71: 0 | T71: 19.6 | U71: 23.5 | V71: 1.198979592 | X71: 1 | Y71: 0 | Z71: 0 | AA71: 1 | AB71: 0 | AC71: NO | AD71: NO | AE71: 4
A72: Allen | B72: Oberlin | C72: 9504 | D72: 22003950400 | E72: FALSE | F72: 0 | G72: 0 | H72: 71420210072 | I72: Louisiana | J72: 152900 | K72: 78200 | L72: 0.5114453891 | M72: TRUE | N72: 4 | O72: 46710 | P72: 35441 | Q72: 0.7587454507 | S72: 0 | T72: 19.6 | U72: 23.5 | V72: 1.198979592 | X72: 1 | Y72: 0 | Z72: 0 | AA72: 1 | AB72: 0 | AC72: NO | AD72: NO | AE72: 4
A73: Allen | B73: Oberlin | C73: 9505 | D73: 22003950500 | E73: FALSE | F73: 0 | G73: 0 | H73: 71420210073 | I73: Louisiana | J73: 152900 | K73: 78200 | L73: 0.5114453891 | M73: TRUE | N73: 4 | O73: 46710 | P73: 35441 | Q73: 0.7587454507 | S73: 0 | T73: 19.6 | U73: 23.5 | V73: 1.198979592 | X73: 1 | Y73: 0 | Z73: 0 | AA73: 1 | AB73: 0 | AC73: NO | AD73: NO | AE73: 4
A74: Allen | B74: Reeves | C74: 9501 | D74: 22003950100 | E74: FALSE | F74: 0 | G74: 0 | H74: 71420210074 | I74: Louisiana | J74: 152900 | K74: 76100 | L74: 0.4977109222 | N74: 0 | O74: 46710 | P74: 41000 | Q74: 0.8777563691 | S74: 0 | T74: 19.6 | U74: 19.8 | V74: 1.010204082 | X74: 0 | Y74: 0 | Z74: 0 | AA74: 0 | AB74: 0 | AC74: NO | AD74: NO | AE74: 0
A75: Ascension | B75: Brittany | C75: 304.02 | D75: 22005030402 | E75: FALSE | F75: 0 | G75: 0 | H75: 71420210075 | I75: Louisiana | J75: 152900 | K75: 0 | L75: 0 | N75: 0 | O75: 46710 | P75: 0 | Q75: 0 | R75: TRUE | S75: 4 | T75: 19.6 | U75: 0 | V75: 0 | X75: 0 | Y75: 1 | Z75: 0 | AA75: 1 | AB75: 0 | AC75: NO | AD75: NO | AE75: 4
A76: Ascension | B76: Darrow | C76: 303 | D76: 22005030300 | E76: FALSE | F76: 0 | G76: 0 | H76: 71420210076 | I76: Louisiana | J76: 152900 | K76: 0 | L76: 0 | N76: 0 | O76: 46710 | P76: 0 | Q76: 0 | R76: TRUE | S76: 4 | T76: 19.6 | U76: 0 | V76: 0 | X76: 0 | Y76: 1 | Z76: 0 | AA76: 1 | AB76: 0 | AC76: NO | AD76: NO | AE76: 4
A77: Ascension | B77: Donaldsonville | C77: 309 | D77: 22005030900 | E77: TRUE | F77: 1 | G77: 4 | H77: 71420210077 | I77: Louisiana | J77: 152900 | K77: 108700 | L77: 0.7109221714 | M77: TRUE | N77: 4 | O77: 46710 | P77: 34197 | Q77: 0.7321130379 | S77: 0 | T77: 19.6 | U77: 31.5 | V77: 1.607142857 | W77: TRUE | X77: 1 | Y77: 0 | Z77: 1 | AA77: 2 | AB77: 4 | AC77: YES | AD77: YES | AE77: 12
A78: Ascension | B78: Donaldsonville | C78: 310 | D78: 22005031000 | E78: TRUE | F78: 1 | G78: 4 | H78: 71420210078 | I78: Louisiana | J78: 152900 | K78: 108700 | L78: 0.7109221714 | M78: TRUE | N78: 4 | O78: 46710 | P78: 34197 | Q78: 0.7321130379 | S78: 0 | T78: 19.6 | U78: 31.5 | V78: 1.607142857 | W78: TRUE | X78: 1 | Y78: 0 | Z78: 1 | AA78: 2 | AB78: 4 | AC78: YES | AD78: YES | AE78: 12
A79: Ascension | B79: Donaldsonville | C79: 501 | D79: 22007050100 | E79: FALSE | F79: 0 | G79: 0 | H79: 71420210079 | I79: Louisiana | J79: 152900 | K79: 108700 | L79: 0.7109221714 | M79: TRUE | N79: 4 | O79: 46710 | P79: 34197 | Q79: 0.7321130379 | S79: 0 | T79: 19.6 | U79: 31.5 | V79: 1.607142857 | W79: TRUE | X79: 1 | Y79: 0 | Z79: 1 | AA79: 2 | AB79: 4 | AC79: NO | AD79: NO | AE79: 8
A80: Ascension | B80: Donaldsonville | C80: 9530 | D80: 22047953000 | E80: FALSE | F80: 0 | G80: 0 | H80: 71420210080 | I80: Louisiana | J80: 152900 | K80: 108700 | L80: 0.7109221714 | M80: TRUE | N80: 4 | O80: 46710 | P80: 34197 | Q80: 0.7321130379 | S80: 0 | T80: 19.6 | U80: 31.5 | V80: 1.607142857 | W80: TRUE | X80: 1 | Y80: 0 | Z80: 1 | AA80: 2 | AB80: 4 | AC80: NO | AD80: NO | AE80: 8
A81: Ascension | B81: Donaldsonville | C81: 405 | D81: 22093040500 | E81: TRUE | F81: 1 | G81: 4 | H81: 71420210081 | I81: Louisiana | J81: 152900 | K81: 108700 | L81: 0.7109221714 | M81: TRUE | N81: 4 | O81: 46710 | P81: 34197 | Q81: 0.7321130379 | S81: 0 | T81: 19.6 | U81: 31.5 | V81: 1.607142857 | W81: TRUE | X81: 1 | Y81: 0 | Z81: 1 | AA81: 2 | AB81: 4 | AC81: YES | AD81: YES | AE81: 12
A82: Ascension | B82: Duplessis | C82: 302.05 | D82: 22005030205 | E82: FALSE | F82: 0 | G82: 0 | H82: 71420210082 | I82: Louisiana | J82: 152900 | K82: 0 | L82: 0 | N82: 0 | O82: 46710 | P82: 0 | Q82: 0 | R82: TRUE | S82: 4 | T82: 19.6 | U82: 0 | V82: 0 | X82: 0 | Y82: 1 | Z82: 0 | AA82: 1 | AB82: 0 | AC82: NO | AD82: NO | AE82: 4
A83: Ascension | B83: Geismar | C83: 303 | D83: 22005030300 | E83: FALSE | F83: 0 | G83: 0 | H83: 71420210083 | I83: Louisiana | J83: 152900 | K83: 0 | L83: 0 | N83: 0 | O83: 46710 | P83: 0 | Q83: 0 | R83: TRUE | S83: 4 | T83: 19.6 | U83: 0 | V83: 0 | X83: 0 | Y83: 1 | Z83: 0 | AA83: 1 | AB83: 0 | AC83: NO | AD83: NO | AE83: 4
A84: Ascension | B84: Gonzales | C84: 301.01 | D84: 22005030101 | E84: FALSE | F84: 0 | G84: 0 | H84: 71420210084 | I84: Louisiana | J84: 152900 | K84: 154300 | L84: 1.009156311 | M84: TRUE | N84: 4 | O84: 46710 | P84: 58082 | Q84: 1.243459645 | S84: 0 | T84: 19.6 | U84: 16 | V84: 0.8163265306 | X84: 1 | Y84: 0 | Z84: 0 | AA84: 1 | AB84: 0 | AC84: NO | AD84: NO | AE84: 4
A85: Ascension | B85: Gonzales | C85: 301.02 | D85: 22005030102 | E85: FALSE | F85: 0 | G85: 0 | H85: 71420210085 | I85: Louisiana | J85: 152900 | K85: 154300 | L85: 1.009156311 | M85: TRUE | N85: 4 | O85: 46710 | P85: 58082 | Q85: 1.243459645 | S85: 0 | T85: 19.6 | U85: 16 | V85: 0.8163265306 | X85: 1 | Y85: 0 | Z85: 0 | AA85: 1 | AB85: 0 | AC85: NO | AD85: NO | AE85: 4
A86: Ascension | B86: Gonzales | C86: 301.03 | D86: 22005030103 | E86: FALSE | F86: 0 | G86: 0 | H86: 71420210086 | I86: Louisiana | J86: 152900 | K86: 154300 | L86: 1.009156311 | M86: TRUE | N86: 4 | O86: 46710 | P86: 58082 | Q86: 1.243459645 | S86: 0 | T86: 19.6 | U86: 16 | V86: 0.8163265306 | X86: 1 | Y86: 0 | Z86: 0 | AA86: 1 | AB86: 0 | AC86: NO | AD86: NO | AE86: 4
A87: Ascension | B87: Gonzales | C87: 302.05 | D87: 22005030205 | E87: FALSE | F87: 0 | G87: 0 | H87: 71420210087 | I87: Louisiana | J87: 152900 | K87: 154300 | L87: 1.009156311 | M87: TRUE | N87: 4 | O87: 46710 | P87: 58082 | Q87: 1.243459645 | S87: 0 | T87: 19.6 | U87: 16 | V87: 0.8163265306 | X87: 1 | Y87: 0 | Z87: 0 | AA87: 1 | AB87: 0 | AC87: NO | AD87: NO | AE87: 4
A88: Ascension | B88: Gonzales | C88: 302.06 | D88: 22005030206 | E88: FALSE | F88: 0 | G88: 0 | H88: 71420210088 | I88: Louisiana | J88: 152900 | K88: 154300 | L88: 1.009156311 | M88: TRUE | N88: 4 | O88: 46710 | P88: 58082 | Q88: 1.243459645 | S88: 0 | T88: 19.6 | U88: 16 | V88: 0.8163265306 | X88: 1 | Y88: 0 | Z88: 0 | AA88: 1 | AB88: 0 | AC88: NO | AD88: NO | AE88: 4
A89: Ascension | B89: Gonzales | C89: 303 | D89: 22005030300 | E89: FALSE | F89: 0 | G89: 0 | H89: 71420210089 | I89: Louisiana | J89: 152900 | K89: 154300 | L89: 1.009156311 | M89: TRUE | N89: 4 | O89: 46710 | P89: 58082 | Q89: 1.243459645 | S89: 0 | T89: 19.6 | U89: 16 | V89: 0.8163265306 | X89: 1 | Y89: 0 | Z89: 0 | AA89: 1 | AB89: 0 | AC89: NO | AD89: NO | AE89: 4
A90: Ascension | B90: Gonzales | C90: 304.01 | D90: 22005030401 | E90: FALSE | F90: 0 | G90: 0 | H90: 71420210090 | I90: Louisiana | J90: 152900 | K90: 154300 | L90: 1.009156311 | M90: TRUE | N90: 4 | O90: 46710 | P90: 58082 | Q90: 1.243459645 | S90: 0 | T90: 19.6 | U90: 16 | V90: 0.8163265306 | X90: 1 | Y90: 0 | Z90: 0 | AA90: 1 | AB90: 0 | AC90: NO | AD90: NO | AE90: 4
A91: Ascension | B91: Gonzales | C91: 304.02 | D91: 22005030402 | E91: FALSE | F91: 0 | G91: 0 | H91: 71420210091 | I91: Louisiana | J91: 152900 | K91: 154300 | L91: 1.009156311 | M91: TRUE | N91: 4 | O91: 46710 | P91: 58082 | Q91: 1.243459645 | S91: 0 | T91: 19.6 | U91: 16 | V91: 0.8163265306 | X91: 1 | Y91: 0 | Z91: 0 | AA91: 1 | AB91: 0 | AC91: NO | AD91: NO | AE91: 4
A92: Ascension | B92: Gonzales | C92: 305 | D92: 22005030500 | E92: t He | F92: 0 | G92: 0 | H92: 71420210092 | I92: Louisiana | J92: 152900 | K92: 154300 | L92: 1.009156311 | M92: TRUE | N92: 4 | O92: 46710 | P92: 58082 | Q92: 1.243459645 | S92: 0 | T92: 19.6 | U92: 16 | V92: 0.8163265306 | X92: 1 | Y92: 0 | Z92: 0 | AA92: 1 | AB92: 0 | AC92: NO | AD92: NO | AE92: 4
A93: Ascension | B93: Gonzales | C93: 306 | D93: 22005030600 | E93: TRUE | F93: 0 | G93: 4 | H93: 71420210093 | I93: Louisiana | J93: 152900 | K93: 154300 | L93: 1.009156311 | M93: TRUE | N93: 4 | O93: 46710 | P93: 58082 | Q93: 1.243459645 | S93: 0 | T93: 19.6 | U93: 16 | V93: 0.8163265306 | X93: 1 | Y93: 0 | Z93: 0 | AA93: 1 | AB93: 0 | AC93: NO | AD93: NO | AE93: 8
A94: Ascension | B94: Prairieville | C94: 301.01 | D94: 22005030101 | E94: FALSE | F94: 0 | G94: 0 | H94: 71420210094 | I94: Louisiana | J94: 152900 | K94: 222000 | L94: 1.451929366 | M94: TRUE | N94: 4 | O94: 46710 | P94: 98130 | Q94: 2.100834939 | S94: 0 | T94: 19.6 | U94: 8 | V94: 0.4081632653 | X94: 1 | Y94: 0 | Z94: 0 | AA94: 1 | AB94: 0 | AC94: NO | AD94: NO | AE94: 4
A95: Ascension | B95: Prairieville | C95: 301.03 | D95: 22005030103 | E95: FALSE | F95: 0 | G95: 0 | H95: 71420210095 | I95: Louisiana | J95: 152900 | K95: 222000 | L95: 1.451929366 | M95: TRUE | N95: 4 | O95: 46710 | P95: 98130 | Q95: 2.100834939 | S95: 0 | T95: 19.6 | U95: 8 | V95: 0.4081632653 | X95: 1 | Y95: 0 | Z95: 0 | AA95: 1 | AB95: 0 | AC95: NO | AD95: NO | AE95: 4
A96: Ascension | B96: Prairieville | C96: 302.03 | D96: 22005030203 | E96: FALSE | F96: 0 | G96: 0 | H96: 71420210096 | I96: Louisiana | J96: 152900 | K96: 222000 | L96: 1.451929366 | M96: TRUE | N96: 4 | O96: 46710 | P96: 98130 | Q96: 2.100834939 | S96: 0 | T96: 19.6 | U96: 8 | V96: 0.4081632653 | X96: 1 | Y96: 0 | Z96: 0 | AA96: 1 | AB96: 0 | AC96: NO | AD96: NO | AE96: 4
A97: Ascension | B97: Prairieville | C97: 302.04 | D97: 22005030204 | E97: FALSE | F97: 0 | G97: 0 | H97: 71420210097 | I97: Louisiana | J97: 152900 | K97: 222000 | L97: 1.451929366 | M97: TRUE | N97: 4 | O97: 46710 | P97: 98130 | Q97: 2.100834939 | S97: 0 | T97: 19.6 | U97: 8 | V97: 0.4081632653 | X97: 1 | Y97: 0 | Z97: 0 | AA97: 1 | AB97: 0 | AC97: NO | AD97: NO | AE97: 4
A98: Ascension | B98: Prairieville | C98: 302.05 | D98: 22005030205 | E98: FALSE | F98: 0 | G98: 0 | H98: 71420210098 | I98: Louisiana | J98: 152900 | K98: 222000 | L98: 1.451929366 | M98: TRUE | N98: 4 | O98: 46710 | P98: 98130 | Q98: 2.100834939 | S98: 0 | T98: 19.6 | U98: 8 | V98: 0.4081632653 | X98: 1 | Y98: 0 | Z98: 0 | AA98: 1 | AB98: 0 | AC98: NO | AD98: NO | AE98: 4
A99: Ascension | B99: Prairieville | C99: 302.06 | D99: 22005030206 | E99: FALSE | F99: 0 | G99: 0 | H99: 71420210099 | I99: Louisiana | J99: 152900 | K99: 222000 | L99: 1.451929366 | M99: TRUE | N99: 4 | O99: 46710 | P99: 98130 | Q99: 2.100834939 | S99: 0 | T99: 19.6 | U99: 8 | V99: 0.4081632653 | X99: 1 | Y99: 0 | Z99: 0 | AA99: 1 | AB99: 0 | AC99: NO | AD99: NO | AE99: 4
A100: Ascension | B100: Prairieville | C100: 303 | D100: 22005030300 | E100: FALSE | F100: 0 | G100: 0 | H100: 71420210100 | I100: Louisiana | J100: 152900 | K100: 222000 | L100: 1.451929366 | M100: TRUE | N100: 4 | O100: 46710 | P100: 98130 | Q100: 2.100834939 | S100: 0 | T100: 19.6 | U100: 8 | V100: 0.4081632653 | X100: 1 | Y100: 0 | Z100: 0 | AA100: 1 | AB100: 0 | AC100: NO | AD100: NO | AE100: 4
A101: Ascension | B101: Saint Amant | C101: 301.02 | D101: 22005030102 | E101: FALSE | F101: 0 | G101: 0 | H101: 71420210101 | I101: Louisiana | J101: 152900 | K101: 0 | L101: 0 | N101: 0 | O101: 46710 | P101: 0 | Q101: 0 | R101: TRUE | S101: 4 | T101: 19.6 | U101: 0 | V101: 0 | X101: 0 | Y101: 1 | Z101: 0 | AA101: 1 | AB101: 0 | AC101: NO | AD101: NO | AE101: 4
A102: Ascension | B102: Saint Amant | C102: 301.03 | D102: 22005030103 | E102: FALSE | F102: 0 | G102: 0 | H102: 71420210102 | I102: Louisiana | J102: 152900 | K102: 0 | L102: 0 | N102: 0 | O102: 46710 | P102: 0 | Q102: 0 | R102: TRUE | S102: 4 | T102: 19.6 | U102: 0 | V102: 0 | X102: 0 | Y102: 1 | Z102: 0 | AA102: 1 | AB102: 0 | AC102: NO | AD102: NO | AE102: 4
A103: Ascension | B103: Saint Amant | C103: 305 | D103: 22005030500 | E103: FALSE | F103: 0 | G103: 0 | H103: 71420210103 | I103: Louisiana | J103: 152900 | K103: 0 | L103: 0 | N103: 0 | O103: 46710 | P103: 0 | Q103: 0 | R103: TRUE | S103: 4 | T103: 19.6 | U103: 0 | V103: 0 | X103: 0 | Y103: 1 | Z103: 0 | AA103: 1 | AB103: 0 | AC103: NO | AD103: NO | AE103: 4
A104: Ascension | B104: Saint Amant | C104: 409.02 | D104: 22063040902 | E104: TRUE | F104: 0 | G104: 4 | H104: 71420210104 | I104: Louisiana | J104: 152900 | K104: 0 | L104: 0 | N104: 0 | O104: 46710 | P104: 0 | Q104: 0 | R104: TRUE | S104: 4 | T104: 19.6 | U104: 0 | V104: 0 | X104: 0 | Y104: 1 | Z104: 0 | AA104: 1 | AB104: 0 | AC104: NO | AD104: NO | AE104: 8
A105: Ascension | B105: Sorrento | C105: 303 | D105: 22005030300 | E105: FALSE | F105: 0 | G105: 0 | H105: 71420210105 | I105: Louisiana | J105: 152900 | K105: 133900 | L105: 0.875735775 | M105: TRUE | N105: 4 | O105: 46710 | P105: 46667 | Q105: 0.9990794262 | S105: 0 | T105: 19.6 | U105: 10.4 | V105: 0.5306122449 | X105: 1 | Y105: 0 | Z105: 0 | AA105: 1 | AB105: 0 | AC105: NO | AD105: NO | AE105: 4
A106: Ascension | B106: Sorrento | C106: 305 | D106: 22005030500 | E106: FALSE | F106: 0 | G106: 0 | H106: 71420210106 | I106: Louisiana | J106: 152900 | K106: 133900 | L106: 0.875735775 | M106: TRUE | N106: 4 | O106: 46710 | P106: 46667 | Q106: 0.9990794262 | S106: 0 | T106: 19.6 | U106: 10.4 | V106: 0.5306122449 | X106: 1 | Y106: 0 | Z106: 0 | AA106: 1 | AB106: 0 | AC106: NO | AD106: NO | AE106: 4
A107: Ascension | B107: Sorrento | C107: 306 | D107: 22005030600 | E107: TRUE | F107: 0 | G107: 4 | H107: 71420210107 | I107: Louisiana | J107: 152900 | K107: 133900 | L107: 0.875735775 | M107: TRUE | N107: 4 | O107: 46710 | P107: 46667 | Q107: 0.9990794262 | S107: 0 | T107: 19.6 | U107: 10.4 | V107: 0.5306122449 | X107: 1 | Y107: 0 | Z107: 0 | AA107: 1 | AB107: 0 | AC107: NO | AD107: NO | AE107: 8
A108: Assumption | B108: Belle Rose | C108: 501 | D108: 22007050100 | E108: FALSE | F108: 0 | G108: 0 | H108: 71420210108 | I108: Louisiana | J108: 152900 | K108: 135000 | L108: 0.8829300196 | M108: TRUE | N108: 4 | O108: 46710 | P108: 32404 | Q108: 0.6937272533 | S108: 0 | T108: 19.6 | U108: 15 | V108: 0.7653061224 | X108: 1 | Y108: 0 | Z108: 0 | AA108: 1 | AB108: 0 | AC108: NO | AD108: NO | AE108: 4
A109: Assumption | B109: Belle Rose | C109: 503 | D109: 22007050300 | E109: FALSE | F109: 0 | G109: 0 | H109: 71420210109 | I109: Louisiana | J109: 152900 | K109: 135000 | L109: 0.8829300196 | M109: TRUE | N109: 4 | O109: 46710 | P109: 32404 | Q109: 0.6937272533 | S109: 0 | T109: 19.6 | U109: 15 | V109: 0.7653061224 | X109: 1 | Y109: 0 | Z109: 0 | AA109: 1 | AB109: 0 | AC109: NO | AD109: NO | AE109: 4
A110: Assumption | B110: Labadieville | C110: 505 | D110: 22007050500 | E110: FALSE | F110: 0 | G110: 0 | H110: 71420210110 | I110: Louisiana | J110: 152900 | K110: 135500 | L110: 0.8862001308 | M110: TRUE | N110: 4 | O110: 46710 | P110: 56750 | Q110: 1.214943267 | S110: 0 | T110: 19.6 | U110: 16.2 | V110: 0.8265306122 | X110: 1 | Y110: 0 | Z110: 0 | AA110: 1 | AB110: 0 | AC110: NO | AD110: NO | AE110: 4
A111: Assumption | B111: Labadieville | C111: 506 | D111: 22007050600 | E111: FALSE | F111: 0 | G111: 0 | H111: 71420210111 | I111: Louisiana | J111: 152900 | K111: 135500 | L111: 0.8862001308 | M111: TRUE | N111: 4 | O111: 46710 | P111: 56750 | Q111: 1.214943267 | S111: 0 | T111: 19.6 | U111: 16.2 | V111: 0.8265306122 | X111: 1 | Y111: 0 | Z111: 0 | AA111: 1 | AB111: 0 | AC111: NO | AD111: NO | AE111: 4
A112: Assumption | B112: Napoleonville | C112: 503 | D112: 22007050300 | E112: FALSE | F112: 0 | G112: 0 | H112: 71420210112 | I112: Louisiana | J112: 152900 | K112: 73000 | L112: 0.4774362328 | N112: 0 | O112: 46710 | P112: 25043 | Q112: 0.536137872 | R112: TRUE | S112: 4 | T112: 19.6 | U112: 37.9 | V112: 1.933673469 | W112: TRUE | X112: 0 | Y112: 1 | Z112: 1 | AA112: 2 | AB112: 4 | AC112: NO | AD112: NO | AE112: 8
A113: Assumption | B113: Napoleonville | C113: 504 | D113: 22007050400 | E113: FALSE | F113: 0 | G113: 0 | H113: 71420210113 | I113: Louisiana | J113: 152900 | K113: 73000 | L113: 0.4774362328 | N113: 0 | O113: 46710 | P113: 25043 | Q113: 0.536137872 | R113: TRUE | S113: 4 | T113: 19.6 | U113: 37.9 | V113: 1.933673469 | W113: TRUE | X113: 0 | Y113: 1 | Z113: 1 | AA113: 2 | AB113: 4 | AC113: NO | AD113: NO | AE113: 8
A114: Assumption | B114: Napoleonville | C114: 505 | D114: 22007050500 | E114: FALSE | F114: 0 | G114: 0 | H114: 71420210114 | I114: Louisiana | J114: 152900 | K114: 73000 | L114: 0.4774362328 | N114: 0 | O114: 46710 | P114: 25043 | Q114: 0.536137872 | R114: TRUE | S114: 4 | T114: 19.6 | U114: 37.9 | V114: 1.933673469 | W114: TRUE | X114: 0 | Y114: 1 | Z114: 1 | AA114: 2 | AB114: 4 | AC114: NO | AD114: NO | AE114: 8
A115: Assumption | B115: Paincourtville | C115: 503 | D115: 22007050300 | E115: FALSE | F115: 0 | G115: 0 | H115: 71420210115 | I115: Louisiana | J115: 152900 | K115: 129700 | L115: 0.8482668411 | M115: TRUE | N115: 4 | O115: 46710 | P115: 90129 | Q115: 1.929543995 | S115: 0 | T115: 19.6 | U115: 1 | V115: 0.05102040816 | X115: 1 | Y115: 0 | Z115: 0 | AA115: 1 | AB115: 0 | AC115: NO | AD115: NO | AE115: 4
A116: Assumption | B116: Pierre Part | C116: 501 | D116: 22007050100 | E116: FALSE | F116: 0 | G116: 0 | H116: 71420210116 | I116: Louisiana | J116: 152900 | K116: 114700 | L116: 0.7501635056 | M116: TRUE | N116: 4 | O116: 46710 | P116: 82646 | Q116: 1.769342753 | S116: 0 | T116: 19.6 | U116: 11.2 | V116: 0.5714285714 | X116: 1 | Y116: 0 | Z116: 0 | AA116: 1 | AB116: 0 | AC116: NO | AD116: NO | AE116: 4
A117: Assumption | B117: Pierre Part | C117: 502 | D117: 22007050200 | E117: FALSE | F117: 0 | G117: 0 | H117: 71420210117 | I117: Louisiana | J117: 152900 | K117: 114700 | L117: 0.7501635056 | M117: TRUE | N117: 4 | O117: 46710 | P117: 82646 | Q117: 1.769342753 | S117: 0 | T117: 19.6 | U117: 11.2 | V117: 0.5714285714 | X117: 1 | Y117: 0 | Z117: 0 | AA117: 1 | AB117: 0 | AC117: NO | AD117: NO | AE117: 4
A118: Assumption | B118: Pierre Part | C118: 210 | D118: 22099021000 | E118: FALSE | F118: 0 | G118: 0 | H118: 71420210118 | I118: Louisiana | J118: 152900 | K118: 114700 | L118: 0.7501635056 | M118: TRUE | N118: 4 | O118: 46710 | P118: 82646 | Q118: 1.769342753 | S118: 0 | T118: 19.6 | U118: 11.2 | V118: 0.5714285714 | X118: 1 | Y118: 0 | Z118: 0 | AA118: 1 | AB118: 0 | AC118: NO | AD118: NO | AE118: 4
A119: Assumption | B119: Plattenville | C119: 503 | D119: 22007050300 | E119: FALSE | F119: 0 | G119: 0 | H119: 71420210119 | I119: Louisiana | J119: 152900 | K119: 0 | L119: 0 | N119: 0 | O119: 46710 | P119: 0 | Q119: 0 | R119: TRUE | S119: 4 | T119: 19.6 | U119: 0 | V119: 0 | X119: 0 | Y119: 1 | Z119: 0 | AA119: 1 | AB119: 0 | AC119: NO | AD119: NO | AE119: 4
A120: Avoyelles | B120: Bordelonville | C120: 301 | D120: 22009030100 | E120: FALSE | F120: 0 | G120: 0 | H120: 71420210120 | I120: Louisiana | J120: 152900 | K120: 71300 | L120: 0.4663178548 | N120: 0 | O120: 46710 | R120: TRUE | S120: 4 | T120: 19.6 | U120: 41.3 | V120: 2.107142857 | W120: TRUE | X120: 0 | Y120: 1 | Z120: 1 | AA120: 2 | AB120: 4 | AC120: NO | AD120: NO | AE120: 8
A121: Avoyelles | B121: Bunkie | C121: 305 | D121: 22009030500 | E121: FALSE | F121: 0 | G121: 0 | H121: 71420210121 | I121: Louisiana | J121: 152900 | K121: 66500 | L121: 0.4349247874 | N121: 0 | O121: 46710 | P121: 26161 | Q121: 0.5600727896 | R121: TRUE | S121: 4 | T121: 19.6 | U121: 25.1 | V121: 1.280612245 | X121: 0 | Y121: 1 | Z121: 0 | AA121: 1 | AB121: 0 | AC121: NO | AD121: NO | AE121: 4
A122: Avoyelles | B122: Bunkie | C122: 306 | D122: 22009030600 | E122: FALSE | F122: 0 | G122: 0 | H122: 71420210122 | I122: Louisiana | J122: 152900 | K122: 66500 | L122: 0.4349247874 | N122: 0 | O122: 46710 | P122: 26161 | Q122: 0.5600727896 | R122: TRUE | S122: 4 | T122: 19.6 | U122: 25.1 | V122: 1.280612245 | X122: 0 | Y122: 1 | Z122: 0 | AA122: 1 | AB122: 0 | AC122: NO | AD122: NO | AE122: 4
A123: Avoyelles | B123: Bunkie | C123: 307 | D123: 22009030700 | E123: FALSE | F123: 0 | G123: 0 | H123: 71420210123 | I123: Louisiana | J123: 152900 | K123: 66500 | L123: 0.4349247874 | N123: 0 | O123: 46710 | P123: 26161 | Q123: 0.5600727896 | R123: TRUE | S123: 4 | T123: 19.6 | U123: 25.1 | V123: 1.280612245 | X123: 0 | Y123: 1 | Z123: 0 | AA123: 1 | AB123: 0 | AC123: NO | AD123: NO | AE123: 4
A124: Avoyelles | B124: Bunkie | C124: 133 | D124: 22079013300 | E124: FALSE | F124: 0 | G124: 0 | H124: 71420210124 | I124: Louisiana | J124: 152900 | K124: 66500 | L124: 0.4349247874 | N124: 0 | O124: 46710 | P124: 26161 | Q124: 0.5600727896 | R124: TRUE | S124: 4 | T124: 19.6 | U124: 25.1 | V124: 1.280612245 | X124: 0 | Y124: 1 | Z124: 0 | AA124: 1 | AB124: 0 | AC124: NO | AD124: NO | AE124: 4
A125: Avoyelles | B125: Bunkie | C125: 9602 | D125: 22097960200 | E125: FALSE | F125: 0 | G125: 0 | H125: 71420210125 | I125: Louisiana | J125: 152900 | K125: 66500 | L125: 0.4349247874 | N125: 0 | O125: 46710 | P125: 26161 | Q125: 0.5600727896 | R125: TRUE | S125: 4 | T125: 19.6 | U125: 25.1 | V125: 1.280612245 | X125: 0 | Y125: 1 | Z125: 0 | AA125: 1 | AB125: 0 | AC125: NO | AD125: NO | AE125: 4
A126: Avoyelles | B126: Center Point | C126: 302 | D126: 22009030200 | E126: FALSE | F126: 0 | G126: 0 | H126: 71420210126 | I126: Louisiana | J126: 152900 | K126: 89800 | L126: 0.5873119686 | M126: TRUE | N126: 4 | O126: 46710 | R126: TRUE | S126: 4 | T126: 19.6 | U126: 53.5 | V126: 2.729591837 | W126: TRUE | X126: 1 | Y126: 1 | Z126: 1 | AA126: 3 | AB126: 4 | AC126: NO | AD126: NO | AE126: 12
A127: Avoyelles | B127: Center Point | C127: 132 | D127: 22079013200 | E127: FALSE | F127: 0 | G127: 0 | H127: 71420210127 | I127: Louisiana | J127: 152900 | K127: 89800 | L127: 0.5873119686 | M127: TRUE | N127: 4 | O127: 46710 | R127: TRUE | S127: 4 | T127: 19.6 | U127: 53.5 | V127: 2.729591837 | W127: TRUE | X127: 1 | Y127: 1 | Z127: 1 | AA127: 3 | AB127: 4 | AC127: NO | AD127: NO | AE127: 12
A128: Avoyelles | B128: Cottonport | C128: 307 | D128: 22009030700 | E128: FALSE | F128: 0 | G128: 0 | H128: 71420210128 | I128: Louisiana | J128: 152900 | K128: 93400 | L128: 0.6108567691 | M128: TRUE | N128: 4 | O128: 46710 | P128: 18241 | Q128: 0.3905159495 | R128: TRUE | S128: 4 | T128: 19.6 | U128: 45.2 | V128: 2.306122449 | W128: TRUE | X128: 1 | Y128: 1 | Z128: 1 | AA128: 3 | AB128: 4 | AC128: NO | AD128: NO | AE128: 12
A129: Avoyelles | B129: Cottonport | C129: 308 | D129: 22009030800 | E129: FALSE | F129: 0 | G129: 0 | H129: 71420210129 | I129: Louisiana | J129: 152900 | K129: 93400 | L129: 0.6108567691 | M129: TRUE | N129: 4 | O129: 46710 | P129: 18241 | Q129: 0.3905159495 | R129: TRUE | S129: 4 | T129: 19.6 | U129: 45.2 | V129: 2.306122449 | W129: TRUE | X129: 1 | Y129: 1 | Z129: 1 | AA129: 3 | AB129: 4 | AC129: NO | AD129: NO | AE129: 12
A130: Avoyelles | B130: Dupont | C130: 308 | D130: 22009030800 | E130: FALSE | F130: 0 | G130: 0 | H130: 71420210130 | I130: Louisiana | J130: 152900 | K130: 0 | L130: 0 | N130: 0 | O130: 46710 | P130: 0 | Q130: 0 | R130: TRUE | S130: 4 | T130: 19.6 | U130: 0 | V130: 0 | X130: 0 | Y130: 1 | Z130: 0 | AA130: 1 | AB130: 0 | AC130: NO | AD130: NO | AE130: 4
A131: Avoyelles | B131: Effie | C131: 302 | D131: 22009030200 | E131: FALSE | F131: 0 | G131: =IF(E131="TRUE",4,0) -> 0 | H131: 71420210131 | I131: Louisiana | J131: 152900 | K131: 0 | L131: 0 | M131: =IF(L131>=50%,TRUE,"") ->  | N131: =IF(M131=TRUE,4,0) -> 0 | O131: 46710 | P131: 0 | Q131: 0 | R131: =IF(Q131<=65%,TRUE,"") -> TRUE | S131: =IF(R131=TRUE, 4,0) -> 4 | T131: 19.6 | U131: 0 | V131: 0 | W131: =IF(V131>=1.5,TRUE,"") ->  | X131: =IF(M131=TRUE,1,0) -> 0 | Y131: =IF(R131=TRUE,1,0) -> 1 | Z131: =IF(W131=TRUE,1,0) -> 0 | AA131: =SUM(X131:Z131) -> 1 | AB131: =IF(W131=TRUE, 4,0) -> 0 | AC131: =IF(AND(E131="TRUE",AA131>1),"YES","NO") -> NO | AD131: =IF(AND(F131=1,AA131>1), "YES","NO") -> NO | AE131: =+G131+N131+S131+AB131 -> 4
A132: Avoyelles | B132: Evergreen | C132: 307 | D132: 22009030700 | E132: FALSE | F132: 0 | G132: 0 | H132: 71420210132 | I132: Louisiana | J132: 152900 | K132: 121900 | L132: 0.7972531066 | M132: TRUE | N132: 4 | O132: 46710 | P132: 22554 | Q132: 0.4828516378 | R132: TRUE | S132: 4 | T132: 19.6 | U132: 44.2 | V132: 2.255102041 | W132: TRUE | X132: 1 | Y132: 1 | Z132: 1 | AA132: 3 | AB132: 4 | AC132: NO | AD132: NO | AE132: 12
A133: Avoyelles | B133: Evergreen | C133: 308 | D133: 22009030800 | E133: FALSE | F133: 0 | G133: 0 | H133: 71420210133 | I133: Louisiana | J133: 152900 | K133: 121900 | L133: 0.7972531066 | M133: TRUE | N133: 4 | O133: 46710 | P133: 22554 | Q133: 0.4828516378 | R133: TRUE | S133: 4 | T133: 19.6 | U133: 44.2 | V133: 2.255102041 | W133: TRUE | X133: 1 | Y133: 1 | Z133: 1 | AA133: 3 | AB133: 4 | AC133: NO | AD133: NO | AE133: 12
A134: Avoyelles | B134: Hamburg | C134: 309 | D134: 22009030900 | E134: TRUE | F134: 0 | G134: 4 | H134: 71420210134 | I134: Louisiana | J134: 152900 | K134: 0 | L134: 0 | N134: 0 | O134: 46710 | P134: 0 | Q134: 0 | R134: TRUE | S134: 4 | T134: 19.6 | U134: 0 | V134: 0 | X134: 0 | Y134: 1 | Z134: 0 | AA134: 1 | AB134: 0 | AC134: NO | AD134: NO | AE134: 8
A135: Avoyelles | B135: Hessmer | C135: 303 | D135: 22009030300 | E135: FALSE | F135: 0 | G135: 0 | H135: 71420210135 | I135: Louisiana | J135: 152900 | K135: 152300 | L135: 0.9960758666 | M135: TRUE | N135: 4 | O135: 46710 | P135: 36250 | Q135: 0.7760650824 | S135: 0 | T135: 19.6 | U135: 21.6 | V135: 1.102040816 | X135: 1 | Y135: 0 | Z135: 0 | AA135: 1 | AB135: 0 | AC135: NO | AD135: NO | AE135: 4
A136: Avoyelles | B136: Hessmer | C136: 305 | D136: 22009030500 | E136: FALSE | F136: 0 | G136: 0 | H136: 71420210136 | I136: Louisiana | J136: 152900 | K136: 152300 | L136: 0.9960758666 | M136: TRUE | N136: 4 | O136: 46710 | P136: 36250 | Q136: 0.7760650824 | S136: 0 | T136: 19.6 | U136: 21.6 | V136: 1.102040816 | X136: 1 | Y136: 0 | Z136: 0 | AA136: 1 | AB136: 0 | AC136: NO | AD136: NO | AE136: 4
A137: Avoyelles | B137: Mansura | C137: 301 | D137: 22009030100 | E137: FALSE | F137: 0 | G137: 0 | H137: 71420210137 | I137: Louisiana | J137: 152900 | K137: 117300 | L137: 0.7671680837 | M137: TRUE | N137: 4 | O137: 46710 | P137: 21136 | Q137: 0.4524941126 | R137: TRUE | S137: 4 | T137: 19.6 | U137: 39.8 | V137: 2.030612245 | W137: TRUE | X137: 1 | Y137: 1 | Z137: 1 | AA137: 3 | AB137: 4 | AC137: NO | AD137: NO | AE137: 12
A138: Avoyelles | B138: Mansura | C138: 304 | D138: 22009030400 | E138: FALSE | F138: 0 | G138: 0 | H138: 71420210138 | I138: Louisiana | J138: 152900 | K138: 117300 | L138: 0.7671680837 | M138: TRUE | N138: 4 | O138: 46710 | P138: 21136 | Q138: 0.4524941126 | R138: TRUE | S138: 4 | T138: 19.6 | U138: 39.8 | V138: 2.030612245 | W138: TRUE | X138: 1 | Y138: 1 | Z138: 1 | AA138: 3 | AB138: 4 | AC138: NO | AD138: NO | AE138: 12
A139: Avoyelles | B139: Mansura | C139: 305 | D139: 22009030500 | E139: FALSE | F139: 0 | G139: 0 | H139: 71420210139 | I139: Louisiana | J139: 152900 | K139: 117300 | L139: 0.7671680837 | M139: TRUE | N139: 4 | O139: 46710 | P139: 21136 | Q139: 0.4524941126 | R139: TRUE | S139: 4 | T139: 19.6 | U139: 39.8 | V139: 2.030612245 | W139: TRUE | X139: 1 | Y139: 1 | Z139: 1 | AA139: 3 | AB139: 4 | AC139: NO | AD139: NO | AE139: 12
A140: Avoyelles | B140: Mansura | C140: 307 | D140: 22009030700 | E140: FALSE | F140: 0 | G140: 0 | H140: 71420210140 | I140: Louisiana | J140: 152900 | K140: 117300 | L140: 0.7671680837 | M140: TRUE | N140: 4 | O140: 46710 | P140: 21136 | Q140: 0.4524941126 | R140: TRUE | S140: 4 | T140: 19.6 | U140: 39.8 | V140: 2.030612245 | W140: TRUE | X140: 1 | Y140: 1 | Z140: 1 | AA140: 3 | AB140: 4 | AC140: NO | AD140: NO | AE140: 12
A141: Avoyelles | B141: Marksville | C141: 301 | D141: 22009030100 | E141: FALSE | F141: 0 | G141: 0 | H141: 71420210141 | I141: Louisiana | J141: 152900 | K141: 98900 | L141: 0.6468279922 | M141: TRUE | N141: 4 | O141: 46710 | P141: 25980 | Q141: 0.5561978163 | R141: TRUE | S141: 4 | T141: 19.6 | U141: 34 | V141: 1.734693878 | W141: TRUE | X141: 1 | Y141: 1 | Z141: 1 | AA141: 3 | AB141: 4 | AC141: NO | AD141: NO | AE141: 12
A142: Avoyelles | B142: Marksville | C142: 303 | D142: 22009030300 | E142: FALSE | F142: 0 | G142: 0 | H142: 71420210142 | I142: Louisiana | J142: 152900 | K142: 98900 | L142: 0.6468279922 | M142: TRUE | N142: 4 | O142: 46710 | P142: 25980 | Q142: 0.5561978163 | R142: TRUE | S142: 4 | T142: 19.6 | U142: 34 | V142: 1.734693878 | W142: TRUE | X142: 1 | Y142: 1 | Z142: 1 | AA142: 3 | AB142: 4 | AC142: NO | AD142: NO | AE142: 12
A143: Avoyelles | B143: Marksville | C143: 304 | D143: 22009030400 | E143: FALSE | F143: 0 | G143: 0 | H143: 71420210143 | I143: Louisiana | J143: 152900 | K143: 98900 | L143: 0.6468279922 | M143: TRUE | N143: 4 | O143: 46710 | P143: 25980 | Q143: 0.5561978163 | R143: TRUE | S143: 4 | T143: 19.6 | U143: 34 | V143: 1.734693878 | W143: TRUE | X143: 1 | Y143: 1 | Z143: 1 | AA143: 3 | AB143: 4 | AC143: NO | AD143: NO | AE143: 12
A144: Avoyelles | B144: Marksville | C144: 133 | D144: 22079013300 | E144: FALSE | F144: 0 | G144: 0 | H144: 71420210144 | I144: Louisiana | J144: 152900 | K144: 98900 | L144: 0.6468279922 | M144: TRUE | N144: 4 | O144: 46710 | P144: 25980 | Q144: 0.5561978163 | R144: TRUE | S144: 4 | T144: 19.6 | U144: 34 | V144: 1.734693878 | W144: TRUE | X144: 1 | Y144: 1 | Z144: 1 | AA144: 3 | AB144: 4 | AC144: NO | AD144: NO | AE144: 12
A145: Avoyelles | B145: Moreauville | C145: 301 | D145: 22009030100 | E145: FALSE | F145: 0 | G145: 0 | H145: 71420210145 | I145: Louisiana | J145: 152900 | K145: 102800 | L145: 0.6723348594 | M145: TRUE | N145: 4 | O145: 46710 | P145: 27120 | Q145: 0.5806037251 | R145: TRUE | S145: 4 | T145: 19.6 | U145: 18.8 | V145: 0.9591836735 | X145: 1 | Y145: 1 | Z145: 0 | AA145: 2 | AB145: 0 | AC145: NO | AD145: NO | AE145: 8
A146: Avoyelles | B146: Moreauville | C146: 307 | D146: 22009030700 | E146: FALSE | F146: 0 | G146: 0 | H146: 71420210146 | I146: Louisiana | J146: 152900 | K146: 102800 | L146: 0.6723348594 | M146: TRUE | N146: 4 | O146: 46710 | P146: 27120 | Q146: 0.5806037251 | R146: TRUE | S146: 4 | T146: 19.6 | U146: 18.8 | V146: 0.9591836735 | X146: 1 | Y146: 1 | Z146: 0 | AA146: 2 | AB146: 0 | AC146: NO | AD146: NO | AE146: 8
A147: Avoyelles | B147: Moreauville | C147: 309 | D147: 22009030900 | E147: TRUE | F147: 1 | G147: 4 | H147: 71420210147 | I147: Louisiana | J147: 152900 | K147: 102800 | L147: 0.6723348594 | M147: TRUE | N147: 4 | O147: 46710 | P147: 27120 | Q147: 0.5806037251 | R147: TRUE | S147: 4 | T147: 19.6 | U147: 18.8 | V147: 0.9591836735 | X147: 1 | Y147: 1 | Z147: 0 | AA147: 2 | AB147: 0 | AC147: YES | AD147: YES | AE147: 12
A148: Avoyelles | B148: Plaucheville | C148: 307 | D148: 22009030700 | E148: FALSE | F148: 0 | G148: 0 | H148: 71420210148 | I148: Louisiana | J148: 152900 | K148: 114600 | L148: 0.7495094833 | M148: TRUE | N148: 4 | O148: 46710 | P148: 34375 | Q148: 0.7359237851 | S148: 0 | T148: 19.6 | U148: 19 | V148: 0.9693877551 | X148: 1 | Y148: 0 | Z148: 0 | AA148: 1 | AB148: 0 | AC148: NO | AD148: NO | AE148: 4
A149: Avoyelles | B149: Plaucheville | C149: 308 | D149: 22009030800 | E149: FALSE | F149: 0 | G149: 0 | H149: 71420210149 | I149: Louisiana | J149: 152900 | K149: 114600 | L149: 0.7495094833 | M149: TRUE | N149: 4 | O149: 46710 | P149: 34375 | Q149: 0.7359237851 | S149: 0 | T149: 19.6 | U149: 19 | V149: 0.9693877551 | X149: 1 | Y149: 0 | Z149: 0 | AA149: 1 | AB149: 0 | AC149: NO | AD149: NO | AE149: 4
A150: Avoyelles | B150: Plaucheville | C150: 309 | D150: 22009030900 | E150: TRUE | F150: 0 | G150: 4 | H150: 71420210150 | I150: Louisiana | J150: 152900 | K150: 114600 | L150: 0.7495094833 | M150: TRUE | N150: 4 | O150: 46710 | P150: 34375 | Q150: 0.7359237851 | S150: 0 | T150: 19.6 | U150: 19 | V150: 0.9693877551 | X150: 1 | Y150: 0 | Z150: 0 | AA150: 1 | AB150: 0 | AC150: NO | AD150: NO | AE150: 8
A151: Avoyelles | B151: Plaucheville | C151: 9601 | D151: 22097960100 | E151: FALSE | F151: 0 | G151: 0 | H151: 71420210151 | I151: Louisiana | J151: 152900 | K151: 114600 | L151: 0.7495094833 | M151: TRUE | N151: 4 | O151: 46710 | P151: 34375 | Q151: 0.7359237851 | S151: 0 | T151: 19.6 | U151: 19 | V151: 0.9693877551 | X151: 1 | Y151: 0 | Z151: 0 | AA151: 1 | AB151: 0 | AC151: NO | AD151: NO | AE151: 4
A152: Avoyelles | B152: Simmesport | C152: 309 | D152: 22009030900 | E152: TRUE | F152: 1 | G152: 4 | H152: 71420210152 | I152: Louisiana | J152: 152900 | K152: 55100 | L152: 0.3603662525 | N152: 0 | O152: 46710 | P152: 23333 | Q152: 0.4995290088 | R152: TRUE | S152: 4 | T152: 19.6 | U152: 50.7 | V152: 2.586734694 | W152: TRUE | X152: 0 | Y152: 1 | Z152: 1 | AA152: 2 | AB152: 4 | AC152: YES | AD152: YES | AE152: 12
A153: Beauregard | B153: DeRidder | C153: 9601 | D153: 22011960100 | E153: TRUE | F153: 1 | G153: 4 | H153: 71420210153 | I153: Louisiana | J153: 152900 | K153: 135200 | L153: 0.8842380641 | M153: TRUE | N153: 4 | O153: 46710 | P153: 43618 | Q153: 0.9338043246 | S153: 0 | T153: 19.6 | U153: 24.4 | V153: 1.244897959 | X153: 1 | Y153: 0 | Z153: 0 | AA153: 1 | AB153: 0 | AC153: NO | AD153: NO | AE153: 8
A154: Beauregard | B154: DeRidder | C154: 9602 | D154: 22011960200 | E154: FALSE | F154: 0 | G154: 0 | H154: 71420210154 | I154: Louisiana | J154: 152900 | K154: 135200 | L154: 0.8842380641 | M154: TRUE | N154: 4 | O154: 46710 | P154: 43618 | Q154: 0.9338043246 | S154: 0 | T154: 19.6 | U154: 24.4 | V154: 1.244897959 | X154: 1 | Y154: 0 | Z154: 0 | AA154: 1 | AB154: 0 | AC154: NO | AD154: NO | AE154: 4
A155: Beauregard | B155: DeRidder | C155: 9603 | D155: 22011960300 | E155: TRUE | F155: 1 | G155: 4 | H155: 71420210155 | I155: Louisiana | J155: 152900 | K155: 135200 | L155: 0.8842380641 | M155: TRUE | N155: 4 | O155: 46710 | P155: 43618 | Q155: 0.9338043246 | S155: 0 | T155: 19.6 | U155: 24.4 | V155: 1.244897959 | X155: 1 | Y155: 0 | Z155: 0 | AA155: 1 | AB155: 0 | AC155: NO | AD155: NO | AE155: 8
A156: Beauregard | B156: DeRidder | C156: 9604 | D156: 22011960400 | E156: FALSE | F156: 0 | G156: 0 | H156: 71420210156 | I156: Louisiana | J156: 152900 | K156: 135200 | L156: 0.8842380641 | M156: TRUE | N156: 4 | O156: 46710 | P156: 43618 | Q156: 0.9338043246 | S156: 0 | T156: 19.6 | U156: 24.4 | V156: 1.244897959 | X156: 1 | Y156: 0 | Z156: 0 | AA156: 1 | AB156: 0 | AC156: NO | AD156: NO | AE156: 4
A157: Beauregard | B157: DeRidder | C157: 9605 | D157: 22011960500 | E157: TRUE | F157: 1 | G157: 4 | H157: 71420210157 | I157: Louisiana | J157: 152900 | K157: 135200 | L157: 0.8842380641 | M157: TRUE | N157: 4 | O157: 46710 | P157: 43618 | Q157: 0.9338043246 | S157: 0 | T157: 19.6 | U157: 24.4 | V157: 1.244897959 | X157: 1 | Y157: 0 | Z157: 0 | AA157: 1 | AB157: 0 | AC157: NO | AD157: NO | AE157: 8
A158: Beauregard | B158: DeRidder | C158: 9606 | D158: 22011960600 | E158: TRUE | F158: 1 | G158: 4 | H158: 71420210158 | I158: Louisiana | J158: 152900 | K158: 135200 | L158: 0.8842380641 | M158: TRUE | N158: 4 | O158: 46710 | P158: 43618 | Q158: 0.9338043246 | S158: 0 | T158: 19.6 | U158: 24.4 | V158: 1.244897959 | X158: 1 | Y158: 0 | Z158: 0 | AA158: 1 | AB158: 0 | AC158: NO | AD158: NO | AE158: 8
A159: Beauregard | B159: DeRidder | C159: 9607 | D159: 22011960700 | E159: FALSE | F159: 0 | G159: 0 | H159: 71420210159 | I159: Louisiana | J159: 152900 | K159: 135200 | L159: 0.8842380641 | M159: TRUE | N159: 4 | O159: 46710 | P159: 43618 | Q159: 0.9338043246 | S159: 0 | T159: 19.6 | U159: 24.4 | V159: 1.244897959 | X159: 1 | Y159: 0 | Z159: 0 | AA159: 1 | AB159: 0 | AC159: NO | AD159: NO | AE159: 4
A160: Beauregard | B160: DeRidder | C160: 9503 | D160: 22115950300 | E160: FALSE | F160: 0 | G160: 0 | H160: 71420210160 | I160: Louisiana | J160: 152900 | K160: 135200 | L160: 0.8842380641 | M160: TRUE | N160: 4 | O160: 46710 | P160: 43618 | Q160: 0.9338043246 | S160: 0 | T160: 19.6 | U160: 24.4 | V160: 1.244897959 | X160: 1 | Y160: 0 | Z160: 0 | AA160: 1 | AB160: 0 | AC160: NO | AD160: NO | AE160: 4
A161: Beauregard | B161: DeRidder | C161: 9508 | D161: 22115950800 | E161: FALSE | F161: 0 | G161: 0 | H161: 71420210161 | I161: Louisiana | J161: 152900 | K161: 135200 | L161: 0.8842380641 | M161: TRUE | N161: 4 | O161: 46710 | P161: 43618 | Q161: 0.9338043246 | S161: 0 | T161: 19.6 | U161: 24.4 | V161: 1.244897959 | X161: 1 | Y161: 0 | Z161: 0 | AA161: 1 | AB161: 0 | AC161: NO | AD161: NO | AE161: 4
A162: Beauregard | B162: DeRidder | C162: 9509 | D162: 22115950900 | E162: FALSE | F162: 0 | G162: 0 | H162: 71420210162 | I162: Louisiana | J162: 152900 | K162: 135200 | L162: 0.8842380641 | M162: TRUE | N162: 4 | O162: 46710 | P162: 43618 | Q162: 0.9338043246 | S162: 0 | T162: 19.6 | U162: 24.4 | V162: 1.244897959 | X162: 1 | Y162: 0 | Z162: 0 | AA162: 1 | AB162: 0 | AC162: NO | AD162: NO | AE162: 4
A163: Beauregard | B163: Dry Creek | C163: 9501 | D163: 22003950100 | E163: FALSE | F163: 0 | G163: 0 | H163: 71420210163 | I163: Louisiana | J163: 152900 | K163: 0 | L163: 0 | N163: 0 | O163: 46710 | P163: 0 | Q163: 0 | R163: TRUE | S163: 4 | T163: 19.6 | U163: 0 | V163: 0 | X163: 0 | Y163: 1 | Z163: 0 | AA163: 1 | AB163: 0 | AC163: NO | AD163: NO | AE163: 4
A164: Beauregard | B164: Dry Creek | C164: 9601 | D164: 22011960100 | E164: FALSE | F164: 0 | G164: 0 | H164: 71420210164 | I164: Louisiana | J164: 152900 | K164: 0 | L164: 0 | N164: 0 | O164: 46710 | P164: 0 | Q164: 0 | R164: TRUE | S164: 4 | T164: 19.6 | U164: 0 | V164: 0 | X164: 0 | Y164: 1 | Z164: 0 | AA164: 1 | AB164: 0 | AC164: NO | AD164: NO | AE164: 4
A165: Beauregard | B165: Longville | C165: 9601 | D165: 22011960100 | E165: FALSE | F165: 0 | G165: 0 | H165: 71420210165 | I165: Louisiana | J165: 152900 | N165: 0 | O165: 46710 | R165: TRUE | S165: 4 | T165: 19.6 | U165: 11.9 | V165: 0.6071428571 | X165: 0 | Y165: 1 | Z165: 0 | AA165: 1 | AB165: 0 | AC165: NO | AD165: NO | AE165: 4
A166: Beauregard | B166: Longville | C166: 9607 | D166: 22011960700 | E166: FALSE | F166: 0 | G166: 0 | H166: 71420210166 | I166: Louisiana | J166: 152900 | N166: 0 | O166: 46710 | R166: TRUE | S166: 4 | T166: 19.6 | U166: 11.9 | V166: 0.6071428571 | X166: 0 | Y166: 1 | Z166: 0 | AA166: 1 | AB166: 0 | AC166: NO | AD166: NO | AE166: 4
A167: Beauregard | B167: Merryville | C167: 9602 | D167: 22011960200 | E167: FALSE | F167: 0 | G167: 0 | H167: 71420210167 | I167: Louisiana | J167: 152900 | K167: 63300 | L167: 0.4139960759 | N167: 0 | O167: 46710 | P167: 25321 | Q167: 0.5420894883 | R167: TRUE | S167: 4 | T167: 19.6 | U167: 23.9 | V167: 1.219387755 | X167: 0 | Y167: 1 | Z167: 0 | AA167: 1 | AB167: 0 | AC167: NO | AD167: NO | AE167: 4
A168: Beauregard | B168: Merryville | C168: 9606 | D168: 22011960600 | E168: FALSE | F168: 0 | G168: 0 | H168: 71420210168 | I168: Louisiana | J168: 152900 | K168: 63300 | L168: 0.4139960759 | N168: 0 | O168: 46710 | P168: 25321 | Q168: 0.5420894883 | R168: TRUE | S168: 4 | T168: 19.6 | U168: 23.9 | V168: 1.219387755 | X168: 0 | Y168: 1 | Z168: 0 | AA168: 1 | AB168: 0 | AC168: NO | AD168: NO | AE168: 4
A169: Beauregard | B169: Ragley | C169: 9501 | D169: 22003950100 | E169: FALSE | F169: 0 | G169: 0 | H169: 71420210169 | I169: Louisiana | J169: 152900 | K169: 0 | L169: 0 | N169: 0 | O169: 46710 | P169: 0 | Q169: 0 | R169: TRUE | S169: 4 | T169: 19.6 | U169: 0 | V169: 0 | X169: 0 | Y169: 1 | Z169: 0 | AA169: 1 | AB169: 0 | AC169: NO | AD169: NO | AE169: 4
A170: Beauregard | B170: Ragley | C170: 9601 | D170: 22011960100 | E170: FALSE | F170: 0 | G170: 0 | H170: 71420210170 | I170: Louisiana | J170: 152900 | K170: 0 | L170: 0 | N170: 0 | O170: 46710 | P170: 0 | Q170: 0 | R170: TRUE | S170: 4 | T170: 19.6 | U170: 0 | V170: 0 | X170: 0 | Y170: 1 | Z170: 0 | AA170: 1 | AB170: 0 | AC170: NO | AD170: NO | AE170: 4
A171: Beauregard | B171: Ragley | C171: 9607 | D171: 22011960700 | E171: FALSE | F171: 0 | G171: 0 | H171: 71420210171 | I171: Louisiana | J171: 152900 | K171: 0 | L171: 0 | N171: 0 | O171: 46710 | P171: 0 | Q171: 0 | R171: TRUE | S171: 4 | T171: 19.6 | U171: 0 | V171: 0 | X171: 0 | Y171: 1 | Z171: 0 | AA171: 1 | AB171: 0 | AC171: NO | AD171: NO | AE171: 4
A172: Beauregard | B172: Ragley | C172: 22.01 | D172: 22019002201 | E172: FALSE | F172: 0 | G172: 0 | H172: 71420210172 | I172: Louisiana | J172: 152900 | K172: 0 | L172: 0 | N172: 0 | O172: 46710 | P172: 0 | Q172: 0 | R172: TRUE | S172: 4 | T172: 19.6 | U172: 0 | V172: 0 | X172: 0 | Y172: 1 | Z172: 0 | AA172: 1 | AB172: 0 | AC172: NO | AD172: NO | AE172: 4
A173: Beauregard | B173: Ragley | C173: 2 | D173: 22053000200 | E173: FALSE | F173: 0 | G173: 0 | H173: 71420210173 | I173: Louisiana | J173: 152900 | K173: 0 | L173: 0 | N173: 0 | O173: 46710 | P173: 0 | Q173: 0 | R173: TRUE | S173: 4 | T173: 19.6 | U173: 0 | V173: 0 | X173: 0 | Y173: 1 | Z173: 0 | AA173: 1 | AB173: 0 | AC173: NO | AD173: NO | AE173: 4
A174: Beauregard | B174: Singer | C174: 9606 | D174: 22011960600 | E174: FALSE | F174: 0 | G174: 0 | H174: 71420210174 | I174: Louisiana | J174: 152900 | N174: 0 | O174: 46710 | P174: 68517 | Q174: 1.466859345 | S174: 0 | T174: 19.6 | U174: 15 | V174: 0.7653061224 | X174: 0 | Y174: 0 | Z174: 0 | AA174: 0 | AB174: 0 | AC174: NO | AD174: NO | AE174: 0
A175: Beauregard | B175: Singer | C175: 9607 | D175: 22011960700 | E175: FALSE | F175: 0 | G175: 0 | H175: 71420210175 | I175: Louisiana | J175: 152900 | N175: 0 | O175: 46710 | P175: 68517 | Q175: 1.466859345 | S175: 0 | T175: 19.6 | U175: 15 | V175: 0.7653061224 | X175: 0 | Y175: 0 | Z175: 0 | AA175: 0 | AB175: 0 | AC175: NO | AD175: NO | AE175: 0
A176: Beauregard | B176: Sugartown | C176: 9501 | D176: 22003950100 | E176: FALSE | F176: 0 | G176: 0 | H176: 71420210176 | I176: Louisiana | J176: 152900 | K176: 0 | L176: 0 | N176: 0 | O176: 46710 | P176: 0 | Q176: 0 | R176: TRUE | S176: 4 | T176: 19.6 | U176: 0 | V176: 0 | X176: 0 | Y176: 1 | Z176: 0 | AA176: 1 | AB176: 0 | AC176: NO | AD176: NO | AE176: 4
A177: Beauregard | B177: Sugartown | C177: 9601 | D177: 22011960100 | E177: FALSE | F177: 0 | G177: 0 | H177: 71420210177 | I177: Louisiana | J177: 152900 | K177: 0 | L177: 0 | N177: 0 | O177: 46710 | P177: 0 | Q177: 0 | R177: TRUE | S177: 4 | T177: 19.6 | U177: 0 | V177: 0 | X177: 0 | Y177: 1 | Z177: 0 | AA177: 1 | AB177: 0 | AC177: NO | AD177: NO | AE177: 4
A178: Bienville | B178: Arcadia | C178: 9701 | D178: 22013970100 | E178: TRUE | F178: 1 | G178: 4 | H178: 71420210178 | I178: Louisiana | J178: 152900 | K178: 85500 | L178: 0.5591890124 | M178: TRUE | N178: 4 | O178: 46710 | P178: 23015 | Q178: 0.4927210447 | R178: TRUE | S178: 4 | T178: 19.6 | U178: 44.1 | V178: 2.25 | W178: TRUE | X178: 1 | Y178: 1 | Z178: 1 | AA178: 3 | AB178: 4 | AC178: YES | AD178: YES | AE178: 16
A179: Bienville | B179: Arcadia | C179: 9702 | D179: 22013970200 | E179: FALSE | F179: 0 | G179: 0 | H179: 71420210179 | I179: Louisiana | J179: 152900 | K179: 85500 | L179: 0.5591890124 | M179: TRUE | N179: 4 | O179: 46710 | P179: 23015 | Q179: 0.4927210447 | R179: TRUE | S179: 4 | T179: 19.6 | U179: 44.1 | V179: 2.25 | W179: TRUE | X179: 1 | Y179: 1 | Z179: 1 | AA179: 3 | AB179: 4 | AC179: NO | AD179: NO | AE179: 12
A180: Bienville | B180: Arcadia | C180: 9501 | D180: 22027950100 | E180: FALSE | F180: 0 | G180: 0 | H180: 71420210180 | I180: Louisiana | J180: 152900 | K180: 85500 | L180: 0.5591890124 | M180: TRUE | N180: 4 | O180: 46710 | P180: 23015 | Q180: 0.4927210447 | R180: TRUE | S180: 4 | T180: 19.6 | U180: 44.1 | V180: 2.25 | W180: TRUE | X180: 1 | Y180: 1 | Z180: 1 | AA180: 3 | AB180: 4 | AC180: NO | AD180: NO | AE180: 12
A181: Bienville | B181: Arcadia | C181: 9505 | D181: 22027950500 | E181: FALSE | F181: 0 | G181: 0 | H181: 71420210181 | I181: Louisiana | J181: 152900 | K181: 85500 | L181: 0.5591890124 | M181: TRUE | N181: 4 | O181: 46710 | P181: 23015 | Q181: 0.4927210447 | R181: TRUE | S181: 4 | T181: 19.6 | U181: 44.1 | V181: 2.25 | W181: TRUE | X181: 1 | Y181: 1 | Z181: 1 | AA181: 3 | AB181: 4 | AC181: NO | AD181: NO | AE181: 12
A182: Bienville | B182: Arcadia | C182: 9602 | D182: 22061960200 | E182: FALSE | F182: 0 | G182: 0 | H182: 71420210182 | I182: Louisiana | J182: 152900 | K182: 85500 | L182: 0.5591890124 | M182: TRUE | N182: 4 | O182: 46710 | P182: 23015 | Q182: 0.4927210447 | R182: TRUE | S182: 4 | T182: 19.6 | U182: 44.1 | V182: 2.25 | W182: TRUE | X182: 1 | Y182: 1 | Z182: 1 | AA182: 3 | AB182: 4 | AC182: NO | AD182: NO | AE182: 12
A183: Bienville | B183: Bienville | C183: 9702 | D183: 22013970200 | E183: FALSE | F183: 0 | G183: 0 | H183: 71420210183 | I183: Louisiana | J183: 152900 | K183: 49000 | L183: 0.320470896 | N183: 0 | O183: 46710 | P183: 32500 | Q183: 0.6957824877 | S183: 0 | T183: 19.6 | U183: 6.3 | V183: 0.3214285714 | X183: 0 | Y183: 0 | Z183: 0 | AA183: 0 | AB183: 0 | AC183: NO | AD183: NO | AE183: 0
A184: Bienville | B184: Bienville | C184: 9705 | D184: 22013970500 | E184: FALSE | F184: 0 | G184: 0 | H184: 71420210184 | I184: Louisiana | J184: 152900 | K184: 49000 | L184: 0.320470896 | N184: 0 | O184: 46710 | P184: 32500 | Q184: 0.6957824877 | S184: 0 | T184: 19.6 | U184: 6.3 | V184: 0.3214285714 | X184: 0 | Y184: 0 | Z184: 0 | AA184: 0 | AB184: 0 | AC184: NO | AD184: NO | AE184: 0
A185: Bienville | B185: Castor | C185: 9704 | D185: 22013970400 | E185: FALSE | F185: 0 | G185: 0 | H185: 71420210185 | I185: Louisiana | J185: 152900 | K185: 75000 | L185: 0.4905166776 | N185: 0 | O185: 46710 | P185: 28000 | Q185: 0.599443374 | R185: TRUE | S185: 4 | T185: 19.6 | U185: 15 | V185: 0.7653061224 | X185: 0 | Y185: 1 | Z185: 0 | AA185: 1 | AB185: 0 | AC185: NO | AD185: NO | AE185: 4
A186: Bienville | B186: Castor | C186: 9705 | D186: 22013970500 | E186: FALSE | F186: 0 | G186: 0 | H186: 71420210186 | I186: Louisiana | J186: 152900 | K186: 75000 | L186: 0.4905166776 | N186: 0 | O186: 46710 | P186: 28000 | Q186: 0.599443374 | R186: TRUE | S186: 4 | T186: 19.6 | U186: 15 | V186: 0.7653061224 | X186: 0 | Y186: 1 | Z186: 0 | AA186: 1 | AB186: 0 | AC186: NO | AD186: NO | AE186: 4
A187: Bienville | B187: Castor | C187: 1 | D187: 22069000100 | E187: FALSE | F187: 0 | G187: 0 | H187: 71420210187 | I187: Louisiana | J187: 152900 | K187: 75000 | L187: 0.4905166776 | N187: 0 | O187: 46710 | P187: 28000 | Q187: 0.599443374 | R187: TRUE | S187: 4 | T187: 19.6 | U187: 15 | V187: 0.7653061224 | X187: 0 | Y187: 1 | Z187: 0 | AA187: 1 | AB187: 0 | AC187: NO | AD187: NO | AE187: 4
A188: Bienville | B188: Gibsland | C188: 9702 | D188: 22013970200 | E188: FALSE | F188: 0 | G188: 0 | H188: 71420210188 | I188: Louisiana | J188: 152900 | K188: 83500 | L188: 0.5461085677 | M188: TRUE | N188: 4 | O188: 46710 | P188: 32292 | Q188: 0.6913294798 | S188: 0 | T188: 19.6 | U188: 36.2 | V188: 1.846938776 | W188: TRUE | X188: 1 | Y188: 0 | Z188: 1 | AA188: 2 | AB188: 4 | AC188: NO | AD188: NO | AE188: 8
A189: Bienville | B189: Gibsland | C189: 9705 | D189: 22013970500 | E189: FALSE | F189: 0 | G189: 0 | H189: 71420210189 | I189: Louisiana | J189: 152900 | K189: 83500 | L189: 0.5461085677 | M189: TRUE | N189: 4 | O189: 46710 | P189: 32292 | Q189: 0.6913294798 | S189: 0 | T189: 19.6 | U189: 36.2 | V189: 1.846938776 | W189: TRUE | X189: 1 | Y189: 0 | Z189: 1 | AA189: 2 | AB189: 4 | AC189: NO | AD189: NO | AE189: 8
A190: Bienville | B190: Gibsland | C190: 9505 | D190: 22027950500 | E190: FALSE | F190: 0 | G190: 0 | H190: 71420210190 | I190: Louisiana | J190: 152900 | K190: 83500 | L190: 0.5461085677 | M190: TRUE | N190: 4 | O190: 46710 | P190: 32292 | Q190: 0.6913294798 | S190: 0 | T190: 19.6 | U190: 36.2 | V190: 1.846938776 | W190: TRUE | X190: 1 | Y190: 0 | Z190: 1 | AA190: 2 | AB190: 4 | AC190: NO | AD190: NO | AE190: 8
A191: Bienville | B191: Jamestown | C191: 9704 | D191: 22013970400 | E191: FALSE | F191: 0 | G191: 0 | H191: 71420210191 | I191: Louisiana | J191: 152900 | K191: 0 | L191: 0 | N191: 0 | O191: 46710 | P191: 0 | Q191: 0 | R191: TRUE | S191: 4 | T191: 19.6 | U191: 0 | V191: 0 | X191: 0 | Y191: 1 | Z191: 0 | AA191: 1 | AB191: 0 | AC191: NO | AD191: NO | AE191: 4
A192: Bienville | B192: Jamestown | C192: 9705 | D192: 22013970500 | E192: FALSE | F192: 0 | G192: 0 | H192: 71420210192 | I192: Louisiana | J192: 152900 | K192: 0 | L192: 0 | N192: 0 | O192: 46710 | P192: 0 | Q192: 0 | R192: TRUE | S192: 4 | T192: 19.6 | U192: 0 | V192: 0 | X192: 0 | Y192: 1 | Z192: 0 | AA192: 1 | AB192: 0 | AC192: NO | AD192: NO | AE192: 4
A193: Bienville | B193: Ringgold | C193: 9703 | D193: 22013970300 | E193: FALSE | F193: 0 | G193: 0 | H193: 71420210193 | I193: Louisiana | J193: 152900 | K193: 63800 | L193: 0.4172661871 | N193: 0 | O193: 46710 | P193: 18347 | Q193: 0.3927852708 | R193: TRUE | S193: 4 | T193: 19.6 | U193: 47.2 | V193: 2.408163265 | W193: TRUE | X193: 0 | Y193: 1 | Z193: 1 | AA193: 2 | AB193: 4 | AC193: NO | AD193: NO | AE193: 8
A194: Bienville | B194: Ringgold | C194: 9704 | D194: 22013970400 | E194: FALSE | F194: 0 | G194: 0 | H194: 71420210194 | I194: Louisiana | J194: 152900 | K194: 63800 | L194: 0.4172661871 | N194: 0 | O194: 46710 | P194: 18347 | Q194: 0.3927852708 | R194: TRUE | S194: 4 | T194: 19.6 | U194: 47.2 | V194: 2.408163265 | W194: TRUE | X194: 0 | Y194: 1 | Z194: 1 | AA194: 2 | AB194: 4 | AC194: NO | AD194: NO | AE194: 8
A195: Bienville | B195: Ringgold | C195: 9601 | D195: 22081960100 | E195: FALSE | F195: 0 | G195: =IF(E195="TRUE",4,0) -> 0 | H195: 71420210195 | I195: Louisiana | J195: 152900 | K195: 63800 | L195: 0.4172661871 | M195: =IF(L195>=50%,TRUE,"") ->  | N195: =IF(M195=TRUE,4,0) -> 0 | O195: 46710 | P195: 18347 | Q195: 0.3927852708 | R195: =IF(Q195<=65%,TRUE,"") -> TRUE | S195: =IF(R195=TRUE, 4,0) -> 4 | T195: 19.6 | U195: 47.2 | V195: 2.408163265 | W195: =IF(V195>=1.5,TRUE,"") -> TRUE | X195: =IF(M195=TRUE,1,0) -> 0 | Y195: =IF(R195=TRUE,1,0) -> 1 | Z195: =IF(W195=TRUE,1,0) -> 1 | AA195: =SUM(X195:Z195) -> 2 | AB195: =IF(W195=TRUE, 4,0) -> 4 | AC195: =IF(AND(E195="TRUE",AA195>1),"YES","NO") -> NO | AD195: =IF(AND(F195=1,AA195>1), "YES","NO") -> NO | AE195: =+G195+N195+S195+AB195 -> 8
A196: Bienville | B196: Saline | C196: 9705 | D196: 22013970500 | E196: FALSE | F196: 0 | G196: 0 | H196: 71420210196 | I196: Louisiana | J196: 152900 | K196: 66000 | L196: 0.4316546763 | N196: 0 | O196: 46710 | P196: 50500 | Q196: 1.081138942 | S196: 0 | T196: 19.6 | U196: 14.1 | V196: 0.7193877551 | X196: 0 | Y196: 0 | Z196: 0 | AA196: 0 | AB196: 0 | AC196: NO | AD196: NO | AE196: 0
A197: Bienville | B197: Saline | C197: 1 | D197: 22069000100 | E197: FALSE | F197: 0 | G197: 0 | H197: 71420210197 | I197: Louisiana | J197: 152900 | K197: 66000 | L197: 0.4316546763 | N197: 0 | O197: 46710 | P197: 50500 | Q197: 1.081138942 | S197: 0 | T197: 19.6 | U197: 14.1 | V197: 0.7193877551 | X197: 0 | Y197: 0 | Z197: 0 | AA197: 0 | AB197: 0 | AC197: NO | AD197: NO | AE197: 0
A198: Bienville | B198: Saline | C198: 9602 | D198: 22127960200 | E198: FALSE | F198: 0 | G198: 0 | H198: 71420210198 | I198: Louisiana | J198: 152900 | K198: 66000 | L198: 0.4316546763 | N198: 0 | O198: 46710 | P198: 50500 | Q198: 1.081138942 | S198: 0 | T198: 19.6 | U198: 14.1 | V198: 0.7193877551 | X198: 0 | Y198: 0 | Z198: 0 | AA198: 0 | AB198: 0 | AC198: NO | AD198: NO | AE198: 0
A199: Bienville | B199: Taylor | C199: 9702 | D199: 22013970200 | E199: FALSE | F199: 0 | G199: 0 | H199: 71420210199 | I199: Louisiana | J199: 152900 | K199: 0 | L199: 0 | N199: 0 | O199: 46710 | P199: 0 | Q199: 0 | R199: TRUE | S199: 4 | T199: 19.6 | U199: 0 | V199: 0 | X199: 0 | Y199: 1 | Z199: 0 | AA199: 1 | AB199: 0 | AC199: NO | AD199: NO | AE199: 4
A200: Bossier | B200: Barksdale Afb | C200: 109 | D200: 22015010900 | E200: FALSE | F200: 0 | G200: 0 | H200: 71420210200 | I200: Louisiana | J200: 152900 | K200: 0 | L200: 0 | N200: 0 | O200: 46710 | P200: 0 | Q200: 0 | R200: TRUE | S200: 4 | T200: 19.6 | U200: 0 | V200: 0 | X200: 0 | Y200: 1 | Z200: 0 | AA200: 1 | AB200: 0 | AC200: NO | AD200: NO | AE200: 4
... 2328 more rows

Sheet Lists (hidden)
A1: Parishes | D1: Project Type | F1: Legal Structure | H1: Yes/No | J1: Applicant Eligiblity | L1: New Construction/ Rehab | N1: Housing Description | P1: 2021 234 Limits | X1: Maximum Supportable Loan | AD1: Residual Value | AK1: Sale Price
Q2: 0 BR | R2: 1 BR | S2: 2 BR | T2: 3 BR | U2: 4 OR MORE BR | X2: Interest Rate (as a percentage) | Y2: =+'Loan Information'!E8 -> 0 | AD2: Interest Rate (as a percentage) | AE2: =+Underwriting!H521 -> 0 | AK2: Interest Rate (as a percentage) | AL2: =+'Loan Information'!E8 -> 0
A3: Acadia Parish | D3: CHDO Rental Development | F3: General Partnership | H3: Yes | J3: State Certified CHDO | L3: New Construction | N3: Multifamily | P3: Acadia | Q3: 172478 | R3: 197721 | S3: 240432 | T3: 311042 | U3: 341425 | X3: Term of Loan (in Years) | Y3: =+'Loan Information'!E9 -> 0 | AD3: Term of Loan (in Years) | AE3: =+'Loan Information'!E9 -> 0 | AK3: Term of Loan (in Years) | AL3: =+'Loan Information'!E9 -> 0
A4: Allen Parish | D4: Rental Development (Non-CHDO) | F4: Limited Partnership | H4: No | J4: Private For-Profit Developer | L4: Rehab | N4: Single Room Occupancy | P4: Allen | Q4: 172478 | R4: 197721 | S4: 240432 | T4: 311042 | U4: 341425 | X4: Debt Coverage Ratio Required | Y4: =+'Loan Information'!E11 -> 0 | AD4: Debt Coverage Ratio Required | AE4: =+'Loan Information'!E11 -> 0 | AK4: Debt Coverage Ratio Required | AL4: =+'Loan Information'!E11 -> 0
A5: Ascension Parish | F5: Non Profit Entity | J5: Not-For-Profit 501(c)(3) and 501(c)(4) Organizations | N5: Scattered Site | P5: Ascension | Q5: 164174 | R5: 188201 | S5: 228855 | T5: 296066 | U5: 324986 | X5: Net Operating Income | Y5: =+'Pro Forma'!D27 -> 0 | AD5: Net Operating Income (At Completion of 20 HOME Affordability Period) | AE5: =+'Pro Forma'!AP27 -> 0 | AK5: Net Operating Income | AL5: =+'Pro Forma'!AP27 -> 0
A6: Assumption Parish | F6: LLC | J6: Public Housing Authorities | N6: Townhouse | P6: Assumption | Q6: 164174 | R6: 188201 | S6: 228855 | T6: 296066 | U6: 324986 | X6: Interest Rate (as a decimal) | Y6: =+Y2 -> 0 | AD6: Interest Rate (as a decimal) | AE6: =+AE2 -> 0 | AK6: Interest Rate (as a decimal) | AL6: =+AL2 -> 0
A7: Avoyelles Parish | F7: Corporation | J7: Local Governments | N7: Garden Apartment | P7: Avoyelles | Q7: 164174 | R7: 188201 | S7: 228855 | T7: 296066 | U7: 324986 | X7: Term of Loan (in Months) | Y7: =+Y3*12 -> 0 | AD7: Term of Loan (in Months) | AE7: =+AE3*12 -> 0 | AK7: Term of Loan (in Months) | AL7: =+AL3*12 -> 0
A8: Beauregard Parish | J8: Native American Tribes | P8: Beauregard | Q8: 172478 | R8: 197721 | S8: 240432 | T8: 311042 | U8: 341425 | X8: Constant | Y8: =AF102 ->  | AD8: Constant | AE8: =+AO19 ->  | AK8: Constant | AL8: =+AO19 -> 
A9: Bienville Parish | P9: Bienville | Q9: 172478 | R9: 197721 | S9: 240432 | T9: 311042 | U9: 341425 | X9: Debt Service | Y9: =+Y5/Y4 ->  | AA9: D/S = NOI/DCR | AD9: Debt Service | AE9: =+AE5/AE4 ->  | AG9: D/S = NOI/DCR | AK9: Debt Service | AL9: =+AL5/AL4 ->  | AN9: D/S = NOI/DCR
A10: Bossier Parish | P10: Bossier | Q10: 172478 | R10: 197721 | S10: 240432 | T10: 311042 | U10: 341425 | X10: Max Loan | Y10: =+Y9/Y8 ->  | AA10: Loan = (D/S)/c | AD10: Max Loan (Residual Value) | AE10: =+AE9/AE8 ->  | AG10: Loan = (D/S)/c | AK10: Max Loan | AL10: =+AL9/AL8 ->  | AN10: Loan = (D/S)/c
A11: Caddo Parish | D11: Building Style | F11: Occupancy Type | P11: Caddo | Q11: 172478 | R11: 197721 | S11: 240432 | T11: 311042 | U11: 341425
A12: Calcasieu Parish | P12: Calcasieu | Q12: 172478 | R12: 197721 | S12: 240432 | T12: 311042 | U12: 341425
A13: Caldwell Parish | D13: Walk Up | F13: Single Family -- Rental | P13: Caldwell | Q13: 172478 | R13: 197721 | S13: 240432 | T13: 311042 | U13: 341425 | X13: Years | Y13: 10 | Z13: 15 | AA13: 20 | AB13: 25 | AC13: 30 | AD13: 35 | AE13: 40
A14: Cameron Parish | D14: Elevator | F14: Multi-Family -- Rental | P14: Cameron | Q14: 172478 | R14: 197721 | S14: 240432 | T14: 311042 | U14: 341425 | X14: Rate
A15: Catahoula Parish | D15: Row | P15: Catahoula | Q15: 172478 | R15: 197721 | S15: 240432 | T15: 311042 | U15: 341425 | X15: 0.02 | Y15: 0.11042 | Z15: 0.07722 | AA15: 0.06071 | AB15: 0.05086 | AC15: 0.04435 | AD15: 0.03975 | AE15: 0.03634 | AG15: Residual Value Constant
A16: Claiborne Parish | D16: Semi-Detached | P16: Claiborne | Q16: 172478 | R16: 197721 | S16: 240432 | T16: 311042 | U16: 341425 | X16: 0.02125 | Y16: 0.11109 | Z16: 0.07791 | AA16: 0.06142 | AB16: 0.0516 | AC16: 0.04511 | AD16: 0.04053 | AE16: 0.03713 | AH16: 10 Year | AI16: 15 Year | AJ16: 20 Year | AK16: 25 Year | AL16: 30 Year | AM16: 35 Year | AN16: 40 Year
A17: Concordia Parish | D17: Detached | P17: Concordia | Q17: 164174 | R17: 188201 | S17: 228855 | T17: 296066 | U17: 324986 | X17: 0.0225 | Y17: 0.11176 | Z17: 0.07861 | AA17: 0.06214 | AB17: 0.05234 | AC17: 0.04587 | AD17: 0.04131 | AE17: 0.03794 | AG17: Constant | AH17: =IF($AE$2=" ",0, VLOOKUP($AE$2,$X$15:$AE$94, 2)) ->  | AI17: =IF($AE$2=" ",0, VLOOKUP($AE$2,$X$15:$AE$94, 3)) ->  | AJ17: =IF($AE$2=" ",0, VLOOKUP($AE$2,$X$15:$AE$94, 4)) ->  | AK17: =IF($AE$2=" ",0, VLOOKUP($AE$2,$X$15:$AE$94, 5)) ->  | AL17: =IF($AE$2=" ",0, VLOOKUP($AE$2,$X$15:$AE$94, 6)) ->  | AM17: =IF($AE$2=" ",0, VLOOKUP($AE$2,$X$15:$AE$94, 7)) ->  | AN17: =IF($AE$2=" ",0, VLOOKUP($AE$2,$X$15:$AE$94, 8)) -> 
A18: DeSoto Parish | D18: Other | P18: DeSoto | Q18: 172478 | R18: 197721 | S18: 240432 | T18: 311042 | U18: 341425 | X18: 0.02375 | Y18: 0.11244 | Z18: 0.07931 | AA18: 0.06286 | AB18: 0.05308 | AC18: 0.04664 | AD18: 0.0421 | AE18: 0.03875
A19: East Baton Rouge Parish | P19: East Baton Rouge | Q19: 164174 | R19: 188201 | S19: 228855 | T19: 296066 | U19: 324986 | X19: 0.025 | Y19: 0.11312 | Z19: 0.08001 | AA19: 0.06359 | AB19: 0.05383 | AC19: 0.04741 | AD19: 0.0429 | AE19: 0.03957 | AN19: Constant | AO19: =IF(AE3 = " ",0, VLOOKUP(AE3,AP19:AQ25, 2)) ->  | AP19: 10 | AQ19: =+AH17 -> 
A20: East Carroll Parish | P20: East Carroll | Q20: 172478 | R20: 197721 | S20: 240432 | T20: 311042 | U20: 341425 | X20: 0.02625 | Y20: 0.11381 | Z20: 0.08072 | AA20: 0.06432 | AB20: 0.05459 | AC20: 0.0482 | AD20: 0.04371 | AE20: 0.04041 | AP20: 15 | AQ20: =+AI17 -> 
A21: East Feliciana Parish | H21: Application Date | P21: East Feliciana | Q21: 164174 | R21: 188201 | S21: 228855 | T21: 296066 | U21: 324986 | X21: 0.0275 | Y21: 0.11449 | Z21: 0.08143 | AA21: 0.06506 | AB21: 0.05536 | AC21: 0.04899 | AD21: 0.04452 | AE21: 0.04125 | AP21: 20 | AQ21: =+AJ17 -> 
A22: Evangeline Parish | P22: Evangeline | Q22: 172478 | R22: 197721 | S22: 240432 | T22: 311042 | U22: 341425 | X22: 0.02875 | Y22: 0.11518 | Z22: 0.08215 | AA22: 0.0658 | AB22: 0.05613 | AC22: 0.04979 | AD22: 0.04535 | AE22: 0.0421 | AP22: 25 | AQ22: =+AK17 -> 
A23: Franklin Parish | H23: January | I23: 1 | J23: 2018 | P23: Franklin | Q23: 172478 | R23: 197721 | S23: 240432 | T23: 311042 | U23: 341425 | X23: 0.03 | Y23: 0.11587 | Z23: 0.08287 | AA23: 0.06655 | AB23: 0.05691 | AC23: 0.05059 | AD23: 0.04618 | AE23: 0.04296 | AP23: 30 | AQ23: =+AL17 -> 
A24: Grant Parish | H24: February | I24: 2 | J24: 2019 | P24: Grant | Q24: 172478 | R24: 197721 | S24: 240432 | T24: 311042 | U24: 341425 | X24: 0.03125 | Y24: 0.11657 | Z24: 0.08359 | AA24: 0.06731 | AB24: 0.05769 | AC24: 0.05141 | AD24: 0.04702 | AE24: 0.04383 | AP24: 35 | AQ24: =+AM17 -> 
A25: Iberia Parish | H25: March | I25: 3 | J25: 2020 | P25: Iberia | Q25: 164174 | R25: 188201 | S25: 228855 | T25: 296066 | U25: 324986 | X25: 0.0325 | Y25: 0.11726 | Z25: 0.08432 | AA25: 0.06806 | AB25: 0.05848 | AC25: 0.05222 | AD25: 0.04787 | AE25: 0.0447 | AP25: 40 | AQ25: =+AN17 -> 
A26: Iberville Parish | H26: April | I26: 4 | J26: 2021 | P26: Iberville | Q26: 164174 | R26: 188201 | S26: 228855 | T26: 296066 | U26: 324986 | X26: 0.03375 | Y26: 0.11796 | Z26: 0.08505 | AA26: 0.06883 | AB26: 0.05927 | AC26: 0.05305 | AD26: 0.04873 | AE26: 0.04559
A27: Jackson Parish | H27: May | I27: 5 | J27: 2022 | P27: Jackson | Q27: 172478 | R27: 197721 | S27: 240432 | T27: 311042 | U27: 341425 | X27: 0.035 | Y27: 0.11866 | Z27: 0.08579 | AA27: 0.0696 | AB27: 0.06007 | AC27: 0.05389 | AD27: 0.04959 | AE27: 0.04649
A28: Jefferson Parish | H28: June | I28: 6 | J28: 2023 | P28: Jefferson | Q28: 164174 | R28: 188201 | S28: 228855 | T28: 296066 | U28: 324986 | X28: 0.03625 | Y28: 0.11937 | Z28: 0.08652 | AA28: 0.07037 | AB28: 0.06088 | AC28: 0.05473 | AD28: 0.05047 | AE28: 0.04739
A29: Jefferson Davis Parish | H29: July | I29: 7 | J29: 2024 | P29: Jefferson Davis | Q29: 172478 | R29: 197721 | S29: 240432 | T29: 311042 | U29: 341425 | X29: 0.0375 | Y29: 0.12007 | Z29: 0.08727 | AA29: 0.07115 | AB29: 0.0617 | AC29: 0.05557 | AD29: 0.05135 | AE29: 0.0483
A30: Lafayette Parish | H30: August | I30: 8 | J30: 2025 | P30: La Salle | Q30: 172478 | R30: 197721 | S30: 240432 | T30: 311042 | U30: 341425 | X30: 0.03875 | Y30: 0.12078 | Z30: 0.08801 | AA30: 0.07193 | AB30: 0.06252 | AC30: 0.05643 | AD30: 0.05224 | AE30: 0.04922
A31: Lafourche Parish | H31: September | I31: 9 | J31: 2026 | P31: Lafayette | Q31: 164174 | R31: 188201 | S31: 228855 | T31: 296066 | U31: 324986 | X31: 0.04 | Y31: 0.12149 | Z31: 0.08876 | AA31: 0.07272 | AB31: 0.06334 | AC31: 0.05729 | AD31: 0.05313 | AE31: 0.05015
A32: La Salle Parish | D32: Error. 2021 Spring HOME NOFA does not include HTF funding. | H32: October | I32: 10 | J32: 2027 | P32: Lafourche | Q32: 164174 | R32: 188201 | S32: 228855 | T32: 296066 | U32: 324986 | X32: 0.04125 | Y32: 0.12221 | Z32: 0.08952 | AA32: 0.07351 | AB32: 0.06417 | AC32: 0.05816 | AD32: 0.05404 | AE32: 0.05109
A33: Lincoln Parish | D33: Error. NOAH Program does not include HTF funding. | H33: November | I33: 11 | J33: 2028 | P33: Lincoln | Q33: 172478 | R33: 197721 | S33: 240432 | T33: 311042 | U33: 341425 | X33: 0.0425 | Y33: 0.12293 | Z33: 0.09027 | AA33: 0.07431 | AB33: 0.06501 | AC33: 0.05903 | AD33: 0.05495 | AE33: 0.05203
A34: Livingston Parish | D34: Error. CHAAP Program does not include HTF funding. | H34: December | I34: 12 | P34: Livingston | Q34: 164174 | R34: 188201 | S34: 228855 | T34: 296066 | U34: 324986 | X34: 0.04375 | Y34: 0.12364 | Z34: 0.09103 | AA34: 0.07511 | AB34: 0.06585 | AC34: 0.05991 | AD34: 0.05587 | AE34: 0.05299
A35: Madison Parish | D35: Error. The Small Project Continuation Program does not include HTF funding. | I35: 13 | P35: Madison | Q35: 172478 | R35: 197721 | S35: 240432 | T35: 311042 | U35: 341425 | X35: 0.045 | Y35: 0.12437 | Z35: 0.0918 | AA35: 0.07592 | AB35: 0.0667 | AC35: 0.0608 | AD35: 0.05679 | AE35: 0.05395
A36: Morehouse Parish | D36: =IF('Primary Input'!E41=0,"Ok",IF('Primary Input'!E6=Lists!D43,Lists!D32,IF('Primary Input'!E6=Lists!D40,Lists!D33,IF('Primary Input'!E6=Lists!D41,Lists!D34,IF('Primary Input'!E6=Lists!D42,Lists!D35))))) -> Ok | I36: 14 | P36: Morehouse | Q36: 172478 | R36: 197721 | S36: 240432 | T36: 311042 | U36: 341425 | X36: 0.04625 | Y36: 0.12509 | Z36: 0.09257 | AA36: 0.07673 | AB36: 0.06755 | AC36: 0.0617 | AD36: 0.05772 | AE36: 0.05492
A37: Natchitoches Parish | I37: 15 | P37: Natchitoches | Q37: 172478 | R37: 197721 | S37: 240432 | T37: 311042 | U37: 341425 | X37: 0.0475 | Y37: 0.12582 | Z37: 0.09334 | AA37: 0.07755 | AB37: 0.06841 | AC37: 0.0626 | AD37: 0.05866 | AE37: 0.05589
A38: Orleans Pairsh | D38: Type of Appliocation | E38: HOME Limit | F38: Per Project Limit | G38: Max Units | H38: Per Project HTF | I38: 16 | P38: Orleans | Q38: 164174 | R38: 188201 | S38: 228855 | T38: 296066 | U38: 324986 | X38: 0.04875 | Y38: 0.12655 | Z38: 0.09412 | AA38: 0.07837 | AB38: 0.06928 | AC38: 0.0635 | AD38: 0.05961 | AE38: 0.05687
A39: Ouachita Parish | I39: 17 | P39: Ouachita | Q39: 172478 | R39: 197721 | S39: 240432 | T39: 311042 | U39: 341425 | X39: 0.05 | Y39: 0.12728 | Z39: 0.0949 | AA39: 0.07919 | AB39: 0.07015 | AC39: 0.06442 | AD39: 0.06056 | AE39: 0.05786
A40: Plaquemines Parish | D40: NOAH | E40: =IF('Primary Input'!$E$6 = "NOAH", "234 Limit", 0) -> 0 | F40: =IF('Primary Input'!E6 = "NOAH", 400000, 0) -> 0 | G40: =IF('Primary Input'!E6="NOAH", 4, 0) -> 0 | H40: 0 | I40: 18 | P40: Plaquemines | Q40: 164174 | R40: 188201 | S40: 228855 | T40: 296066 | U40: 324986 | X40: 0.05125 | Y40: 0.12801 | Z40: 0.09568 | AA40: 0.08003 | AB40: 0.07103 | AC40: 0.06534 | AD40: 0.06152 | AE40: 0.05886
A41: Pointe Coupee Parish | D41: CHAAP | E41: 234 Limit | F41: =IF('Primary Input'!E6="CHAAP",IF(Eligibility!E6="NO",600000,0)) -> FALSE | G41: =+IF('Primary Input'!E6="CHAAP", 999999, 0) -> 0 | H41: 0 | I41: 19 | P41: Pointe Coupee | Q41: 164174 | R41: 188201 | S41: 228855 | T41: 296066 | U41: 324986 | X41: 0.0525 | Y41: 0.12875 | Z41: 0.09647 | AA41: 0.08086 | AB41: 0.07191 | AC41: 0.06626 | AD41: 0.06249 | AE41: 0.05986
A42: Rapides Parish | D42: Small Project Continuation | E42: 234 Limit | F42: =IF('Primary Input'!E6 = "Small Project Continuation", 1000000, 0) -> 0 | G42: =IF('Primary Input'!E6="Small Project Continuation", 999999, 0) -> 0 | H42: 0 | I42: 20 | P42: Rapides | Q42: 172478 | R42: 197721 | S42: 240432 | T42: 311042 | U42: 341425 | X42: 0.05375 | Y42: 0.12949 | Z42: 0.09726 | AA42: 0.0817 | AB42: 0.0728 | AC42: 0.0672 | AD42: 0.06346 | AE42: 0.06088
A43: Red River Parish | D43: 2021 Fall Affordable Housing NOFA | E43: 150000 | F43: =IF('Primary Input'!E6 = D43,2000000, 0) -> 0 | G43: =IF('Primary Input'!E6=Lists!D43, 999999, 0) -> 0 | H43: 1000000 | I43: 21 | P43: Red River | Q43: 172478 | R43: 197721 | S43: 240432 | T43: 311042 | U43: 341425 | X43: 0.055 | Y43: 0.13023 | Z43: 0.09805 | AA43: 0.08255 | AB43: 0.07369 | AC43: 0.06813 | AD43: 0.06444 | AE43: 0.06189
A44: Richland Parish | D44: CHAAP Area of Demonstrated Need | E44: 1000000 | F44: =IF('Primary Input'!E6="CHAAP",IF(Eligibility!E6="YES",Lists!E44,0)) -> FALSE | H44: 2000000 | I44: 22 | P44: Richland | Q44: 172478 | R44: 197721 | S44: 240432 | T44: 311042 | U44: 341425 | X44: 0.05625 | Y44: 0.13098 | Z44: 0.09885 | AA44: 0.0834 | AB44: 0.07459 | AC44: 0.06908 | AD44: 0.06543 | AE44: 0.06292
A45: Sabine Parish | D45: Maximum Assistance | E45: =MAX(E40:E43) -> 150000 | F45: =MAX(F40:F44) -> 0 | H45: 2000000 | I45: 23 | P45: Sabine | Q45: 172478 | R45: 197721 | S45: 240432 | T45: 311042 | U45: 341425 | X45: 0.0575 | Y45: 0.13172 | Z45: 0.09965 | AA45: 0.08425 | AB45: 0.07549 | AC45: 0.07003 | AD45: 0.06642 | AE45: 0.06395
A46: St. Bernard Parish | D46: Maximum Units | F46: =MAX(G40:G43) -> 0 | I46: 24 | P46: St. Bernard | Q46: 164174 | R46: 188201 | S46: 228855 | T46: 296066 | U46: 324986 | X46: 0.05875 | Y46: 0.13247 | Z46: 0.10045 | AA46: 0.08511 | AB46: 0.0764 | AC46: 0.07098 | AD46: 0.06742 | AE46: 0.06498
A47: St. Charles Parish | I47: 25 | P47: St. Charles | Q47: 164174 | R47: 188201 | S47: 228855 | T47: 296066 | U47: 324986 | X47: 0.06 | Y47: 0.13322 | Z47: 0.10126 | AA47: 0.08597 | AB47: 0.07732 | AC47: 0.07195 | AD47: 0.06842 | AE47: 0.06603
A48: St. Helena Parish | I48: 26 | P48: St. Helena | Q48: 164174 | R48: 188201 | S48: 228855 | T48: 296066 | U48: 324986 | X48: 0.06125 | Y48: 0.13398 | Z48: 0.10207 | AA48: 0.08684 | AB48: 0.07824 | AC48: 0.07291 | AD48: 0.06943 | AE48: 0.06707
A49: St. James Parish | D49: NET Operating Income | I49: 27 | P49: St. James | Q49: 164174 | R49: 188201 | S49: 228855 | T49: 296066 | U49: 324986 | X49: 0.0625 | Y49: 0.13474 | Z49: 0.10289 | AA49: 0.08771 | AB49: 0.07916 | AC49: 0.07389 | AD49: 0.07045 | AE49: 0.06813
A50: St. John the Baptist Parish | D50: =MIN('Pro Forma'!D27,'Pro Forma'!F27,'Pro Forma'!H27,'Pro Forma'!J27,'Pro Forma'!L27,'Pro Forma'!N27,'Pro Forma'!P27,'Pro Forma'!R27,'Pro Forma'!T27,'Pro Forma'!V27,'Pro Forma'!X27,'Pro Forma'!Z27,'Pro Forma'!AB27,'Pro Forma'!AD27,'Pro Forma'!AF27,'Pro Forma'!AH27,'Pro Forma'!AJ27,'Pro Forma'!AL27,'Pro Forma'!AN27,'Pro Forma'!AP27) -> 0 | I50: 28 | P50: St. John the Baptist | Q50: 164174 | R50: 188201 | S50: 228855 | T50: 296066 | U50: 324986 | X50: 0.06375 | Y50: 0.1355 | Z50: 0.10371 | AA50: 0.08859 | AB50: 0.08009 | AC50: 0.07486 | AD50: 0.07147 | AE50: 0.06919
A51: St. Landry Parish | I51: 29 | P51: St. Landry | Q51: 164174 | R51: 188201 | S51: 228855 | T51: 296066 | U51: 324986 | X51: 0.065 | Y51: 0.13626 | Z51: 0.10453 | AA51: 0.08947 | AB51: 0.08102 | AC51: 0.07585 | AD51: 0.0725 | AE51: 0.07025
A52: St. Martin Parish | D52: Debt Coverage Ratio | I52: 30 | P52: St. Martin | Q52: 164174 | R52: 188201 | S52: 228855 | T52: 296066 | U52: 324986 | X52: 0.06625 | Y52: 0.13702 | Z52: 0.10536 | AA52: 0.09035 | AB52: 0.08196 | AC52: 0.07684 | AD52: 0.07353 | AE52: 0.07133
A53: St. Mary Parish | D53: =MAX('Pro Forma'!D42:AQ42) -> 0 | E53: Max DCR | P53: St. Mary | Q53: 164174 | R53: 188201 | S53: 228855 | T53: 296066 | U53: 324986 | X53: 0.0675 | Y53: 0.13779 | Z53: 0.10619 | AA53: 0.09124 | AB53: 0.08291 | AC53: 0.07783 | AD53: 0.07457 | AE53: 0.0724
A54: St. Tammany Parish | D54: =MIN('Pro Forma'!D42:AQ42) -> 0 | E54: Min DCR | P54: St. Tammany | Q54: 164174 | R54: 188201 | S54: 228855 | T54: 296066 | U54: 324986 | X54: 0.06875 | Y54: 0.13856 | Z54: 0.10702 | AA54: 0.09214 | AB54: 0.08386 | AC54: 0.07883 | AD54: 0.07561 | AE54: 0.07348
A55: Tangipahoa Parish | H55: Required HOME Units | P55: Tangipahoa | Q55: 164174 | R55: 188201 | S55: 228855 | T55: 296066 | U55: 324986 | X55: 0.07 | Y55: 0.13933 | Z55: 0.10786 | AA55: 0.09304 | AB55: 0.08481 | AC55: 0.07984 | AD55: 0.07666 | AE55: 0.07457
A56: Tensas Parish | D56: Rehab Contingency | E56: =+'Rehab or New Construction'!F19 -> 0 | H56: By Percentage | I56: By Cost | J56: By Flat Rate | K56: Least | L56: By 234 | M56: Final | P56: Tensas | Q56: 172478 | R56: 197721 | S56: 240432 | T56: 311042 | U56: 341425 | X56: 0.07125 | Y56: 0.1401 | Z56: 0.1087 | AA56: 0.09394 | AB56: 0.08577 | AC56: 0.08085 | AD56: 0.07772 | AE56: 0.07566
A57: Terrebonne Parish | D57: New Construction Contingency | E57: =+'Rehab or New Construction'!F47 -> 0 | G57: 0 BR | H57: =+Underwriting!H95 ->  | I57: =+Underwriting!H136 ->  | J57: =+Underwriting!H179 ->  | K57: =MIN(H57:J57) ->  | L57: =+Underwriting!H171 ->  | M57: =+I74 ->  | P57: Terrebonne | Q57: 164174 | R57: 188201 | S57: 228855 | T57: 296066 | U57: 324986 | X57: 0.0725 | Y57: 0.14088 | Z57: 0.10954 | AA57: 0.09485 | AB57: 0.08674 | AC57: 0.08186 | AD57: 0.07878 | AE57: 0.07676
A58: Union Parish | G58: 1 BR | H58: =+Underwriting!H96 ->  | I58: =+Underwriting!H137 ->  | J58: =+Underwriting!H180 ->  | K58: =MIN(H58:J58) ->  | L58: =+Underwriting!H172 ->  | M58: =+I75 ->  | P58: Union | Q58: 172478 | R58: 197721 | S58: 240432 | T58: 311042 | U58: 341425 | X58: 0.07375 | Y58: 0.14166 | Z58: 0.11039 | AA58: 0.09576 | AB58: 0.08771 | AC58: 0.08288 | AD58: 0.07984 | AE58: 0.07786
A59: Vermilion Parish | D59: Construction Contingency | E59: =+E56+E57 -> 0 | G59: 2 BR | H59: =+Underwriting!H97 ->  | I59: =+Underwriting!H138 ->  | J59: =+Underwriting!H181 ->  | L59: =+Underwriting!H173 ->  | M59: =+I76 ->  | P59: Vermilion | Q59: 164174 | R59: 188201 | S59: 228855 | T59: 296066 | U59: 324986 | X59: 0.075 | Y59: 0.14244 | Z59: 0.11124 | AA59: 0.09667 | AB59: 0.08868 | AC59: 0.08391 | AD59: 0.08091 | AE59: 0.07897
A60: Vernon Parish | G60: 3 BR | H60: =+Underwriting!H98 ->  | I60: =+Underwriting!H139 ->  | J60: =+Underwriting!H182 ->  | L60: =+Underwriting!H174 ->  | M60: =+I77 ->  | P60: Vernon | Q60: 172478 | R60: 197721 | S60: 240432 | T60: 311042 | U60: 341425 | X60: 0.07625 | Y60: 0.14323 | Z60: 0.1121 | AA60: 0.09759 | AB60: 0.08966 | AC60: 0.08494 | AD60: 0.08198 | AE60: 0.08008
A61: Washington Parish | D61: Rehab Costs | E61: =+'Rehab or New Construction'!F30 -> 0 | G61: 4 BR | H61: =+Underwriting!H99 ->  | I61: =+Underwriting!H140 ->  | J61: =+Underwriting!H183 ->  | L61: =+Underwriting!H175 ->  | M61: =+I78 ->  | P61: Washington | Q61: 164174 | R61: 188201 | S61: 228855 | T61: 296066 | U61: 324986 | X61: 0.0775 | Y61: 0.14401 | Z61: 0.11295 | AA61: 0.09851 | AB61: 0.09064 | AC61: 0.08597 | AD61: 0.08306 | AE61: 0.08119
A62: Webster Parish | D62: New Construction Cost | E62: =+'Rehab or New Construction'!F58 -> 0 | G62: 5 BR | H62: =+Underwriting!H100 ->  | I62: =+Underwriting!H141 ->  | J62: =+Underwriting!H184 ->  | L62: =+Underwriting!H176 ->  | M62: =MAX(H62:J62) ->  | P62: Webster | Q62: 172478 | R62: 197721 | S62: 240432 | T62: 311042 | U62: 341425 | X62: 0.07875 | Y62: 0.1448 | Z62: 0.11381 | AA62: 0.09944 | AB62: 0.09163 | AC62: 0.08701 | AD62: 0.08414 | AE62: 0.08231
A63: West Baton Rouge Parsih | D63: Total Construction Costs | E63: =+E61+E62 -> 0 | P63: West Baton Rouge | Q63: 164174 | R63: 188201 | S63: 228855 | T63: 296066 | U63: 324986 | X63: 0.08 | Y63: 0.14559 | Z63: 0.11468 | AA63: 0.10037 | AB63: 0.09262 | AC63: 0.08805 | AD63: 0.08523 | AE63: 0.08344
A64: West Carroll Parish | P64: West Carroll | Q64: 172478 | R64: 197721 | S64: 240432 | T64: 311042 | U64: 341425 | X64: 0.08125 | Y64: 0.14639 | Z64: 0.11555 | AA64: 0.10131 | AB64: 0.09361 | AC64: 0.0891 | AD64: 0.08632 | AE64: 0.08457
A65: West Felliciana Parish | P65: West Felliciana | Q65: 164174 | R65: 188201 | S65: 228855 | T65: 296066 | U65: 324986 | X65: 0.0825 | Y65: 0.14718 | Z65: 0.11642 | AA65: 0.10225 | AB65: 0.09461 | AC65: 0.09015 | AD65: 0.08742 | AE65: 0.0857
A66: Winn Parish | D66: operating Reserves | P66: Winn | Q66: 172478 | R66: 197721 | S66: 240432 | T66: 311042 | U66: 341425 | X66: 0.08375 | Y66: 0.14798 | Z66: 0.11729 | AA66: 0.10319 | AB66: 0.09562 | AC66: 0.09121 | AD66: 0.08852 | AE66: 0.08683
D67: Six months of Reserves | E67: =+'Primary Input'!E35:G35*2250 -> 0 | X67: 0.085 | Y67: 0.14878 | Z67: 0.11817 | AA67: 0.10414 | AB67: 0.09663 | AC67: 0.09227 | AD67: 0.08962 | AE67: 0.08797
D68: 18 Months of reserves | E68: =+'Primary Input'!E35:G35*7200 -> 0 | X68: 0.08625 | Y68: 0.14959 | Z68: 0.11905 | AA68: 0.10509 | AB68: 0.09764 | AC68: 0.09333 | AD68: 0.09073 | AE68: 0.08911
X69: 0.0875 | Y69: 0.15039 | Z69: 0.11993 | AA69: 0.10605 | AB69: 0.09866 | AC69: 0.0944 | AD69: 0.09184 | AE69: 0.09026
D70: Greater Than Min | E70: =IF('Sources and Uses'!F43>=Lists!E67, 1, 0) -> 1 | X70: 0.08875 | Y70: 0.1512 | Z70: 0.12082 | AA70: 0.107 | AB70: 0.09968 | AC70: 0.09548 | AD70: 0.09296 | AE70: 0.09141
D71: Less Than Max | E71: =IF('Sources and Uses'!F43<=Lists!E68, 1, 0) -> 1 | X71: 0.09 | Y71: 0.15201 | Z71: 0.12171 | AA71: 0.10797 | AB71: 0.1007 | AC71: 0.09655 | AD71: 0.09408 | AE71: 0.09256
D72: Between Limits | E72: =+E70+E71 -> 2 | G72: HOME MINIMUM UNITS REQUIRED Area of Demonstrated Need | P72: Funding and Units Worksheet Calculations | X72: 0.09125 | Y72: 0.15282 | Z72: 0.12261 | AA72: 0.10893 | AB72: 0.10173 | AC72: 0.09764 | AD72: 0.0952 | AE72: 0.09372
A73: Internal Rate of Return | G73: Bed Rooms | H73: Max Cost to Produce, Percentage | I73: Min Column H, Per Unit 234 Limits | X73: 0.0925 | Y73: 0.15364 | Z73: 0.1235 | AA73: 0.1099 | AB73: 0.10277 | AC73: 0.09872 | AD73: 0.09633 | AE73: 0.09488
A74: Initial Investment | B74: =(+'Primary Input'!E42)*-1 -> 0 | G74: 0 BR | H74: =MAX('Funding and Units Worksheet'!H13:J13) ->  | I74: =MIN('Funding and Units Worksheet'!F13,H74) ->  | Q74: 234 Limts for Underwriting and Subsidy Layering Analysis - Rental | X74: 0.09375 | Y74: 0.15446 | Z74: 0.1244 | AA74: 0.11088 | AB74: 0.1038 | AC74: 0.09981 | AD74: 0.09746 | AE74: 0.09604
A75: Cash Flow Year 1 | B75: =+'Pro Forma'!D35 -> 0 | G75: 1 BR | H75: =MAX('Funding and Units Worksheet'!H14:J14) ->  | I75: =MIN('Funding and Units Worksheet'!F14,H75) ->  | P75: =IF('Primary Input'!$E$12= " ",0, VLOOKUP('Primary Input'!$E$12,Lists!$P$3:$U$66,1)) ->  | Q75: 0BR | R75: 1BR | S75: 2BR | T75: 3BR | U75: 4BR | X75: 0.095 | Y75: 0.15528 | Z75: 0.12531 | AA75: 0.11186 | AB75: 0.10484 | AC75: 0.1009 | AD75: 0.09859 | AE75: 0.09721
A76: Cash Flow Year 2 | B76: =+'Pro Forma'!F35 -> 0 | G76: 2 BR | H76: =MAX('Funding and Units Worksheet'!H15:J15) ->  | I76: =MIN('Funding and Units Worksheet'!F15,H76) ->  | P76: 234 Condominium Housing Elevator Type | Q76: =IF('Primary Input'!$E$12="",0, VLOOKUP('Primary Input'!$E$12,$P$3:$U$64,2)) -> 0 | R76: =IF('Primary Input'!$E$12="",0, VLOOKUP('Primary Input'!$E$12,$P$3:$U$64,3)) -> 0 | S76: =IF('Primary Input'!$E$12="",0, VLOOKUP('Primary Input'!$E$12,$P$3:$U$64,4)) -> 0 | T76: =IF('Primary Input'!$E$12="",0, VLOOKUP('Primary Input'!$E$12,$P$3:$U$64,5)) -> 0 | U76: =IF('Primary Input'!$E$12="",0, VLOOKUP('Primary Input'!$E$12,$P$3:$U$64,6)) -> 0 | X76: 0.09625 | Y76: 0.1561 | Z76: 0.12621 | AA76: 0.11284 | AB76: 0.10589 | AC76: 0.102 | AD76: 0.09973 | AE76: 0.09838
A77: Cash Flow Year 3 | B77: =+'Pro Forma'!H35 -> 0 | G77: 3 BR | H77: =MAX('Funding and Units Worksheet'!H16:J16) ->  | I77: =MIN('Funding and Units Worksheet'!F16,H77) ->  | X77: 0.0975 | Y77: 0.15692 | Z77: 0.12712 | AA77: 0.11382 | AB77: 0.10694 | AC77: 0.1031 | AD77: 0.10087 | AE77: 0.09955
A78: Cash Flow Year 4 | B78: =+'Pro Forma'!J35 -> 0 | G78: 4 BR | H78: =MAX('Funding and Units Worksheet'!H17:J17) ->  | I78: =MIN('Funding and Units Worksheet'!F17,H78) ->  | P78: Percentage Funding | Q78: =+Underwriting!H127 ->  | R78: =+Underwriting!H128 ->  | S78: =+Underwriting!H129 ->  | T78: =+Underwriting!H130 ->  | U78: =+Underwriting!H131 ->  | V78: =SUM(R78:U78) ->  | X78: 0.09875 | Y78: 0.15775 | Z78: 0.12804 | AA78: 0.11481 | AB78: 0.10799 | AC78: 0.1042 | AD78: 0.10201 | AE78: 0.10072
A79: Cash Flow Year 5 | B79: =+'Pro Forma'!L35 -> 0 | G79: 5 BR | H79: =MAX('Funding and Units Worksheet'!H18:J18) ->  | I79: =MIN('Funding and Units Worksheet'!F18,H79) ->  | P79: Funding Avaliable PER 234 | Q79: =+'Funding and Units Worksheet'!T13*Lists!Q76 -> 0 | R79: =+'Funding and Units Worksheet'!T14*Lists!R76 -> 0 | S79: =+'Funding and Units Worksheet'!T15*S76 -> 0 | T79: =+'Funding and Units Worksheet'!T16*Lists!T76 -> 0 | U79: =+'Funding and Units Worksheet'!T17*Lists!U76 -> 0 | V79: =SUM(Q79:U79) -> 0 | X79: 0.1 | Y79: 0.15858 | Z79: 0.12895 | AA79: 0.1158 | AB79: 0.10904 | AC79: 0.10531 | AD79: 0.10316 | AE79: 0.1019
A80: Cash Flow Year 6 | B80: =+'Pro Forma'!N35 -> 0 | I80: =SUM(I75:I79) ->  | P80: Funding Avaliable Per NOFA Limit | Q80: =+'Funding and Units Worksheet'!T13*Lists!E43 -> 0 | R80: =+'Funding and Units Worksheet'!T14*Lists!E43 -> 0 | S80: =+'Funding and Units Worksheet'!T15*Lists!E43 -> 0 | T80: =+'Funding and Units Worksheet'!T16*Lists!E43 -> 0 | U80: =+'Funding and Units Worksheet'!T17*Lists!E43 -> 0 | V80: =SUM(Q80:U80) -> 0 | X80: 0.10125 | Y80: 0.15941 | Z80: 0.12987 | AA80: 0.1168 | AB80: 0.1101 | AC80: 0.10642 | AD80: 0.10431 | AE80: 0.10308
A81: Cash Flow Year 7 | B81: =+'Pro Forma'!P35 -> 0 | P81: Cost To Produce | Q81: =+'Funding and Units Worksheet'!T13*Underwriting!$H$112 ->  | R81: =+'Funding and Units Worksheet'!T14*Underwriting!$H$113 ->  | S81: =+'Funding and Units Worksheet'!T15*Underwriting!$H$114 ->  | T81: =+'Funding and Units Worksheet'!T16*Underwriting!$H$115 ->  | U81: =+'Funding and Units Worksheet'!T17*Underwriting!$H$116 ->  | X81: 0.1025 | Y81: 0.16025 | Z81: 0.13079 | AA81: 0.1178 | AB81: 0.11117 | AC81: 0.10753 | AD81: 0.10546 | AE81: 0.10426
A82: Cash Flow Year 8 | B82: =+'Pro Forma'!R35 -> 0 | G82: HTF MINIMUM UNITS REQUIRED Area of Demonstrated Need | P82: Max Allowed Outside of Area of Demonstrated Need | Q82: =MIN(Q78:Q81) ->  | R82: =MIN(R78:R81) ->  | S82: =MIN(S78:S81) ->  | T82: =MIN(T78:T81) ->  | U82: =MIN(U78:U81) ->  | X82: 0.10375 | Y82: 0.16108 | Z82: 0.13172 | AA82: 0.1188 | AB82: 0.11223 | AC82: 0.10865 | AD82: 0.10662 | AE82: 0.10544
A83: Cash Flow Year 9 | B83: =+'Pro Forma'!T35 -> 0 | G83: Bed Rooms | H83: Max Cost to Produce, Percentage | I83: Min Column H, Per Unit 234 Limits | J83: MINimum Number of HTF Units Required | P83: Max Allowed Within Area of Demonstrated Need | Q83: =MIN(Q79,Q81) ->  | R83: =MIN(R79,R81) ->  | X83: 0.105 | Y83: 0.16192 | Z83: 0.13265 | AA83: 0.11981 | AB83: 0.1133 | AC83: 0.10977 | AD83: 0.10778 | AE83: 0.10663
A84: Cash Flow Year 10 | B84: =+'Pro Forma'!V35 -> 0 | G84: 0 BR | H84: =MAX('Funding and Units Worksheet'!H23:J23) ->  | I84: =MIN('Funding and Units Worksheet'!F23,H84) ->  | X84: 0.10625 | Y84: 0.16276 | Z84: 0.13358 | AA84: 0.12081 | AB84: 0.11437 | AC84: 0.11089 | AD84: 0.10894 | AE84: 0.10782
A85: Cash Flow Year 11 | B85: =+'Pro Forma'!X35 -> 0 | G85: 1 BR | H85: =MAX('Funding and Units Worksheet'!H24:J24) ->  | I85: =MIN('Funding and Units Worksheet'!F24,H85) ->  | P85: Total Allowed Outside Area of Demonstrated Need | Q85: =IF(SUM(Q82:U82)<2000000,SUM(Q82:U82),2000000) ->  | X85: 0.1075 | Y85: 0.16361 | Z85: 0.13451 | AA85: 0.12183 | AB85: 0.11545 | AC85: 0.11202 | AD85: 0.1101 | AE85: 0.10901
A86: Cash Flow Year 12 | B86: =+'Pro Forma'!Z35 -> 0 | G86: 2 BR | H86: =MAX('Funding and Units Worksheet'!H25:J25) ->  | I86: =MIN('Funding and Units Worksheet'!F25,H86) ->  | P86: Total Allowed Within Area of Demonstrated Need | Q86: =IF(SUM(Q83:U83)<2000000,SUM(Q83:U83),2000000) ->  | X86: 0.10875 | Y86: 0.16445 | Z86: 0.13545 | AA86: 0.12284 | AB86: 0.11653 | AC86: 0.11315 | AD86: 0.11127 | AE86: 0.1102
A87: Cash Flow Year 13 | B87: =+'Pro Forma'!AB35 -> 0 | G87: 3 BR | H87: =MAX('Funding and Units Worksheet'!H26:J26) ->  | I87: =MIN('Funding and Units Worksheet'!F26,H87) ->  | X87: 0.11 | Y87: 0.1653 | Z87: 0.13639 | AA87: 0.12386 | AB87: 0.11761 | AC87: 0.11428 | AD87: 0.11243 | AE87: 0.1114
A88: Cash Flow Year 14 | B88: =+'Pro Forma'!AD35 -> 0 | G88: 4 BR | H88: =MAX('Funding and Units Worksheet'!H27:J27) ->  | I88: =MIN('Funding and Units Worksheet'!F27,H88) ->  | X88: 0.11125 | Y88: 0.16615 | Z88: 0.13734 | AA88: 0.12489 | AB88: 0.1187 | AC88: 0.11541 | AD88: 0.11361 | AE88: 0.11259
A89: Cash Flow Year 15 | B89: =+'Pro Forma'!AF35 -> 0 | G89: 5 BR | H89: =MAX('Funding and Units Worksheet'!H28:J28) ->  | I89: =MIN('Funding and Units Worksheet'!F28,H89) ->  | Q89: 234 Limts for Underwriting and Subsidy Layering Analysis - Rental | X89: 0.1125 | Y89: 0.167 | Z89: 0.13828 | AA89: 0.12591 | AB89: 0.11979 | AC89: 0.11655 | AD89: 0.11478 | AE89: 0.11379
A90: Cash Flow Year 16 | B90: =+'Pro Forma'!AH35 -> 0 | I90: =SUM(I85:I89) ->  | P90: =IF('Primary Input'!$E$12= " ",0, VLOOKUP('Primary Input'!$E$12,Lists!$P$3:$U$66,1)) ->  | Q90: 0BR | R90: 1BR | S90: 2BR | T90: 3BR | U90: 4BR | X90: 0.11375 | Y90: 0.16786 | Z90: 0.13923 | AA90: 0.12694 | AB90: 0.12088 | AC90: 0.11769 | AD90: 0.11595 | AE90: 0.11499
A91: Cash Flow Year 17 | B91: =+'Pro Forma'!AJ35 -> 0 | P91: 234 Condominium Housing Elevator Type | Q91: =IF('Primary Input'!$E$12="",0, VLOOKUP('Primary Input'!$E$12,$P$3:$U$64,2)) -> 0 | R91: =IF('Primary Input'!$E$12="",0, VLOOKUP('Primary Input'!$E$12,$P$3:$U$64,3)) -> 0 | S91: =IF('Primary Input'!$E$12="",0, VLOOKUP('Primary Input'!$E$12,$P$3:$U$64,4)) -> 0 | T91: =IF('Primary Input'!$E$12="",0, VLOOKUP('Primary Input'!$E$12,$P$3:$U$64,5)) -> 0 | U91: =IF('Primary Input'!$E$12="",0, VLOOKUP('Primary Input'!$E$12,$P$3:$U$64,6)) -> 0 | X91: 0.115 | Y91: 0.16871 | Z91: 0.14018 | AA91: 0.12797 | AB91: 0.12198 | AC91: 0.11883 | AD91: 0.11713 | AE91: 0.11619
A92: Cash Flow Year 18 | B92: =+'Pro Forma'!AL35 -> 0 | X92: 0.11625 | Y92: 0.16957 | Z92: 0.14114 | AA92: 0.12901 | AB92: 0.12307 | AC92: 0.11998 | AD92: 0.11831 | AE92: 0.1174
A93: Cash Flow Year 19 | B93: =+'Pro Forma'!AN35 -> 0 | X93: 0.1175 | Y93: 0.17044 | Z93: 0.1421 | AA93: 0.13004 | AB93: 0.12418 | AC93: 0.12113 | AD93: 0.1195 | AE93: 0.1186
A94: Cash Flow Year 20+Sale Price | B94: =+'Pro Forma'!AP35+AL10 ->  | P94: Funding Avaliable PER 234 | Q94: =+'Funding and Units Worksheet'!U13*Lists!Q91 -> 0 | R94: =+'Funding and Units Worksheet'!U14*Lists!R91 -> 0 | S94: =+'Funding and Units Worksheet'!U15*S91 -> 0 | T94: =+'Funding and Units Worksheet'!U16*Lists!T91 -> 0 | U94: =+'Funding and Units Worksheet'!U17*Lists!U91 -> 0 | X94: 0.11875 | Y94: 0.1713 | Z94: 0.14306 | AA94: 0.13109 | AB94: 0.12528 | AC94: 0.12228 | AD94: 0.12068 | AE94: 0.11981
A95: Internal Rate of Return | B95: =IRR(B74:B94) ->  | G95: HTF UNITS REQUIRED In and Area od Demonstrated Need | P95: Funding Avaliable Per NOFA Limit | Q95: =+'Funding and Units Worksheet'!U13*Lists!H43 -> 0 | R95: =+'Funding and Units Worksheet'!U14*Lists!H43 -> 0 | S95: =+'Funding and Units Worksheet'!U15*Lists!H43 -> 0 | T95: =+'Funding and Units Worksheet'!U16*Lists!H43 -> 0 | U95: =+'Funding and Units Worksheet'!U17*Lists!H43 -> 0
G96: Area of Need | H96: Outside | P96: Cost To Produce | Q96: =+'Funding and Units Worksheet'!U13*Underwriting!$H$112 ->  | R96: =+'Funding and Units Worksheet'!U14*Underwriting!$H$113 ->  | S96: =+'Funding and Units Worksheet'!U15*Underwriting!$H$114 ->  | T96: =+'Funding and Units Worksheet'!U16*Underwriting!$H$130 ->  | U96: =+'Funding and Units Worksheet'!U17*Underwriting!$H$116 -> 
G97: =MAX('Funding and Units Worksheet'!D23,'Funding and Units Worksheet'!H23,'Funding and Units Worksheet'!J23) ->  | H97: =MAX('Funding and Units Worksheet'!F23,'Funding and Units Worksheet'!H23,'Funding and Units Worksheet'!J23) ->  | P97: Max Allowed Outside of Area of Demonstrated Need | Q97: =MIN(Q94:Q96) ->  | R97: =MIN(R94:R96) -> 
G98: =MAX('Funding and Units Worksheet'!D24,'Funding and Units Worksheet'!H24,'Funding and Units Worksheet'!J24) ->  | H98: =MAX('Funding and Units Worksheet'!F24,'Funding and Units Worksheet'!H24,'Funding and Units Worksheet'!J24) ->  | P98: Max Allowed Within Area of Demonstrated Need | Q98: =MIN(Q94,Q96) ->  | R98: =MIN(R94,R96) ->  | X98: Constant
G99: =MAX('Funding and Units Worksheet'!D25,'Funding and Units Worksheet'!H25,'Funding and Units Worksheet'!J25) ->  | H99: =MAX('Funding and Units Worksheet'!F25,'Funding and Units Worksheet'!H25,'Funding and Units Worksheet'!J25) ->  | Y99: 10 Year | Z99: 15 Year | AA99: 20 Year | AB99: 25 Year | AC99: 30 Year | AD99: 35 Year | AE99: 40 Year
G100: =MAX('Funding and Units Worksheet'!D26,'Funding and Units Worksheet'!H26,'Funding and Units Worksheet'!J26) ->  | H100: =MAX('Funding and Units Worksheet'!F26,'Funding and Units Worksheet'!H26,'Funding and Units Worksheet'!J26) ->  | P100: Total Allowed Outside Area of Demonstrated Need | Q100: =IF(SUM(Q97:U97)<2000000,SUM(Q97:U97),2000000) ->  | X100: Constant | Y100: =IF($Y$2=" ",0, VLOOKUP($Y$2,$X$15:$AE$94, 2)) ->  | Z100: =IF($Y$2=" ",0, VLOOKUP($Y$2,$X$15:$AE$94, 3)) ->  | AA100: =IF($Y$2=" ",0, VLOOKUP($Y$2,$X$15:$AE$94,4)) ->  | AB100: =IF($Y$2=" ",0, VLOOKUP($Y$2,$X$15:$AE$94, 5)) ->  | AC100: =IF($Y$2=" ",0, VLOOKUP($Y$2,$X$15:$AE$94, 6)) ->  | AD100: =IF($Y$2=" ",0, VLOOKUP($Y$2,$X$15:$AE$94, 7)) ->  | AE100: =IF($Y$2=" ",0, VLOOKUP($Y$2,$X$15:$AE$94, 8)) -> 
G101: =MAX('Funding and Units Worksheet'!D27,'Funding and Units Worksheet'!H27,'Funding and Units Worksheet'!J27) ->  | H101: =MAX('Funding and Units Worksheet'!F27,'Funding and Units Worksheet'!H27,'Funding and Units Worksheet'!J27) ->  | P101: Total Allowed Within Area of Demonstrated Need | Q101: =IF(SUM(Q98:U98)<2000000,SUM(Q98:U98),2000000) -> 
G102: =MAX('Funding and Units Worksheet'!D28,'Funding and Units Worksheet'!H28,'Funding and Units Worksheet'!J28) ->  | H102: =MAX('Funding and Units Worksheet'!F28,'Funding and Units Worksheet'!H28,'Funding and Units Worksheet'!J28) ->  | AE102: Constant | AF102: =IF(Y3 = " ",0, VLOOKUP(Y3,AG102:AH1088, 2)) ->  | AG102: 10 | AH102: =+Y100 -> 
AG103: 15 | AH103: =+Z100 -> 
Q104: HOME UNITS | AG104: 20 | AH104: =+AA100 -> 
P105: 234 Limit | Q105: =IF('Funding and Units Worksheet'!$T$5="YES",Q91," ") ->  | R105: =IF('Funding and Units Worksheet'!$T$5="YES",R91," ") ->  | S105: =IF('Funding and Units Worksheet'!$T$5="YES",S91," ") ->  | T105: =IF('Funding and Units Worksheet'!$T$5="YES",T91," ") ->  | U105: =IF('Funding and Units Worksheet'!$T$5="YES",U91," ") ->  | AG105: 25 | AH105: =+AB100 -> 
P106: Cost to Produce | Q106: =+'Funding and Units Worksheet'!$T$11*'Funding and Units Worksheet'!$U$3 ->  | R106: =+'Funding and Units Worksheet'!$T$11*'Funding and Units Worksheet'!V3 ->  | S106: =+'Funding and Units Worksheet'!$T$11*'Funding and Units Worksheet'!W3 ->  | T106: =+'Funding and Units Worksheet'!$T$11*'Funding and Units Worksheet'!X3 ->  | U106: =+'Funding and Units Worksheet'!$T$11*'Funding and Units Worksheet'!Y3 ->  | AG106: 30 | AH106: =+AC100 -> 
P107: Flat Rate | Q107: =IF('Funding and Units Worksheet'!$T$5="NO",Lists!$E$43," ") ->  | R107: =IF('Funding and Units Worksheet'!$T$5="NO",Lists!$E$43, " ") ->  | S107: =IF('Funding and Units Worksheet'!$T$5="NO",Lists!$E$43, " ") ->  | T107: =IF('Funding and Units Worksheet'!$T$5="NO",Lists!$E$43, " ") ->  | U107: =IF('Funding and Units Worksheet'!$T$5="NO",Lists!$E$43, " ") ->  | AG107: 35 | AH107: =+AD100 -> 
P108: Maximum Funding | Q108: =MIN(Q105:Q107) ->  | R108: =MIN(R105:R107) ->  | AG108: 40 | AH108: =+AE100 -> 
P109: Total Funding | Q109: =IF('Funding and Units Worksheet'!$T$5="NO",MIN(Lists!Q106,Lists!Q107*'Funding and Units Worksheet'!$T13),MIN(Lists!Q105,Lists!Q106)*'Funding and Units Worksheet'!T13) ->  | R109: =IF('Funding and Units Worksheet'!$T$5="NO",MIN(Lists!R106,Lists!R107*'Funding and Units Worksheet'!$T14),MIN(Lists!R105,Lists!R106)*'Funding and Units Worksheet'!$T14) ->  | S109: =IF('Funding and Units Worksheet'!$T$5="NO",MIN(Lists!S106,Lists!S107*'Funding and Units Worksheet'!$T15),MIN(Lists!S105,Lists!S106)*'Funding and Units Worksheet'!$T15) ->  | T109: =IF('Funding and Units Worksheet'!$T$5="NO",MIN(Lists!T106,Lists!T107*'Funding and Units Worksheet'!$T16),MIN(Lists!T105,Lists!T106)*'Funding and Units Worksheet'!$T16) ->  | U109: =IF('Funding and Units Worksheet'!$T$5="NO",MIN(Lists!U106,Lists!U107*'Funding and Units Worksheet'!$T17),MIN(Lists!U105,Lists!U106)*'Funding and Units Worksheet'!$T17) -> 
Q110: HTF UNITS
P111: 234 Limit | Q111: =+Q91 -> 0 | R111: =+R91 -> 0 | S111: 0 | T111: 0 | U111: 0
P112: Cost to Produce | Q112: =+'Funding and Units Worksheet'!$T$11*'Funding and Units Worksheet'!$V$3 ->  | R112: =+R106 ->  | S112: =+S106 -> 
P113: Flat Rate | Q113: =IF('Funding and Units Worksheet'!T5="NO",Lists!H43, " ") ->  | R113: =+Q113 ->  | S113: =+Q113 ->  | T113: =+Q113 ->  | U113: =+Q113 -> 
P114: Maximum Funding | Q114: =MIN(Q111:Q113) ->  | R114: =MIN(R111:R113) -> 
Q115: =IF('Funding and Units Worksheet'!$T$5="NO",MIN(Lists!Q112,Lists!Q113*'Funding and Units Worksheet'!$U13),MIN(Lists!Q111,Lists!Q112)*'Funding and Units Worksheet'!U13) ->  | R115: =IF('Funding and Units Worksheet'!$T$5="NO",MIN(Lists!R112,Lists!R113*'Funding and Units Worksheet'!$U14),MIN(Lists!R111,Lists!R112)*'Funding and Units Worksheet'!$U14) ->  | S115: =IF('Funding and Units Worksheet'!$T$5="NO",MIN(Lists!S112,Lists!S113*'Funding and Units Worksheet'!$U15),MIN(Lists!S111,Lists!S112)*'Funding and Units Worksheet'!$U15) ->  | T115: =IF('Funding and Units Worksheet'!$T$5="NO",MIN(Lists!T112,Lists!T113*'Funding and Units Worksheet'!$U16),MIN(Lists!T111,Lists!T112)*'Funding and Units Worksheet'!$U16) ->  | U115: =IF('Funding and Units Worksheet'!$T$5="NO",MIN(Lists!U112,Lists!U113*'Funding and Units Worksheet'!$U17),MIN(Lists!U111,Lists!U112)*'Funding and Units Worksheet'!$U17) -> 
P117: Total
P118: HOME | Q118: =SUM(Q109:U109) -> 
P119: HTF | Q119: =SUM(Q115:U115) -> 
G121: Area of Demonstrated Need
G122: City | H122: =+'Primary Input'!E8 -> 0
E123: Cities | G123: Census Tract | H123: =+'Primary Input'!E10 -> 0
G124: Area of Demonstrated Need | H124: =IF(G127="YES","YES","NO") -> 
E125: Abbeville | G125: Unique ID | H125: =+'Primary Input'!E11 -> 0
E126: Abita Springs | L126: =VLOOKUP(H125,'AODN DATA'!D3:AD2528,21) -> 
E127: Acme | G127: =VLOOKUP(H125,'AODN DATA'!D3:AD2528,26) ->  | H127: <This is required formula do not delete
E128: Addis
E129: Aimwell
E130: Akers
E131: Albany
E132: Alexandria
E133: Ama
E134: Amelia
E135: Amite
E136: Anacoco
E137: Angie
E138: Angola
E139: Arabi
E140: Arcadia
E141: Archibald
E142: Arnaudville
E143: Ashland
E144: Athens
E145: Atlanta
E146: Avery Island
E147: Baker
E148: Baldwin
E149: Ball
E150: Barataria
E151: Barksdale Afb
E152: Basile
E153: Baskin
E154: Bastrop
E155: Batchelor
E156: Baton Rouge
E157: Belcher
E158: Bell City
E159: Belle Chasse
E160: Belle Rose
E161: Belmont
E162: Bentley
E163: Benton
E164: Bernice
E165: Berwick
E166: Bethany
E167: Bienville
E168: Blanchard
E169: Bogalusa
E170: Bonita
E171: Bordelonville
E172: Bossier City
E173: Bourg
E174: Boutte
E175: Boyce
E176: Braithwaite
E177: Branch
E178: Breaux Bridge
E179: Brittany
E180: Broussard
E181: Brusly
E182: Bunkie
E183: Buras
E184: Bush
E185: Cade
E186: Calhoun
E187: Calvin
E188: Cameron
E189: Campti
E190: Carencro
E191: Carville
E192: Castor
E193: Cecilia
E194: Center Point
E195: Centerville
E196: Chalmette
E197: Charenton
E198: Chase
E199: Chataignier
E200: Chatham
E201: Chauvin
E202: Cheneyville
... 394 more rows

Sheet Underwriting (hidden)
B2: Underwriting and Subsidy Layering Analysis
B3: for
B4: =+'Primary Input'!E7 -> 0
B7: Project Information | D7: Type of Credit Application | E7: NA
D8: Month | E8: Day | F8: Year | G8: Type of Review:
B9: Date | D9: =+'Primary Input'!E5 -> 0 | E9: =+'Primary Input'!F5 -> 0 | F9: =+'Primary Input'!G5 -> 0 | G9: Preliminary-Initial
B10: 1 | C10: Developer | H10: =+'Primary Input'!E14 -> 0
B11: 2 | C11: Parish | H11: =+Cover!E11 -> 0 | I11: =IF(H11>" ","", "Must Be Filled In") -> Must Be Filled In
B12: 3 | C12: City | H12: =+'Primary Input'!E8 -> 0
C13: Census Tract | H13: =+'Primary Input'!E10 -> 0
B14: 4 | C14: Total Development Cost | H14: =+'Sources and Uses'!F48 -> 0
B15: 16 | C15: Total HOME Investment | H15: =+'Sources and Uses'!F7 -> 0 | I15: =+IF(H15="","Must Be Filled In. If none put $0.00","Pass") -> Pass
B16: 17 | C16: Total Housing Trust Fund | H16: =+'Primary Input'!E41 -> 0
C17: Total Other Investment | H17: =+H18-(H15+H16) -> 0
C18: Total Sources | H18: =+'Sources and Uses'!F24 -> 0 | I18: =IF(H18<H14,"Need Additional Sources",IF(H18>H14,"Project is over funded","Pass")) -> Pass
C19: Total Debt Sources | I19: =IF(H19>" ","Pass", "Must Be Filled In") -> Must Be Filled In
C20: Total Equity Sources | I20: Must Be Filled In
C21: Maximum Per Unit Subsidy Per Funding (NOAH, CHAAP, SPC or NOFA)
B22: 18 | C22: Number of 0 Bedroom Units | H22: =+'Primary Input'!E56 -> 0 | I22: Must Be Filled In
B23: 19 | C23: Number of 1 Bedroom Units | H23: =+'Primary Input'!E57 -> 0 | I23: =+IF(H23="","Must Be Filled In. If none put 0","Pass") -> Pass
B24: 20 | C24: Number of 2 Bedroom Units | H24: =+'Primary Input'!E58 -> 0 | I24: =+IF(H24="","Must Be Filled In. If none put 0","Pass") -> Pass
B25: 21 | C25: Number of 3 Bedroom Units | H25: =+'Primary Input'!E59 -> 0 | I25: Pass
B26: 22 | C26: Number of 4 Bedroom Units | H26: =+'Primary Input'!E60 -> 0 | I26: Pass
B27: 23 | C27: Number of 5 Bedroom Units | H27: =+'Primary Input'!E61 -> 0 | I27: Pass
B28: 24 | C28: Total Number of Units | H28: =SUM(H22:H27) -> 0
C29: Number of 0 Bedroom HOME Units Proposed by Developer | H29: =+'Primary Input'!E65 -> 0 | I29: =IF(H29>=H95, "Ok", "Error. Need more HOME units.") -> 
C30: Number of 1 Bedroom HOME Units Proposed by Developer | H30: =+'Primary Input'!E66 -> 0 | I30: =IF(H30>=H96, "Ok", "Error. Need more HOME units.") -> 
C31: Number of 2 Bedroom HOME Units Proposed by Developer | H31: =+'Primary Input'!E67 -> 0
C32: Number of 3 Bedroom HOME Units Proposed by Developer | H32: =+'Primary Input'!E68 -> 0
C33: Number of 4 Bedroom HOME Units Proposed by Developer | H33: =+'Primary Input'!E69 -> 0
C34: Number of 5 Bedroom HOME Units Porposed by Developer | H34: =+'Primary Input'!E70 -> 0
C35: Total Number of HOME Units Proposed by Developer | H35: =SUM(H29:H34) -> 0
C38: FINAL NUMBER OF REQUIRED 0 BEDROOM UNITS
C39: FINAL NUMBER OF REQUIRED 1 BEDROOM UNITS
C40: FINAL NUMBER OF REQUIRED 2 BEDROOM UNITS
C41: FINAL NUMBER OF REQUIRED 3 BEDROOM UNITS
C42: FINAL NUMBER OF REQUIRED 4 BEDROOM UNITS
C43: FINAL NUMBER OF REQUIRED 5 BEDROOM UNITS
C44: FINAL NUMBER OF REQUIRED TOTAL HOME UNITS | H44: =SUM(H38:H43) -> 0
B45: 25 | C45: Does this activity have project based rental assistance? | I45: =IF(H45>" ","", "Must Be Filled In") -> Must Be Filled In
B46: 26 | C46: Proposed Rent for High HOME 0 Bedroom Units | H46: =+'Rental Income'!T3 -> 0 | I46: =+IF(H46="","Must Be Filled In. If none put $0.00","") -> 
B47: 27 | C47: Proposed Rent for High HOME 1 Bedroom Units | H47: =+'Rental Income'!T4 -> 0
B48: 28 | C48: Proposed Rent for High HOME 2 Bedroom Units | H48: =+'Rental Income'!T5 -> 0
B49: 29 | C49: Proposed Rent for High HOME 3 Bedroom Units | H49: =+'Rental Income'!T6 -> 0
B50: 30 | C50: Proposed Rent for High HOME 4 Bedroom Units | H50: =+'Rental Income'!T7 -> 0
B51: 31 | C51: Proposed Rent for High HOME 5 Bedroom Units | H51: =+'Rental Income'!T8 -> 0
B52: 32 | C52: Proposed Rent for High HOME 6 Bedroom Units | I52: Must Be Filled In. If none put $0.00
B53: 33 | C53: Proposed Rent for Low HOME 0 Bedroom Units | H53: =+'Rental Income'!U3 -> 0
B54: 34 | C54: Proposed Rent for Low HOME 1 Bedroom Units | H54: =+'Rental Income'!U4 -> 0
B55: 35 | C55: Proposed Rent for Low HOME 2 Bedroom Units | H55: =+'Rental Income'!U5 -> 0
B56: 36 | C56: Proposed Rent for Low HOME 3 Bedroom Units | H56: =+'Rental Income'!U6 -> 0
B57: 37 | C57: Proposed Rent for Low HOME 4 Bedroom Units | H57: =+'Rental Income'!U7 -> 0
B58: 38 | C58: Proposed Rent for Low HOME 5 Bedroom Units | H58: =+'Rental Income'!U8 -> 0
B59: 39 | C59: Proposed Rent for Low HOME 6 Bedroom Units | I59: Must Be Filled In. If none put $0.00
C60: Proposed 30% Rent for 0 Bedroom Units | H60: =+'Rental Income'!D27 -> 0
C61: Proposed 30% Rent for 1 Bedroom Units | H61: =+'Rental Income'!D28 -> 0
C62: Proposed 30% Rent for 2 Bedroom Units | H62: =+'Rental Income'!D29 -> 0
C63: Proposed 30% Rent for 3 Bedroom Units | H63: =+'Rental Income'!D30 -> 0
C64: Proposed 30% Rent for 4 Bedroom Units | H64: =+'Rental Income'!D31 -> 0
C65: Proposed 30% Rent for 5 Bedroom Units | H65: =+'Rental Income'!D32 -> 0
C66: Proposed 50% Rent for 0 Bedroom Units | H66: =+'Rental Income'!F27 -> 0
C67: Proposed 50% Rent for 1 Bedroom Units | H67: =+'Rental Income'!F28 -> 0
C68: Proposed 50% Rent for 2 Bedroom Units | H68: =+'Rental Income'!F29 -> 0
C69: Proposed 50% Rent for 3 Bedroom Units | H69: =+'Rental Income'!F30 -> 0
C70: Proposed 50% Rent for 4 Bedroom Units | H70: =+'Rental Income'!F31 -> 0
C71: Proposed 50% Rent for 5 Bedroom Units | H71: =+'Rental Income'!F32 -> 0
C72: Proposed 60% Rent for 0 Bedroom Units | H72: =+'Rental Income'!G27 -> 0
C73: Proposed 60% Rent for 1 Bedroom Units | H73: =+'Rental Income'!G28 -> 0
C74: Proposed 60% Rent for 2 Bedroom Units | H74: =+'Rental Income'!G29 -> 0
C75: Proposed 60% Rent for 3 Bedroom Units | H75: =+'Rental Income'!G30 -> 0
C76: Proposed 60% Rent for 4 Bedroom Units | H76: =+'Rental Income'!G31 -> 0
C77: Proposed 60% Rent for 5 Bedroom Units | H77: =+'Rental Income'!G32 -> 0
C78: Square Feet Per 0 Bedroom Unit | H78: =+'Rental Income'!D3*H22 -> 0 | I78: =+IF(H78="","Must Be Filled In. If none put NA",IF(H78>450,"Pass","")) -> 
C79: Square Feet Per 1 Bedroom Unit | H79: =+'Rental Income'!D4 -> 0 | I79: =+IF(H79="","Must Be Filled In. If none put NA",IF(H79>650,"Pass","")) -> 
C80: Square Feet Per 2 Bedroom Unit | H80: =+'Rental Income'!D5 -> 0 | I80: =+IF(H80="","Must Be Filled In. If none put NA",IF(H80>800,"Pass","")) -> 
C81: Square Feet Per 3 Bedroom Unit | H81: =+'Rental Income'!D6 -> 0 | I81: =+IF(H81="","Must Be Filled In. If none put NA",IF(H81>1100,"Pass","")) -> 
C82: Square Feet Per 4 Bedroom Unit | H82: =+'Rental Income'!D7 -> 0 | I82: =+IF(H82="","Must Be Filled In. If none put NA",IF(H82>1400,"Pass","")) -> 
C83: Square Feet Per 5 Bedroom Unit | H83: =+'Rental Income'!D8 -> 0
C84: Total Square Feet of All Buildings | H84: =SUM(H78:H83) -> 0
C85: Number of Bathrooms 0 Bedroom Unit | H85: =+'Rental Income'!C3 -> 0 | I85: =+IF(H85="","Must Be Filled In.",IF(H85>=1,"Pass","Fail")) -> Fail
C86: Number of Bathrooms 1 Bedroom Unit | H86: =+'Rental Income'!C4 -> 0 | I86: =+IF(H86="","Must Be Filled In.",IF(H86>=1,"Pass","Fail")) -> Fail
C87: Number of Bathrooms 2 Bedroom Unit | H87: =+'Rental Income'!C5 -> 0 | I87: Fail
C88: Number of Bathrooms 3 Bedroom Unit | H88: =+'Rental Income'!C6 -> 0 | I88: =+IF(H88="","Must Be Filled In.",IF(H88>=2,"Pass","Fail")) -> Fail
C89: Number of Bathrooms 4 Bedroom Unit | H89: 0 | I89: =+IF(H89="","Must Be Filled In.",IF(H89>=2,"Pass","Fail")) -> Fail
C90: Number of Bathrooms 5 Bedroom Units | H90: =+'Rental Income'!C8 -> 0
B92: Per Unit Subsidy and Affordability
B93: 1 | C93: HOME Percentage | H93: =+H15/H14 -> 
B94: 2 | C94: Minimum Number of HOME Units | H94: =+H28*H93 -> 
B95: 3 | C95: Number of HOME Assisted 0 Bedroom Units by Percentage | H95: =ROUNDUP(H22*$H$93, 0) -> 
B96: 4 | C96: Number of HOME Assisted 1 Bedroom Units by Percentage
B97: 5 | C97: Number of HOME Assisted 2 Bedroom Units by Percentage
B98: 6 | C98: Number of HOME Assisted 3 Bedroom Units by Percentage
B99: 7 | C99: Number of HOME Assisted 4 Bedroom Units by Percentage
B100: 8 | C100: Number of HOME Assisted 5 Bedroom Units by Percentage
B101: 9 | C101: Total Number of HOME Assisted Units Final Required by Percentage | H101: =SUM(H95:H100) -> 
C102: Final HOME Percentage | H102: =+H15/H18 -> 
B103: 10 | C103: Total Square Feet for 0 Bedroom Units | H103: =+H78*H22 -> 0
B104: 11 | C104: Total Square Feet for 1 Bedroom Units | H104: 0
B105: 12 | C105: Total Square Feet for 2 Bedroom Units | H105: 0
B106: 13 | C106: Total Square Feet for 3 Bedroom Units | H106: 0
B107: 14 | C107: Total Square Feet for 4 Bedroom Units | H107: 0
B108: 15 | C108: Total Square Feet for 5 Bedroom Units | H108: 0
B109: 16 | C109: Total Square Feet | H109: =SUM(H103:H108) -> 0
B110: 17 | C110: Rough Per Unit Cost | H110: =+H14/H28 -> 
B111: 18 | C111: Per Square Foot Cost | H111: =+H14/H109 -> 
B112: 19 | C112: Cost to Construct 0 Bedroom Units | H112: =+H78*$H$111 -> 
B113: 20 | C113: Cost to Construct 1 Bedroom Units | H113: =+H79*$H$111 -> 
B114: 21 | C114: Cost to Construct 2 Bedroom Units
B115: 22 | C115: Cost to Construct 3 Bedroom Units
B116: 23 | C116: Cost to Construct 4 Bedroom Units
B117: 24 | C117: Cost to Construct 5 Bedroom Units
C119: Cost to Construct All 0 Bedroom Units | H119: =+H112*H22 -> 
C120: Cost to Construct All 1 Bedroom Units | H120: =+H113*H23 -> 
C121: Cost to Construct All 2 Bedroom Units
C122: Cost to Construct All 3 Bedroom Units
C123: Cost to Construct All 4 Bedroom Units
C124: Cost to Construct All 5 Bedroom Units
C125: Total Cost to Construct All Units | H125: =SUM(H119:H124) -> 
B127: 25 | C127: Cost to Construct All Proposed HOME Assisted 0 Bedroom Units by % | H127: =(+H112*H22)*$H$102 -> 
B128: 26 | C128: Cost to Construct All Proposed HOME Assisted 1 Bedroom Units by % | H128: =(+H113*H23)*$H$102 -> 
B129: 27 | C129: Cost to Construct All Proposed HOME Assisted 2 Bedroom Units by %
B130: 28 | C130: Cost to Construct All Proposed HOME Assisted 3 Bedroom Units by %
B131: 29 | C131: Cost to Construct All Proposed HOME Assisted 4 Bedroom Units by %
B132: 30 | C132: Cost to Construct All Proposed HOME Assisted 5 Bedroom Units by %
B133: 31 | C133: Total Cost to Construct All Proposed HOME Assisted Units in Project by % | H133: =SUM(H127:H132) -> 
B134: 32 | C134: Actual Total HOME Assistance Requested | H134: =+H15 -> 0
C136: Minimum Number of 0 Bedroom Units by Cost to Construct | H136: =ROUNDUP(IF(H112,H127/H112, 0),0) -> 
C137: Minimum Number of 1 Bedroom Units by Cost to Construct
C138: Minimum Number of 2 Bedroom Units by Cost to Construct
C139: Minimum Number of 3 Bedroom Units by Cost to Construct
C140: Minimum Number of 4 Bedroom Units by Cost to Construct
C141: Minimum Number of 5 Bedroom Units by Cost to Construct
C142: Total HOME Units by Cost to Construct | H142: =SUM(H136:H141) -> 
B144: 33 | C144: Maximum HOME Assistance Per 0 Bedroom Unit (234 Limit) | H144: =+Lists!Q76 -> 0 | I144: 0
B145: 34 | C145: Maximum HOME Assistance Per 1 Bedroom Unit (234 Limit) | H145: =+Lists!R76 -> 0
B146: 35 | C146: Maximum HOME Assistance Per 2 Bedroom Unit (234 Limit) | H146: =+Lists!S76 -> 0
B147: 36 | C147: Maximum HOME Assistance Per 3 Bedroom Unit (234 Limit) | H147: =+Lists!T76 -> 0
B148: 37 | C148: Maximum HOME Assistance Per 4 Bedroom Unit (234 Limit) | H148: =+Lists!U76 -> 0
B149: 38 | C149: Maximum HOME Assistance Per 5 Bedroom Unit (234 Limit) | H149: =+Lists!U76 -> 0
C151: Maximum HOME Assistance for HOME Assisted 0 Bedroom Units As Poposed | H151: =+H29*H144 -> 0
C152: Maximum HOME Assistance for HOME Assisted 1 Bedroom Units As Porposed | H152: =+H30*H145 -> 0
C153: Maximum HOME Assistance for HOME Assisted 2 Bedroom Units As Proposed | H153: 0
C154: Maximum HOME Assistance for HOME Assisted 3 Bedroom Units As Proposed | H154: 0
C155: Maximum HOME Assistance for HOME Assisted 4 Bedroom Units As Proposed | H155: 0
C156: Maximum HOME Assistance for HOME Assisted 5 Bedroom Units As Proposed | H156: 0
C157: Maximum HOME Assistance for the Project As Proposed | H157: =SUM(H151:H156) -> 0
B159: 39 | C159: Maximum HOME Assistance for HOME Assisted 0 Bedroom Units | H159: =+H144*H95 -> 
B160: 40 | C160: Maximum HOME Assistance for HOME Assisted 1 Bedroom Units
B161: 41 | C161: Maximum HOME Assistance for HOME Assisted 2 Bedroom Units
B162: 42 | C162: Maximum HOME Assistance for HOME Assisted 3 Bedroom Units
B163: 43 | C163: Maximum HOME Assistance for HOME Assisted 4 Bedroom Units
B164: 44 | C164: Maximum HOME Assistance for HOME Assisted 5 Bedroom Units
B165: 45 | C165: Maximum HOME Assistance for the Project | H165: =SUM(H159:H164) -> 
C167: Does Proposed Assistance >= Maximum Allowed Assistance | H167: =IF(H157>=H15, "Yes", "No") -> Yes | I167: =IF(H167="NO","Fail. Applicant is Requesting Too Much HOME Assistance", "") -> 
B168: 46 | C168: Is Maximum HOME Assistance Allowed >= Actual HOME Assistance? | H168: =IF(H165>=H15,"Yes","No") -> 
C171: Minimum Number of 0 Bedroom Units by 234 Limit | H171: =ROUNDUP(H127/H144, 0) -> 
C172: Minimum Number of 1 Bedroom Units by 234 Limit
C173: Minimum Number of 2 Bedroom Units by 234 Limit
C174: Minimum Number of 3 Bedroom Units by 234 Limit
C175: Minimum Number of 4 Bedroom Units by 234 Limit
C176: Minimum Number of 5 Bedroom Units by 234 Limit
C177: Total Number of Units by 234 Limit | H177: =SUM(H171:H176) -> 
C179: Minimum Number of 0 Bedroom Units by NOFA Flat Rate | H179: =ROUNDUP(H127/Lists!E43, 0) -> 
C180: Minimum Number of 1 Bedroom Units by NOFA Flat Rate | H180: =ROUNDUP(H128/Lists!E43, 0) -> 
C181: Minimum Number of 2 Bedroom Units by NOFA Flat Rate | H181: =ROUNDUP(H129/Lists!E43, 0) -> 
C182: Minimum Number of 3 Bedroom Units by NOFA Flat Rate | H182: =ROUNDUP(H130/Lists!E43, 0) -> 
C183: Minimum Number of 4 Bedroom Units by NOFA Flat Rate | H183: =ROUNDUP(H131/Lists!E43, 0) -> 
C184: Minimum Number of 5 Bedroom Units by NOFA Flat Rate | H184: =ROUNDUP(H132/Lists!E43, 0) -> 
C185: Total Number of HOME Units by Flat Rate | H185: =SUM(H179:H184) -> 
B187: 47 | C187: High HOME Rent for 0 Bedroom Units | H187: =+'2020 Rents'!F73 -> 
B188: 48 | C188: High HOME Rent for 1 Bedroom Units | H188: =+'2020 Rents'!G73 -> 
B189: 49 | C189: High HOME Rent for 2 Bedroom Units | H189: =+'2020 Rents'!H73 -> 
B190: 50 | C190: High HOME Rent for 3 Bedroom Units | H190: =+'2020 Rents'!I73 -> 
B191: 51 | C191: High HOME Rent for 4 Bedroom Units | H191: =+'2020 Rents'!J73 -> 
B192: 52 | C192: High HOME Rent for 5 Bedroom Units | H192: =+'2020 Rents'!K73 -> 
B193: 53 | C193: High HOME Rent for 6 Bedroom Units | H193: =+'2020 Rents'!L73 -> 
B194: 54 | C194: Low HOME Rent for 0 Bedroom Units | H194: =+'2020 Rents'!F72 -> 
B195: 55 | C195: Low HOME Rent for 1 Bedroom Units | H195: =+'2020 Rents'!G72 -> 
B196: 56 | C196: Low HOME Rent for 2 Bedroom Units | H196: =+'2020 Rents'!H72 -> 
B197: 57 | C197: Low HOME Rent for 3 Bedroom Units | H197: =+'2020 Rents'!I72 -> 
B198: 58 | C198: Low HOME Rent for 4 Bedroom Units | H198: =+'2020 Rents'!J72 -> 
B199: 59 | C199: Low HOME Rent for 5 Bedroom Units | H199: =+'2020 Rents'!K72 -> 
B200: 60 | C200: Low HOME Rent for 6 Bedroom Units | H200: 0
C201: Cost to Construct All Proposed HTF Assisted 0 Bedroom Units | H201: =+H112*'Primary Input'!E74 -> 
C202: Cost to Construct All Proposed HTF Assisted 1 Bedroom Units | H202: =+H113*'Primary Input'!E75 -> 
C203: Cost to Construct All Proposed HTF Assisted 2 Bedroom Units | H203: =+H114*'Primary Input'!E76 -> 
C204: Cost to Construct All Proposed HTF Assisted 3 Bedroom Units | H204: =+H115*'Primary Input'!E77 -> 
C205: Cost to Construct All Proposed HTFAssisted 4 Bedroom Units | H205: =+H116*'Primary Input'!E78 -> 
C206: Cost to Construct All Proposed HTF Assisted 5 Bedroom Units | H206: =+H117*'Primary Input'!E79 -> 
C207: Cost to Construct All Proposed HTF Assisted Units in Project | H207: =SUM(H200:H206) ->  | I207: =IF(H207>Lists!H44, "Error. Amount Exceeds NOFA Limit", "Ok") -> 
C208: Actual Total HTF Assistance Requested For Proposed Units | H208: =+H16 -> 0 | I208: =IF(H208>H207, "Error. Amount Requested for Proposed Units Exceeds Cost to Construct the Proposed Units. Need More HTF Units.","") -> 
C209: HTF Percentage | H209: =+H16/H18 -> 
C210: Minimum Number of 0 Bedroom HTF Units by Percentage | H210: =ROUNDUP(+H22*$H$209,0) ->  | I210: =IF(H210>'Primary Input'!E74, "Error. Developer has proposed too few units","Ok") -> 
C211: Minimum Number of 1 Bedroom HTF Units by Percentage | I211: =IF(H211>'Primary Input'!E75, "Error. Developer has proposed too few units","Ok") -> 
C212: Minimum Number of 2 Bedroom HTF Units by Percentage | I212: =IF(H212>'Primary Input'!E76, "Error. Developer has proposed too few units","Ok") -> 
C213: Minimum Number of 3 Bedroom HTF Units by Percentage | I213: =IF(H213>'Primary Input'!E77, "Error. Developer has proposed too few units","Ok") -> 
C214: Minimum Number of 4 Bedroom HTF Units by Percentage | I214: =IF(H214>'Primary Input'!E78, "Error. Developer has proposed too few units","Ok") -> 
C215: Minimum Number of 5 Bedroom HTF Units by Percentage | I215: =IF(H215>'Primary Input'!E79, "Error. Developer has proposed too few units","Ok") -> 
C216: Total Number of HTF Units Required by Percentage | H216: =SUM(H210:H215) -> 
C218: Maximum Funding by Percentage for 0 Bedroom HTF Units | H218: =+$H$209*H119 -> 
... 322 more rows

Sheet Sheet2 (hidden)
A1: DO NOT DELETE REQUIRED FOR AREA OF DEMONSTRATED NEED
A2: City | B2: =+'Primary Input'!E8 -> 0
A3: Tract | B3: =+'Primary Input'!E10 -> 0
A4: Unique ID | B4: =+Lists!H125 -> 0

Sheet Eligibility
A1: Eligibility | C1: =+Cover!D7 -> 10262021.2021FAHN | D1: =+Cover!E10 -> 0 | H1: =+Cover!E10 -> 0
B2: HOME FUNDS Eligibility Issues | X2: Yes
B3: Eligible Applicant | E3: =IF('Primary Input'!E33="","",'Primary Input'!E33) ->  | H3: =IF(E3="","Ineligible As Submitted", "OK") -> Ineligible As Submitted | X3: No
B4: All households below 80% AMI? | H4: =IF(E4="Yes","OK",(IF(E4="N/A","OK","Ineligible As Submitted"))) -> Ineligible As Submitted | X4: N/A
B5: Is Rehab on vacant units and substantial ? (No rehab = N/A) | H5: =IF(E5="Yes","OK",(IF(E5="N/A","OK","Ineligible As Submitted"))) -> Ineligible As Submitted
B6: Is Project Located in an LHC Defined Area of Demonstrated Need? | E6: =+Lists!H124 ->  | H6: =IF(E6="NO","Standard Underwriting Limits Apply","Area of Demonstrated Need Limits Apply") -> 
B7: Rental Lease Term is at least 12 Months? | H7: =IF(E7="Yes","OK",(IF(E7="N/A","OK","Ineligible as Submitted"))) -> Ineligible as Submitted
B8: Federal Civil Rights Legislation Compliance ? | H8: =IF(E8="Yes","OK",(IF(E8="N/A","OK","Ineligible As Submitted"))) -> Ineligible As Submitted
B9: Program Participants in Good Standing? | H9: =IF(E9="Yes","OK",(IF(E9="N/A","OK","Ineligible As Submitted"))) -> Ineligible As Submitted
B10: Per Project? | E10: =+'Primary Input'!E40:G40 -> 0 | H10: =IF(E10>Lists!F45,"Ineligible As Submitted", "OK") -> OK
B11: Per Unit limit eligibility | E11: =+E10/'Primary Input'!E36 ->  | H11: =+IF(SLR!E21="Yes","OK","Ineligible As Submitted") -> 
B12: Application submitted in proper order and complete ? | H12: =IF(E12="Yes","OK",(IF(E12="N/A","OK","Ineligible As Submitted"))) -> Ineligible As Submitted
B13: Applicant has provided evidence of site control ? | H13: =IF(E13="Yes","OK",(IF(E13="N/A","OK","Ineligible As Submitted"))) -> Ineligible As Submitted
B14: Zoning demonstrated for residential use on each site ? | H14: =IF(E14="Yes","OK",(IF(E14="N/A","OK","Ineligible As Submitted"))) -> Ineligible As Submitted
B15: Affirmative Marketing Plan Complete? | H15: =IF(E15="Yes","OK",(IF(E15="N/A","OK","Ineligible As Submitted"))) -> Ineligible As Submitted
B16: Date of Market Study ? | H16: =IF(E16>K16,"OK","Not Required at Submission") -> Not Required at Submission | K16: =NOW()-60 -> 2021-08-28T13:06:12.040
B17: Application includes at least a 15% match ? | E17: =IF('Types of Housing'!D31=0,0,(1-'Types of Housing'!D31)) -> 0 | H17: =IF(E17<0.15,"Ineligible As Submitted", "OK") -> Ineligible As Submitted
B18: Commitments on all non-HOME FUNDS sources ? | H18: =IF(E18="Yes","OK",(IF(E18="N/A","OK","Ineligible As Submitted"))) -> Ineligible As Submitted
B19: Local PHA utility allowance schedule used ? | H19: =IF(E19="Yes","OK",(IF(E19="N/A","OK","Ineligible As Submitted"))) -> Ineligible As Submitted
B20: Developer fee, consulting fees and overhead less than 15% of total rehab and new construction ? | E20: =IF('Sources and Uses'!F42=0,0,+'Sources and Uses'!I33/'Sources and Uses'!F42) -> 0 | H20: =IF(E20>0.15,"Ineligible As Submitted", "OK") -> OK
B21: Total soft costs less than 20% of total project costs ? | E21: =IF('Sources and Uses'!F48=0,0,+'Sources and Uses'!I48/'Sources and Uses'!F48) -> 0 | H21: =IF(E21>0.2,"Ineligible As Submitted", "OK") -> OK
B22: Sources and uses balance ? | E22: =+'Sources and Uses'!F24-'Sources and Uses'!F48 -> 0 | H22: =IF(E22=0,"OK","Ineligible As Submitted") -> OK
B23: Proposals financially feasible without HOME funding ? | H23: =IF(E23="Yes","Ineligible As Submitted", "OK") -> OK
B24: Proposal has a Hard Debt Service Coverage Ratio of at least 1.15 ? | E24: =+'Pro Forma'!D42 -> 0 | H24: =IF(E24=0,"OK",IF(E24<1.15,"Ineligible As Submitted","OK")) -> OK
B25: Reserves funded over 15-year compliance period ? | H25: =IF(E25=0,"OK",IF(E25<250,"Waiver Required","OK")) -> OK
B26: Reserve Deposits between $250 and $400 per unit ? | H26: =IF(E2>400,"Waiver Required",IF(E26<250,"Waiver Required","OK")) -> Waiver Required
B28: Photographs and Site Maps provided ? | H28: =IF(E28="Yes","OK",(IF(E28="N/A","OK","Ineligible As Submitted"))) -> Ineligible As Submitted
B29: Development Team Documents Provided ? | H29: =IF(E29="Yes","OK",(IF(E29="N/A","OK","Ineligible As Submitted"))) -> Ineligible As Submitted
B30: Architectural Submissions Provided ? | H30: =IF(E30="Yes","OK",(IF(E30="N/A","OK","Ineligible As Submitted"))) -> Ineligible As Submitted
B31: Lead- Based Paint Strategy Provided where necessary ? | H31: =IF(E31="Yes","OK",(IF(E31="N/A","OK","Ineligible As Submitted"))) -> Ineligible As Submitted
B32: Units have sufficient bathrooms ? | H32: =IF(E32="Yes","OK",(IF(E32="N/A","OK","Ineligible as Submitted"))) -> Ineligible as Submitted
B33: All appliances are energy efficient (energy star) ? | H33: Ineligible as Submitted
B34: Project has central HVAC ? | H34: Ineligible as Submitted
B35: All entrances meet ADAAG standards for width and threshold ? | H35: Ineligible as Submitted
B36: Bedrooms are at least 8'X10' ? | H36: Ineligible as Submitted
B37: Project Site is more than 300 feet from a railroad | H37: =IF(E37="Yes","OK. Must Provide Proof With Application",(IF(E37="N/A","OK","Ineligible as Submitted"))) -> Ineligible as Submitted
B38: Is the project in support of Public Housing? | H38: =IF(E38="No","OK",(IF(E38="Yes","Ineligible to apply",(IF(E38="","Ineligible as Submitted"))))) -> Ineligible as Submitted
B39: Did the applicant attend NOFA Workshop/Webinar? | H39: =IF(E39="Yes","OK",(IF(E39="N/A","OK","Not Required Under NOAH"))) -> Not Required Under NOAH
B40: At least 5% of rental units are accessible to persons with mobility impairments and 3% for sensory impairments ? | H40: Ineligible as Submitted
B41: At least 5% of HOMEOWNERSHIP units are accessible to persons with mobility impairments ? | H41: =IF(E41="Yes","OK",(IF(E41="N/A","OK","Waiver Required"))) -> Waiver Required
B44: CHDO Eligibility Issues
B45: Board Authorization -- Resolution of Board of Directors Authorizing Application | H45: =IF(E45="Not Included","Ineligible as Submitted",(IF(E45="Included","Ok",(IF(E45="No Change","Ok"))))) -> FALSE | X45: Included
B46: Governing Board List | H46: =IF(E46="Not Included","Ineligible as Submitted",(IF(E46="Included","Ok",(IF(E46="No Change","Ok"))))) -> FALSE | X46: No Change
B47: Summary of Changes to Staff | H47: =IF(E47="Not Included","Ineligible as Submitted",(IF(E47="Included","Ok",(IF(E47="No Change","Ok"))))) -> FALSE | X47: Not Included
B48: Listing of Staff and Resumes | H48: =IF(E48="Not Included","Ineligible as Submitted",(IF(E48="Included","Ok",(IF(E48="No Change","Ok"))))) -> FALSE

Sheet Types of Housing
A1: Types of Housing | D1: =+Cover!E10 -> 0 | J1: =+Cover!E10 -> 0
A2: =+Cover!D7 -> 10262021.2021FAHN
B3: The Louisiana Housing Corporation (LHC) seeks to utilize HOME funds to expand the supply of affordable housing in areas where LHC serves as the Participating Jurisdiction (PJ).
B8: Number of Units | D8: =+'Primary Input'!E35 -> 0 | H8: =IF(D8>0,"OK","Invalid Entry") -> Invalid Entry
B11: B. Specify units to be dedicated to each of the following income classes
B13: Parish | D13: =+'Primary Input'!E12 -> 0 | H13: No. of Units
B14: AMI | D14: =IF('Primary Input'!E12= "",0, VLOOKUP('Primary Input'!E12,'Primary Input'!AI7:AJ116,2)) -> 0 | I14: =+IF(SUM(H15:H25)<>D8,"Invalid Entry. Number of Units on Primary Input must equal Sum of units below", "OK") -> OK
B15: 30% of AMI | D15: =0.3*D$14 -> 0
B16: 35% of AMI | D16: =0.35*D$14 -> 0
B17: 40% of AMI | D17: =0.4*D$14 -> 0
B18: 45% of AMI | D18: =0.45*D$14 -> 0
B19: 50% of AMI | D19: =0.5*D$14 -> 0
B20: 55% of AMI | D20: =0.55*D$14 -> 0
B21: 60% of AMI | D21: =0.6*D$14 -> 0
B22: 65% of AMI | D22: =0.65*D$14 -> 0
B23: 70% of AMI | D23: =0.7*D$14 -> 0
B24: 75% of AMI | D24: =0.75*D$14 -> 0
B25: 80% of AMI | D25: =0.8*D$14 -> 0
B27: C. Home Funds will support projects by providing up to 85% of the total development costs to support affordable housing creation: - In small cities, rural parishes and areas where LHC serves as the Participating Jurisdiction. - Developments can serve any population (special needs or otherwise) where the rent payments are affordable to and will be occupied by households at or below 80% of the Area Median Income for the HOME-supported units.
B29: Total TDC | D29: =+'Sources and Uses'!F42 -> 0
B30: HOME Requested | D30: =+'Primary Input'!E40 -> 0
B31: % Funding | D31: =IF(D29=0,0,D30/D29) -> 0 | H31: =IF(D31<=0.85,"OK","Ineligible As Submitted") -> OK

Sheet Development Team
A1: Development Team | F1: =+Cover!D7 -> 10262021.2021FAHN | H1: =+Cover!E10 -> 0
B2: Applications are in part evaluated based on the experience and time devoted to the project of the key member(s) of the development team. Please indicated below the name and contact information for each person filling the position indicated (if any) and the amount of time the expect to dedicate to the proposed project. If the individual is a qualified SDB or CHDO please indicate so in the appropriate box. To receive credit you must attach resume and/or certificates. | L2: % of Time Devoted to Project | M2: SDB | N2: CHDO | O2: Comments
B4: Taxpayer/Developer | AJ4: Yes
B5: Provide Resume | AJ5: No
F7: Contact: | J7: Phone:
F9: E-Mail Address: | J9: Fax:
B11: Managing Member/Partner:
B12: Provide Resume
F14: Contact: | J14: Phone:
B16: Attorney:
F19: Contact: | J19: Phone:
B21: Accountant:
F24: Contact: | J24: Phone:
B26: Construction Mortgage
B27: Lender:
F29: Contact: | J29: Phone:
B31: Permanent Mortgage
B32: Lender:
F34: Contact: | J34: Phone:
B36: Management Co.:
B37: Provide Resume
F39: Contact: | J39: Phone:
B41: Builder / Contractor:
B42: Provide Resume if available
F44: Contact: | J44: Phone:
B46: Architect:
B47: Provide Resume if available
F49: Contact: | J49: Phone:
B51: Consultant:
F54: Contact: | J54: Phone:

Sheet Financial Considerations
A1: Financial Considerations | G1: =+Cover!$H$7 -> 0
A2: =+Cover!D7 -> 10262021.2021FAHN
A4: =+Cover!E10 -> 0
B8: Project name entered? | H8: =IF('Primary Input'!E7<>"","OK","Ineligible As Submitted") -> Ineligible As Submitted
B9: Parish indicated? | H9: =IF('Primary Input'!E12<>"","OK","Ineligible As Submitted") -> Ineligible As Submitted
B10: DSR greater than 1.15? | H10: =IF('Pro Forma'!D42>1.15,"OK",IF('Pro Forma'!D42=0,"OK","Ineligible As Submitted")) -> OK
B11: Developer Fee within the allowable limit? | H11: =IF('Rehab or New Construction'!F77<='Rehab or New Construction'!F76,"OK","Ineligible As Submitted") -> OK
B12: Builder Profit within the allowable limit? | H12: =IF('Rehab or New Construction'!F75<='Rehab or New Construction'!F74,"OK","Ineligible As Submitted") -> OK
B13: Builder Overhead within the allowable limit? | H13: =IF('Rehab or New Construction'!F73<='Rehab or New Construction'!F72,"OK","Ineligible As Submitted") -> OK
B14: General Requirements within the allowable limit? | H14: =IF('Rehab or New Construction'!F71<='Rehab or New Construction'!F70,"OK","Ineligible As Submitted") -> OK
B15: Sources of funds adequate | H15: =IF('Sources and Uses'!F24='Sources and Uses'!F48,"OK","Ineligible As Submitted") -> OK

Sheet Rental Income
A1: Rental Income | D1: =+Cover!D7 -> 10262021.2021FAHN | G1: =+Cover!E10 -> 0 | R1: Proposed Rent Mechanism
B2: Unit BR Size | C2: Number of Bathrooms | D2: Average Square Feet of Individual Units | E2: Total Number of Units | F2: Number of PSH Units | G2: Monthly Utility Allowance | I2: Maximum HOME Rents Allowed | J2: Maximum HTF Rents Allowed | K2: Average Monthly Rent | L2: Total Monthly Rent | R2: Unit BR Size | S2: Number of Bathrooms | T2: Anticipated Rent For High HOME Units | U2: Anticipated Rent For Low HOME Units | V2: Anticipated Rent For HTF Units | W2: Monthly Utility Allowance | Y2: Rent After Utilities (High) | Z2: Rent After Utilities (Low) | AA2: Rent After Utilities (HTF) | AB2: Does Activity Meet Eligibility Test (Low Rents) | AC2: Does Activity Meet Eligibility Test (High Rents) | AD2: Does Activity Meet Eligiblity for the Housing Trust Fund | BC2: Low HOME Rents
B3: 0BR | E3: =+'Primary Input'!E56 -> 0 | G3: =+C48 -> 0 | I3: =+('2020 Rents'!F73)-('Rental Income'!G3) ->  | J3: =+'2020 Rents'!F77-G3 ->  | K3: =IF(M15=0,0,+M27/M15) -> 0 | L3: =+K3*E3 -> 0 | N3: =IF(F3>E3,"!","") ->  | R3: 0BR | S3: =+C3 -> 0 | W3: =+G3 -> 0 | Y3: =+T3+W3 -> 0 | Z3: =+U3+W3 -> 0 | AA3: =+V3+W3 -> 0 | AB3: =+IF(Z3<='2020 Rents'!F72, "Yes", "No") ->  | AC3: =IF(Y3<=I3+G3,"Yes", "No") ->  | AD3: =IF(AA3<=J3+G3,"Yes","No") ->  | BB3: 0 | BC3: =+'2020 Rents'!F72-'Rental Income'!C48 -> 
B4: 1BR | E4: =+'Primary Input'!E57 -> 0 | G4: =+D48 -> 0 | I4: =+'2020 Rents'!G73-'Rental Income'!G4 ->  | J4: =+'2020 Rents'!G77-G4 ->  | K4: 0 | L4: 0 | R4: 1BR | S4: 0 | W4: 0 | Y4: 0 | Z4: 0 | AA4: 0 | AB4: =+IF(Z4<='2020 Rents'!G72, "Yes", "No") ->  | AC4: =IF(Y4<=I4+G4,"Yes", "No") ->  | AD4: =IF(AA4<=J4+G4,"Yes","No") ->  | BB4: 1 | BC4: =+'2020 Rents'!G72-'Rental Income'!D48 -> 
B5: 2BR | E5: =+'Primary Input'!E58 -> 0 | G5: =+E48 -> 0 | I5: =+'2020 Rents'!H73-'Rental Income'!G5 ->  | J5: =+'2020 Rents'!H77-G5 ->  | K5: 0 | L5: 0 | R5: 2BR | S5: 1 | W5: 0 | Y5: 0 | Z5: 0 | AA5: 0 | AB5: =+IF(Z5<='2020 Rents'!H72, "Yes", "No") ->  | AC5: =IF(Y5<=I5+G5,"Yes", "No") ->  | BB5: 2 | BC5: =+'2020 Rents'!H72-'Rental Income'!E48 -> 
B6: 3BR | E6: =+'Primary Input'!E59 -> 0 | G6: =+F48 -> 0 | I6: =+'2020 Rents'!I73-'Rental Income'!G6 ->  | J6: =+'2020 Rents'!I77-G6 ->  | K6: 0 | L6: 0 | R6: 3BR | S6: 0 | W6: 0 | Y6: 0 | Z6: 0 | AA6: 0 | AB6: =+IF(Z6<='2020 Rents'!I72, "Yes", "No") ->  | AC6: =IF(Y6<=I6+G6,"Yes", "No") ->  | BB6: 3 | BC6: =+'2020 Rents'!I72-'Rental Income'!F48 -> 
B7: 4BR | E7: =+'Primary Input'!E60 -> 0 | G7: =+G48 -> 0 | I7: =+'2020 Rents'!J73-'Rental Income'!G7 ->  | J7: =+'2020 Rents'!J77-G7 ->  | K7: 0 | L7: 0 | R7: 4BR | S7: 0 | W7: 0 | Y7: 0 | Z7: 0 | AA7: 0 | AB7: =+IF(Z7<='2020 Rents'!J72, "Yes", "No") ->  | AC7: =IF(Y7<=I7+G7,"Yes", "No") ->  | BB7: 4 | BC7: =+'2020 Rents'!J72-'Rental Income'!G48 -> 
B8: Other | E8: =+'Primary Input'!E61 -> 0 | G8: =+H48 -> 0 | J8: =+'2020 Rents'!K77-G8 ->  | K8: 0 | L8: 0 | R8: 5BR | S8: 0 | W8: 0 | Y8: 0 | Z8: 0 | AA8: 0 | AB8: =+IF(Z8<='2020 Rents'!K72, "Yes", "No") ->  | AC8: =IF(Y8<=I8,"Yes", "No") -> Yes
B9: Other | E9: =+'Primary Input'!E62 -> 0 | G9: 0 | J9: =+'2020 Rents'!L77-G9 ->  | K9: 0 | L9: 0
B10: TOTAL | E10: =SUM(E3:E9) -> 0 | F10: =SUM(F3:F9) -> 0 | I10: =SUMPRODUCT($E3:$E9,I3:I9) ->  | K10: =SUMPRODUCT($E3:$E9,K3:K9) -> 0 | L10: =SUM(L3:L9) -> 0
C13: ENTER NUMBER OF UNITS WITHOUT RENTAL SUBSIDIES | L13: WITH SUBSIDIES | R13: Rental Subsidies Comments
B14: Unit BR Size | C14: Tenant Income <= 20% | D14: HTF Units Tenant Income >20<=30% | E14: Tenant Income >30<=40% | F14: Tenant Income >40<=50% | G14: Tenant Income >50<= 60% | H14: Tenant Income >60<= 80% | I14: Number of Market Units | L14: Project Based Contract | M14: Total
B15: 0BR | M15: =SUM(C15:L15)-K15 -> 0 | N15: =IF(M15<>E3,"!","") -> 
B16: 1BR | M16: 0
B17: 2BR | M17: 0
B18: 3BR | M18: 0
B19: 4BR | M19: 0
B20: 5BR | M20: 0
B21: =+B9 -> Other | M21: 0
B22: TOTAL | C22: =SUM(C15:C21) -> 0 | D22: 0 | E22: 0 | F22: 0 | G22: 0 | H22: 0 | I22: 0 | L22: =SUM(L15:L21) -> 0 | M22: =SUM(M15:M21) -> 0
C25: INPUT ACTUAL RENTS THE UNITS NET OF UTILITY ALLOWANCES | L25: WITH SUBSIDIES | R25: Actual Rents Comments:
B26: Unit BR Size | C26: Tenant Income <= 20% | D26: HTF Units Tenant Income >20<=30% | E26: Tenant Income >30<=40% | F26: Tenant Income >40<=50% | G26: Tenant Income >50<= 60% | H26: Tenant Income >60<= 80% | I26: Market Rent | L26: Project Based Contract | M26: Total Monthly Rent
B27: 0BR | M27: =SUMPRODUCT(C27:I27,C15:I15)+(L15*L27) -> 0
B28: 1BR | M28: 0
B29: 2BR | M29: 0
B30: 3BR | M30: 0
B31: 4BR | M31: 0
B32: 5BR | M32: 0
B33: =+B9 -> Other | K33: 0 | M33: 0
B34: Total | C34: =SUMPRODUCT(C15:C21,C27:C33) -> 0 | D34: 0 | E34: 0 | F34: 0 | G34: 0 | H34: 0 | I34: 0 | L34: =SUMPRODUCT(L15:L21,L27:L33) -> 0 | M34: =SUM(M27:M33) -> 0
A37: Enter utility allowances
B38: Utility | C38: 0BR | D38: 1BR | E38: 2BR | F38: 3BR | G38: 4BR | H38: 5BR | I38: Source | K38: X | R38: Utility Allowance Comments
B39: Heating | I39: State PHA
B40: A/C | I40: Local PHA
B41: Cooking | I41: Utility Company
B42: Lighting | I42: LHC
B43: Hot Water | I43: HUD
B44: Water | I44: Other
B45: Sewer
B46: Trash
B47: Other
B48: TOTAL | C48: =SUM(C39:C47) -> 0 | D48: =SUM(D39:D47) -> 0 | E48: 0 | F48: 0 | G48: 0 | H48: 0

Sheet Utility Allowance
A1: SPC2017RD.a | B1: =+Cover!E10 -> 0
A2: Utility allowance information
A3: Utility or Service | B3: Provider ( Enter the name of the company providing the service. Applicant must provide rate and tariff sheets and a sample bill provided by each utility that will be providing service to the property. The sample bill for electricity shall be for 1,000 kWh, for Gas 100 ccf, for water 1,000 gallons. All sample bills must include any taxes and other charges or tariffs assessed.) | C3: Fuel Source | D3: Amount (If the project is changing a fee for a Range, Microwave, Refrigerator or Other indicate the monthly amount)
A5: Space Heating | Y5: Not Applicable | Z5: Not Applicable
A6: Cooking | Y6: Natural Gas | Z6: Tenant Pays
A7: Other Electric | Y7: Bottled Gas
A8: Air Conditioning | Y8: Electric Resistance
A9: Water Heating | Y9: Electric Heat Pump
A10: Water | Y10: Fuel Oil
A11: Sewer
A12: Trash Collection
A13: Range/Microwave | B13: =+Cover!E10 -> 0 | Y13: Not Applicable
A14: Refrigerator | B14: =+Cover!E10 -> 0 | Y14: Natural Gas
A15: Other | Y15: Bottled Gas
A16: Comments: | Y16: Electric
Y18: Not Applicable
Y19: Electric
Y21: Not Applicable
Y22: Natural Gas
Y23: Bottled Gas
Y24: Electric
Y25: Fuel Oil
A30: Rate Sheets From All Providers Must be Submitted At Time Of Application For Utilities That The Tenant Will Pay

Sheet Leverage
B2: Match/Leverage | D2: =+Cover!E10 -> 0
B3: =+Cover!D7 -> 10262021.2021FAHN | D3: Cash Value Contribution for this Project | E3: Prior Years value where applicable
C4: Source | E4: Last Year | F4: 2 years ago | G4: 3 years ago | H4: Notes
B5: 1 | C5: Volunteer labor | D5: 0 | E5: 0 | F5: 0 | G5: 0
B6: 2 | C6: Private Contributions/ Donation Support (Non-owner) | D6: 0 | E6: 0 | F6: 0 | G6: 0
B7: 3 | C7: Value of Extended Affordability | D7: 0 | E7: 0 | F7: 0 | G7: 0
B8: 4 | C8: Value of Donated Professional Services (Attorney, Architect, Engineer, etc.) | D8: 0 | E8: 0 | F8: 0 | G8: 0
B9: 5 | C9: Waived Fees (Waived by Government) | D9: 0 | E9: 0 | F9: 0 | G9: 0
B10: 6 | C10: Governmental Financial Support (From non Federal Sources) | D10: 0 | E10: 0 | F10: 0 | G10: 0
B11: 7 | C11: Value of Supportive Services Not Reimbursed by Federal Government (United Way, Charity, etc.) | D11: 0 | E11: 0 | F11: 0 | G11: 0
B12: 8 | C12: =+'Loan Information'!E3 -> 0 | D12: =+'Loan Information'!E4 -> 0 | E12: 0 | F12: 0 | G12: 0
B13: 9 | C13: =+'Loan Information'!E20 -> 0 | D13: =+'Loan Information'!E21 -> 0 | E13: 0 | F13: 0 | G13: 0
B14: 10 | C14: Other
B15: 11 | C15: Other
B16: 12 | C16: Other
B17: 13 | C17: Other
B18: 14 | C18: Other
C19: TOTAL | D19: =SUM(D5:D18) -> 0 | E19: =SUM(E5:E18) -> 0 | F19: =SUM(F5:F18) -> 0 | G19: =SUM(G5:G18) -> 0
C21: Note: Not having prior years data does not automatically disqualify cash contribution. Provide past year data where appropriate.
B22: Notes

Sheet Loan Information
A1: Loan Information | D1: =+Cover!D7 -> 10262021.2021FAHN | E1: =Cover!E10 -> 0
B2: FIRST MORTGAGE | T2: FHA insured
B3: Lender Name: | T3: Conventional
B4: Original Loan Amount: | T4: Hud Held
B5: Current Principal Amount: | T5: Risk Shared
B6: As of Date: | T6: Other
B7: Maturity Date:
B8: Interest Rate:
B9: Amortization Period (Years):
B10: Monthly P&I Payment | E10: =+E12/12 -> 0
B11: Required Debt Coverage Ratio
B12: Annual Debt Service | E12: =IF(E8>0, -PMT(E8/12,E9*12,E4), 0)*12 -> 0
B13: Loan Servicer (if known):
B14: Prepayment Penalty:
B15: Lock Out Date:
B16: Years remaining at closing:
B17: Loan Type
B19: SECOND MORTGAGE
B20: Lender Name:
B21: Original Loan Amount:
B22: Current Principal Amount:
B23: As of Date:
B24: Maturity Date:
B25: Interest Rate:
B26: Amortization Period (Years):
B27: Monthly P&I Payment | E27: =+E29/12 -> 0
B28: Required Debt Service Ratio
B29: Annual Debt Service | E29: =IF(E25>0, -PMT(E25/12,E26*12,E21), 0)*12 -> 0
B30: Loan Servicer (if known):
B31: Prepayment Penalty:
B32: Lock Out Date:
B33: Years remaining at closing:
B34: Loan Type
B36: HOME LOAN SUBSIDY
B37: Lender Name: | E37: LHC
B38: Original Loan Amount: | E38: =+'Primary Input'!E40:G40 -> 0
B39: Interest Rate: | E39: =+Underwriting!H516 -> 0
B40: Balance at Term of First Mortgage: | E40: =+Amortization!G23 -> 0
B41: Reasonably repaid at Term of First Mortgage: | E41: =+E38-E40 -> 0

Sheet Amortization (hidden)
A1: Amortization | K1: =+Cover!$H$7 -> 0
B2: HOME FUNDS | I2: Owner Distribution
B3: Year | C3: BegBal | D3: Accrd Int | E3: CF | F3: Pmt | G3: EndBal | I3: Year | J3: BegBal | K3: Cash Flow | L3: 0.11 | M3: Discount
B4: 1 | C4: =+'Primary Input'!E40 -> 0 | D4: =+'Loan Information'!E$39*C4 -> 0 | E4: =+'Pro Forma'!D38 -> 0 | F4: =MAX(E4,0) -> 0 | G4: =IF((C4+D4-E4)<0,0,(C4+D4-F4)) -> 0 | I4: 1 | J4: =+E4 -> 0 | K4: =MAX(J4,0) -> 0 | L4: =1/(1+L$3)^(I4-1) -> 1 | M4: =+K4*L4 -> 0
B5: 2 | C5: =+G4 -> 0 | D5: =+'Loan Information'!E$39*C5 -> 0 | E5: =+'Pro Forma'!F38 -> 0 | F5: =MAX(E5,0) -> 0 | G5: =IF((C5+D5-E5)<0,0,(C5+D5-F5)) -> 0 | I5: =+B5 -> 2 | J5: =+E5 -> 0 | K5: =MAX(J5,0) -> 0 | L5: =1/(1+L$3)^(I5-1) -> 0.9009009009 | M5: =+K5*L5 -> 0
B6: 3 | C6: =+G5 -> 0 | D6: =+'Loan Information'!E$39*C6 -> 0 | E6: =+'Pro Forma'!H38 -> 0 | F6: 0 | G6: 0 | I6: =+B6 -> 3 | J6: =+E6 -> 0 | K6: 0 | L6: 0.8116224332 | M6: 0
B7: 4 | C7: 0 | D7: =+'Loan Information'!E$39*C7 -> 0 | E7: =+'Pro Forma'!J38 -> 0 | F7: 0 | G7: 0 | I7: 4 | J7: 0 | K7: 0 | L7: 0.7311913813 | M7: 0
B8: 5 | C8: 0 | D8: =+'Loan Information'!E$39*C8 -> 0 | E8: =+'Pro Forma'!L38 -> 0 | F8: 0 | G8: 0 | I8: 5 | J8: 0 | K8: 0 | L8: 0.6587309741 | M8: 0
B9: 6 | C9: 0 | D9: =+'Loan Information'!E$39*C9 -> 0 | E9: =+'Pro Forma'!N38 -> 0 | F9: 0 | G9: 0 | I9: 6 | J9: 0 | K9: 0 | L9: 0.5934513281 | M9: 0
B10: 7 | C10: 0 | D10: =+'Loan Information'!E$39*C10 -> 0 | E10: =+'Pro Forma'!P38 -> 0 | F10: 0 | G10: 0 | I10: 7 | J10: 0 | K10: 0 | L10: 0.5346408361 | M10: 0
B11: 8 | C11: 0 | D11: =+'Loan Information'!E$39*C11 -> 0 | E11: =+'Pro Forma'!R38 -> 0 | F11: 0 | G11: 0 | I11: 8 | J11: 0 | K11: 0 | L11: 0.4816584109 | M11: 0
B12: 9 | C12: 0 | D12: =+'Loan Information'!E$39*C12 -> 0 | E12: =+'Pro Forma'!T38 -> 0 | F12: 0 | G12: 0 | I12: 9 | J12: 0 | K12: 0 | L12: 0.4339264963 | M12: 0
B13: 10 | C13: 0 | D13: =+'Loan Information'!E$39*C13 -> 0 | E13: =+'Pro Forma'!V38 -> 0 | F13: 0 | G13: 0 | I13: 10 | J13: 0 | K13: 0 | L13: 0.3909247714 | M13: 0
B14: 11 | C14: 0 | D14: =+'Loan Information'!E$39*C14 -> 0 | E14: =+'Pro Forma'!X38 -> 0 | F14: 0 | G14: 0 | I14: 11 | J14: 0 | K14: 0 | L14: 0.3521844788 | M14: 0
B15: 12 | C15: 0 | D15: =+'Loan Information'!E$39*C15 -> 0 | E15: =+'Pro Forma'!Z38 -> 0 | F15: 0 | G15: 0 | I15: 12 | J15: 0 | K15: 0 | L15: 0.3172833142 | M15: 0
B16: 13 | C16: 0 | D16: =+'Loan Information'!E$39*C16 -> 0 | E16: =+'Pro Forma'!AB38 -> 0 | F16: 0 | G16: 0 | I16: 13 | J16: 0 | K16: 0 | L16: 0.2858408236 | M16: 0
B17: 14 | C17: 0 | D17: =+'Loan Information'!E$39*C17 -> 0 | E17: =+'Pro Forma'!AD38 -> 0 | F17: 0 | G17: 0 | I17: 14 | J17: 0 | K17: 0 | L17: 0.2575142555 | M17: 0
B18: 15 | C18: 0 | D18: =+'Loan Information'!E$39*C18 -> 0 | E18: =+'Pro Forma'!AF38 -> 0 | F18: 0 | G18: 0 | I18: 15 | J18: 0 | K18: 0 | L18: 0.2319948248 | M18: 0
B19: 16 | C19: =+G18 -> 0 | D19: =+'Loan Information'!E$39*C19 -> 0 | E19: =+'Pro Forma'!AF39 -> 0 | F19: =MAX(E19,0) -> 0 | G19: =IF((C19+D19-E19)<0,0,(C19+D19-F19)) -> 0 | I19: =+B19 -> 16 | J19: =+E19 -> 0 | K19: =MAX(J19,0) -> 0 | L19: =1/(1+L$3)^(I19-1) -> 0.2090043467 | M19: =+K19*L19 -> 0
B20: 17 | C20: 0 | D20: =+'Loan Information'!E$39*C20 -> 0 | E20: =+'Pro Forma'!AJ38 -> 0 | F20: 0 | G20: 0 | I20: 17 | J20: 0 | K20: 0 | L20: 0.1882922042 | M20: 0
B21: 18 | C21: 0 | D21: =+'Loan Information'!E$39*C21 -> 0 | E21: =+'Pro Forma'!AL38 -> 0 | F21: 0 | G21: 0 | I21: 18 | J21: 0 | K21: 0 | L21: 0.1696326164 | M21: 0
B22: 19 | C22: 0 | D22: =+'Loan Information'!E$39*C22 -> 0 | E22: =+'Pro Forma'!AN38 -> 0 | F22: 0 | G22: 0 | I22: 19 | J22: 0 | K22: 0 | L22: 0.1528221769 | M22: 0
B23: 20 | C23: 0 | D23: =+'Loan Information'!E$39*C23 -> 0 | E23: =+'Pro Forma'!AP38 -> 0 | F23: 0 | G23: 0 | I23: 20 | J23: 0 | K23: 0 | L23: 0.1376776369 | M23: 0
B27: Projected Cash Flow to owner over term of first loan | L27: =SUM(K4:K18) -> 0
B28: Discounted Cash Flow to owner over term of first loan | L28: =SUM(M4:M18) -> 0

Sheet Rehab or New Construction
A1: Rehab | D1: =+Cover!D7 -> 10262021.2021FAHN | E1: =+Cover!E10 -> 0
B2: NOTE
B3: Acquisition costs are not to be entered on this tab. You must enter all costs associated with acquisition on the sources and uses tab.
B5: Rehab Cost | E5: Code | F5: Cost of Rehabilitation
B6: Total rehab contract if items not itemized, attach contract
B7: Site Work (Utilities and Improvements) | E7: 2
B8: Exterior | E8: 3
B9: Windows, frames & glazing | E9: 3.2
B10: Doors | E10: 3.3
B11: Structure / Foundation/Framing | E11: 5
B12: HVAC | E12: 6
B13: Electrical System | E13: 7
B14: Plumbing Systems | E14: 8
B15: Roofs | E15: 9
B16: Fire Suppression | E16: 10
B17: Elevator & Vert. Trans. | E17: 11
B18: ADA | E18: 12
B19: CONSTRUCTION CONTINGENCY, NOT MORE THAN 10%
B20: Offsite improvements
B21: Other
B22: Other
B23: Other
B24: Other
B25: Other
B26: Other
B27: Other
B28: Other
B29: Other
B30: TOTAL REHABILITATION COSTS | F30: =SUM(F6:F29) -> 0
A32: New Construction
B33: Development Costs | E33: Code | F33: Cost
B34: Total construction contract amount if not itemized, attach contract
B35: Site Work (Utilities and Improvements) | E35: 2
B36: Exterior | E36: 3
B37: Windows, frames & glazing | E37: 3.2
B38: Doors | E38: 3.3
B39: Structure / Foundation/Framing | E39: 5
B40: HVAC | E40: 6
B41: Electrical System | E41: 7
B42: Plumbing Systems | E42: 8
B43: Roofs | E43: 9
B44: Fire Suppression | E44: 10
B45: Elevator & Vert. Trans. | E45: 11
B46: ADA | E46: 12
B47: CONSTRUCTION CONTINGENCY, NOT MORE THAN 10%
B48: Interior
B49: Flooring
B50: Finishes
B51: Finals
B52: Offsite improvements
B53: Other
B54: Other
B55: Other
B56: Other
B57: Other
B58: TOTAL NEW CONSTRUCTION COSTS | F58: =SUM(F34:F57) -> 0
B61: General Requirements & Other Costs | E61: Code | F61: Cost
B62: General Requirements | E62: 1
B63: Builder Overhead
B64: Builder's Profit
B65: Other
B66: TOTAL OTHER COSTS | F66: =SUM(F62:F65) -> 0
B67: TOTAL DEVELOPMENT COSTS | F67: =+F30+F58+F66 -> 0
C70: General Requirements | E70: Limit | F70: =(SUM($F$34:$F$57)+SUM($F$65:$F$65)+F$30)*0.06 -> 0
E71: Actual | F71: =+F62 -> 0 | G71: =IF(F71>F70,"!","") -> 
C72: Builder's Overhead | E72: Limit | F72: =(SUM($F$34:$F$57)+F71+F30+SUM($F$65:$F$65))*0.02 -> 0
E73: Actual | F73: =+F63 -> 0 | G73: =IF(F73>F72,"!","") -> 
C74: Builder's Profit | E74: Limit | F74: =(SUM($F$34:$F$57)+F71+F30+SUM($F$65:$F$65))*0.06 -> 0
E75: Actual | F75: =+F64 -> 0 | G75: =IF(F75>F74,"!","") -> 
C76: Developer Fee | E76: Limit | F76: =(SUM($F$34:$F$57)+F73+F30+SUM($F$65:$F$65))*0.15 -> 0 | G76: 0
E77: Actual | F77: =+'Sources and Uses'!I33 -> 0 | G77: =IF(F77>F76,"!","") -> 
G78: =MAX(#REF!,8) -> 

Sheet Sources and Uses
A1: Sources & Uses | E1: =+Cover!D7 -> 10262021.2021FAHN | G1: =+Cover!E10 -> 0
B2: Fund Sources
F3: $ Amount
B4: Permanent First Mortgage Loan Principal | F4: =+'Loan Information'!E4 -> 0
B5: Permanent Second Mortgage Loan Principal | F5: =+'Loan Information'!E21 -> 0
B6: Non-Governmental Cash Flow Notes
B7: LHC HOME Funds | F7: =+'Primary Input'!E40 -> 0
B8: LHC HTF Funds | F8: =+'Primary Input'!E41 -> 0
B9: Other Matching Sources | F9: =SUM(Leverage!D12:D18) -> 0
B11: Existing Account Balances:
B12: Reserve for Replacement
B13: Owner Contribution:
B14: Deferred Developer Fee
B15: Lease-Up Reserves | H15: Soft Costs
B16: Operating Reserves | I16: $ Amount
B17: Temporary Construction Loan | H17: Architect's Fee - Design
B18: Owner Equity | H18: Architect's Fee - Supervisory
B19: Long Term Operating Deficit Reserve | H19: Interest During Construction
H20: Taxes
H21: Insurance
H22: Mortgage Insurance Premium
B23: Other Sources Needed to Balance | F23: =+F48-F24 -> 0 | H23: Examination Fee
B24: Total Funding Sources | F24: =SUM(F4:F8)+SUM(F14:F22)+F12 -> 0 | H24: Inspection Fee
H25: Financing Fee
H26: Title and Recording
H27: Taxpayer Closing Costs
H28: Organization
H29: Cost Certification Audit Fee
B30: Fund Uses | H30: Application Fees
F31: $ Amount | H31: Relocation Expenses
B32: Rehabilitation Hard Costs | F32: =IF('Rehab or New Construction'!F30>0, 'Rehab or New Construction'!F30+'Rehab or New Construction'!F66, 0) -> 0
B33: New Construction Hard Costs | F33: =IF('Rehab or New Construction'!F58> 0, 'Rehab or New Construction'!F58+'Rehab or New Construction'!F66, 0) -> 0 | H33: Developer Fee (Including All
B34: Total Soft Costs | F34: =+I48 -> 0 | H34: Consultant Fees and Contingency Fees)
B35: Acquisition Costs: | H35: LHC Fees
B36: Land Only | H36: Lender Legal
B37: Buildings Only | H37: Origination Fee (Construction)
B38: Contingency | H38: Taxpayer Counsel
B39: Long Term Operating Deficit Reserve Offset | H39: Survey
B40: Other | H40: Audit Fees
B41: Other | H41: Construction Loan/Financing Fees
B42: Total Development Costs | F42: =SUM(F32:F41) -> 0 | H42: 1: Other (Engineering Fees)
B43: Initial Operating Deficit Reserve | H43: 2: Other (Permit/ Sewer Impact Fees)
B44: Initial Deposit to Replacement Reserve | H44: Other Soil Test
B45: Temporary Construction Loan | F45: =+F17 -> 0 | H45: Other Market Study
B46: 1: Other | H46: Other Appraisal
B47: 2: Other | H47: Other
B48: Total Use of Funds | F48: =SUM(F42:F47) -> 0 | H48: Total Fundable Soft Costs: | I48: =SUM(I17:I47) -> 0
D49: =IF(F48<>F24,"Error. Sources Must Equal Uses"," ") -> 
D50: =IF(F24>F48,"Currently Sources Exceed Uses.",IF(F48>F24,"Currently Uses Exceeds Sources."," ")) -> 

Sheet Pro Forma Calculation
A1: Pro forma Calculation | I1: =+Cover!E10 -> 0
A2: =+Cover!D7 -> 10262021.2021FAHN | E2: Prior | F2: Prior | G2: Prior | H2: Prior | I2: Baseline | J2: Inflation
C3: =+Cover!E10 -> 0 | E3: Non-Profit Bookkeeping | F3: Non-Profit Bookkeeping | G3: Audit | H3: Audit | I3: Application | J3: Rate
B4: Income Statement
B6: Rental Income
C7: Residential-
B8: 5121 | C8: Rental Income GROSS VACANCY | I8: =+'Rental Income'!$L$10*12 -> 0
B9: 5121 | C9: Rental Income NET VACANCY | I9: =+I8-I17 -> 0
B10: 5140 | C10: Stores & Commercial- | K10: =IF(I10>0,"MUST PROVIDE SUPPORT WITH APPLICATION","") -> 
B11: Total Rental Income: | E11: =SUM(E8:E10) -> 0 | F11: =SUM(F8:F10) -> 0 | G11: =SUM(G8:G10) -> 0 | H11: =SUM(H8:H10) -> 0 | I11: =+I8+I10 -> 0 | J11: 0.02
B13: Vacancies: Enter as Negative
B14: 5220 | C14: Apartments- | D14: 0.07 | I14: =-D14*I8 -> 0
B15: 5270 | C15: Garage & Parking Spaces-
B16: 5290 | C16: Miscellaneous Concessions-
B17: Total Vacancies: | E17: =SUM(E14:E16) -> 0 | F17: =SUM(F14:F16) -> 0 | G17: =SUM(G14:G16) -> 0 | H17: =SUM(H14:H16) -> 0 | I17: =SUM(I14:I16) -> 0
B18: Net Rental Income: | E18: =E11+E17 -> 0 | F18: =F11+F17 -> 0 | G18: =G11+G17 -> 0 | H18: =H11+H17 -> 0 | I18: =I11+I17 -> 0
B20: Other Income & Bad Debt
B21: 5910 | C21: Laundry & Vending- | K21: =IF(I21>0,"MUST PROVIDE SUPPORT WITH APPLICATION","") -> 
B22: 6370 | C22: Apartment Bad Debt- Enter as Neg.
B23: 6370 | C23: Commercial Bad Debt- Enter as Neg.
B24: 5920 | C24: NSF, Damages & Late Charges, Other- | K24: =IF(I24>0,"MUST PROVIDE SUPPORT WITH APPLICATION","") -> 
B25: Total Other Income: | E25: =SUM(E21:E24) -> 0 | F25: =SUM(F21:F24) -> 0 | G25: =SUM(G21:G24) -> 0 | H25: =SUM(H21:H24) -> 0 | I25: =SUM(I21:I24) -> 0 | J25: 0.03 | K25: =IF(I25>0,"MUST PROVIDE SUPPORT WITH APPLICATION","") -> 
B26: EFFECTIVE GROSS INCOME | E26: =E18+E25 -> 0 | F26: =F18+F25 -> 0 | G26: =G18+G25 -> 0 | H26: =H18+H25 -> 0 | I26: =I18+I25 -> 0
B28: Admin. Exps
B29: 6210 | C29: Advertising-
B30: 6250 | C30: Admin. Exps.-
B31: 6310 | C31: Office Salaries-
B32: 6311 | C32: Office Supplies-
B33: 6320 | C33: Management Fee- | J33: 0.03
B34: 6330 | C34: Management or Super. Sal.-
B35: 6331 | C35: Mgmt. or Super. Free Rent Unit-
B36: 6340 | C36: Legal Expenses (Project)-
B37: 6350 | C37: Auditing Exps. (Project)-
B38: 6351 | C38: Bookkeeping Fees/Acct. Services-
B39: 6390 | C39: Miscellaneous Admin. Exps-
B40: Total Admin. Less Management Fee: | E40: =SUM(E29:E39)-E33 -> 0 | F40: =SUM(F29:F39)-F33 -> 0 | G40: =SUM(G29:G39)-G33 -> 0 | H40: =SUM(H29:H39)-H33 -> 0 | I40: =SUM(I29:I39)-I33 -> 0 | J40: 0.03
B41: Total Admin. Exps.: | E41: =SUM(E29:E39) -> 0 | F41: =SUM(F29:F39) -> 0 | G41: =SUM(G29:G39) -> 0 | H41: =SUM(H29:H39) -> 0 | I41: =SUM(I29:I39) -> 0
B42: Utilities Expense
B43: 6420 | C43: Fuel Oil/Coal-
B44: 6420 | C44: Fuel for Domestic Hot Water-
B45: 6450 | C45: Electricity (Light & Misc. Power)-
B46: 6451 | C46: Water-
B47: 6452 | C47: Gas-
B48: 6453 | C48: Sewer-
B49: Total Utilities Exps.: | E49: =SUM(E43:E47) -> 0 | F49: =SUM(F43:F47) -> 0 | G49: =SUM(G43:G48) -> 0 | H49: =SUM(H43:H48) -> 0 | I49: =SUM(I43:I48) -> 0 | J49: 0.03
J50: =Cover!$H$7 -> 0
E51: Prior | F51: Prior | G51: Prior | H51: Prior | I51: Baseline | J51: Inflation
E52: Audit | F52: Audit | G52: Audit | H52: Audit | I52: Application | J52: Rate
B53: O & M Expenses
B54: 6510 | C54: O&M Payroll-
B55: 6515 | C55: O&M Supplies-
B56: 6520 | C56: O&M Contract-
B57: 6525 | C57: Garbage & Trash Removal-
B58: 6530 | C58: Security Payroll/Contract-
B59: 6545 | C59: Elevator Maintenance/Contract-
B60: 6546 | C60: HVAC Repair & Maintenance-
B61: 6570 | C61: Other Expenses-
B62: 6590 | C62: Misc. O & M Expenses-
C63: LHC Monitoring Fee | I63: =(+'Primary Input'!E72+'Primary Input'!E81)*40 -> 0
C64: Neighborhood Network-
B65: Total O & M Expenses: | E65: =SUM(E54:E64) -> 0 | F65: =SUM(F54:F64) -> 0 | G65: =SUM(G54:G64) -> 0 | H65: =SUM(H54:H64) -> 0 | I65: =SUM(I54:I64) -> 0 | J65: 0.03
B66: Taxes & Insurance
B67: 6710 | C67: Real Estate Taxes- | J67: 0.03
B68: 6711 | C68: Payroll Taxes (FICA)-
B69: 6719 | C69: Misc. Taxes, Licenses, & Permits-
B70: 6720 | C70: Property & Liability Insurance- | J70: 0.03
B71: 6721 | C71: Fidelity Bond Insurance-
B72: 6722 | C72: Workmen's Compensation-
B73: 6723 | C73: Health Ins. & Other Emp.Benefits-
B74: 6279 | C74: Other Insurance- | J74: 0.03
B75: Total Taxes & Insurance: | E75: =SUM(E67:E74) -> 0 | F75: =SUM(F67:F74) -> 0 | G75: =SUM(G67:G74) -> 0 | H75: =SUM(H67:H74) -> 0 | I75: =SUM(I67:I74) -> 0
B77: TOTAL OPERATING EXPENSES: | E77: =E41+E49+E65+E75 -> 0 | F77: =F41+F49+F65+F75 -> 0 | G77: =G41+G49+G65+G75 -> 0 | H77: =H41+H49+H65+H75 -> 0 | I77: =I41+I49+I65+I75 -> 0
B79: NET OPERATING INCOME: | E79: =E26-E77 -> 0 | F79: =F26-F77 -> 0 | G79: =G26-G77 -> 0 | H79: =H26-H77 -> 0 | I79: =I26-I77 -> 0
B81: Replacement Reserves | I81: =300*'Primary Input'!E91 -> 0 | J81: 0.03
B83: ADJUSTED NET OPERATING INCOME | E83: =E79-E81 -> 0 | F83: =F79-F81 -> 0 | G83: =G79-G81 -> 0 | H83: =H79-H81 -> 0 | I83: =I79-I81 -> 0
B85: DEBT SERVICE
B86: FIRST MORTGAGE DEBT SERVICE: | I86: =+'Loan Information'!E12 -> 0
B87: SECOND MORTGAGE DEBT SERVICE: | I87: =+'Loan Information'!E29 -> 0
B89: CASH FLOW AVAILABLE | E89: =+E83-E85-E86-E87 -> 0 | F89: =+F83-F85-F86-F87 -> 0 | G89: =+G83-G85-G86-G87 -> 0 | H89: =+H83-H85-H86-H87 -> 0 | I89: =+I83-I85-I86-I87 -> 0
E91: =MAX(0,+E89-10000) -> 0 | F91: =MAX(0,+F89-10000) -> 0 | G91: =MAX(0,+G89-10000) -> 0 | H91: =MAX(0,+H89-10000) -> 0
A93: 0.75 | B93: HOME FUNDS DEBT SERVICE | D93: 0.5 | E93: =+E91*$D93 -> 0 | F93: =+F91*$D93 -> 0 | G93: =+G91*$D93 -> 0 | H93: =+H91*$D93 -> 0 | I93: =+I89*$D93 -> 0 | L93: 0.5
A94: 0.333 | B94: =IF(D93<0.5, "PROJECT MUST BE SERVING <30% AMI ONLY","") ->  | L94: 0
B95: Distribution to Owner | D95: =1-D93 -> 0.5 | E95: =+E91-E93 -> 0 | F95: =+F91-F93 -> 0 | G95: =+G91-G93 -> 0 | H95: =+H91-H93 -> 0 | I95: =+I89-I93 -> 0
B96: Advance to related parties | E96: 0 | F96: 0 | G96: 0 | H96: 0
B98: 1st Mortgage Debt Service Coverage Ratio: | E98: =IF(E83=0,"0",E83/SUM(E86:E87)) -> 0 | F98: =IF(F83=0,"0",F83/SUM(F86:F87)) -> 0 | G98: =IF(G83=0,"0",G83/SUM(G86:G87)) -> 0 | H98: =IF(H83=0,"0",H83/SUM(H86:H87)) -> 0 | I98: =IF((I86+I87)=0,"0",I83/SUM(I86:I87)) -> 0

Sheet Pro Forma
A1: Pro Forma | D1: =+Cover!E10 -> 0 | P1: =+Cover!E10 -> 0 | Z1: =+Cover!E10 -> 0
D2: 1 | F2: =D2+1 -> 2 | H2: =F2+1 -> 3 | J2: =H2+1 -> 4 | L2: =J2+1 -> 5 | N2: =L2+1 -> 6 | P2: =N2+1 -> 7 | R2: =P2+1 -> 8 | T2: =R2+1 -> 9 | V2: =T2+1 -> 10 | X2: =V2+1 -> 11 | Z2: =X2+1 -> 12 | AB2: =Z2+1 -> 13 | AD2: =AB2+1 -> 14 | AF2: =AD2+1 -> 15 | AH2: =AF2+1 -> 16 | AJ2: =AH2+1 -> 17 | AL2: =AJ2+1 -> 18 | AN2: =AL2+1 -> 19 | AP2: =AN2+1 -> 20
D3: $Amt | E3: $/Unit | F3: $ Amt | G3: $/Unit | H3: $ Amt | I3: $/Unit | J3: $ Amt | K3: $/Unit | L3: $ Amt | M3: $/Unit | N3: $ Amt | O3: $/Unit | P3: $ Amt | Q3: $/Unit | R3: $ Amt | S3: $/Unit | T3: $ Amt | U3: $/Unit | V3: $ Amt | W3: $/Unit | X3: $ Amt | Y3: $/Unit | Z3: $ Amt | AA3: $/Unit | AB3: $ Amt | AC3: $/Unit | AD3: $ Amt | AE3: $/Unit | AF3: $ Amt | AG3: $/Unit | AH3: $ Amt | AI3: $/Unit | AJ3: $ Amt | AK3: $/Unit | AL3: $ Amt | AM3: $/Unit | AN3: $ Amt | AO3: $/Unit | AP3: $ Amt | AQ3: $/Unit
B4: Income
B5: Total Rental Income: | D5: =+'Pro Forma Calculation'!I11 -> 0 | E5: =IF(D5=0,0,D5/'Primary Input'!$J$32) -> 0 | F5: =+D5*(1+'Pro Forma Calculation'!$J$11) -> 0 | G5: =IF(F5=0,0,F5/'Primary Input'!$J$32) -> 0 | H5: =+F5*(1+'Pro Forma Calculation'!$J$11) -> 0 | I5: =IF(H5=0,0,H5/'Primary Input'!$J$32) -> 0 | J5: =+H5*(1+'Pro Forma Calculation'!$J$11) -> 0 | K5: =IF(J5=0,0,J5/'Primary Input'!$J$32) -> 0 | L5: =+J5*(1+'Pro Forma Calculation'!$J$11) -> 0 | M5: =IF(L5=0,0,L5/'Primary Input'!$J$32) -> 0 | N5: =+L5*(1+'Pro Forma Calculation'!$J$11) -> 0 | O5: =IF(N5=0,0,N5/'Primary Input'!$J$32) -> 0 | P5: =+N5*(1+'Pro Forma Calculation'!$J$11) -> 0 | Q5: =IF(P5=0,0,P5/'Primary Input'!$J$32) -> 0 | R5: =+P5*(1+'Pro Forma Calculation'!$J$11) -> 0 | S5: =IF(R5=0,0,R5/'Primary Input'!$J$32) -> 0 | T5: =+R5*(1+'Pro Forma Calculation'!$J$11) -> 0 | U5: =IF(T5=0,0,T5/'Primary Input'!$J$32) -> 0 | V5: =+T5*(1+'Pro Forma Calculation'!$J$11) -> 0 | W5: =IF(V5=0,0,V5/'Primary Input'!$J$32) -> 0 | X5: =+V5*(1+'Pro Forma Calculation'!$J$11) -> 0 | Y5: =IF(X5=0,0,X5/'Primary Input'!$J$32) -> 0 | Z5: =+X5*(1+'Pro Forma Calculation'!$J$11) -> 0 | AA5: =IF(Z5=0,0,Z5/'Primary Input'!$J$32) -> 0 | AB5: =+Z5*(1+'Pro Forma Calculation'!$J$11) -> 0 | AC5: =IF(AB5=0,0,AB5/'Primary Input'!$J$32) -> 0 | AD5: =+AB5*(1+'Pro Forma Calculation'!$J$11) -> 0 | AE5: =IF(AD5=0,0,AD5/'Primary Input'!$J$32) -> 0 | AF5: =+AD5*(1+'Pro Forma Calculation'!$J$11) -> 0 | AG5: =IF(AF5=0,0,AF5/'Primary Input'!$J$32) -> 0 | AH5: =+AF5*(1+'Pro Forma Calculation'!$J$11) -> 0 | AI5: =IF(AH5=0,0,AH5/'Primary Input'!$J$32) -> 0 | AJ5: =+AH5*(1+'Pro Forma Calculation'!$J$11) -> 0 | AK5: =IF(AJ5=0,0,AJ5/'Primary Input'!$J$32) -> 0 | AL5: =+AJ5*(1+'Pro Forma Calculation'!$J$11) -> 0 | AM5: =IF(AL5=0,0,AL5/'Primary Input'!$J$32) -> 0 | AN5: =+AL5*(1+'Pro Forma Calculation'!$J$11) -> 0 | AO5: =IF(AN5=0,0,AN5/'Primary Input'!$J$32) -> 0 | AP5: =+AN5*(1+'Pro Forma Calculation'!$J$11) -> 0 | AQ5: =IF(AP5=0,0,AP5/'Primary Input'!$J$32) -> 0
B6: Total Vacancy | D6: =+'Pro Forma Calculation'!I17 -> 0 | E6: =IF(D6=0,0,D6/'Primary Input'!$J$32) -> 0 | F6: =+D6*(1+'Pro Forma Calculation'!$J$11) -> 0 | G6: =IF(F6=0,0,F6/'Primary Input'!$J$32) -> 0 | H6: =+F6*(1+'Pro Forma Calculation'!$J$11) -> 0 | I6: =IF(H6=0,0,H6/'Primary Input'!$J$32) -> 0 | J6: =+H6*(1+'Pro Forma Calculation'!$J$11) -> 0 | K6: =IF(J6=0,0,J6/'Primary Input'!$J$32) -> 0 | L6: =+J6*(1+'Pro Forma Calculation'!$J$11) -> 0 | M6: =IF(L6=0,0,L6/'Primary Input'!$J$32) -> 0 | N6: =+L6*(1+'Pro Forma Calculation'!$J$11) -> 0 | O6: =IF(N6=0,0,N6/'Primary Input'!$J$32) -> 0 | P6: =+N6*(1+'Pro Forma Calculation'!$J$11) -> 0 | Q6: =IF(P6=0,0,P6/'Primary Input'!$J$32) -> 0 | R6: =+P6*(1+'Pro Forma Calculation'!$J$11) -> 0 | S6: =IF(R6=0,0,R6/'Primary Input'!$J$32) -> 0 | T6: =+R6*(1+'Pro Forma Calculation'!$J$11) -> 0 | U6: =IF(T6=0,0,T6/'Primary Input'!$J$32) -> 0 | V6: =+T6*(1+'Pro Forma Calculation'!$J$11) -> 0 | W6: =IF(V6=0,0,V6/'Primary Input'!$J$32) -> 0 | X6: =+V6*(1+'Pro Forma Calculation'!$J$11) -> 0 | Y6: =IF(X6=0,0,X6/'Primary Input'!$J$32) -> 0 | Z6: =+X6*(1+'Pro Forma Calculation'!$J$11) -> 0 | AA6: =IF(Z6=0,0,Z6/'Primary Input'!$J$32) -> 0 | AB6: =+Z6*(1+'Pro Forma Calculation'!$J$11) -> 0 | AC6: =IF(AB6=0,0,AB6/'Primary Input'!$J$32) -> 0 | AD6: =+AB6*(1+'Pro Forma Calculation'!$J$11) -> 0 | AE6: =IF(AD6=0,0,AD6/'Primary Input'!$J$32) -> 0 | AF6: =+AD6*(1+'Pro Forma Calculation'!$J$11) -> 0 | AG6: =IF(AF6=0,0,AF6/'Primary Input'!$J$32) -> 0 | AH6: =+AF6*(1+'Pro Forma Calculation'!$J$11) -> 0 | AI6: =IF(AH6=0,0,AH6/'Primary Input'!$J$32) -> 0 | AJ6: =+AH6*(1+'Pro Forma Calculation'!$J$11) -> 0 | AK6: =IF(AJ6=0,0,AJ6/'Primary Input'!$J$32) -> 0 | AL6: =+AJ6*(1+'Pro Forma Calculation'!$J$11) -> 0 | AM6: =IF(AL6=0,0,AL6/'Primary Input'!$J$32) -> 0 | AN6: =+AL6*(1+'Pro Forma Calculation'!$J$11) -> 0 | AO6: =IF(AN6=0,0,AN6/'Primary Input'!$J$32) -> 0 | AP6: =+AN6*(1+'Pro Forma Calculation'!$J$11) -> 0 | AQ6: =IF(AP6=0,0,AP6/'Primary Input'!$J$32) -> 0
B7: Total Other Income: | D7: =+'Pro Forma Calculation'!I25 -> 0 | E7: =IF(D7=0,0,D7/'Primary Input'!$J$32) -> 0 | F7: =+D7*(1+'Pro Forma Calculation'!$J$25) -> 0 | G7: =IF(F7=0,0,F7/'Primary Input'!$J$32) -> 0 | H7: =+F7*(1+'Pro Forma Calculation'!$J$25) -> 0 | I7: =IF(H7=0,0,H7/'Primary Input'!$J$32) -> 0 | J7: =+H7*(1+'Pro Forma Calculation'!$J$25) -> 0 | K7: =IF(J7=0,0,J7/'Primary Input'!$J$32) -> 0 | L7: =+J7*(1+'Pro Forma Calculation'!$J$25) -> 0 | M7: =IF(L7=0,0,L7/'Primary Input'!$J$32) -> 0 | N7: =+L7*(1+'Pro Forma Calculation'!$J$25) -> 0 | O7: =IF(N7=0,0,N7/'Primary Input'!$J$32) -> 0 | P7: =+N7*(1+'Pro Forma Calculation'!$J$25) -> 0 | Q7: =IF(P7=0,0,P7/'Primary Input'!$J$32) -> 0 | R7: =+P7*(1+'Pro Forma Calculation'!$J$25) -> 0 | S7: =IF(R7=0,0,R7/'Primary Input'!$J$32) -> 0 | T7: =+R7*(1+'Pro Forma Calculation'!$J$25) -> 0 | U7: =IF(T7=0,0,T7/'Primary Input'!$J$32) -> 0 | V7: =+T7*(1+'Pro Forma Calculation'!$J$25) -> 0 | W7: =IF(V7=0,0,V7/'Primary Input'!$J$32) -> 0 | X7: =+V7*(1+'Pro Forma Calculation'!$J$25) -> 0 | Y7: =IF(X7=0,0,X7/'Primary Input'!$J$32) -> 0 | Z7: =+X7*(1+'Pro Forma Calculation'!$J$25) -> 0 | AA7: =IF(Z7=0,0,Z7/'Primary Input'!$J$32) -> 0 | AB7: =+Z7*(1+'Pro Forma Calculation'!$J$25) -> 0 | AC7: =IF(AB7=0,0,AB7/'Primary Input'!$J$32) -> 0 | AD7: =+AB7*(1+'Pro Forma Calculation'!$J$25) -> 0 | AE7: =IF(AD7=0,0,AD7/'Primary Input'!$J$32) -> 0 | AF7: =+AD7*(1+'Pro Forma Calculation'!$J$25) -> 0 | AG7: =IF(AF7=0,0,AF7/'Primary Input'!$J$32) -> 0 | AH7: =+AF7*(1+'Pro Forma Calculation'!$J$25) -> 0 | AI7: =IF(AH7=0,0,AH7/'Primary Input'!$J$32) -> 0 | AJ7: =+AH7*(1+'Pro Forma Calculation'!$J$25) -> 0 | AK7: =IF(AJ7=0,0,AJ7/'Primary Input'!$J$32) -> 0 | AL7: =+AJ7*(1+'Pro Forma Calculation'!$J$25) -> 0 | AM7: =IF(AL7=0,0,AL7/'Primary Input'!$J$32) -> 0 | AN7: =+AL7*(1+'Pro Forma Calculation'!$J$25) -> 0 | AO7: =IF(AN7=0,0,AN7/'Primary Input'!$J$32) -> 0 | AP7: =+AN7*(1+'Pro Forma Calculation'!$J$25) -> 0 | AQ7: =IF(AP7=0,0,AP7/'Primary Input'!$J$32) -> 0
B9: Effective Gross Income (EGI) | D9: =SUM(D5:D7) -> 0 | E9: =IF(D9=0,0,D9/'Primary Input'!$J$32) -> 0 | F9: =SUM(F5:F7) -> 0 | G9: =IF(F9=0,0,F9/'Primary Input'!$J$32) -> 0 | H9: =SUM(H5:H7) -> 0 | I9: =IF(H9=0,0,H9/'Primary Input'!$J$32) -> 0 | J9: =SUM(J5:J7) -> 0 | K9: =IF(J9=0,0,J9/'Primary Input'!$J$32) -> 0 | L9: =SUM(L5:L7) -> 0 | M9: =IF(L9=0,0,L9/'Primary Input'!$J$32) -> 0 | N9: =SUM(N5:N7) -> 0 | O9: =IF(N9=0,0,N9/'Primary Input'!$J$32) -> 0 | P9: =SUM(P5:P7) -> 0 | Q9: =IF(P9=0,0,P9/'Primary Input'!$J$32) -> 0 | R9: =SUM(R5:R7) -> 0 | S9: =IF(R9=0,0,R9/'Primary Input'!$J$32) -> 0 | T9: =SUM(T5:T7) -> 0 | U9: =IF(T9=0,0,T9/'Primary Input'!$J$32) -> 0 | V9: =SUM(V5:V7) -> 0 | W9: =IF(V9=0,0,V9/'Primary Input'!$J$32) -> 0 | X9: =SUM(X5:X7) -> 0 | Y9: =IF(X9=0,0,X9/'Primary Input'!$J$32) -> 0 | Z9: =SUM(Z5:Z7) -> 0 | AA9: =IF(Z9=0,0,Z9/'Primary Input'!$J$32) -> 0 | AB9: =SUM(AB5:AB7) -> 0 | AC9: =IF(AB9=0,0,AB9/'Primary Input'!$J$32) -> 0 | AD9: =SUM(AD5:AD7) -> 0 | AE9: =IF(AD9=0,0,AD9/'Primary Input'!$J$32) -> 0 | AF9: =SUM(AF5:AF7) -> 0 | AG9: =IF(AF9=0,0,AF9/'Primary Input'!$J$32) -> 0 | AH9: =SUM(AH5:AH7) -> 0 | AI9: =IF(AH9=0,0,AH9/'Primary Input'!$J$32) -> 0 | AJ9: =SUM(AJ5:AJ7) -> 0 | AK9: =IF(AJ9=0,0,AJ9/'Primary Input'!$J$32) -> 0 | AL9: =SUM(AL5:AL7) -> 0 | AM9: =IF(AL9=0,0,AL9/'Primary Input'!$J$32) -> 0 | AN9: =SUM(AN5:AN7) -> 0 | AO9: =IF(AN9=0,0,AN9/'Primary Input'!$J$32) -> 0 | AP9: =SUM(AP5:AP7) -> 0 | AQ9: =IF(AP9=0,0,AP9/'Primary Input'!$J$32) -> 0
B11: Expenses
B12: Management Fees | D12: =+'Pro Forma Calculation'!I33 -> 0 | E12: =IF(D12=0,0,D12/'Primary Input'!$J$32) -> 0 | F12: =+D12*(1+'Pro Forma Calculation'!$J$33) -> 0 | G12: =IF(F12=0,0,F12/'Primary Input'!$J$32) -> 0 | H12: =+F12*(1+'Pro Forma Calculation'!$J$33) -> 0 | I12: =IF(H12=0,0,H12/'Primary Input'!$J$32) -> 0 | J12: =+H12*(1+'Pro Forma Calculation'!$J$33) -> 0 | K12: =IF(J12=0,0,J12/'Primary Input'!$J$32) -> 0 | L12: =+J12*(1+'Pro Forma Calculation'!$J$33) -> 0 | M12: =IF(L12=0,0,L12/'Primary Input'!$J$32) -> 0 | N12: =+L12*(1+'Pro Forma Calculation'!$J$33) -> 0 | O12: =IF(N12=0,0,N12/'Primary Input'!$J$32) -> 0 | P12: =+N12*(1+'Pro Forma Calculation'!$J$33) -> 0 | Q12: =IF(P12=0,0,P12/'Primary Input'!$J$32) -> 0 | R12: =+P12*(1+'Pro Forma Calculation'!$J$33) -> 0 | S12: =IF(R12=0,0,R12/'Primary Input'!$J$32) -> 0 | T12: =+R12*(1+'Pro Forma Calculation'!$J$33) -> 0 | U12: =IF(T12=0,0,T12/'Primary Input'!$J$32) -> 0 | V12: =+T12*(1+'Pro Forma Calculation'!$J$33) -> 0 | W12: =IF(V12=0,0,V12/'Primary Input'!$J$32) -> 0 | X12: =+V12*(1+'Pro Forma Calculation'!$J$33) -> 0 | Y12: =IF(X12=0,0,X12/'Primary Input'!$J$32) -> 0 | Z12: =+X12*(1+'Pro Forma Calculation'!$J$33) -> 0 | AA12: =IF(Z12=0,0,Z12/'Primary Input'!$J$32) -> 0 | AB12: =+Z12*(1+'Pro Forma Calculation'!$J$33) -> 0 | AC12: =IF(AB12=0,0,AB12/'Primary Input'!$J$32) -> 0 | AD12: =+AB12*(1+'Pro Forma Calculation'!$J$33) -> 0 | AE12: =IF(AD12=0,0,AD12/'Primary Input'!$J$32) -> 0 | AF12: =+AD12*(1+'Pro Forma Calculation'!$J$33) -> 0 | AG12: =IF(AF12=0,0,AF12/'Primary Input'!$J$32) -> 0 | AH12: =+AF12*(1+'Pro Forma Calculation'!$J$33) -> 0 | AI12: =IF(AH12=0,0,AH12/'Primary Input'!$J$32) -> 0 | AJ12: =+AH12*(1+'Pro Forma Calculation'!$J$33) -> 0 | AK12: =IF(AJ12=0,0,AJ12/'Primary Input'!$J$32) -> 0 | AL12: =+AJ12*(1+'Pro Forma Calculation'!$J$33) -> 0 | AM12: =IF(AL12=0,0,AL12/'Primary Input'!$J$32) -> 0 | AN12: =+AL12*(1+'Pro Forma Calculation'!$J$33) -> 0 | AO12: =IF(AN12=0,0,AN12/'Primary Input'!$J$32) -> 0 | AP12: =+AN12*(1+'Pro Forma Calculation'!$J$33) -> 0 | AQ12: =IF(AP12=0,0,AP12/'Primary Input'!$J$32) -> 0
B13: Other Administrative | D13: =+'Pro Forma Calculation'!I40 -> 0 | E13: =IF(D13=0,0,D13/'Primary Input'!$J$32) -> 0 | F13: =+D13*(1+'Pro Forma Calculation'!$J$40) -> 0 | G13: =IF(F13=0,0,F13/'Primary Input'!$J$32) -> 0 | H13: =+F13*(1+'Pro Forma Calculation'!$J$40) -> 0 | I13: =IF(H13=0,0,H13/'Primary Input'!$J$32) -> 0 | J13: =+H13*(1+'Pro Forma Calculation'!$J$40) -> 0 | K13: =IF(J13=0,0,J13/'Primary Input'!$J$32) -> 0 | L13: =+J13*(1+'Pro Forma Calculation'!$J$40) -> 0 | M13: =IF(L13=0,0,L13/'Primary Input'!$J$32) -> 0 | N13: =+L13*(1+'Pro Forma Calculation'!$J$40) -> 0 | O13: =IF(N13=0,0,N13/'Primary Input'!$J$32) -> 0 | P13: =+N13*(1+'Pro Forma Calculation'!$J$40) -> 0 | Q13: =IF(P13=0,0,P13/'Primary Input'!$J$32) -> 0 | R13: =+P13*(1+'Pro Forma Calculation'!$J$40) -> 0 | S13: =IF(R13=0,0,R13/'Primary Input'!$J$32) -> 0 | T13: =+R13*(1+'Pro Forma Calculation'!$J$40) -> 0 | U13: =IF(T13=0,0,T13/'Primary Input'!$J$32) -> 0 | V13: =+T13*(1+'Pro Forma Calculation'!$J$40) -> 0 | W13: =IF(V13=0,0,V13/'Primary Input'!$J$32) -> 0 | X13: =+V13*(1+'Pro Forma Calculation'!$J$40) -> 0 | Y13: =IF(X13=0,0,X13/'Primary Input'!$J$32) -> 0 | Z13: =+X13*(1+'Pro Forma Calculation'!$J$40) -> 0 | AA13: =IF(Z13=0,0,Z13/'Primary Input'!$J$32) -> 0 | AB13: =+Z13*(1+'Pro Forma Calculation'!$J$40) -> 0 | AC13: =IF(AB13=0,0,AB13/'Primary Input'!$J$32) -> 0 | AD13: =+AB13*(1+'Pro Forma Calculation'!$J$40) -> 0 | AE13: =IF(AD13=0,0,AD13/'Primary Input'!$J$32) -> 0 | AF13: =+AD13*(1+'Pro Forma Calculation'!$J$40) -> 0 | AG13: =IF(AF13=0,0,AF13/'Primary Input'!$J$32) -> 0 | AH13: =+AF13*(1+'Pro Forma Calculation'!$J$40) -> 0 | AI13: =IF(AH13=0,0,AH13/'Primary Input'!$J$32) -> 0 | AJ13: =+AH13*(1+'Pro Forma Calculation'!$J$40) -> 0 | AK13: =IF(AJ13=0,0,AJ13/'Primary Input'!$J$32) -> 0 | AL13: =+AJ13*(1+'Pro Forma Calculation'!$J$40) -> 0 | AM13: =IF(AL13=0,0,AL13/'Primary Input'!$J$32) -> 0 | AN13: =+AL13*(1+'Pro Forma Calculation'!$J$40) -> 0 | AO13: =IF(AN13=0,0,AN13/'Primary Input'!$J$32) -> 0 | AP13: =+AN13*(1+'Pro Forma Calculation'!$J$40) -> 0 | AQ13: =IF(AP13=0,0,AP13/'Primary Input'!$J$32) -> 0
B14: Total Utility Expense | D14: =+'Pro Forma Calculation'!I49 -> 0 | E14: =IF(D14=0,0,D14/'Primary Input'!$J$32) -> 0 | F14: =+D14*(1+'Pro Forma Calculation'!$J$49) -> 0 | G14: =IF(F14=0,0,F14/'Primary Input'!$J$32) -> 0 | H14: =+F14*(1+'Pro Forma Calculation'!$J$49) -> 0 | I14: =IF(H14=0,0,H14/'Primary Input'!$J$32) -> 0 | J14: =+H14*(1+'Pro Forma Calculation'!$J$49) -> 0 | K14: =IF(J14=0,0,J14/'Primary Input'!$J$32) -> 0 | L14: =+J14*(1+'Pro Forma Calculation'!$J$49) -> 0 | M14: =IF(L14=0,0,L14/'Primary Input'!$J$32) -> 0 | N14: =+L14*(1+'Pro Forma Calculation'!$J$49) -> 0 | O14: =IF(N14=0,0,N14/'Primary Input'!$J$32) -> 0 | P14: =+N14*(1+'Pro Forma Calculation'!$J$49) -> 0 | Q14: =IF(P14=0,0,P14/'Primary Input'!$J$32) -> 0 | R14: =+P14*(1+'Pro Forma Calculation'!$J$49) -> 0 | S14: =IF(R14=0,0,R14/'Primary Input'!$J$32) -> 0 | T14: =+R14*(1+'Pro Forma Calculation'!$J$49) -> 0 | U14: =IF(T14=0,0,T14/'Primary Input'!$J$32) -> 0 | V14: =+T14*(1+'Pro Forma Calculation'!$J$49) -> 0 | W14: =IF(V14=0,0,V14/'Primary Input'!$J$32) -> 0 | X14: =+V14*(1+'Pro Forma Calculation'!$J$49) -> 0 | Y14: =IF(X14=0,0,X14/'Primary Input'!$J$32) -> 0 | Z14: =+X14*(1+'Pro Forma Calculation'!$J$49) -> 0 | AA14: =IF(Z14=0,0,Z14/'Primary Input'!$J$32) -> 0 | AB14: =+Z14*(1+'Pro Forma Calculation'!$J$49) -> 0 | AC14: =IF(AB14=0,0,AB14/'Primary Input'!$J$32) -> 0 | AD14: =+AB14*(1+'Pro Forma Calculation'!$J$49) -> 0 | AE14: =IF(AD14=0,0,AD14/'Primary Input'!$J$32) -> 0 | AF14: =+AD14*(1+'Pro Forma Calculation'!$J$49) -> 0 | AG14: =IF(AF14=0,0,AF14/'Primary Input'!$J$32) -> 0 | AH14: =+AF14*(1+'Pro Forma Calculation'!$J$49) -> 0 | AI14: =IF(AH14=0,0,AH14/'Primary Input'!$J$32) -> 0 | AJ14: =+AH14*(1+'Pro Forma Calculation'!$J$49) -> 0 | AK14: =IF(AJ14=0,0,AJ14/'Primary Input'!$J$32) -> 0 | AL14: =+AJ14*(1+'Pro Forma Calculation'!$J$49) -> 0 | AM14: =IF(AL14=0,0,AL14/'Primary Input'!$J$32) -> 0 | AN14: =+AL14*(1+'Pro Forma Calculation'!$J$49) -> 0 | AO14: =IF(AN14=0,0,AN14/'Primary Input'!$J$32) -> 0 | AP14: =+AN14*(1+'Pro Forma Calculation'!$J$49) -> 0 | AQ14: =IF(AP14=0,0,AP14/'Primary Input'!$J$32) -> 0
B15: Total O&M Expense | D15: =+'Pro Forma Calculation'!I65 -> 0 | E15: =IF(D15=0,0,D15/'Primary Input'!$J$32) -> 0 | F15: =+D15*(1+'Pro Forma Calculation'!$J$65) -> 0 | G15: =IF(F15=0,0,F15/'Primary Input'!$J$32) -> 0 | H15: =+F15*(1+'Pro Forma Calculation'!$J$65) -> 0 | I15: =IF(H15=0,0,H15/'Primary Input'!$J$32) -> 0 | J15: =+H15*(1+'Pro Forma Calculation'!$J$65) -> 0 | K15: =IF(J15=0,0,J15/'Primary Input'!$J$32) -> 0 | L15: =+J15*(1+'Pro Forma Calculation'!$J$65) -> 0 | M15: =IF(L15=0,0,L15/'Primary Input'!$J$32) -> 0 | N15: =+L15*(1+'Pro Forma Calculation'!$J$65) -> 0 | O15: =IF(N15=0,0,N15/'Primary Input'!$J$32) -> 0 | P15: =+N15*(1+'Pro Forma Calculation'!$J$65) -> 0 | Q15: =IF(P15=0,0,P15/'Primary Input'!$J$32) -> 0 | R15: =+P15*(1+'Pro Forma Calculation'!$J$65) -> 0 | S15: =IF(R15=0,0,R15/'Primary Input'!$J$32) -> 0 | T15: =+R15*(1+'Pro Forma Calculation'!$J$65) -> 0 | U15: =IF(T15=0,0,T15/'Primary Input'!$J$32) -> 0 | V15: =+T15*(1+'Pro Forma Calculation'!$J$65) -> 0 | W15: =IF(V15=0,0,V15/'Primary Input'!$J$32) -> 0 | X15: =+V15*(1+'Pro Forma Calculation'!$J$65) -> 0 | Y15: =IF(X15=0,0,X15/'Primary Input'!$J$32) -> 0 | Z15: =+X15*(1+'Pro Forma Calculation'!$J$65) -> 0 | AA15: =IF(Z15=0,0,Z15/'Primary Input'!$J$32) -> 0 | AB15: =+Z15*(1+'Pro Forma Calculation'!$J$65) -> 0 | AC15: =IF(AB15=0,0,AB15/'Primary Input'!$J$32) -> 0 | AD15: =+AB15*(1+'Pro Forma Calculation'!$J$65) -> 0 | AE15: =IF(AD15=0,0,AD15/'Primary Input'!$J$32) -> 0 | AF15: =+AD15*(1+'Pro Forma Calculation'!$J$65) -> 0 | AG15: =IF(AF15=0,0,AF15/'Primary Input'!$J$32) -> 0 | AH15: =+AF15*(1+'Pro Forma Calculation'!$J$65) -> 0 | AI15: =IF(AH15=0,0,AH15/'Primary Input'!$J$32) -> 0 | AJ15: =+AH15*(1+'Pro Forma Calculation'!$J$65) -> 0 | AK15: =IF(AJ15=0,0,AJ15/'Primary Input'!$J$32) -> 0 | AL15: =+AJ15*(1+'Pro Forma Calculation'!$J$65) -> 0 | AM15: =IF(AL15=0,0,AL15/'Primary Input'!$J$32) -> 0 | AN15: =+AL15*(1+'Pro Forma Calculation'!$J$65) -> 0 | AO15: =IF(AN15=0,0,AN15/'Primary Input'!$J$32) -> 0 | AP15: =+AN15*(1+'Pro Forma Calculation'!$J$65) -> 0 | AQ15: =IF(AP15=0,0,AP15/'Primary Input'!$J$32) -> 0
B16: Real Estate Taxes | D16: =+'Pro Forma Calculation'!I67 -> 0 | E16: =IF(D16=0,0,D16/'Primary Input'!$J$32) -> 0 | F16: =+D16*(1+'Pro Forma Calculation'!$J$67) -> 0 | G16: =IF(F16=0,0,F16/'Primary Input'!$J$32) -> 0 | H16: =+F16*(1+'Pro Forma Calculation'!$J$67) -> 0 | I16: =IF(H16=0,0,H16/'Primary Input'!$J$32) -> 0 | J16: =+H16*(1+'Pro Forma Calculation'!$J$67) -> 0 | K16: =IF(J16=0,0,J16/'Primary Input'!$J$32) -> 0 | L16: =+J16*(1+'Pro Forma Calculation'!$J$67) -> 0 | M16: =IF(L16=0,0,L16/'Primary Input'!$J$32) -> 0 | N16: =+L16*(1+'Pro Forma Calculation'!$J$67) -> 0 | O16: =IF(N16=0,0,N16/'Primary Input'!$J$32) -> 0 | P16: =+N16*(1+'Pro Forma Calculation'!$J$67) -> 0 | Q16: =IF(P16=0,0,P16/'Primary Input'!$J$32) -> 0 | R16: =+P16*(1+'Pro Forma Calculation'!$J$67) -> 0 | S16: =IF(R16=0,0,R16/'Primary Input'!$J$32) -> 0 | T16: =+R16*(1+'Pro Forma Calculation'!$J$67) -> 0 | U16: =IF(T16=0,0,T16/'Primary Input'!$J$32) -> 0 | V16: =+T16*(1+'Pro Forma Calculation'!$J$67) -> 0 | W16: =IF(V16=0,0,V16/'Primary Input'!$J$32) -> 0 | X16: =+V16*(1+'Pro Forma Calculation'!$J$67) -> 0 | Y16: =IF(X16=0,0,X16/'Primary Input'!$J$32) -> 0 | Z16: =+X16*(1+'Pro Forma Calculation'!$J$67) -> 0 | AA16: =IF(Z16=0,0,Z16/'Primary Input'!$J$32) -> 0 | AB16: =+Z16*(1+'Pro Forma Calculation'!$J$67) -> 0 | AC16: =IF(AB16=0,0,AB16/'Primary Input'!$J$32) -> 0 | AD16: =+AB16*(1+'Pro Forma Calculation'!$J$67) -> 0 | AE16: =IF(AD16=0,0,AD16/'Primary Input'!$J$32) -> 0 | AF16: =+AD16*(1+'Pro Forma Calculation'!$J$67) -> 0 | AG16: =IF(AF16=0,0,AF16/'Primary Input'!$J$32) -> 0 | AH16: =+AF16*(1+'Pro Forma Calculation'!$J$67) -> 0 | AI16: =IF(AH16=0,0,AH16/'Primary Input'!$J$32) -> 0 | AJ16: =+AH16*(1+'Pro Forma Calculation'!$J$67) -> 0 | AK16: =IF(AJ16=0,0,AJ16/'Primary Input'!$J$32) -> 0 | AL16: =+AJ16*(1+'Pro Forma Calculation'!$J$67) -> 0 | AM16: =IF(AL16=0,0,AL16/'Primary Input'!$J$32) -> 0 | AN16: =+AL16*(1+'Pro Forma Calculation'!$J$67) -> 0 | AO16: =IF(AN16=0,0,AN16/'Primary Input'!$J$32) -> 0 | AP16: =+AN16*(1+'Pro Forma Calculation'!$J$67) -> 0 | AQ16: =IF(AP16=0,0,AP16/'Primary Input'!$J$32) -> 0
B17: Insurance | D17: =+'Pro Forma Calculation'!I70 -> 0 | E17: =IF(D17=0,0,D17/'Primary Input'!$J$32) -> 0 | F17: =+D17*(1+'Pro Forma Calculation'!$J$70) -> 0 | G17: =IF(F17=0,0,F17/'Primary Input'!$J$32) -> 0 | H17: =+F17*(1+'Pro Forma Calculation'!$J$70) -> 0 | I17: =IF(H17=0,0,H17/'Primary Input'!$J$32) -> 0 | J17: =+H17*(1+'Pro Forma Calculation'!$J$70) -> 0 | K17: =IF(J17=0,0,J17/'Primary Input'!$J$32) -> 0 | L17: =+J17*(1+'Pro Forma Calculation'!$J$70) -> 0 | M17: =IF(L17=0,0,L17/'Primary Input'!$J$32) -> 0 | N17: =+L17*(1+'Pro Forma Calculation'!$J$70) -> 0 | O17: =IF(N17=0,0,N17/'Primary Input'!$J$32) -> 0 | P17: =+N17*(1+'Pro Forma Calculation'!$J$70) -> 0 | Q17: =IF(P17=0,0,P17/'Primary Input'!$J$32) -> 0 | R17: =+P17*(1+'Pro Forma Calculation'!$J$70) -> 0 | S17: =IF(R17=0,0,R17/'Primary Input'!$J$32) -> 0 | T17: =+R17*(1+'Pro Forma Calculation'!$J$70) -> 0 | U17: =IF(T17=0,0,T17/'Primary Input'!$J$32) -> 0 | V17: =+T17*(1+'Pro Forma Calculation'!$J$70) -> 0 | W17: =IF(V17=0,0,V17/'Primary Input'!$J$32) -> 0 | X17: =+V17*(1+'Pro Forma Calculation'!$J$70) -> 0 | Y17: =IF(X17=0,0,X17/'Primary Input'!$J$32) -> 0 | Z17: =+X17*(1+'Pro Forma Calculation'!$J$70) -> 0 | AA17: =IF(Z17=0,0,Z17/'Primary Input'!$J$32) -> 0 | AB17: =+Z17*(1+'Pro Forma Calculation'!$J$70) -> 0 | AC17: =IF(AB17=0,0,AB17/'Primary Input'!$J$32) -> 0 | AD17: =+AB17*(1+'Pro Forma Calculation'!$J$70) -> 0 | AE17: =IF(AD17=0,0,AD17/'Primary Input'!$J$32) -> 0 | AF17: =+AD17*(1+'Pro Forma Calculation'!$J$70) -> 0 | AG17: =IF(AF17=0,0,AF17/'Primary Input'!$J$32) -> 0 | AH17: =+AF17*(1+'Pro Forma Calculation'!$J$70) -> 0 | AI17: =IF(AH17=0,0,AH17/'Primary Input'!$J$32) -> 0 | AJ17: =+AH17*(1+'Pro Forma Calculation'!$J$70) -> 0 | AK17: =IF(AJ17=0,0,AJ17/'Primary Input'!$J$32) -> 0 | AL17: =+AJ17*(1+'Pro Forma Calculation'!$J$70) -> 0 | AM17: =IF(AL17=0,0,AL17/'Primary Input'!$J$32) -> 0 | AN17: =+AL17*(1+'Pro Forma Calculation'!$J$70) -> 0 | AO17: =IF(AN17=0,0,AN17/'Primary Input'!$J$32) -> 0 | AP17: =+AN17*(1+'Pro Forma Calculation'!$J$70) -> 0 | AQ17: =IF(AP17=0,0,AP17/'Primary Input'!$J$32) -> 0
B18: All other Taxes & Insurance | D18: =+'Pro Forma Calculation'!I75-SUM(D16:D17) -> 0 | E18: =IF(D18=0,0,D18/'Primary Input'!$J$32) -> 0 | F18: =+D18*(1+'Pro Forma Calculation'!$J$74) -> 0 | G18: =IF(F18=0,0,F18/'Primary Input'!$J$32) -> 0 | H18: =+F18*(1+'Pro Forma Calculation'!$J$74) -> 0 | I18: =IF(H18=0,0,H18/'Primary Input'!$J$32) -> 0 | J18: =+H18*(1+'Pro Forma Calculation'!$J$74) -> 0 | K18: =IF(J18=0,0,J18/'Primary Input'!$J$32) -> 0 | L18: =+J18*(1+'Pro Forma Calculation'!$J$74) -> 0 | M18: =IF(L18=0,0,L18/'Primary Input'!$J$32) -> 0 | N18: =+L18*(1+'Pro Forma Calculation'!$J$74) -> 0 | O18: =IF(N18=0,0,N18/'Primary Input'!$J$32) -> 0 | P18: =+N18*(1+'Pro Forma Calculation'!$J$74) -> 0 | Q18: =IF(P18=0,0,P18/'Primary Input'!$J$32) -> 0 | R18: =+P18*(1+'Pro Forma Calculation'!$J$74) -> 0 | S18: =IF(R18=0,0,R18/'Primary Input'!$J$32) -> 0 | T18: =+R18*(1+'Pro Forma Calculation'!$J$74) -> 0 | U18: =IF(T18=0,0,T18/'Primary Input'!$J$32) -> 0 | V18: =+T18*(1+'Pro Forma Calculation'!$J$74) -> 0 | W18: =IF(V18=0,0,V18/'Primary Input'!$J$32) -> 0 | X18: =+V18*(1+'Pro Forma Calculation'!$J$74) -> 0 | Y18: =IF(X18=0,0,X18/'Primary Input'!$J$32) -> 0 | Z18: =+X18*(1+'Pro Forma Calculation'!$J$74) -> 0 | AA18: =IF(Z18=0,0,Z18/'Primary Input'!$J$32) -> 0 | AB18: =+Z18*(1+'Pro Forma Calculation'!$J$74) -> 0 | AC18: =IF(AB18=0,0,AB18/'Primary Input'!$J$32) -> 0 | AD18: =+AB18*(1+'Pro Forma Calculation'!$J$74) -> 0 | AE18: =IF(AD18=0,0,AD18/'Primary Input'!$J$32) -> 0 | AF18: =+AD18*(1+'Pro Forma Calculation'!$J$74) -> 0 | AG18: =IF(AF18=0,0,AF18/'Primary Input'!$J$32) -> 0 | AH18: =+AF18*(1+'Pro Forma Calculation'!$J$74) -> 0 | AI18: =IF(AH18=0,0,AH18/'Primary Input'!$J$32) -> 0 | AJ18: =+AH18*(1+'Pro Forma Calculation'!$J$74) -> 0 | AK18: =IF(AJ18=0,0,AJ18/'Primary Input'!$J$32) -> 0 | AL18: =+AJ18*(1+'Pro Forma Calculation'!$J$74) -> 0 | AM18: =IF(AL18=0,0,AL18/'Primary Input'!$J$32) -> 0 | AN18: =+AL18*(1+'Pro Forma Calculation'!$J$74) -> 0 | AO18: =IF(AN18=0,0,AN18/'Primary Input'!$J$32) -> 0 | AP18: =+AN18*(1+'Pro Forma Calculation'!$J$74) -> 0 | AQ18: =IF(AP18=0,0,AP18/'Primary Input'!$J$32) -> 0
B20: Total Expenses | D20: =SUM(D11:D19) -> 0 | E20: =IF(D20=0,0,D20/'Primary Input'!$J$32) -> 0 | F20: =SUM(F12:F18) -> 0 | G20: =IF(F20=0,0,F20/'Primary Input'!$J$32) -> 0 | H20: =SUM(H12:H18) -> 0 | I20: =IF(H20=0,0,H20/'Primary Input'!$J$32) -> 0 | J20: =SUM(J12:J18) -> 0 | K20: =IF(J20=0,0,J20/'Primary Input'!$J$32) -> 0 | L20: =SUM(L12:L18) -> 0 | M20: =IF(L20=0,0,L20/'Primary Input'!$J$32) -> 0 | N20: =SUM(N12:N18) -> 0 | O20: =IF(N20=0,0,N20/'Primary Input'!$J$32) -> 0 | P20: =SUM(P12:P18) -> 0 | Q20: =IF(P20=0,0,P20/'Primary Input'!$J$32) -> 0 | R20: =SUM(R12:R18) -> 0 | S20: =IF(R20=0,0,R20/'Primary Input'!$J$32) -> 0 | T20: =SUM(T12:T18) -> 0 | U20: =IF(T20=0,0,T20/'Primary Input'!$J$32) -> 0 | V20: =SUM(V12:V18) -> 0 | W20: =IF(V20=0,0,V20/'Primary Input'!$J$32) -> 0 | X20: =SUM(X12:X18) -> 0 | Y20: =IF(X20=0,0,X20/'Primary Input'!$J$32) -> 0 | Z20: =SUM(Z12:Z18) -> 0 | AA20: =IF(Z20=0,0,Z20/'Primary Input'!$J$32) -> 0 | AB20: =SUM(AB12:AB18) -> 0 | AC20: =IF(AB20=0,0,AB20/'Primary Input'!$J$32) -> 0 | AD20: =SUM(AD12:AD18) -> 0 | AE20: =IF(AD20=0,0,AD20/'Primary Input'!$J$32) -> 0 | AF20: =SUM(AF12:AF18) -> 0 | AG20: =IF(AF20=0,0,AF20/'Primary Input'!$J$32) -> 0 | AH20: =SUM(AH12:AH18) -> 0 | AI20: =IF(AH20=0,0,AH20/'Primary Input'!$J$32) -> 0 | AJ20: =SUM(AJ12:AJ18) -> 0 | AK20: =IF(AJ20=0,0,AJ20/'Primary Input'!$J$32) -> 0 | AL20: =SUM(AL12:AL18) -> 0 | AM20: =IF(AL20=0,0,AL20/'Primary Input'!$J$32) -> 0 | AN20: =SUM(AN12:AN18) -> 0 | AO20: =IF(AN20=0,0,AN20/'Primary Input'!$J$32) -> 0 | AP20: =SUM(AP12:AP18) -> 0 | AQ20: =IF(AP20=0,0,AP20/'Primary Input'!$J$32) -> 0
B22: Net Operating Income | D22: =+D9-D20 -> 0 | E22: =IF(D22=0,0,D22/'Primary Input'!$J$32) -> 0 | F22: =+F9-F20 -> 0 | G22: =IF(F22=0,0,F22/'Primary Input'!$J$32) -> 0 | H22: =+H9-H20 -> 0 | I22: =IF(H22=0,0,H22/'Primary Input'!$J$32) -> 0 | J22: =+J9-J20 -> 0 | K22: =IF(J22=0,0,J22/'Primary Input'!$J$32) -> 0 | L22: =+L9-L20 -> 0 | M22: =IF(L22=0,0,L22/'Primary Input'!$J$32) -> 0 | N22: =+N9-N20 -> 0 | O22: =IF(N22=0,0,N22/'Primary Input'!$J$32) -> 0 | P22: =+P9-P20 -> 0 | Q22: =IF(P22=0,0,P22/'Primary Input'!$J$32) -> 0 | R22: =+R9-R20 -> 0 | S22: =IF(R22=0,0,R22/'Primary Input'!$J$32) -> 0 | T22: =+T9-T20 -> 0 | U22: =IF(T22=0,0,T22/'Primary Input'!$J$32) -> 0 | V22: =+V9-V20 -> 0 | W22: =IF(V22=0,0,V22/'Primary Input'!$J$32) -> 0 | X22: =+X9-X20 -> 0 | Y22: =IF(X22=0,0,X22/'Primary Input'!$J$32) -> 0 | Z22: =+Z9-Z20 -> 0 | AA22: =IF(Z22=0,0,Z22/'Primary Input'!$J$32) -> 0 | AB22: =+AB9-AB20 -> 0 | AC22: =IF(AB22=0,0,AB22/'Primary Input'!$J$32) -> 0 | AD22: =+AD9-AD20 -> 0 | AE22: =IF(AD22=0,0,AD22/'Primary Input'!$J$32) -> 0 | AF22: =+AF9-AF20 -> 0 | AG22: =IF(AF22=0,0,AF22/'Primary Input'!$J$32) -> 0 | AH22: =+AH9-AH20 -> 0 | AI22: =IF(AH22=0,0,AH22/'Primary Input'!$J$32) -> 0 | AJ22: =+AJ9-AJ20 -> 0 | AK22: =IF(AJ22=0,0,AJ22/'Primary Input'!$J$32) -> 0 | AL22: =+AL9-AL20 -> 0 | AM22: =IF(AL22=0,0,AL22/'Primary Input'!$J$32) -> 0 | AN22: =+AN9-AN20 -> 0 | AO22: =IF(AN22=0,0,AN22/'Primary Input'!$J$32) -> 0 | AP22: =+AP9-AP20 -> 0 | AQ22: =IF(AP22=0,0,AP22/'Primary Input'!$J$32) -> 0
B24: Replacement Reserves Contribution | D24: =+'Pro Forma Calculation'!I81 -> 0 | E24: =IF(D24=0,0,D24/'Primary Input'!$J$32) -> 0 | F24: =+D24*(1+'Pro Forma Calculation'!$J$81) -> 0 | G24: =IF(F24=0,0,F24/'Primary Input'!$J$32) -> 0 | H24: =+F24*(1+'Pro Forma Calculation'!$J$81) -> 0 | I24: =IF(H24=0,0,H24/'Primary Input'!$J$32) -> 0 | J24: =+H24*(1+'Pro Forma Calculation'!$J$81) -> 0 | K24: =IF(J24=0,0,J24/'Primary Input'!$J$32) -> 0 | L24: =+J24*(1+'Pro Forma Calculation'!$J$81) -> 0 | M24: =IF(L24=0,0,L24/'Primary Input'!$J$32) -> 0 | N24: =+L24*(1+'Pro Forma Calculation'!$J$81) -> 0 | O24: =IF(N24=0,0,N24/'Primary Input'!$J$32) -> 0 | P24: =+N24*(1+'Pro Forma Calculation'!$J$81) -> 0 | Q24: =IF(P24=0,0,P24/'Primary Input'!$J$32) -> 0 | R24: =+P24*(1+'Pro Forma Calculation'!$J$81) -> 0 | S24: =IF(R24=0,0,R24/'Primary Input'!$J$32) -> 0 | T24: =+R24*(1+'Pro Forma Calculation'!$J$81) -> 0 | U24: =IF(T24=0,0,T24/'Primary Input'!$J$32) -> 0 | V24: =+T24*(1+'Pro Forma Calculation'!$J$81) -> 0 | W24: =IF(V24=0,0,V24/'Primary Input'!$J$32) -> 0 | X24: =+V24*(1+'Pro Forma Calculation'!$J$81) -> 0 | Y24: =IF(X24=0,0,X24/'Primary Input'!$J$32) -> 0 | Z24: =+X24*(1+'Pro Forma Calculation'!$J$81) -> 0 | AA24: =IF(Z24=0,0,Z24/'Primary Input'!$J$32) -> 0 | AB24: =+Z24*(1+'Pro Forma Calculation'!$J$81) -> 0 | AC24: =IF(AB24=0,0,AB24/'Primary Input'!$J$32) -> 0 | AD24: =+AB24*(1+'Pro Forma Calculation'!$J$81) -> 0 | AE24: =IF(AD24=0,0,AD24/'Primary Input'!$J$32) -> 0 | AF24: =+AD24*(1+'Pro Forma Calculation'!$J$81) -> 0 | AG24: =IF(AF24=0,0,AF24/'Primary Input'!$J$32) -> 0 | AH24: =+AF24*(1+'Pro Forma Calculation'!$J$81) -> 0 | AI24: =IF(AH24=0,0,AH24/'Primary Input'!$J$32) -> 0 | AJ24: =+AH24*(1+'Pro Forma Calculation'!$J$81) -> 0 | AK24: =IF(AJ24=0,0,AJ24/'Primary Input'!$J$32) -> 0 | AL24: =+AJ24*(1+'Pro Forma Calculation'!$J$81) -> 0 | AM24: =IF(AL24=0,0,AL24/'Primary Input'!$J$32) -> 0 | AN24: =+AL24*(1+'Pro Forma Calculation'!$J$81) -> 0 | AO24: =IF(AN24=0,0,AN24/'Primary Input'!$J$32) -> 0 | AP24: =+AN24*(1+'Pro Forma Calculation'!$J$81) -> 0 | AQ24: =IF(AP24=0,0,AP24/'Primary Input'!$J$32) -> 0
B25: Developer Fee Repayment | E25: =IF(D25=0,0,D25/'Primary Input'!$J$32) -> 0 | G25: =IF(F25=0,0,F25/'Primary Input'!$J$32) -> 0 | I25: =IF(H25=0,0,H25/'Primary Input'!$J$32) -> 0 | K25: =IF(J25=0,0,J25/'Primary Input'!$J$32) -> 0 | M25: =IF(L25=0,0,L25/'Primary Input'!$J$32) -> 0 | O25: =IF(N25=0,0,N25/'Primary Input'!$J$32) -> 0 | Q25: =IF(P25=0,0,P25/'Primary Input'!$J$32) -> 0 | S25: =IF(R25=0,0,R25/'Primary Input'!$J$32) -> 0 | U25: =IF(T25=0,0,T25/'Primary Input'!$J$32) -> 0 | W25: =IF(V25=0,0,V25/'Primary Input'!$J$32) -> 0
B27: Adjusted Net Operating Income | D27: =D22-D24-D25 -> 0 | E27: =IF(D27=0,0,D27/'Primary Input'!$J$32) -> 0 | F27: =F22-F24-F25 -> 0 | G27: =IF(F27=0,0,F27/'Primary Input'!$J$32) -> 0 | H27: =H22-H24-H25 -> 0 | I27: =IF(H27=0,0,H27/'Primary Input'!$J$32) -> 0 | J27: =J22-J24-J25 -> 0 | K27: =IF(J27=0,0,J27/'Primary Input'!$J$32) -> 0 | L27: =L22-L24-L25 -> 0 | M27: =IF(L27=0,0,L27/'Primary Input'!$J$32) -> 0 | N27: =N22-N24-N25 -> 0 | O27: =IF(N27=0,0,N27/'Primary Input'!$J$32) -> 0 | P27: =P22-P24-P25 -> 0 | Q27: =IF(P27=0,0,P27/'Primary Input'!$J$32) -> 0 | R27: =R22-R24-R25 -> 0 | S27: =IF(R27=0,0,R27/'Primary Input'!$J$32) -> 0 | T27: =T22-T24-T25 -> 0 | U27: =IF(T27=0,0,T27/'Primary Input'!$J$32) -> 0 | V27: =V22-V24-V25 -> 0 | W27: =IF(V27=0,0,V27/'Primary Input'!$J$32) -> 0 | X27: =X22-X24 -> 0 | Y27: =IF(X27=0,0,X27/'Primary Input'!$J$32) -> 0 | Z27: =Z22-Z24 -> 0 | AA27: =IF(Z27=0,0,Z27/'Primary Input'!$J$32) -> 0 | AB27: =AB22-AB24 -> 0 | AC27: =IF(AB27=0,0,AB27/'Primary Input'!$J$32) -> 0 | AD27: =AD22-AD24 -> 0 | AE27: =IF(AD27=0,0,AD27/'Primary Input'!$J$32) -> 0 | AF27: =AF22-AF24 -> 0 | AG27: =IF(AF27=0,0,AF27/'Primary Input'!$J$32) -> 0 | AH27: =AH22-AH24 -> 0 | AI27: =IF(AH27=0,0,AH27/'Primary Input'!$J$32) -> 0 | AJ27: =AJ22-AJ24 -> 0 | AK27: =IF(AJ27=0,0,AJ27/'Primary Input'!$J$32) -> 0 | AL27: =AL22-AL24 -> 0 | AM27: =IF(AL27=0,0,AL27/'Primary Input'!$J$32) -> 0 | AN27: =AN22-AN24 -> 0 | AO27: =IF(AN27=0,0,AN27/'Primary Input'!$J$32) -> 0 | AP27: =AP22-AP24 -> 0 | AQ27: =IF(AP27=0,0,AP27/'Primary Input'!$J$32) -> 0
B29: Debt Service
B30: 1st Mortgage | D30: =+'Pro Forma Calculation'!I86 -> 0 | E30: =IF(D30=0,0,D30/'Primary Input'!$J$32) -> 0 | F30: =+D30 -> 0 | G30: =IF(F30=0,0,F30/'Primary Input'!$J$32) -> 0 | H30: =+F30 -> 0 | I30: =IF(H30=0,0,H30/'Primary Input'!$J$32) -> 0 | J30: =+H30 -> 0 | K30: =IF(J30=0,0,J30/'Primary Input'!$J$32) -> 0 | L30: =+J30 -> 0 | M30: =IF(L30=0,0,L30/'Primary Input'!$J$32) -> 0 | N30: =+L30 -> 0 | O30: =IF(N30=0,0,N30/'Primary Input'!$J$32) -> 0 | P30: =+N30 -> 0 | Q30: =IF(P30=0,0,P30/'Primary Input'!$J$32) -> 0 | R30: =+P30 -> 0 | S30: =IF(R30=0,0,R30/'Primary Input'!$J$32) -> 0 | T30: =+R30 -> 0 | U30: =IF(T30=0,0,T30/'Primary Input'!$J$32) -> 0 | V30: =+T30 -> 0 | W30: =IF(V30=0,0,V30/'Primary Input'!$J$32) -> 0 | X30: =+V30 -> 0 | Y30: =IF(X30=0,0,X30/'Primary Input'!$J$32) -> 0 | Z30: =+X30 -> 0 | AA30: =IF(Z30=0,0,Z30/'Primary Input'!$J$32) -> 0 | AB30: =+Z30 -> 0 | AC30: =IF(AB30=0,0,AB30/'Primary Input'!$J$32) -> 0 | AD30: =+AB30 -> 0 | AE30: =IF(AD30=0,0,AD30/'Primary Input'!$J$32) -> 0 | AF30: =+AD30 -> 0 | AG30: =IF(AF30=0,0,AF30/'Primary Input'!$J$32) -> 0 | AH30: =+AF30 -> 0 | AI30: =IF(AH30=0,0,AH30/'Primary Input'!$J$32) -> 0 | AJ30: =+AH30 -> 0 | AK30: =IF(AJ30=0,0,AJ30/'Primary Input'!$J$32) -> 0 | AL30: =+AJ30 -> 0 | AM30: =IF(AL30=0,0,AL30/'Primary Input'!$J$32) -> 0 | AN30: =+AL30 -> 0 | AO30: =IF(AN30=0,0,AN30/'Primary Input'!$J$32) -> 0 | AP30: =+AN30 -> 0 | AQ30: =IF(AP30=0,0,AP30/'Primary Input'!$J$32) -> 0
B31: 2nd Mortgage as Calculated | D31: =+'Pro Forma Calculation'!I87 -> 0 | E31: =IF(D31=0,0,D31/'Primary Input'!$J$32) -> 0 | F31: =+D31 -> 0 | G31: =IF(F31=0,0,F31/'Primary Input'!$J$32) -> 0 | H31: =+F31 -> 0 | I31: =IF(H31=0,0,H31/'Primary Input'!$J$32) -> 0 | J31: =+H31 -> 0 | K31: =IF(J31=0,0,J31/'Primary Input'!$J$32) -> 0 | L31: =+J31 -> 0 | M31: =IF(L31=0,0,L31/'Primary Input'!$J$32) -> 0 | N31: =+L31 -> 0 | O31: =IF(N31=0,0,N31/'Primary Input'!$J$32) -> 0 | P31: =+N31 -> 0 | Q31: =IF(P31=0,0,P31/'Primary Input'!$J$32) -> 0 | R31: =+P31 -> 0 | S31: =IF(R31=0,0,R31/'Primary Input'!$J$32) -> 0 | T31: =+R31 -> 0 | U31: =IF(T31=0,0,T31/'Primary Input'!$J$32) -> 0 | V31: =+T31 -> 0 | W31: =IF(V31=0,0,V31/'Primary Input'!$J$32) -> 0 | X31: =+V31 -> 0 | Y31: =IF(X31=0,0,X31/'Primary Input'!$J$32) -> 0 | Z31: =+X31 -> 0 | AA31: =IF(Z31=0,0,Z31/'Primary Input'!$J$32) -> 0 | AB31: =+Z31 -> 0 | AC31: =IF(AB31=0,0,AB31/'Primary Input'!$J$32) -> 0 | AD31: =+AB31 -> 0 | AE31: =IF(AD31=0,0,AD31/'Primary Input'!$J$32) -> 0 | AF31: =+AD31 -> 0 | AG31: =IF(AF31=0,0,AF31/'Primary Input'!$J$32) -> 0 | AH31: =+AF31 -> 0 | AI31: =IF(AH31=0,0,AH31/'Primary Input'!$J$32) -> 0 | AJ31: =+AH31 -> 0 | AK31: =IF(AJ31=0,0,AJ31/'Primary Input'!$J$32) -> 0 | AL31: =+AJ31 -> 0 | AM31: =IF(AL31=0,0,AL31/'Primary Input'!$J$32) -> 0 | AN31: =+AL31 -> 0 | AO31: =IF(AN31=0,0,AN31/'Primary Input'!$J$32) -> 0 | AP31: =+AN31 -> 0 | AQ31: =IF(AP31=0,0,AP31/'Primary Input'!$J$32) -> 0
B32: Other Loan | E32: =IF(D32=0,0,D32/'Primary Input'!$J$32) -> 0 | G32: =IF(F32=0,0,F32/'Primary Input'!$J$32) -> 0 | I32: =IF(H32=0,0,H32/'Primary Input'!$J$32) -> 0 | K32: =IF(J32=0,0,J32/'Primary Input'!$J$32) -> 0 | M32: =IF(L32=0,0,L32/'Primary Input'!$J$32) -> 0 | O32: =IF(N32=0,0,N32/'Primary Input'!$J$32) -> 0 | Q32: =IF(P32=0,0,P32/'Primary Input'!$J$32) -> 0 | S32: =IF(R32=0,0,R32/'Primary Input'!$J$32) -> 0 | U32: =IF(T32=0,0,T32/'Primary Input'!$J$32) -> 0 | W32: =IF(V32=0,0,V32/'Primary Input'!$J$32) -> 0 | Y32: =IF(X32=0,0,X32/'Primary Input'!$J$32) -> 0 | AA32: =IF(Z32=0,0,Z32/'Primary Input'!$J$32) -> 0 | AC32: =IF(AB32=0,0,AB32/'Primary Input'!$J$32) -> 0 | AE32: =IF(AD32=0,0,AD32/'Primary Input'!$J$32) -> 0 | AG32: =IF(AF32=0,0,AF32/'Primary Input'!$J$32) -> 0 | AI32: =IF(AH32=0,0,AH32/'Primary Input'!$J$32) -> 0 | AK32: =IF(AJ32=0,0,AJ32/'Primary Input'!$J$32) -> 0 | AM32: =IF(AL32=0,0,AL32/'Primary Input'!$J$32) -> 0 | AO32: =IF(AN32=0,0,AN32/'Primary Input'!$J$32) -> 0 | AQ32: =IF(AP32=0,0,AP32/'Primary Input'!$J$32) -> 0
B33: Total Debt Service | D33: =SUM(D30:D32) -> 0 | E33: =IF(D33=0,0,D33/'Primary Input'!$J$32) -> 0 | F33: =SUM(F30:F32) -> 0 | G33: =IF(F33=0,0,F33/'Primary Input'!$J$32) -> 0 | H33: =SUM(H30:H32) -> 0 | I33: =IF(H33=0,0,H33/'Primary Input'!$J$32) -> 0 | J33: =SUM(J30:J32) -> 0 | K33: =IF(J33=0,0,J33/'Primary Input'!$J$32) -> 0 | L33: =SUM(L30:L32) -> 0 | M33: =IF(L33=0,0,L33/'Primary Input'!$J$32) -> 0 | N33: =SUM(N30:N32) -> 0 | O33: =IF(N33=0,0,N33/'Primary Input'!$J$32) -> 0 | P33: =SUM(P30:P32) -> 0 | Q33: =IF(P33=0,0,P33/'Primary Input'!$J$32) -> 0 | R33: =SUM(R30:R32) -> 0 | S33: =IF(R33=0,0,R33/'Primary Input'!$J$32) -> 0 | T33: =SUM(T30:T32) -> 0 | U33: =IF(T33=0,0,T33/'Primary Input'!$J$32) -> 0 | V33: =SUM(V30:V32) -> 0 | W33: =IF(V33=0,0,V33/'Primary Input'!$J$32) -> 0 | X33: =SUM(X30:X32) -> 0 | Y33: =IF(X33=0,0,X33/'Primary Input'!$J$32) -> 0 | Z33: =SUM(Z30:Z32) -> 0 | AA33: =IF(Z33=0,0,Z33/'Primary Input'!$J$32) -> 0 | AB33: =SUM(AB30:AB32) -> 0 | AC33: =IF(AB33=0,0,AB33/'Primary Input'!$J$32) -> 0 | AD33: =SUM(AD30:AD32) -> 0 | AE33: =IF(AD33=0,0,AD33/'Primary Input'!$J$32) -> 0 | AF33: =SUM(AF30:AF32) -> 0 | AG33: =IF(AF33=0,0,AF33/'Primary Input'!$J$32) -> 0 | AH33: =SUM(AH30:AH32) -> 0 | AI33: =IF(AH33=0,0,AH33/'Primary Input'!$J$32) -> 0 | AJ33: =SUM(AJ30:AJ32) -> 0 | AK33: =IF(AJ33=0,0,AJ33/'Primary Input'!$J$32) -> 0 | AL33: =SUM(AL30:AL32) -> 0 | AM33: =IF(AL33=0,0,AL33/'Primary Input'!$J$32) -> 0 | AN33: =SUM(AN30:AN32) -> 0 | AO33: =IF(AN33=0,0,AN33/'Primary Input'!$J$32) -> 0 | AP33: =SUM(AP30:AP32) -> 0 | AQ33: =IF(AP33=0,0,AP33/'Primary Input'!$J$32) -> 0
B35: CashFlow | D35: =+D27-D33 -> 0 | E35: =IF(D35=0,0,D35/'Primary Input'!$J$32) -> 0 | F35: =+F27-F33 -> 0 | G35: =IF(F35=0,0,F35/'Primary Input'!$J$32) -> 0 | H35: =+H27-H33 -> 0 | I35: =IF(H35=0,0,H35/'Primary Input'!$J$32) -> 0 | J35: =+J27-J33 -> 0 | K35: =IF(J35=0,0,J35/'Primary Input'!$J$32) -> 0 | L35: =+L27-L33 -> 0 | M35: =IF(L35=0,0,L35/'Primary Input'!$J$32) -> 0 | N35: =+N27-N33 -> 0 | O35: =IF(N35=0,0,N35/'Primary Input'!$J$32) -> 0 | P35: =+P27-P33 -> 0 | Q35: =IF(P35=0,0,P35/'Primary Input'!$J$32) -> 0 | R35: =+R27-R33 -> 0 | S35: =IF(R35=0,0,R35/'Primary Input'!$J$32) -> 0 | T35: =+T27-T33 -> 0 | U35: =IF(T35=0,0,T35/'Primary Input'!$J$32) -> 0 | V35: =+V27-V33 -> 0 | W35: =IF(V35=0,0,V35/'Primary Input'!$J$32) -> 0 | X35: =+X27-X33 -> 0 | Y35: =IF(X35=0,0,X35/'Primary Input'!$J$32) -> 0 | Z35: =+Z27-Z33 -> 0 | AA35: =IF(Z35=0,0,Z35/'Primary Input'!$J$32) -> 0 | AB35: =+AB27-AB33 -> 0 | AC35: =IF(AB35=0,0,AB35/'Primary Input'!$J$32) -> 0 | AD35: =+AD27-AD33 -> 0 | AE35: =IF(AD35=0,0,AD35/'Primary Input'!$J$32) -> 0 | AF35: =+AF27-AF33 -> 0 | AG35: =IF(AF35=0,0,AF35/'Primary Input'!$J$32) -> 0 | AH35: =+AH27-AH33 -> 0 | AI35: =IF(AH35=0,0,AH35/'Primary Input'!$J$32) -> 0 | AJ35: =+AJ27-AJ33 -> 0 | AK35: =IF(AJ35=0,0,AJ35/'Primary Input'!$J$32) -> 0 | AL35: =+AL27-AL33 -> 0 | AM35: =IF(AL35=0,0,AL35/'Primary Input'!$J$32) -> 0 | AN35: =+AN27-AN33 -> 0 | AO35: =IF(AN35=0,0,AN35/'Primary Input'!$J$32) -> 0 | AP35: =+AP27-AP33 -> 0 | AQ35: =IF(AP35=0,0,AP35/'Primary Input'!$J$32) -> 0 | AR35: =+D35+F35+H35+J35+L35+N35+P35+R35+T35+V35+X35+Z35+AB35+AD35+AF35+AH35+AJ35+AL35+AN35+AP35 -> 0
B36: Deliberately Left Blank (Not for use with NOAH)
B37: Net CashFlow | D37: =+D35-D36 -> 0 | E37: =IF(D37=0,0,D37/'Primary Input'!$J$32) -> 0 | F37: =+F35-F36 -> 0 | G37: =IF(F37=0,0,F37/'Primary Input'!$J$32) -> 0 | H37: =+H35-H36 -> 0 | I37: =IF(H37=0,0,H37/'Primary Input'!$J$32) -> 0 | J37: =+J35-J36 -> 0 | K37: =IF(J37=0,0,J37/'Primary Input'!$J$32) -> 0 | L37: =+L35-L36 -> 0 | M37: =IF(L37=0,0,L37/'Primary Input'!$J$32) -> 0 | N37: =+N35-N36 -> 0 | O37: =IF(N37=0,0,N37/'Primary Input'!$J$32) -> 0 | P37: =+P35-P36 -> 0 | Q37: =IF(P37=0,0,P37/'Primary Input'!$J$32) -> 0 | R37: =+R35-R36 -> 0 | S37: =IF(R37=0,0,R37/'Primary Input'!$J$32) -> 0 | T37: =+T35-T36 -> 0 | U37: =IF(T37=0,0,T37/'Primary Input'!$J$32) -> 0 | V37: =+V35-V36 -> 0 | W37: =IF(V37=0,0,V37/'Primary Input'!$J$32) -> 0 | X37: =+X35-X36 -> 0 | Y37: =IF(X37=0,0,X37/'Primary Input'!$J$32) -> 0 | Z37: =+Z35-Z36 -> 0 | AA37: =IF(Z37=0,0,Z37/'Primary Input'!$J$32) -> 0 | AB37: =+AB35-AB36 -> 0 | AC37: =IF(AB37=0,0,AB37/'Primary Input'!$J$32) -> 0 | AD37: =+AD35-AD36 -> 0 | AE37: =IF(AD37=0,0,AD37/'Primary Input'!$J$32) -> 0 | AF37: =+AF35-AF36 -> 0 | AG37: =IF(AF37=0,0,AF37/'Primary Input'!$J$32) -> 0 | AH37: =+AH35-AH36 -> 0 | AI37: =IF(AH37=0,0,AH37/'Primary Input'!$J$32) -> 0 | AJ37: =+AJ35-AJ36 -> 0 | AK37: =IF(AJ37=0,0,AJ37/'Primary Input'!$J$32) -> 0 | AL37: =+AL35-AL36 -> 0 | AM37: =IF(AL37=0,0,AL37/'Primary Input'!$J$32) -> 0 | AN37: =+AN35-AN36 -> 0 | AO37: =IF(AN37=0,0,AN37/'Primary Input'!$J$32) -> 0 | AP37: =+AP35-AP36 -> 0 | AQ37: =IF(AP37=0,0,AP37/'Primary Input'!$J$32) -> 0
B38: =+'Pro Forma Calculation'!B93 -> HOME FUNDS DEBT SERVICE | D38: =+D37*'Pro Forma Calculation'!$D93 -> 0 | F38: =+F37*'Pro Forma Calculation'!$D93 -> 0 | H38: =+H37*'Pro Forma Calculation'!$D93 -> 0 | J38: =+J37*'Pro Forma Calculation'!$D93 -> 0 | L38: =+L37*'Pro Forma Calculation'!$D93 -> 0 | N38: =+N37*'Pro Forma Calculation'!$D93 -> 0 | P38: =+P37*'Pro Forma Calculation'!$D93 -> 0 | R38: =+R37*'Pro Forma Calculation'!$D93 -> 0 | T38: =+T37*'Pro Forma Calculation'!$D93 -> 0 | V38: =+V37*'Pro Forma Calculation'!$D93 -> 0 | X38: =+X37*'Pro Forma Calculation'!$D93 -> 0 | Z38: =+Z37*'Pro Forma Calculation'!$D93 -> 0 | AB38: =+AB37*'Pro Forma Calculation'!$D93 -> 0 | AD38: =+AD37*'Pro Forma Calculation'!$D93 -> 0 | AF38: =+AF37*'Pro Forma Calculation'!$D93 -> 0 | AH38: =+AH37*'Pro Forma Calculation'!$D93 -> 0 | AJ38: =+AJ37*'Pro Forma Calculation'!$D93 -> 0 | AL38: =+AL37*'Pro Forma Calculation'!$D93 -> 0 | AN38: =+AN37*'Pro Forma Calculation'!$D93 -> 0 | AP38: =+AP37*'Pro Forma Calculation'!$D93 -> 0
B39: Distribution to Owner | D39: =+D37-D38 -> 0 | F39: =+F37-F38 -> 0 | H39: =+H37-H38 -> 0 | J39: =+J37-J38 -> 0 | L39: =+L37-L38 -> 0 | N39: =+N37-N38 -> 0 | P39: =+P37-P38 -> 0 | R39: =+R37-R38 -> 0 | T39: =+T37-T38 -> 0 | V39: =+V37-V38 -> 0 | X39: =+X37-X38 -> 0 | Z39: =+Z37-Z38 -> 0 | AB39: =+AB37-AB38 -> 0 | AD39: =+AD37-AD38 -> 0 | AF39: =+AF37-AF38 -> 0 | AH39: =+AH37-AH38 -> 0 | AJ39: =+AJ37-AJ38 -> 0 | AL39: =+AL37-AL38 -> 0 | AN39: =+AN37-AN38 -> 0 | AP39: =+AP37-AP38 -> 0
B41: Debt Service Coverage Ratios
B42: 1st Mortgage | D42: =IF(D30=0,0,+D27/D30) -> 0 | F42: =IF(F30=0,0,+F27/F30) -> 0 | H42: =IF(H30=0,0,+H27/H30) -> 0 | J42: =IF(J30=0,0,+J27/J30) -> 0 | L42: =IF(L30=0,0,+L27/L30) -> 0 | N42: =IF(N30=0,0,+N27/N30) -> 0 | P42: =IF(P30=0,0,+P27/P30) -> 0 | R42: =IF(R30=0,0,+R27/R30) -> 0 | T42: =IF(T30=0,0,+T27/T30) -> 0 | V42: =IF(V30=0,0,+V27/V30) -> 0 | X42: =IF(X30=0,0,+X27/X30) -> 0 | Z42: =IF(Z30=0,0,+Z27/Z30) -> 0 | AB42: =IF(AB30=0,0,+AB27/AB30) -> 0 | AD42: =IF(AD30=0,0,+AD27/AD30) -> 0 | AF42: =IF(AF30=0,0,+AF27/AF30) -> 0 | AH42: =IF(AH30=0,0,+AH27/AH30) -> 0 | AJ42: =IF(AJ30=0,0,+AJ27/AJ30) -> 0 | AL42: =IF(AL30=0,0,+AL27/AL30) -> 0 | AN42: =IF(AN30=0,0,+AN27/AN30) -> 0 | AP42: =IF(AP30=0,0,+AP27/AP30) -> 0
B43: All Debt | D43: =IF(D33=0,0,+D27/D33) -> 0 | F43: =IF(F33=0,0,+F27/F33) -> 0 | H43: =IF(H33=0,0,+H27/H33) -> 0 | J43: =IF(J33=0,0,+J27/J33) -> 0 | L43: =IF(L33=0,0,+L27/L33) -> 0 | N43: =IF(N33=0,0,+N27/N33) -> 0 | P43: =IF(P33=0,0,+P27/P33) -> 0 | R43: =IF(R33=0,0,+R27/R33) -> 0 | T43: =IF(T33=0,0,+T27/T33) -> 0 | V43: =IF(V33=0,0,+V27/V33) -> 0 | X43: =IF(X33=0,0,+X27/X33) -> 0 | Z43: =IF(Z33=0,0,+Z27/Z33) -> 0 | AB43: =IF(AB33=0,0,+AB27/AB33) -> 0 | AD43: =IF(AD33=0,0,+AD27/AD33) -> 0 | AF43: =IF(AF33=0,0,+AF27/AF33) -> 0 | AH43: =IF(AH33=0,0,+AH27/AH33) -> 0 | AJ43: =IF(AJ33=0,0,+AJ27/AJ33) -> 0 | AL43: =IF(AL33=0,0,+AL27/AL33) -> 0 | AN43: =IF(AN33=0,0,+AN27/AN33) -> 0 | AP43: =IF(AP33=0,0,+AP27/AP33) -> 0
B45: Break Even Analysis
B46: Break - Even Cashflow Ratio | D46: =IF(D9=0,0,(D24+D20+D33)/D9) -> 0 | F46: =IF(F9=0,0,(F24+F20+F33)/F9) -> 0 | H46: =IF(H9=0,0,(H24+H20+H33)/H9) -> 0 | J46: =IF(J9=0,0,(J24+J20+J33)/J9) -> 0 | L46: =IF(L9=0,0,(L24+L20+L33)/L9) -> 0 | N46: =IF(N9=0,0,(N24+N20+N33)/N9) -> 0 | P46: =IF(P9=0,0,(P24+P20+P33)/P9) -> 0 | R46: =IF(R9=0,0,(R24+R20+R33)/R9) -> 0 | T46: =IF(T9=0,0,(T24+T20+T33)/T9) -> 0 | V46: =IF(V9=0,0,(V24+V20+V33)/V9) -> 0 | X46: =IF(X9=0,0,(X24+X20+X33)/X9) -> 0 | Z46: =IF(Z9=0,0,(Z24+Z20+Z33)/Z9) -> 0 | AB46: =IF(AB9=0,0,(AB24+AB20+AB33)/AB9) -> 0 | AD46: =IF(AD9=0,0,(AD24+AD20+AD33)/AD9) -> 0 | AF46: =IF(AF9=0,0,(AF24+AF20+AF33)/AF9) -> 0 | AH46: =IF(AH9=0,0,(AH24+AH20+AH33)/AH9) -> 0 | AJ46: =IF(AJ9=0,0,(AJ24+AJ20+AJ33)/AJ9) -> 0 | AL46: =IF(AL9=0,0,(AL24+AL20+AL33)/AL9) -> 0 | AN46: =IF(AN9=0,0,(AN24+AN20+AN33)/AN9) -> 0 | AP46: =IF(AP9=0,0,(AP24+AP20+AP33)/AP9) -> 0
B47: Break - Even Number of Units | D47: =IF(D50=0,0,(((D20+D24)/12/D50))) -> 0 | F47: =IF(F50=0,0,(((F20+F24)/12/F50))) -> 0 | H47: =IF(H50=0,0,(((H20+H24)/12/H50))) -> 0 | J47: =IF(J50=0,0,(((J20+J24)/12/J50))) -> 0 | L47: =IF(L50=0,0,(((L20+L24)/12/L50))) -> 0 | N47: =IF(N50=0,0,(((N20+N24)/12/N50))) -> 0 | P47: =IF(P50=0,0,(((P20+P24)/12/P50))) -> 0 | R47: =IF(R50=0,0,(((R20+R24)/12/R50))) -> 0 | T47: =IF(T50=0,0,(((T20+T24)/12/T50))) -> 0 | V47: =IF(V50=0,0,(((V20+V24)/12/V50))) -> 0 | X47: =IF(X50=0,0,(((X20+X24)/12/X50))) -> 0 | Z47: =IF(Z50=0,0,(((Z20+Z24)/12/Z50))) -> 0 | AB47: =IF(AB50=0,0,(((AB20+AB24)/12/AB50))) -> 0 | AD47: =IF(AD50=0,0,(((AD20+AD24)/12/AD50))) -> 0 | AF47: =IF(AF50=0,0,(((AF20+AF24)/12/AF50))) -> 0 | AH47: =IF(AH50=0,0,(((AH20+AH24)/12/AH50))) -> 0 | AJ47: =IF(AJ50=0,0,(((AJ20+AJ24)/12/AJ50))) -> 0 | AL47: =IF(AL50=0,0,(((AL20+AL24)/12/AL50))) -> 0 | AN47: =IF(AN50=0,0,(((AN20+AN24)/12/AN50))) -> 0 | AP47: =IF(AP50=0,0,(((AP20+AP24)/12/AP50))) -> 0
B49: Expense Cushion
B50: Cash Flow / Total Expenses | D50: =IF(D20=0,0,(D35)/D20) -> 0 | F50: =IF(F20=0,0,(F35)/F20) -> 0 | H50: =IF(H20=0,0,(H35)/H20) -> 0 | J50: =IF(J20=0,0,(J35)/J20) -> 0 | L50: =IF(L20=0,0,(L35)/L20) -> 0 | N50: =IF(N20=0,0,(N35)/N20) -> 0 | P50: =IF(P20=0,0,(P35)/P20) -> 0 | R50: =IF(R20=0,0,(R35)/R20) -> 0 | T50: =IF(T20=0,0,(T35)/T20) -> 0 | V50: =IF(V20=0,0,(V35)/V20) -> 0 | X50: =IF(X20=0,0,(X35)/X20) -> 0 | Z50: =IF(Z20=0,0,(Z35)/Z20) -> 0 | AB50: =IF(AB20=0,0,(AB35)/AB20) -> 0 | AD50: =IF(AD20=0,0,(AD35)/AD20) -> 0 | AF50: =IF(AF20=0,0,(AF35)/AF20) -> 0 | AH50: =IF(AH20=0,0,(AH35)/AH20) -> 0 | AJ50: =IF(AJ20=0,0,(AJ35)/AJ20) -> 0 | AL50: =IF(AL20=0,0,(AL35)/AL20) -> 0 | AN50: =IF(AN20=0,0,(AN35)/AN20) -> 0 | AP50: =IF(AP20=0,0,(AP35)/AP20) -> 0
P54: =3.141592654*(+AF35+'Sources and Uses'!F48+379569) -> 1192451.182 | Q54: =INT(P54) -> 1192451 | R54: =ROUNDDOWN(Q54,-9) -> 0 | S54: =+Q54-R54 -> 1192451

Sheet Properties
H1: =+Cover!E10 -> 0
A2: In the columns below enter the information for each property that may be a part of the HOME project. This information will be used in the Environmental Review, Regulatory Agreement and potentially other program documents. If a street name and number is not currently available indicate so but enter all other information.
A3: Street Number | B3: Street Name | C3: City | D3: Zip | E3: Parish | F3: Lot | G3: Block | H3: Subdivision

Sheet Project Schedule
A1: Project Schedule | E1: =+Cover!E10 -> 0 | H1: =+Cover!D7 -> 10262021.2021FAHN
B2: Enter Project Schedule
B3: =+Cover!E10 -> 0 | H3: Scheduled Date
C4: Activity | H4: (mm/dd/yyyy)
B5: A. | C5: SITE
D6: Option/Contract
D7: Site Acquisition
D8: Zoning Approval
D9: Site Analysis
D10: Environmental Clearance
B12: B. | C12: FINANCING
B13: 1. | C13: Construction Loan/Interim Financing
D14: Loan Application
D15: Conditional Commitment
D16: Firm Commitment
B18: 2. | C18: Permanent Loan
D19: Loan Application
D20: Conditional Commitment
D21: Firm Commitment
B23: 3. | C23: Other Loans and Grants
D24: Type & Source
D25: Application
D26: Award
B28: 4. | C28: Other Loans and Grants
D29: Type & Source
D30: Application
D31: Award
B33: C. | C33: PLANS AND SPECIFICATIONS,
C34: WORKING DRAWINGS
B36: D. | C36: CLOSING AND TRANSFER OF PROPERTY
B38: E. | C38: CONSTRUCTION START
D40: 10% Construction complete
D41: 50% Construction complete
D42: 90% Construction complete
B44: F. | C44: COMPLETION DATE
B46: G. | C46: CERTIFICATE OF OCCUPANCY DATE
B48: H. | C48: DATE FIRST UNIT RENTED
B51: I. | C51: DATE LAST HOME ASSISTED UNIT RENTED
C52: IN SERVICE
B54: J. | C54: 100% OF UNIT OCCUPANCY ACHIEVED

Sheet Competitive Scorig (hidden)
A1: COMPETITIVE REVIEW CRITERIA
B2: Proposed projects will be reviewed and scored on a competitive basis relative to the evaluation criteria below.
I4: Points | J4: Total
A5: I | B5: EXPERIENCE AND QUALIFICATIONS (16 POINTS MAXIMUM) | J5: =J6+J9 -> 0
B6: Developer Experience (10 points) [NON-CHDOs ONLY] | J6: =I6 -> 0
B7: Points are awarded for completing affordable housing projects on time and within budget in the last 5 years (by the developer). 2 points will be awarded for each project meeting these criteria up to a total of 10 points.
B8: Developer Financial Strength (6 points) [NON-CHDOs ONLY]
B9: Points are awarded based on certified financial statements by an independent C.P.A. from the past 2 years, and the ability to sustain the costs of effectively following through with the current application. | J9: =I9 -> 0
B11: CHDOs ONLY (60 POINTS MAXIMUM) | J11: =J12+J16+J22 -> 0
B12: CHDO Experience (12 points) (CHDOs Only) | J12: =I12 -> 0
B13: Points are awarded for completing affordable housing projects on time and within budget in the last 5 years (by the CHDO, not other team members). 2 points will be awarded for each project meeting these criteria up to a total of 12 points.
B14: If the CHDO is a joint venture, projects will be scored based on the experience of the CHDO. Where partners have approximately equal participation, the individual scores of each partner will be averaged.
B16: CHDO Capacity & Staffing (24 points) (CHDOs Only) | J16: =J18+J19 -> 0
B17: Points are awarded based on evidence that the lead staff, including the Project Manager and supervisory staff working on this specific project, proposed to work on the current proposal have the necessary experience, and that the Project Manager has the necessary time availability.
B18: (Up to 20 points) 20 points maybe awarded for staff experience (up to 12 points for contracted staff). | J18: =I18 -> 0
B19: (Up to 4 points) 4 points may be awarded for time availability. Where both staff and contracted staff are used the score will be averaged. | J19: =I19 -> 0
B21: CHDO Financial Strength (24 points) (CHDOs Only)
B22: Points are awarded based on audited financial statements, by an independent C.P.A., from the past 2 years evidencing financial stability and the ability to sustain the costs of effectively following through with the current application. This will be determined by the number, amount and percentage of other funding sources, and dependability of other funding. Percentage of earlier projects showing a positive cash flow position and the amount of available unrestricted cash on hand. | J22: =I22 -> 0
A24: II | B24: PROJECT BUDGET (10 POINTS MAXIMUM) Applicants will receive either 5 or 10 points depending on the submission.
B25: Project Budget and Construction Cost Reasonableness (10 points) | J25: =I25 -> 0
B26: Project budget is complete and anticipated development costs to include acquisition, hard cost, soft cost; and construction cost that are necessary and reasonable. LHC will conduct a construction cost reasonableness analysis to determine if the proposed budget is within 20% variance.
B27: Project Budget and Construction Cost Reasonableness (5 points)
B28: Project budget is complete and anticipated development costs to include acquisition, hard cost, soft cost; and construction cost that are necessary and reasonable. LHC will conduct a cost reasonableness analysis to determine if the proposed budget is outside of the 20% variance.
A30: III | B30: FUNDING COMMITMENT (20 POINTS MAXIMUM) | J30: =I30 -> 0
B31: Funding Commitments:
B32: Degree to which outside funding has been committed (20 points).
B33: Fully executed funding commitments, detailing the terms and conditions, must be provided to receive points. Letters of Interest are not sufficient. Points are awarded based on proportionality of such commitments. If the terms and conditions in the funding commitments are not acceptable to the LHC the funding commitment shall not be considered.
A35: IV | B35: LEVERAGING (15 POINTS MAXIMUM) | J35: =I35 -> 0
B36: Percentage of HOME Program Funding Relative to Total Project Costs:
B37: 25% or less -- (15 points)
B38: 26% - 50%-- (12 points)
B39: 51% - 75% -- (9 points)
B40: 76% - 85% -- (6 points)
A42: V | B42: AVERAGE HOME SUBSIDY PER UNIT (20 POINTS MAXIMUM) | J42: =I42 -> 0
B43: Average HOME Subsidy per unit
B44: Less than $10,000 -- (20 points)
B45: $10,001 - $20,000 – (15 points)
B46: $20,001 - $30,000 – (10 points)
B47: $30,001 - $40,000 – (5 points)
A49: VI | B49: PROJECT READINESS & DEVELOPMENT SCHEDULE (10 POINTS MAXIMUM)
B50: Projects that have received Agency development funding under CHDO within the last 5 years and are returning for additional gap financing will not be eligible for points in this category.
B51: Public Land Use Approvals (10 points) | J51: =I51 -> 0
B52: Points are awarded for sites that have obtained discretionary public land use approvals (obtaining building permits is not necessary to score points).
A54: VII | B54: HOME FUND REPAYMENT (20 POINTS MAXIMUM) | J54: =I54 -> 0
B55: All projects are required to repay HOME funds. Projects that demonstrate through the submitted proforma an ability to repay according to the below schedule:
B56: 20 points - Repayment of HOME funds in 5 years | J56: =I56 -> 0
B57: 15 points - Repayment of HOME funds in 10 years | J57: =I57 -> 0
B58: 10 points - Repayment of HOME funds in 15 years | J58: =I58 -> 0
B59: 5 points -- Repayment of HOME funds in 20 years | J59: =I59 -> 0
B60: 0 points -- Repayment of HOME funds in more than 20 years | J60: =I60 -> 0
A62: XIII | B62: LOCAL GOVERNMENTAL SUPPORT (20 POINTS MAXIMUM) | J62: =I62 -> 0
B63: Reduces project development costs by providing CDBG, HOME, or other governmental assistance/funding in the form of loan, grants, rental assistance, or a combination. Any one (1) of the items below may be provided:
B64: Waiving water and sewer tap fees; or
B65: Waiving building permit fees; or
B66: Foregoing real property taxes during construction; or
B67: Contributing land for project development; or
B68: Providing below market rate construction and/or permanent financing; or
B69: Providing an abatement of real estate taxes
A71: IX | B71: AFFORDABILITY (10 POINTS MAXIMUM) | J71: =I71 -> 0
B72: Affordability data realistically estimates principal, interest, taxes, and insurance for subject properties.
B73: LHC will review the affordability data supplied by the applicant and will use it to calculate the income level to which the housing will be affordable. All housing assisted with HOME funds must be affordable to families with incomes of 80% of the area median family income or below.
B74: Between 75% and 80% (4 points)
B75: Homes will be affordable to families with incomes between 75% and 80% of the area median income.
B76: Between 74% and 70% (6 points)
B77: Homes will be affordable to families with incomes between 74% and 70% of the area median income.
B78: Between 69% and 60% (8 points)
B79: Homes will be affordable to families with incomes between 69% and 60% of the area median income.
B80: At or below 59% (10 points)
B81: Homes will be affordable to families with incomes at 59% or below the area median income.
A83: X | B83: PRIORITY LOCATION (35 POINTS MAXIMUM) | J83: =J84+J85 -> 0
B84: Designated Target Parishes (20 points) Project is located in: Madison, Concordia, Franklin, Tensas, East Carroll, Morehouse, Washington, St. Landry, Natchitoches, Claiborne, or Bienville. | J84: =I84 -> 0
B85: Small City or Rural Parish (15 points) Project is located in a small city or rural parish. | J85: =I85 -> 0
A87: XI | B87: OTHER LOCATION DOCUMENTATION (3 POINTS EACH) | J87: =SUM(J89:J96) -> 0
B88: Points in this section are awarded when documented by maps to sufficient scale and detail.
B89: Points will be awarded to projects which include locations that are NOT on wetlands. (3 points) | J89: =I89 -> 0
B90: Points will be awarded to projects that are located beyond 3000 feet of a railroad. (3 points) | J90: 0
B91: Points will be awarded to projects located in airport noise zone contour below 65db. (3 points) | J91: 0
B92: Points will be awarded for projects located within 1 mile of any 1 Community Facility. Only 3 points will be awarded. Demonstration of proximity to multiple facilities will not result in additional points. (e.g. Educational Facilities, Commercial Facilities, Health Care Facilities, Social Services, Grocery Store, Public Library, Public Transportation (shuttle services excluded), Hospital/Doctor Office or Clinic, Bank/Credit Union (must have live tellers), Post Office, Pharmacy/Drug Store, Louisiana Licensed (current) Adult/Child Day Care/After School Care). (3 points) | J92: 0
B93: The project will have no effect on a historic property or district. (3 points) | J93: 0
A94: Conversion Rehab Only | B94: Points will be awarded for projects when the buildings in the project do not contain lead based paint (proven either through an inspection report from a Certified Lead Paint Inspector or Risk Assessor or the building were built after 1978). (3 points) | J94: 0
A95: Conversion Rehab Only | B95: Points will be awarded for projects where the building does not contain asbestos. (3 points) | J95: 0
A96: Conversion Rehab Only | B96: Points will be awarded for projects where the cost of the conversion/rehab will be less than 50% of the current value of the building. (Must provide appraisal to establish before and after value) (3 points) | J96: 0
A98: XII | B98: SAMPLE PRELIMINARY PLOT PLANS and ELEVATIONS (10 POINTS MAXIMUM) | J98: =I98 -> 0
B99: To receive points, photos of the neighboring properties must be submitted. Neighboring properties include all properties/structures on the same block including across the street. Photos must be labeled and indicated on a block map. Applicants will receive either 5 or 10 points depending on the submission.
B100: Sample floor plans (10 points)
B101: Sample floor plans and elevations must include design features that are consistent with existing neighborhood housing stock. | J101: =I101 -> 0
B103: Sample schematic designs (5 points)
B104: Sample schematic designs that are consistent with existing neighborhood housing stock. | J104: =I104 -> 0
A106: XIII | B106: SMALL DISADVANTAGED BUSINESS PARTICIPATION (5 POINTS MAXIMUM) | J106: =I106 -> 0
B107: Entities anticipated to be involved in implementing the project include certified vendors under Louisiana’s Hudson Initiative and Veterans Initiative as well as Small Disadvantaged Businesses registered with the U.S. Small Business Administration. (5 points)
A109: XIV | B109: PROJECT IS TO BE DEVELOPED BY A NEW OR NEVER FUNDED CHDO (15 POINTS MAXIMUM) | J109: =I109 -> 0
B110: Project is to be developed by a new or never funded CHDO
B112: Total | J112: =J109+J106+J98+J87+J83+J71+J62+J54+J51+J42+J35+J30+J25+J11+J5 -> 0

Sheet Completed Projects
A1: Completed Project Schedules | B1: =+Cover!D7 -> 10262021.2021FAHN | I1: =+Cover!E10 -> 0
A2: COMPLETED PROJECTS
A4: Name of Project | B4: Address | C4: # of Units | D4: New or Rehab | E4: For Rent or Homeownership | F4: LHC Assisted | G4: Project Start Date | H4: Date Construction Completion | I4: Date Lease-Up Complete or Final Unit Sold | J4: Positive or Negative Cash Flow* (For Rental Only) | K4: Comments/Challenges
AB5: New | AC5: Rental | AD5: Yes | AE5: Positive
AB6: Rehab | AC6: Homeownership | AD6: No | AE6: Negative
A32: * Provide financials to support Cash Flow position.
A34: For each project identified above that is currently operating with a negative cash flow provide a narrative on how this challenge is being met.

Sheet Certification
A1: Certification | C1: =+Cover!D7 -> 10262021.2021FAHN | H1: =+Cover!E10 -> 0
B2: APPLICANT CERTIFICATION
B4: The undersigned Applicant (or duly authorized representative of the same) hereby certifies that the information contained in the Louisiana Housing Corporation HOME Funds Application Package (the “Application”), including all Appendices and Exhibits attached hereto, is complete and accurate as of the date hereof. The undersigned acknowledges that the information provided in this Application Package or in any other document, release or communication by the Louisiana Housing Corporation (the "LHC") has not been relied upon for purpose of making any investment decision by the Applicant and that any and all expenses and investments with respect to this application for a reservation of HOME Funds have been or will be made on the basis of an independent judgment by the Applicant or upon consultation with a qualified housing development consultant.
B5: The Applicant hereby certifies that the project can be completed and operated within the budget set forth in the Application.
B6: The Applicant represents that it will furnish promptly a development timetable and such other supporting information and documents as may be requested and/or required by the LHC and that any failure to achieve the benchmarks contained in any timetable requested by the LHC may result in the rescission or recapture of HOME Funds. In carrying out the development and/or operation of the project, the Applicant agrees to comply with all applicable federal and state laws regarding unlawful discrimination and will abide by all LHC rules and regulations. The Applicant understands and agrees that the LHC is not responsible for actions taken by the Applicant in reliance on a prospective reservation of HOME Funds by the LHC and the Applicant further agrees that the LHC, its employees, agents and/or consultants shall not be responsible or liable in any manner whatsoever for expenses incurred by Applicant or its consultants in applying for HOME Funds.
B7: By execution of this Application, the Applicant understands and agrees that the LHC may conduct its own independent review and analysis of the information contained herein and in the attachments hereto, that any such review and analysis will be made for the protection of the LHC. It is further understood and agreed by the Applicant that, for the purpose of determining and establishing the terms and conditions under which the allocation may be made, the LHC may request or require adjustment or changes in the information contained herein (including attachments hereto) or in any documentation or materials now or hereafter submitted in connection with this Application.
B8: WITNESS MY SIGNATURE ON THIS, THE ____ DAY OF _____________, 20NN. BY: __________________________________ Applicant Sworn to and subscribed before me, this ___ day of _____, 20NN. Notary, State of _______________

Sheet Funing and Units Instructions
C1: Funding and Units Worksheet
C3: Instructions
C5: This is not a required part of the submission package. It is provided to assist you in either calculating the required number of unit with a given funding level or to indicate the funding level that is minimuml required for a certain number of units.
C6: To work properly there are several fields that must be fill in on your application work sheet.
C8: Part A | I8: Part B
C9: Part A requires that at a minimum the following following information be filled in on the application: | H9: Part B requires that the following be filled in on the application.
B10: Primary Input Tab | H10: Primary Input Tab
B11: CELL | H11: CELL
B12: E6 | C12: Type of Application | H12: E6 | I12: Type of Application
B13: E7 | C13: Project Name | H13: E7 | I13: Project Name
B14: E10 | C14: Project Parish | H14: Funding and Units Worksheet Tab
B15: E32 | C15: Total Units | H15: U3 | I15: Sq. Ft. 0 Bedroom
B16: E33 | C16: HOME Assisted Units Proposed By Developer | H16: V3 | I16: Sq. Ft. 1 Bedroom
B17: E34 | C17: HTF Assisted Units Proposed By Developer | H17: W3 | I17: Sq. Ft. 2 Bedroom
B18: E37 | C18: Maximum HOME FUNDS Requested: | H18: X3 | I18: Sq. Ft. 3 Bedroom
B19: E38 | C19: Maximum HTF FUNDS Requested | H19: Y3 | I19: Sq. Ft. 4 Bedroom
C20: Residential Unit Mix: | H20: Z3 | I20: Sq Ft. 5 Bedroom
C21: Total Units | H21: T4 | I21: Expected TDC
B22: E53 | C22: 0 Bedroom (Efficiency) | H22: T5 | I22: Area of Demonstrated Need
B23: E54 | C23: 1 Bedroom | H23: T6 | I23: Total Number of Units
B24: E55 | C24: 2 Bedrooms | H24: U6 | I24: Total Number of 0 Bedroom units
B25: E56 | C25: 3 Bedrooms | H25: V6 | I25: Total Number of 1 Bedroom units
B26: E57 | C26: 4 Bedrooms | H26: W6 | I26: Total Number of 2 Bedroom units
B27: E58 | C27: 5 Bedrooms | H27: X6 | I27: Total Number of 3 Bedroom units
B28: E59 | C28: Other | H28: Y6 | I28: Total Number of 4 Bedroom units
C29: HOME Assisted Units | H29: Z6 | I29: Total Number of 5 Bedroom units
B30: E62 | C30: 0 Bedroom (Efficiency)
B31: E63 | C31: 1 Bedroom | H31: Once the above information is entered you can begin entering the number of HOME or HTF assisted units that you would like to have as part of the project. The funding necessary will be displayed in Cell T 7 for HTF and T8 for HOME. WARNING THE DOLLAR FIGURE DISPLAYED WILL NOT CAP AT ANY PROGRAM LIMIT.
B32: E64 | C32: 2 Bedrooms
B33: E65 | C33: 3 Bedrooms
B34: E66 | C34: 4 Bedrooms
B35: E67 | C35: 5 Bedrooms
B36: E68 | C36: Other
C37: HTF Assisted Units
B38: E71 | C38: 0 Bedroom (Efficiency)
B39: E72 | C39: 1 Bedroom
B40: E73 | C40: 2 Bedrooms
B41: E74 | C41: 3 Bedrooms
B42: E75 | C42: 4 Bedrooms
B43: E76 | C43: 5 Bedrooms
B44: E77 | C44: Other
B46: Eligiblity Tab
B47: E6 | C47: Is Project Located in an LHC Defined Area of Demonstrated Need?
B49: Rental Income Tab
C50: Average Square Feet of Individual Units
B51: D3 | C51: 0 Bedroom (Efficiency)
B52: D4 | C52: 1 Bedroom
B53: D5 | C53: 2 Bedrooms
B54: D6 | C54: 3 Bedrooms
B55: D7 | C55: 4 Bedrooms
B56: D8 | C56: 5 Bedrooms
B57: D9 | C57: Other
B59: Rehab or New Construction Tab
C60: All relevant lines
B62: Sources & Uses Tab
C63: All Relevant lines
C65: ADDITIONALLY IF YOU ARE CLAIMING TO BE IN AN AREA OF DEMONSTRATED NEED YOU MUST PROVIDE
C66: PROOF AT THE TIME OF THE APPLICATION.
C68: Once the above information is entered into the application you should get the appropriate number of units for the funding indicated. If the units indicated are different from those in the initial application, you should consider changing your initial application to conform. It should be noted that the allowed total amount of funding will be capped at the level appropriate for the funding mechanism.

Sheet Funding and Units Worksheet
I1: PART A | V1: PART B
S2: Project | T2: =+Cover!E10 -> 0 | U2: Sq. Ft. 0 Bedroom | V2: Sq. Ft. 1 Bedroom | W2: Sq Ft 2 Bedroom | X2: Sq. Ft. 3 Bedroom | Y2: Sq. Ft. 4 Bedroom | Z2: Sq Ft. 5 Bedroom
C3: Project | D3: =+Cover!E10 -> 0 | S3: Parish | T3: =+Cover!E11 -> 0
C4: Parish | D4: =+Cover!E11 -> 0 | E4: =IF(D4=0, "YOU MUST FILL IN THE PROJECT PARISH ON THE PRIMARY INPUT TAB", "") -> YOU MUST FILL IN THE PROJECT PARISH ON THE PRIMARY INPUT TAB | S4: Expected TDC | U4: =+U3*U6 -> 0 | V4: =+V3*V6 -> 0 | W4: 0 | X4: 0 | Y4: 0 | Z4: 0
C5: HOME Requested | D5: =+'Primary Input'!E40 -> 0 | E5: =IF(D5>Lists!F45, "ERROR. AMOUNT REQUESTED EXCEED PER PROJECT LIMIT", "") ->  | S5: Area of Demonstrated Need | U5: Total Number of 0 Bedroom units | V5: Total Number of 1 Bedroom units | W5: Total Number of 2 Bedroom units | X5: Total Number of 3 Bedroom units | Y5: Total Number of 4 Bedroom units | Z5: Total Number of 5 Bedroom units
C6: HTF Requested | D6: =+'Primary Input'!E41 -> 0 | E6: =IF(D6>Lists!H44, "ERROR. AMOUNT REQUESTED EXCEED PER PROJECT LIMIT.", "") ->  | S6: Total Number of Units
C7: TDC | D7: =+'Sources and Uses'!F24 -> 0 | S7: HTF Requested | T7: =+Lists!Q119 ->  | U7: Maximum Funding for the Number of Units Requested
C8: Area of Demonstrated Need | D8: =+Eligibility!E6 ->  | E8: =IF(D8="Yes", "MUST PROVIDE BACKUP WITH THE APPLICATION", "") ->  | S8: HOME Requested | T8: =+Lists!Q118 -> 
C10: Minimum Number of Units Required for the Funding Being Requested | S10: Total Square Feet All Units | T10: =SUM(U4:Z4) -> 0
C11: HOME INVESTMENT PARTNERSHIP PROGRAM | S11: TDC Cost Per Sq. Ft. | T11: =+T4/T10 -> 
C12: Number of Bedrooms | D12: Per Unit 234 Limits | E12: 234 Funding Subsidy Limit | F12: Per Unit NOFA HOME Liits (Flat Rate) | G12: Flat Rate Funding | H12: Per Unit Cost to Produce | I12: Cost To Produce Funding | J12: By Percentage | K12: Percentage Funding | L12: Required Units Not in Area of Demonstrated Need | M12: Required Units In an Area of Demonstrated Need | N12: Final Number of Minimum Required HOME Units | O12: Final Per Unit Funding | P12: Maximum Funding | S12: Number of Bedrooms | T12: HOME Units | U12: HTF Units
C13: 0 | D13: =IF(+Lists!L57<Lists!H57,Lists!H57,Lists!L57) ->  | E13: =+Lists!Q76*D13 ->  | F13: =IF(+Lists!J57<Lists!H57,Lists!H57,Lists!J57) ->  | G13: =+F13*Lists!$H$43*F13 ->  | H13: =IF(+Lists!I57<Lists!H57,Lists!H57,Lists!I57) ->  | I13: =+Underwriting!H112*H13 ->  | J13: =+Lists!H57 ->  | K13: =+Underwriting!H127 ->  | L13: =IF($D$8="NO",MAX(F13,H13,J13),"") ->  | M13: =IF($D$8="YES",MAX(D13,H13,J13), "") ->  | N13: =MAX(L13:M13) ->  | O13: =IF(N13,+P13/N13,0) ->  | P13: =IF($D$8="Yes",MIN($E$13,$G$13,$I$13),MIN($E$13,$I$13,K13)) ->  | S13: 0
C14: 1 | D14: =IF(+Lists!L58<Lists!H58,Lists!H58,Lists!L58) ->  | E14: =+Lists!R76*D14 ->  | F14: =IF(+Lists!J58<Lists!H58,Lists!H58,Lists!J58) ->  | G14: =Lists!$E$43*F14 ->  | H14: =IF(Lists!I58<Lists!H58,Lists!H58,Lists!I58) ->  | I14: =+Underwriting!H113*H14 ->  | J14: =+Lists!H58 ->  | K14: =+Underwriting!H128 ->  | M14: =IF($D$8="YES",MAX(D14,H14,J14), "") ->  | N14: =MAX(L14:M14) ->  | P14: =IF($D$8="YES",MIN($E$14,$G$14,$I$14),MIN($E$14,$I$14)) ->  | S14: 1
C15: 2 | D15: =IF(+Lists!L59<Lists!H59,Lists!H59,Lists!L59) ->  | E15: =Lists!S76*D15 ->  | F15: =IF(+Lists!J59<Lists!H59,Lists!H59,Lists!J59) ->  | G15: =Lists!$E$43*F15 ->  | H15: =IF(Lists!I59<Lists!H59,Lists!H59,Lists!I59) ->  | I15: =+Underwriting!H114*H15 ->  | J15: =+Lists!H59 ->  | K15: =+Underwriting!H129 ->  | P15: =IF($D$8="YES",MIN($E$15,$G$15,$I$15),MIN($E$15,$I$15)) ->  | S15: 2
C16: 3 | D16: =IF(+Lists!L60<Lists!H60,Lists!H60,Lists!L60) ->  | E16: =+Lists!T76*D16 ->  | F16: =IF(+Lists!J60<Lists!H60,Lists!H60,Lists!J60) ->  | G16: =Lists!$E$43*F16 ->  | H16: =IF(Lists!I60<Lists!H60,Lists!H60,Lists!I60) ->  | I16: =+Underwriting!H115*H16 ->  | J16: =+Lists!H60 ->  | K16: =+Underwriting!H130 ->  | P16: =IF($D$8="YES",MIN($G$16,$I$16),MIN($E$16,$I$16)) ->  | S16: 3
C17: 4 | D17: =IF(+Lists!L61<Lists!H61,Lists!H61,Lists!L61) ->  | E17: =Lists!U76*D17 ->  | F17: =IF(+Lists!J61<Lists!H61,Lists!H61,Lists!J61) ->  | G17: =Lists!$E$43*F17 ->  | H17: =IF(Lists!I61<Lists!H61,Lists!H61,Lists!I61) ->  | I17: =+Underwriting!H116*H17 ->  | J17: =+Lists!H61 ->  | K17: =+Underwriting!H131 ->  | P17: =IF($D$8="YES",MIN($E$17,$G$17,$I$17),MIN($E$17,$I$17)) ->  | S17: 4
C18: 5 | D18: =IF(+Lists!L62<Lists!H62,Lists!H62,Lists!L62) ->  | E18: =Lists!U76*D18 ->  | F18: =IF(+Lists!J62<Lists!H62,Lists!H62,Lists!J62) ->  | G18: =Lists!$E$43*F18 ->  | H18: =IF(Lists!I62<Lists!H62,Lists!H62,Lists!I62) ->  | I18: =+Underwriting!H117*H18 ->  | J18: =+Lists!H62 ->  | K18: =+Underwriting!H132 ->  | L18: =IF($D$8="NO",MAX(F18,H18,J18),"") ->  | P18: =IF($D$8="YES",MIN($E$18,$G$18,$I$18),MIN($E$18,$I$18)) ->  | S18: 5
C19: Actual Total | E19: =SUM(E13:E18) ->  | G19: =SUM(G13:G18) ->  | I19: =SUM(I13:I18) ->  | K19: =SUM(K13:K18) -> 
C20: Allowed Total | D20: =SUM(D13:D18) ->  | E20: =IF(SUM(E13:E18)<D5, SUM(E13:E18),D5) ->  | G20: =IF(SUM(G13:G18)<D5, SUM(G13:G18),D5) ->  | I20: =IF(SUM(I13:I18)<D5, SUM(I13:I18),D5) ->  | K20: =IF(SUM(K13:K18)<D5, SUM(K13:K18),D5) ->  | L20: =SUM(L13:L18) ->  | M20: =SUM(M13:M18) ->  | N20: =SUM(N13:N18) ->  | P20: =IF(SUM(P14:P19)<D5, SUM(P14:P19),D5) ->  | S20: Total | T20: =SUM(T13:T18) -> 0 | U20: =SUM(U13:U18) -> 0
C21: HOUSING TRUST FUND
C22: Number of Bedrooms | D22: Per Unit 234 Limits | E22: 234 Funding Subsidy Limit | F22: Flat Rate NOFA HTF Limits | G22: Flat Rate Funding | H22: Per Unit Cost to Produce | I22: Cost To Produce Funding | J22: By Percentage | K22: Percentage Funding | L22: Required Units Not in Area of Demonstrated Need | M22: Required Units In an Area of Demonstrated Need | N22: Final Number of Minimum Required HTF Units | O22: Final Per Unit Funding
C23: 0 | D23: =IF(Underwriting!H265<Underwriting!H210,Underwriting!H210,Underwriting!H265) ->  | E23: =+Lists!Q76*D23 ->  | F23: =IF(Underwriting!H235<Underwriting!H210,Underwriting!H210,Underwriting!H235) ->  | G23: =+Lists!$H$43*F23 ->  | H23: =IF(Underwriting!H227<Underwriting!H210,Underwriting!H210,Underwriting!H227) ->  | I23: =+Underwriting!H112*'Funding and Units Worksheet'!H23 ->  | J23: =+Underwriting!H210 ->  | K23: =+Underwriting!H218 ->  | L23: =IF($D$8="NO",MAX(F23,H23,J23),"") ->  | M23: =IF($D$8="YES",MAX(D23,J23,L23), "") ->  | N23: =+IF(Eligibility!$E$6="Yes",'Funding and Units Worksheet'!M23,'Funding and Units Worksheet'!L23) ->  | O23: =IF(P23,P23/N23,0) ->  | P23: =IF($D$8="Yes",MIN(E23,I23),MIN(E23,I23)) -> 
C24: 1 | D24: =IF(Underwriting!H266<Underwriting!H211,Underwriting!H211,Underwriting!H266) ->  | E24: =+Lists!R76*D24 ->  | F24: =IF(Underwriting!H236<Underwriting!H211,Underwriting!H211,Underwriting!H236) ->  | G24: =+Lists!$H$43*F24 ->  | H24: =IF(Underwriting!H228<Underwriting!H211,Underwriting!H211,Underwriting!H228) ->  | I24: =+Underwriting!H113*'Funding and Units Worksheet'!H24 ->  | J24: =+Underwriting!H211 ->  | K24: =+Underwriting!H219 ->  | L24: =IF($D$8="NO",MAX(F24,H24,J24),"") ->  | M24: =IF($D$8="YES",MAX(D24,J24,L24), "") ->  | N24: =+IF(Eligibility!$E$6="Yes",'Funding and Units Worksheet'!M24,'Funding and Units Worksheet'!L24) ->  | O24: =IF(P24,P24/N24,0) -> 
C25: 2 | D25: =IF(Underwriting!H267<Underwriting!H212,Underwriting!H212,Underwriting!H267) ->  | E25: =+Lists!S76*D25 ->  | F25: =IF(Underwriting!H237<Underwriting!H212,Underwriting!H212,Underwriting!H237) ->  | G25: =+Lists!$H$43*F25 ->  | H25: =IF(Underwriting!H229<Underwriting!H212,Underwriting!H212,Underwriting!H229) ->  | I25: =+Underwriting!H114*'Funding and Units Worksheet'!H25 ->  | J25: =+Underwriting!H212 ->  | K25: =+Underwriting!H220 ->  | N25: =+IF(Eligibility!$E$6="Yes",'Funding and Units Worksheet'!M25,'Funding and Units Worksheet'!L25) -> 
C26: 3 | D26: =IF(Underwriting!H268<Underwriting!H213,Underwriting!H213,Underwriting!H268) ->  | E26: =+Lists!T76*D26 ->  | F26: =IF(Underwriting!H238<Underwriting!H213,Underwriting!H213,Underwriting!H238) ->  | G26: =+Lists!$H$43*F26 ->  | H26: =IF(Underwriting!H230<Underwriting!H213,Underwriting!H213,Underwriting!H230) ->  | I26: =+Underwriting!H115*'Funding and Units Worksheet'!H26 ->  | J26: =+Underwriting!H213 ->  | K26: =+Underwriting!H221 ->  | N26: =+IF(Eligibility!$E$6="Yes",'Funding and Units Worksheet'!M26,'Funding and Units Worksheet'!L26) -> 
C27: 4 | D27: =IF(Underwriting!H269<Underwriting!H214,Underwriting!H214,Underwriting!H269) ->  | E27: =+Lists!U78*D27 ->  | F27: =IF(Underwriting!H239<Underwriting!H214,Underwriting!H214,Underwriting!H239) ->  | G27: =+Lists!$H$43*F27 ->  | H27: =IF(Underwriting!H231<Underwriting!H214,Underwriting!H214,Underwriting!H231) ->  | I27: =+Underwriting!H116*'Funding and Units Worksheet'!H27 ->  | J27: =+Underwriting!H214 ->  | K27: =+Underwriting!H222 ->  | N27: =+IF(Eligibility!$E$6="Yes",'Funding and Units Worksheet'!M27,'Funding and Units Worksheet'!L27) -> 
C28: 5 | D28: =IF(Underwriting!H270<Underwriting!H215,Underwriting!H215,Underwriting!H270) ->  | E28: =+E18 ->  | F28: =IF(Underwriting!H240<Underwriting!H215,Underwriting!H215,Underwriting!H240) ->  | G28: =+Lists!$H$43*F28 ->  | H28: =IF(Underwriting!H232<Underwriting!H215,Underwriting!H215,Underwriting!H232) ->  | I28: =+Underwriting!H117*'Funding and Units Worksheet'!H28 ->  | J28: =+Underwriting!H215 ->  | K28: =+Underwriting!H223 ->  | N28: =+IF(Eligibility!$E$6="Yes",'Funding and Units Worksheet'!M28,'Funding and Units Worksheet'!L28) -> 
C29: Actual Total | E29: =SUM(E23:E28) ->  | G29: =SUM(G23:G28) ->  | I29: =SUM(I23:I28) ->  | K29: =SUM(K23:K28) -> 
C30: Allowed Total | D30: =SUM(D23:D28) ->  | E30: =IF(SUM(E23:E28)<D6, SUM(E23:E28),D6) ->  | G30: =IF(SUM(G23:G28)<D6, SUM(G23:G28),D6) ->  | I30: =IF(SUM(I23:I28)<D6, SUM(I23:I28),D6) ->  | K30: =IF(SUM(K23:K28)<D6, SUM(K23:K28),D6) ->  | N30: =SUM(N23:N28) ->  | P30: =IF(SUM(P23:P28)<D6, SUM(P23:P28),D6) -> 
C32: NON LHC Funding
C33: Number of Bedrooms | D33: Number on Non HOME/HTF Units Allowed
C34: 0 | D34: =+'Primary Input'!E56-('Funding and Units Worksheet'!N23+'Funding and Units Worksheet'!N13) -> 
C35: 1 | D35: =+'Primary Input'!E57-('Funding and Units Worksheet'!N24+'Funding and Units Worksheet'!N14) -> 
C36: 2 | D36: =+'Primary Input'!E58-('Funding and Units Worksheet'!N25+'Funding and Units Worksheet'!N15) -> 
C37: 3 | D37: =+'Primary Input'!E59-('Funding and Units Worksheet'!N26+'Funding and Units Worksheet'!N16) -> 
C38: 4 | D38: =+'Primary Input'!E60-('Funding and Units Worksheet'!N27+'Funding and Units Worksheet'!N17) -> 
C39: 5 | D39: =+'Primary Input'!E61-('Funding and Units Worksheet'!N28+'Funding and Units Worksheet'!N18) -> 
C40: Total | D40: =SUM(D34:D39) -> 

Sheet Checklist & Application Order
A1: Checklist & Required Application Order
I2: CHECKLIST & REQUIRED APPLICATION ORDER | K2: Required | L2: Included | M2: Signature
B3: Submit the following in order and tabulated:
B4: 1 | H4: -- | I4: Cover | K4: X | L4: X
B5: 3 | H5: -- | I5: Primary Input | K5: X | L5: X
B6: 4 | H6: -- | I6: Eligibility | K6: X | L6: X
B7: 5 | H7: -- | I7: Types of Housing | K7: X | L7: X
B8: 6 | H8: -- | I8: Development Team ( with Resumes and Relevant Experience) | K8: X | L8: X
B9: 7 | H9: -- | I9: Financial Considerations | K9: X | L9: X
B10: 8 | H10: -- | I10: Rental Income (Including Average Per Sq. Ft. of individual Units by Bedroom Size) | K10: X | L10: X
E11: Attach evidence of any unit subsidy
B12: 9 | H12: -- | I12: Match Leverage | K12: X | L12: X
E13: Attach evidence of prior years income
B14: 10 | H14: -- | I14: Rehab or New Construction | K14: X | L14: X
B15: 11 | H15: -- | I15: Loan Information | K15: X | L15: X
B16: 12 | H16: -- | I16: Sources & Uses | K16: X | L16: X
B17: 13 | H17: -- | I17: Pro Forma Calculation | K17: X | L17: X
B18: 14 | H18: -- | I18: Project Schedule | K18: X | L18: X
B19: 15 | H19: -- | I19: Completed Projects
B20: 16 | H20: -- | I20: Competitive Review Criteria | K20: X | L20: X
B21: 17 | H21: -- | I21: Checklist | K21: X | L21: X
B22: 18 | H22: -- | I22: Certifications | K22: X | L22: X | M22: X
C24: Documents in Support of Applicant Information
D25: a) | E25: Appendix 1 | H25: -- | I25: Applicant and Development Team Information | K25: X | L25: X
C26: Documents in Support of Property Information
D27: a) | E27: Appendix 2 | H27: -- | I27: Site Control Documentation | K27: X | L27: X
F28: i) | G28: Legal descriptions
F29: ii) | G29: Map
F30: ii) | G30: Color Photographs
D31: b) | E31: Appendix 3 | H31: -- | I31: Ownership History | L31: X
F32: i) | G32: List of prior projects using LHC programs (this requirment is met by submission of the Completed Project Tab) | L32: X
F33: ii) | G33: Other projects under construction by members of the Development Team and | L33: X
F34: iii) | G34: Prior two (2) years audited (or certified if non-CHDO) financials of applicant | L34: X
D35: c) | E35: Appendix 4 | H35: -- | I35: Zoning Evidence | K35: X | L35: X
F36: i) | G36: Zoning Certification Letter or Zoning Map | K36: X | L36: X
F37: ii) | G37: Other documents related to zoning
D38: d) | E38: Appendix 5 | H38: -- | I38: Appraisal (an Appraisal is only required if acquisition is part of the application, if the value of the property is being used as leverage or the value of the property is included in the application for any reason). | K38: X | L38: X
D39: e) | E39: Appendix 6 | H39: -- | I39: Capital Needs Assessment (for rehab projects only) | K39: X
D40: f) | E40: Appendix 7 | H40: -- | I40: Architectural and Minimum Project Design Requirement | L40: X
D41: g) | E41: Appendix 8 | H41: -- | I41: Estoppel Letter (for rehab project only) | K41: X | L41: X | M41: X
D42: h) | E42: Appendix 9 | H42: -- | I42: CHDO Certificate of No Change | K42: X | L42: X
C43: Documents in Support of Sources and Uses
D44: a) | E44: Appendix 10 | H44: -- | I44: Financing Commitments (obtain from bank, etc.) | K44: X | L44: X
D45: c) | E45: Appendix 11 | H45: -- | I45: Developer Services Agreement | K45: X | L45: X
D46: d) | E46: Appendix 12 | H46: -- | I46: Description of Amenities. | L46: X
D47: e) | E47: Appendix 13 | H47: -- | I47: Description of Community Facilities. | L47: X
D48: g) | E48: Appendix 14 | H48: -- | I48: Affirmative Marketing Plan Form (AFHM-98) | K48: X | L48: X
D49: k) | E49: Appendix 15 | H49: -- | I49: Lead Based Paint Strategy (Pre-1978 Projects Only) | K49: X | L49: X
D51: m) | E51: Appendix 17 | H51: -- | I51: Market Study Fee. If a Market Study is required (more than 12 total units) it must be turned in the "Submitted Application". | K51: X | L51: X | N51: =IF('Primary Input'!E63>11, "A formal Market Study is required. Submit required fee to LHC.", " ") -> 
D52: n) | E52: Appendix 17 | H52: -- | I52: Alternative Market Analysis. If the project is less than 12 total units you may opt to provide an Alternative Market Analysis in lieu of a formal Market Study. The Alternative Market Analysis is due at application. | K52: X | L52: X | N52: =IF('Primary Input'!J26<12, "You may utilize the Alternative Market Analysis. If you choose to you must submit the analysis with the application", " ") -> You may utilize the Alternative Market Analysis. If you choose to you must submit the analysis with the application
D53: r) | E53: Appendix 18 | H53: -- | I53: Certificate of SDB, MBE, WBE | L53: X
D54: s) | E54: Appendix 19 | H54: -- | I54: Utility Allowance; Rate Sheets from All Providers; Sample bills if avaliable for all providers. | K54: X | L54: X
H55: --
I57: Items with an X are required for a submission to be considered. Items included without the X do not have to be submitted for consideration but may be required to receive points ( if applicable) or to complete underwriting prior to award.

Sheet Submit
A1: Below is the button to submit your application to LHC. Please do not click the button until you have completed all the tabs. Remember that you will have to attach PDF documents that are required by the program (NOAH, CHAAP, CSAR, Small Project Continuation etc.). You should have the PDF documents ready prior to clicking the submit button.

Sheet SLR (hidden)
A3: Louisiana Housing Corporation | AA3: Parish | AB3: 0 BR | AC3: 1 BR | AD3: 2 BR | AE3: 3 BR | AF3: 4 OR MORE BR
A4: Subsidy Layering Review | AA4: Acadia Parish
A5: For | AA5: Allen Parish
A6: =+'Primary Input'!E7 -> 0 | AA6: Ascension Parish | AB6: 117751 | AC6: 134986 | AD6: 164141 | AE6: 212345 | AF6: 233089
AA7: Assumption Parish
AA8: Avoyelles Parish
A9: Total Number of Units | E9: =+'Primary Input'!E35:G35 -> 0 | AA9: Beauregard Parish
A10: Total Development Cost | E10: =+'Sources and Uses'!F42 -> 0 | AA10: Bienville Parish
A11: Total HOME Assistance Requested | E11: =+'Primary Input'!E40:G40 -> 0 | F11: =IF(E11>F33, "Applicant is Requesting Too much HOME Assistance","") ->  | AA11: Bossier Parish
A12: Percentage of HOME Assistance | E12: =+E11/E10 ->  | AA12: Caddo Parish
A13: Required Minimum Number of HOME Units | E13: =+E9*E12 -> 
A14: Parish | E14: =+'Primary Input'!E12:G12 -> 0
A15: Maximum Per Unit Subsidy (PUS 0 bedroom) | E15: =+Lists!Q76 -> 0
A16: Maximum Per Unit Subsidy (PUS 1 bedroom) | E16: =+Lists!R76 -> 0
A17: Maximum Per Unit Subsidy (PUS 2 bedroom) | E17: =+Lists!S76 -> 0
A18: Maximum Per Unit Subsidy (PUS 3 bedroom) | E18: =+Lists!T76 -> 0 | AA18: Calcasieu Parish
A19: Maximum Per Unit Subsidy (PUS 4 bedroom) | E19: =+Lists!U76 -> 0 | AA19: Caldwell Parish
A20: Per Unit Subsidy Allowed based on minimum # of units) | E20: =+F33 ->  | AA20: Cameron Parish
A21: Does Project Meet Per Unit Subsidy Rule | E21: =+IF(E11<=E20, "Yes", "Project Fails Test") ->  | AA21: Catahoula Parish
A22: HOME Assisted Units are determined by a percentage of the units equal to the principal amount of HOME funds divided by the total amount of long term funds. Therefore the number of HOME Assisted Units pursuant to this calculation would be: | AA22: Claiborne Parish
AA23: Concordia Parish
AA24: De Soto Parish
A25: HOME Assisted Units By Bedroom Size: | AA25: East Baton Rouge Parish | AB25: 117751 | AC25: 134986 | AD25: 164141 | AE25: 212345 | AF25: 233089
A26: Bedroom Size | B26: Total Units | C26: HOME Percentage | D26: HOME Assisted Units | E26: Maximum HOME Funds Per Unit Subsidy | F26: Maximum Allowable Subsidy | AA26: East Carroll Parish
A27: 0 BR | B27: =+'Primary Input'!E65 -> 0 | C27: =+E12 ->  | D27: =ROUNDUP(+C27*B27,0) ->  | E27: =+E15 -> 0 | F27: =+D27*E27 ->  | AA27: East Feliciana Parish | AB27: 117751 | AC27: 134986 | AD27: 164141 | AE27: 212345 | AF27: 233089
A28: 1 BR | B28: =+'Primary Input'!E66 -> 0 | C28: =+E12 ->  | E28: =+E16 -> 0 | F28: =+E28*D28 ->  | AA28: Evangeline Parish
A29: 2 BR | B29: =+'Primary Input'!E67 -> 0 | C29: =+E12 ->  | E29: =+E17 -> 0 | F29: =+E29*D29 -> 
A30: 3BR | B30: =+'Primary Input'!E68 -> 0 | C30: =+E12 ->  | E30: =+E18 -> 0 | F30: =+E30*D30 -> 
A31: 4BR | B31: =+'Primary Input'!E69 -> 0 | C31: =+E12 ->  | E31: =+E19 -> 0 | F31: =+E31*D31 -> 
A32: Other | B32: =+'Primary Input'!E70+'Primary Input'!E71 -> 0 | C32: =+E12 ->  | E32: =+E19 -> 0 | F32: =+E32*D32 ->  | AA32: Grant Parish
A33: Total | B33: =SUM(B27:B32) -> 0 | D33: =SUM(D27:D32) ->  | F33: =SUM(F27:F32) ->  | AA33: Iberia Parish
C34: =IF('Primary Input'!E36<SLR!D33, "Invalid Input on Primary Input Tab. Please Correct (HOME Assisted units must equal number shown here)", "OK") ->  | AA34: Iberville Parish | AB34: 117751 | AC34: 134986 | AD34: 164141 | AE34: 212345 | AF34: 233089
AA35: Jackson Parish
A36: The number of HOME assisted units is determined by rounding to the next whole number across all bedroom sizes. This may result in a larger number of required units than oveall proportionality would indicate. | AA36: Jefferson Parish
AA37: Jefferson Davis Parish
A38: Bed Room Size | B38: Fair Market Rents | C38: Actual High Rents | D38: High HOME Rent | E38: Actual Hgh Rents Below Level Allowed? | F38: Actual Low Rents | G38: Low HOME Rent | H38: Actual Low Rents Below Level Allowed? | AA38: Lafayette Parish
A39: 0 | B39: =+'2020 Rents'!F76 ->  | C39: =+'Rental Income'!Y3 -> 0 | D39: =+'2020 Rents'!F73 ->  | E39: =+'Rental Income'!AC3 ->  | F39: =+'Rental Income'!Z3 -> 0 | G39: =IF('Primary Input'!E12="",0,VLOOKUP('Primary Input'!E12,'Primary Input'!BE4:BT115,2)) -> 0 | H39: =+'Rental Income'!AB3 ->  | AA39: Lafourche Parish
A40: 1 | B40: =+'2020 Rents'!G76 ->  | C40: =+'Rental Income'!Y4 -> 0 | D40: =+'2020 Rents'!G73 ->  | E40: =+'Rental Income'!AC4 ->  | F40: =+'Rental Income'!Z4 -> 0 | G40: =IF('Primary Input'!E12="",0,VLOOKUP('Primary Input'!E12,'Primary Input'!BE4:BT115,4)) -> 0 | H40: =+'Rental Income'!AB4 ->  | AA40: La Salle Parish
A41: 2 | B41: =+'2020 Rents'!H76 ->  | C41: =+'Rental Income'!Y5 -> 0 | D41: =+'2020 Rents'!H73 ->  | E41: =+'Rental Income'!AC5 ->  | F41: =+'Rental Income'!Z5 -> 0 | G41: =IF('Primary Input'!E12="",0,VLOOKUP('Primary Input'!E12,'Primary Input'!BE4:BT115,6)) -> 0 | H41: =+'Rental Income'!AB5 ->  | AA41: Lincoln Parish
A42: 3 | B42: =+'2020 Rents'!I76 ->  | C42: =+'Rental Income'!Y6 -> 0 | D42: =+'2020 Rents'!I73 ->  | E42: =+'Rental Income'!AC6 ->  | F42: =+'Rental Income'!Z6 -> 0 | G42: =IF('Primary Input'!E12="",0,VLOOKUP('Primary Input'!E12,'Primary Input'!BE4:BT115,8)) -> 0 | H42: =+'Rental Income'!AB6 ->  | AA42: Livingston Parish | AB42: 117751 | AC42: 134986 | AD42: 164141 | AE42: 212345 | AF42: 233089
A43: 4 | B43: =+'2020 Rents'!J76 ->  | C43: =+'Rental Income'!Y7 -> 0 | D43: =+'2020 Rents'!J73 ->  | E43: =+'Rental Income'!AC7 ->  | F43: =+'Rental Income'!Z7 -> 0 | G43: =IF('Primary Input'!E12="",0,VLOOKUP('Primary Input'!E12,'Primary Input'!BE4:BT115,10)) -> 0 | H43: =+'Rental Income'!AB7 ->  | AA43: Madison Parish
AA44: Morehouse Parish
AA45: Natchitoches Parish
AA46: Orleans Parish
AA47: Ouachita Parish
AA48: Plaquemines Parish
AA49: Pointe Coupee Parish | AB49: 117751 | AC49: 134986 | AD49: 164141 | AE49: 212345 | AF49: 233089
AA50: Rapides Parish
AA51: Red River Parish
AA52: Richland Parish
AA53: Sabine Parish
AA54: St. Bernard Parish
AA55: St. Charles Parish
AA56: St. Helena Parish | AB56: 117751 | AC56: 134986 | AD56: 164141 | AE56: 212345 | AF56: 233089
AA57: St. James Parish
AA58: St. John the Baptist Parish
AA59: St. Landry Parish
AA60: St. Martin Parish
AA61: St. Mary Parish
AA62: St. Tammany Parish
AA63: Tangipahoa Parish
AA64: Tensas Parish
AA65: Terrebonne Parish
AA66: Union Parish
AA67: Vermilion Parish
AA68: Vernon Parish
AA69: Washington Parish
AA70: Webster Parish
AA71: West Baton Rouge Parish | AB71: 117751 | AC71: 134986 | AD71: 164141 | AE71: 212345 | AF71: 233089
AA72: West Carroll Parish
AA73: West Feliciana Parish | AB73: 117751 | AC73: 134986 | AD73: 164141 | AE73: 212345 | AF73: 233089
AA74: Winn Parish

Sheet 2020 Rents (hidden)
G1: 2020 Rents | H1: =+G1 -> 2020 Rents | I1: =+H1 -> 2020 Rents | J1: 2020 Rents | K1: 2020 Rents | L1: 2020 Rents | M1: 2020 Rents | N1: 2020 Rents | O1: 2020 Rents | P1: 2020 Rents | Q1: 2020 Rents | R1: 2020 Rents | S1: 2020 Rents | T1: 2020 Rents | U1: 2020 Rents | V1: 2020 Rents | W1: 2020 Rents | X1: 2020 Rents | Y1: 2020 Rents | Z1: 2020 Rents | AA1: 2020 Rents | AB1: 2020 Rents | AC1: 2020 Rents | AD1: 2020 Rents | AE1: 2020 Rents | AF1: 2020 Rents | AG1: 2020 Rents | AH1: 2020 Rents | AI1: 2020 Rents | AJ1: 2020 Rents | AK1: 2020 Rents | AL1: 2020 Rents | AM1: 2020 Rents | AN1: 2020 Rents | AO1: 2020 Rents
A2: State | B2: statename | C2: CBSASub | D2: Areaname | E2: Parish | F2: fips2010 | G2: lowrent_0 | H2: lowrent_1 | I2: lowrent_2 | J2: lowrent_3 | K2: lowrent_4 | L2: lowrent_5 | M2: lowrent_6 | N2: fmr_0 | O2: fmr_1 | P2: fmr_2 | Q2: fmr_3 | R2: fmr_4 | S2: fmr_5 | T2: fmr_6 | U2: highrent_0 | V2: highrent_1 | W2: highrent_2 | X2: highrent_3 | Y2: highrent_4 | Z2: highrent_5 | AA2: highrent_6 | AB2: HomeRent50_0 | AC2: HomeRent50_1 | AD2: HomeRent50_2 | AE2: HomeRent50_3 | AF2: HomeRent50_4 | AG2: HomeRent50_5 | AH2: HomeRent50_6 | AI2: HomeRent65_0 | AJ2: HomeRent65_1 | AK2: HomeRent65_2 | AL2: HomeRent65_3 | AM2: HomeRent65_4 | AN2: HomeRent65_5 | AO2: HomeRent65_6
A3: 22 | B3: LOUISIANA | C3: NCNTY22001N22001 | D3: Acadia Parish, LA | E3: Acadia | F3: 2200199999 | G3: 482 | H3: 516 | I3: 620 | J3: 716 | K3: 800 | L3: 882 | M3: 964 | N3: 536 | O3: 539 | P3: 710 | Q3: 993 | R3: 1134 | S3: 1304 | T3: 1474 | U3: 536 | V3: 539 | W3: 710 | X3: 897 | Y3: 981 | Z3: 1064 | AA3: 1147 | AB3: 482 | AC3: 516 | AD3: 620 | AE3: 716 | AF3: 800 | AG3: 882 | AH3: 964 | AI3: 608 | AJ3: 652 | AK3: 784 | AL3: 897 | AM3: 981 | AN3: 1064 | AO3: 1147
A4: 22 | B4: LOUISIANA | C4: NCNTY22003N22003 | D4: Allen Parish, LA | E4: Allen | F4: 2200399999 | G4: 510 | H4: 546 | I4: 655 | J4: 756 | K4: 845 | L4: 931 | M4: 1018 | N4: 542 | O4: 546 | P4: 710 | Q4: 988 | R4: 1064 | S4: 1224 | T4: 1383 | U4: 542 | V4: 546 | W4: 710 | X4: 950 | Y4: 1041 | Z4: 1130 | AA4: 1219 | AB4: 510 | AC4: 546 | AD4: 655 | AE4: 756 | AF4: 845 | AG4: 931 | AH4: 1018 | AI4: 643 | AJ4: 690 | AK4: 831 | AL4: 950 | AM4: 1041 | AN4: 1130 | AO4: 1219
A5: 22 | B5: LOUISIANA | C5: METRO12940M12940 | D5: Baton Rouge, LA HUD Metro FMR Area | E5: Ascension | F5: 2200599999 | G5: 678 | H5: 736 | I5: 883 | J5: 1020 | K5: 1138 | L5: 1256 | M5: 1373 | N5: 678 | O5: 765 | P5: 894 | Q5: 1145 | R5: 1429 | S5: 1643 | T5: 1858 | U5: 678 | V5: 765 | W5: 894 | X5: 1145 | Y5: 1424 | Z5: 1552 | AA5: 1681 | AB5: 687 | AC5: 736 | AD5: 883 | AE5: 1020 | AF5: 1138 | AG5: 1256 | AH5: 1373 | AI5: 874 | AJ5: 938 | AK5: 1127 | AL5: 1294 | AM5: 1424 | AN5: 1552 | AO5: 1681
A6: 22 | B6: LOUISIANA | C6: NCNTY22007N22007 | D6: Assumption Parish, LA | E6: Assumption | F6: 2200799999 | G6: 566 | H6: 606 | I6: 728 | J6: 841 | K6: 938 | L6: 1036 | M6: 1132 | N6: 598 | O6: 648 | P6: 738 | Q6: 1065 | R6: 1080 | S6: 1242 | T6: 1404 | U6: 598 | V6: 648 | W6: 738 | X6: 1060 | Y6: 1080 | Z6: 1242 | AA6: 1366 | AB6: 566 | AC6: 606 | AD6: 728 | AE6: 841 | AF6: 938 | AG6: 1036 | AH6: 1132 | AI6: 716 | AJ6: 769 | AK6: 924 | AL6: 1060 | AM6: 1163 | AN6: 1264 | AO6: 1366
A7: 22 | B7: LOUISIANA | C7: NCNTY22009N22009 | D7: Avoyelles Parish, LA | E7: Avoyelles | F7: 2200999999 | G7: 460 | H7: 492 | I7: 591 | J7: 682 | K7: 761 | L7: 840 | M7: 918 | N7: 466 | O7: 551 | P7: 715 | Q7: 954 | R7: 1063 | S7: 1222 | T7: 1382 | U7: 466 | V7: 551 | W7: 715 | X7: 854 | Y7: 934 | Z7: 1011 | AA7: 1089 | AB7: 460 | AC7: 492 | AD7: 591 | AE7: 682 | AF7: 761 | AG7: 840 | AH7: 918 | AI7: 579 | AJ7: 621 | AK7: 747 | AL7: 854 | AM7: 934 | AN7: 1011 | AO7: 1089
A8: 22 | B8: LOUISIANA | C8: NCNTY22011N22011 | D8: Beauregard Parish, LA | E8: Beauregard | F8: 2201199999 | G8: 575 | H8: 616 | I8: 710 | J8: 854 | K8: 953 | L8: 1051 | M8: 1149 | N8: 606 | O8: 618 | P8: 710 | Q8: 1001 | R8: 1247 | S8: 1434 | T8: 1621 | U8: 606 | V8: 618 | W8: 710 | X8: 1001 | Y8: 1181 | Z8: 1285 | AA8: 1389 | AB8: 575 | AC8: 616 | AD8: 740 | AE8: 854 | AF8: 953 | AG8: 1051 | AH8: 1149 | AI8: 728 | AJ8: 781 | AK8: 939 | AL8: 1077 | AM8: 1181 | AN8: 1285 | AO8: 1389
A9: 22 | B9: LOUISIANA | C9: NCNTY22013N22013 | D9: Bienville Parish, LA | E9: Bienville | F9: 2201399999 | G9: 446 | H9: 478 | I9: 573 | J9: 661 | K9: 738 | L9: 815 | M9: 890 | N9: 576 | O9: 624 | P9: 710 | Q9: 989 | R9: 992 | S9: 1141 | T9: 1290 | U9: 560 | V9: 601 | W9: 710 | X9: 827 | Y9: 903 | Z9: 977 | AA9: 1053 | AB9: 446 | AC9: 478 | AD9: 573 | AE9: 661 | AF9: 738 | AG9: 815 | AH9: 890 | AI9: 560 | AJ9: 601 | AK9: 723 | AL9: 827 | AM9: 903 | AN9: 977 | AO9: 1053
A10: 22 | B10: LOUISIANA | C10: METRO43340M43340 | D10: Shreveport-Bossier City, LA MSA | E10: Bossier | F10: 2201599999 | G10: 548 | H10: 588 | I10: 706 | J10: 815 | K10: 910 | L10: 1003 | M10: 1097 | N10: 612 | O10: 739 | P10: 861 | Q10: 1077 | R10: 1248 | S10: 1435 | T10: 1622 | U10: 612 | V10: 739 | W10: 861 | X10: 1061 | Y10: 1164 | Z10: 1266 | AA10: 1368 | AB10: 548 | AC10: 588 | AD10: 706 | AE10: 815 | AF10: 910 | AG10: 1003 | AH10: 1097 | AI10: 718 | AJ10: 770 | AK10: 926 | AL10: 1061 | AM10: 1164 | AN10: 1266 | AO10: 1368
A11: 22 | B11: LOUISIANA | C11: METRO43340M43340 | D11: Shreveport-Bossier City, LA MSA | E11: Caddo | F11: 2201799999 | G11: 548 | H11: 588 | I11: 706 | J11: 815 | K11: 910 | L11: 1003 | M11: 1097 | N11: 612 | O11: 739 | P11: 861 | Q11: 1077 | R11: 1248 | S11: 1435 | T11: 1622 | U11: 612 | V11: 739 | W11: 861 | X11: 1061 | Y11: 1164 | Z11: 1266 | AA11: 1368 | AB11: 548 | AC11: 588 | AD11: 706 | AE11: 815 | AF11: 910 | AG11: 1003 | AH11: 1097 | AI11: 718 | AJ11: 770 | AK11: 926 | AL11: 1061 | AM11: 1164 | AN11: 1266 | AO11: 1368
A12: 22 | B12: LOUISIANA | C12: METRO29340M29340 | D12: Lake Charles, LA MSA | E12: Calcasieu | F12: 2201999999 | G12: 540 | H12: 578 | I12: 695 | J12: 802 | K12: 895 | L12: 988 | M12: 1079 | N12: 617 | O12: 663 | P12: 837 | Q12: 1063 | R12: 1245 | S12: 1432 | T12: 1619 | U12: 617 | V12: 663 | W12: 837 | X12: 1017 | Y12: 1115 | Z12: 1211 | AA12: 1308 | AB12: 540 | AC12: 578 | AD12: 695 | AE12: 802 | AF12: 895 | AG12: 988 | AH12: 1079 | AI12: 688 | AJ12: 738 | AK12: 888 | AL12: 1017 | AM12: 1115 | AN12: 1211 | AO12: 1308
A13: 22 | B13: LOUISIANA | C13: NCNTY22021N22021 | D13: Caldwell Parish, LA | E13: Caldwell | F13: 2202199999 | G13: 450 | H13: 482 | I13: 578 | J13: 668 | K13: 746 | L13: 823 | M13: 899 | N13: 562 | O13: 566 | P13: 710 | Q13: 1004 | R13: 1027 | S13: 1181 | T13: 1335 | U13: 562 | V13: 566 | W13: 710 | X13: 885 | Y13: 969 | Z13: 1050 | AA13: 1131 | AB13: 450 | AC13: 482 | AD13: 578 | AE13: 668 | AF13: 746 | AG13: 823 | AH13: 899 | AI13: 599 | AJ13: 643 | AK13: 774 | AL13: 885 | AM13: 969 | AN13: 1050 | AO13: 1131
A14: 22 | B14: LOUISIANA | C14: METRO29340M29340 | D14: Lake Charles, LA MSA | E14: Cameron | F14: 2202399999 | G14: 540 | H14: 578 | I14: 695 | J14: 802 | K14: 895 | L14: 988 | M14: 1079 | N14: 617 | O14: 663 | P14: 837 | Q14: 1063 | R14: 1245 | S14: 1432 | T14: 1619 | U14: 617 | V14: 663 | W14: 837 | X14: 1017 | Y14: 1115 | Z14: 1211 | AA14: 1308 | AB14: 540 | AC14: 578 | AD14: 695 | AE14: 802 | AF14: 895 | AG14: 988 | AH14: 1079 | AI14: 688 | AJ14: 738 | AK14: 888 | AL14: 1017 | AM14: 1115 | AN14: 1211 | AO14: 1308
A15: 22 | B15: LOUISIANA | C15: NCNTY22025N22025 | D15: Catahoula Parish, LA | E15: Catahoula | F15: 2202599999 | G15: 508 | H15: 545 | I15: 653 | J15: 755 | K15: 842 | L15: 930 | M15: 1016 | N15: 547 | O15: 569 | P15: 710 | Q15: 897 | R15: 1039 | S15: 1195 | T15: 1351 | U15: 547 | V15: 569 | W15: 710 | X15: 897 | Y15: 1038 | Z15: 1127 | AA15: 1215 | AB15: 508 | AC15: 545 | AD15: 653 | AE15: 755 | AF15: 842 | AG15: 930 | AH15: 1016 | AI15: 641 | AJ15: 688 | AK15: 828 | AL15: 948 | AM15: 1038 | AN15: 1127 | AO15: 1215
A16: 22 | B16: LOUISIANA | C16: NCNTY22027N22027 | D16: Claiborne Parish, LA | E16: Claiborne | F16: 2202799999 | G16: 446 | H16: 478 | I16: 573 | J16: 661 | K16: 738 | L16: 815 | M16: 890 | N16: 565 | O16: 569 | P16: 749 | Q16: 933 | R16: 1015 | S16: 1167 | T16: 1320 | U16: 560 | V16: 569 | W16: 723 | X16: 827 | Y16: 903 | Z16: 977 | AA16: 1053 | AB16: 446 | AC16: 478 | AD16: 573 | AE16: 661 | AF16: 738 | AG16: 815 | AH16: 890 | AI16: 560 | AJ16: 601 | AK16: 723 | AL16: 827 | AM16: 903 | AN16: 977 | AO16: 1053
A17: 22 | B17: LOUISIANA | C17: NCNTY22029N22029 | D17: Concordia Parish, LA | E17: Concordia | F17: 2202999999 | G17: 446 | H17: 478 | I17: 573 | J17: 661 | K17: 738 | L17: 815 | M17: 890 | N17: 576 | O17: 624 | P17: 710 | Q17: 914 | R17: 1039 | S17: 1195 | T17: 1351 | U17: 560 | V17: 601 | W17: 710 | X17: 827 | Y17: 903 | Z17: 977 | AA17: 1053 | AB17: 446 | AC17: 478 | AD17: 573 | AE17: 661 | AF17: 738 | AG17: 815 | AH17: 890 | AI17: 560 | AJ17: 601 | AK17: 723 | AL17: 827 | AM17: 903 | AN17: 977 | AO17: 1053
A18: 22 | B18: LOUISIANA | C18: METRO43340M43340 | D18: Shreveport-Bossier City, LA MSA | E18: DeSoto | F18: 2203199999 | G18: 548 | H18: 588 | I18: 706 | J18: 815 | K18: 910 | L18: 1003 | M18: 1097 | N18: 612 | O18: 739 | P18: 861 | Q18: 1077 | R18: 1248 | S18: 1435 | T18: 1622 | U18: 612 | V18: 739 | W18: 861 | X18: 1061 | Y18: 1164 | Z18: 1266 | AA18: 1368 | AB18: 548 | AC18: 588 | AD18: 706 | AE18: 815 | AF18: 910 | AG18: 1003 | AH18: 1097 | AI18: 718 | AJ18: 770 | AK18: 926 | AL18: 1061 | AM18: 1164 | AN18: 1266 | AO18: 1368
A19: 22 | B19: LOUISIANA | C19: METRO12940M12940 | D19: Baton Rouge, LA HUD Metro FMR Area | E19: East Baton Rouge | F19: 2203399999 | G19: 678 | H19: 736 | I19: 883 | J19: 1020 | K19: 1138 | L19: 1256 | M19: 1373 | N19: 678 | O19: 765 | P19: 894 | Q19: 1145 | R19: 1429 | S19: 1643 | T19: 1858 | U19: 678 | V19: 765 | W19: 894 | X19: 1145 | Y19: 1424 | Z19: 1552 | AA19: 1681 | AB19: 687 | AC19: 736 | AD19: 883 | AE19: 1020 | AF19: 1138 | AG19: 1256 | AH19: 1373 | AI19: 874 | AJ19: 938 | AK19: 1127 | AL19: 1294 | AM19: 1424 | AN19: 1552 | AO19: 1681
A20: 22 | B20: LOUISIANA | C20: NCNTY22035N22035 | D20: East Carroll Parish, LA | E20: East Carroll | F20: 2203599999 | G20: 446 | H20: 478 | I20: 573 | J20: 661 | K20: 738 | L20: 815 | M20: 890 | N20: 547 | O20: 551 | P20: 710 | Q20: 946 | R20: 1039 | S20: 1195 | T20: 1351 | U20: 547 | V20: 551 | W20: 710 | X20: 827 | Y20: 903 | Z20: 977 | AA20: 1053 | AB20: 446 | AC20: 478 | AD20: 573 | AE20: 661 | AF20: 738 | AG20: 815 | AH20: 890 | AI20: 560 | AJ20: 601 | AK20: 723 | AL20: 827 | AM20: 903 | AN20: 977 | AO20: 1053
A21: 22 | B21: LOUISIANA | C21: METRO12940M12940 | D21: Baton Rouge, LA HUD Metro FMR Area | E21: East Feliciana | F21: 2203799999 | G21: 678 | H21: 736 | I21: 883 | J21: 1020 | K21: 1138 | L21: 1256 | M21: 1373 | N21: 678 | O21: 765 | P21: 894 | Q21: 1145 | R21: 1429 | S21: 1643 | T21: 1858 | U21: 678 | V21: 765 | W21: 894 | X21: 1145 | Y21: 1424 | Z21: 1552 | AA21: 1681 | AB21: 687 | AC21: 736 | AD21: 883 | AE21: 1020 | AF21: 1138 | AG21: 1256 | AH21: 1373 | AI21: 874 | AJ21: 938 | AK21: 1127 | AL21: 1294 | AM21: 1424 | AN21: 1552 | AO21: 1681
A22: 22 | B22: LOUISIANA | C22: NCNTY22039N22039 | D22: Evangeline Parish, LA | E22: Evangeline | F22: 2203999999 | G22: 446 | H22: 478 | I22: 573 | J22: 661 | K22: 738 | L22: 815 | M22: 890 | N22: 576 | O22: 593 | P22: 710 | Q22: 898 | R22: 1054 | S22: 1212 | T22: 1370 | U22: 560 | V22: 593 | W22: 710 | X22: 827 | Y22: 903 | Z22: 977 | AA22: 1053 | AB22: 446 | AC22: 478 | AD22: 573 | AE22: 661 | AF22: 738 | AG22: 815 | AH22: 890 | AI22: 560 | AJ22: 601 | AK22: 723 | AL22: 827 | AM22: 903 | AN22: 977 | AO22: 1053
A23: 22 | B23: LOUISIANA | C23: NCNTY22041N22041 | D23: Franklin Parish, LA | E23: Franklin | F23: 2204199999 | G23: 446 | H23: 478 | I23: 573 | J23: 661 | K23: 738 | L23: 815 | M23: 890 | N23: 536 | O23: 539 | P23: 710 | Q23: 885 | R23: 1039 | S23: 1195 | T23: 1351 | U23: 536 | V23: 539 | W23: 710 | X23: 827 | Y23: 903 | Z23: 977 | AA23: 1053 | AB23: 446 | AC23: 478 | AD23: 573 | AE23: 661 | AF23: 738 | AG23: 815 | AH23: 890 | AI23: 560 | AJ23: 601 | AK23: 723 | AL23: 827 | AM23: 903 | AN23: 977 | AO23: 1053
A24: 22 | B24: LOUISIANA | C24: METRO10780M10780 | D24: Alexandria, LA MSA | E24: Grant | F24: 2204399999 | G24: 511 | H24: 548 | I24: 657 | J24: 759 | K24: 847 | L24: 935 | M24: 1022 | N24: 517 | O24: 640 | P24: 794 | Q24: 1044 | R24: 1184 | S24: 1362 | T24: 1539 | U24: 517 | V24: 640 | W24: 794 | X24: 969 | Y24: 1061 | Z24: 1152 | AA24: 1243 | AB24: 511 | AC24: 548 | AD24: 657 | AE24: 759 | AF24: 847 | AG24: 935 | AH24: 1022 | AI24: 655 | AJ24: 703 | AK24: 846 | AL24: 969 | AM24: 1061 | AN24: 1152 | AO24: 1243
A25: 22 | B25: LOUISIANA | C25: NCNTY22045N22045 | D25: Iberia Parish, LA | E25: Iberia | F25: 2204599999 | G25: 505 | H25: 540 | I25: 648 | J25: 749 | K25: 836 | L25: 922 | M25: 1008 | N25: 606 | O25: 610 | P25: 803 | Q25: 1001 | R25: 1332 | S25: 1532 | T25: 1732 | U25: 606 | V25: 610 | W25: 803 | X25: 940 | Y25: 1029 | Z25: 1117 | AA25: 1205 | AB25: 505 | AC25: 540 | AD25: 648 | AE25: 749 | AF25: 836 | AG25: 922 | AH25: 1008 | AI25: 636 | AJ25: 683 | AK25: 822 | AL25: 940 | AM25: 1029 | AN25: 1117 | AO25: 1205
A26: 22 | B26: LOUISIANA | C26: METRO12940N22047 | D26: Iberville Parish, LA HUD Metro FMR Area | E26: Iberville | F26: 2204799999 | G26: 525 | H26: 562 | I26: 675 | J26: 778 | K26: 868 | L26: 958 | M26: 1048 | N26: 542 | O26: 624 | P26: 710 | Q26: 911 | R26: 1072 | S26: 1233 | T26: 1394 | U26: 542 | V26: 624 | W26: 710 | X26: 911 | Y26: 1072 | Z26: 1196 | AA26: 1291 | AB26: 525 | AC26: 562 | AD26: 675 | AE26: 778 | AF26: 868 | AG26: 958 | AH26: 1048 | AI26: 679 | AJ26: 729 | AK26: 877 | AL26: 1004 | AM26: 1100 | AN26: 1196 | AO26: 1291
A27: 22 | B27: LOUISIANA | C27: NCNTY22049N22049 | D27: Jackson Parish, LA | E27: Jackson | F27: 2204999999 | G27: 466 | H27: 499 | I27: 598 | J27: 691 | K27: 772 | L27: 851 | M27: 931 | N27: 576 | O27: 594 | P27: 710 | Q27: 945 | R27: 972 | S27: 1118 | T27: 1264 | U27: 576 | V27: 594 | W27: 710 | X27: 890 | Y27: 972 | Z27: 1056 | AA27: 1138 | AB27: 466 | AC27: 499 | AD27: 598 | AE27: 691 | AF27: 772 | AG27: 851 | AH27: 931 | AI27: 603 | AJ27: 647 | AK27: 778 | AL27: 890 | AM27: 974 | AN27: 1056 | AO27: 1138
A28: 22 | B28: LOUISIANA | C28: METRO35380M35380 | D28: New Orleans-Metairie-Kenner, LA MSA | E28: Jefferson | F28: 2205199999 | G28: 616 | H28: 660 | I28: 792 | J28: 915 | K28: 1021 | L28: 1126 | M28: 1232 | N28: 779 | O28: 908 | P28: 1078 | Q28: 1396 | R28: 1597 | S28: 1837 | T28: 2076 | U28: 779 | V28: 838 | W28: 1008 | X28: 1156 | Y28: 1270 | Z28: 1382 | AA28: 1495 | AB28: 616 | AC28: 660 | AD28: 792 | AE28: 915 | AF28: 1021 | AG28: 1126 | AH28: 1232 | AI28: 781 | AJ28: 838 | AK28: 1008 | AL28: 1156 | AM28: 1270 | AN28: 1382 | AO28: 1495
A29: 22 | B29: LOUISIANA | C29: NCNTY22053N22053 | D29: Jefferson Davis Parish, LA | E29: Jefferson Davis | F29: 2205399999 | G29: 506 | H29: 542 | I29: 651 | J29: 751 | K29: 838 | L29: 925 | M29: 1011 | N29: 606 | O29: 624 | P29: 710 | Q29: 996 | R29: 1000 | S29: 1150 | T29: 1300 | U29: 606 | V29: 624 | W29: 710 | X29: 952 | Y29: 1000 | Z29: 1131 | AA29: 1221 | AB29: 506 | AC29: 542 | AD29: 651 | AE29: 751 | AF29: 838 | AG29: 925 | AH29: 1011 | AI29: 644 | AJ29: 691 | AK29: 832 | AL29: 952 | AM29: 1043 | AN29: 1131 | AO29: 1221
A30: 22 | B30: LOUISIANA | C30: METRO29180M29180 | D30: Lafayette, LA MSA | E30: Lafayette | F30: 2205599999 | G30: 616 | H30: 660 | I30: 792 | J30: 915 | K30: 1021 | L30: 1126 | M30: 1232 | N30: 660 | O30: 795 | P30: 912 | Q30: 1205 | R30: 1326 | S30: 1525 | T30: 1724 | U30: 660 | V30: 795 | W30: 912 | X30: 1173 | Y30: 1289 | Z30: 1403 | AA30: 1518 | AB30: 616 | AC30: 660 | AD30: 792 | AE30: 915 | AF30: 1021 | AG30: 1126 | AH30: 1232 | AI30: 793 | AJ30: 851 | AK30: 1023 | AL30: 1173 | AM30: 1289 | AN30: 1403 | AO30: 1518
A31: 22 | B31: LOUISIANA | C31: METRO26380M26380 | D31: Houma-Bayou Cane-Thibodaux, LA MSA | E31: Lafourche | F31: 2205799999 | G31: 575 | H31: 615 | I31: 738 | J31: 853 | K31: 951 | L31: 1050 | M31: 1148 | N31: 686 | O31: 690 | P31: 873 | Q31: 1206 | R31: 1449 | S31: 1666 | T31: 1884 | U31: 686 | V31: 690 | W31: 873 | X31: 1074 | Y31: 1179 | Z31: 1282 | AA31: 1385 | AB31: 575 | AC31: 615 | AD31: 738 | AE31: 853 | AF31: 951 | AG31: 1050 | AH31: 1148 | AI31: 726 | AJ31: 779 | AK31: 937 | AL31: 1074 | AM31: 1179 | AN31: 1282 | AO31: 1385
A32: 22 | B32: LOUISIANA | C32: NCNTY22059N22059 | D32: La Salle Parish, LA | E32: La Salle | F32: 2205999999 | G32: 500 | H32: 535 | I32: 642 | J32: 742 | K32: 828 | L32: 914 | M32: 999 | N32: 562 | O32: 566 | P32: 710 | Q32: 926 | R32: 1039 | S32: 1195 | T32: 1351 | U32: 562 | V32: 566 | W32: 710 | X32: 926 | Y32: 1039 | Z32: 1195 | AA32: 1305 | AB32: 500 | AC32: 535 | AD32: 642 | AE32: 742 | AF32: 828 | AG32: 914 | AH32: 999 | AI32: 686 | AJ32: 736 | AK32: 886 | AL32: 1014 | AM32: 1111 | AN32: 1208 | AO32: 1305
A33: 22 | B33: LOUISIANA | C33: NCNTY22061N22061 | D33: Lincoln Parish, LA | E33: Lincoln | F33: 2206199999 | G33: 507 | H33: 543 | I33: 652 | J33: 754 | K33: 841 | L33: 928 | M33: 1015 | N33: 652 | O33: 656 | P33: 764 | Q33: 1085 | R33: 1089 | S33: 1252 | T33: 1416 | U33: 640 | V33: 656 | W33: 764 | X33: 947 | Y33: 1036 | Z33: 1125 | AA33: 1214 | AB33: 507 | AC33: 543 | AD33: 652 | AE33: 754 | AF33: 841 | AG33: 928 | AH33: 1015 | AI33: 640 | AJ33: 688 | AK33: 827 | AL33: 947 | AM33: 1036 | AN33: 1125 | AO33: 1214
A34: 22 | B34: LOUISIANA | C34: METRO12940M12940 | D34: Baton Rouge, LA HUD Metro FMR Area | E34: Livingston | F34: 2206399999 | G34: 678 | H34: 736 | I34: 883 | J34: 1020 | K34: 1138 | L34: 1256 | M34: 1373 | N34: 678 | O34: 765 | P34: 894 | Q34: 1145 | R34: 1429 | S34: 1643 | T34: 1858 | U34: 678 | V34: 765 | W34: 894 | X34: 1145 | Y34: 1424 | Z34: 1552 | AA34: 1681 | AB34: 687 | AC34: 736 | AD34: 883 | AE34: 1020 | AF34: 1138 | AG34: 1256 | AH34: 1373 | AI34: 874 | AJ34: 938 | AK34: 1127 | AL34: 1294 | AM34: 1424 | AN34: 1552 | AO34: 1681
A35: 22 | B35: LOUISIANA | C35: NCNTY22065N22065 | D35: Madison Parish, LA | E35: Madison | F35: 2206599999 | G35: 446 | H35: 478 | I35: 573 | J35: 661 | K35: 738 | L35: 815 | M35: 890 | N35: 536 | O35: 539 | P35: 710 | Q35: 920 | R35: 962 | S35: 1106 | T35: 1251 | U35: 536 | V35: 539 | W35: 710 | X35: 827 | Y35: 903 | Z35: 977 | AA35: 1053 | AB35: 446 | AC35: 478 | AD35: 573 | AE35: 661 | AF35: 738 | AG35: 815 | AH35: 890 | AI35: 560 | AJ35: 601 | AK35: 723 | AL35: 827 | AM35: 903 | AN35: 977 | AO35: 1053
A36: 22 | B36: LOUISIANA | C36: NCNTY22067N22067 | D36: Morehouse Parish, LA | E36: Morehouse | F36: 2206799999 | G36: 446 | H36: 478 | I36: 573 | J36: 661 | K36: 738 | L36: 815 | M36: 890 | N36: 606 | O36: 624 | P36: 710 | Q36: 980 | R36: 1039 | S36: 1195 | T36: 1351 | U36: 560 | V36: 601 | W36: 710 | X36: 827 | Y36: 903 | Z36: 977 | AA36: 1053 | AB36: 446 | AC36: 478 | AD36: 573 | AE36: 661 | AF36: 738 | AG36: 815 | AH36: 890 | AI36: 560 | AJ36: 601 | AK36: 723 | AL36: 827 | AM36: 903 | AN36: 977 | AO36: 1053
A37: 22 | B37: LOUISIANA | C37: NCNTY22069N22069 | D37: Natchitoches Parish, LA | E37: Natchitoches | F37: 2206999999 | G37: 446 | H37: 478 | I37: 573 | J37: 661 | K37: 738 | L37: 815 | M37: 890 | N37: 590 | O37: 638 | P37: 840 | Q37: 1100 | R37: 1138 | S37: 1309 | T37: 1479 | U37: 575 | V37: 618 | W37: 743 | X37: 849 | Y37: 928 | Z37: 1005 | AA37: 1082 | AB37: 446 | AC37: 478 | AD37: 573 | AE37: 661 | AF37: 738 | AG37: 815 | AH37: 890 | AI37: 575 | AJ37: 618 | AK37: 743 | AL37: 849 | AM37: 928 | AN37: 1005 | AO37: 1082
A38: 22 | B38: LOUISIANA | C38: METRO35380M35380 | D38: New Orleans-Metairie-Kenner, LA MSA | E38: Orleans | F38: 2207199999 | G38: 616 | H38: 660 | I38: 792 | J38: 915 | K38: 1021 | L38: 1126 | M38: 1232 | N38: 779 | O38: 908 | P38: 1078 | Q38: 1396 | R38: 1597 | S38: 1837 | T38: 2076 | U38: 779 | V38: 838 | W38: 1008 | X38: 1156 | Y38: 1270 | Z38: 1382 | AA38: 1495 | AB38: 616 | AC38: 660 | AD38: 792 | AE38: 915 | AF38: 1021 | AG38: 1126 | AH38: 1232 | AI38: 781 | AJ38: 838 | AK38: 1008 | AL38: 1156 | AM38: 1270 | AN38: 1382 | AO38: 1495
A39: 22 | B39: LOUISIANA | C39: METRO33740M33740 | D39: Monroe, LA MSA | E39: Ouachita | F39: 2207399999 | G39: 483 | H39: 518 | I39: 621 | J39: 718 | K39: 801 | L39: 883 | M39: 966 | N39: 596 | O39: 600 | P39: 774 | Q39: 991 | R39: 1078 | S39: 1240 | T39: 1401 | U39: 596 | V39: 600 | W39: 774 | X39: 948 | Y39: 1038 | Z39: 1127 | AA39: 1215 | AB39: 483 | AC39: 518 | AD39: 621 | AE39: 718 | AF39: 801 | AG39: 883 | AH39: 966 | AI39: 641 | AJ39: 688 | AK39: 828 | AL39: 948 | AM39: 1038 | AN39: 1127 | AO39: 1215
A40: 22 | B40: LOUISIANA | C40: METRO35380M35380 | D40: New Orleans-Metairie-Kenner, LA MSA | E40: Plaquemines | F40: 2207599999 | G40: 616 | H40: 660 | I40: 792 | J40: 915 | K40: 1021 | L40: 1126 | M40: 1232 | N40: 779 | O40: 908 | P40: 1078 | Q40: 1396 | R40: 1597 | S40: 1837 | T40: 2076 | U40: 779 | V40: 838 | W40: 1008 | X40: 1156 | Y40: 1270 | Z40: 1382 | AA40: 1495 | AB40: 616 | AC40: 660 | AD40: 792 | AE40: 915 | AF40: 1021 | AG40: 1126 | AH40: 1232 | AI40: 781 | AJ40: 838 | AK40: 1008 | AL40: 1156 | AM40: 1270 | AN40: 1382 | AO40: 1495
A41: 22 | B41: LOUISIANA | C41: METRO12940M12940 | D41: Baton Rouge, LA HUD Metro FMR Area | E41: Pointe Coupee | F41: 2207799999 | G41: 678 | H41: 736 | I41: 883 | J41: 1020 | K41: 1138 | L41: 1256 | M41: 1373 | N41: 678 | O41: 765 | P41: 894 | Q41: 1145 | R41: 1429 | S41: 1643 | T41: 1858 | U41: 678 | V41: 765 | W41: 894 | X41: 1145 | Y41: 1424 | Z41: 1552 | AA41: 1681 | AB41: 687 | AC41: 736 | AD41: 883 | AE41: 1020 | AF41: 1138 | AG41: 1256 | AH41: 1373 | AI41: 874 | AJ41: 938 | AK41: 1127 | AL41: 1294 | AM41: 1424 | AN41: 1552 | AO41: 1681
A42: 22 | B42: LOUISIANA | C42: METRO10780M10780 | D42: Alexandria, LA MSA | E42: Rapides | F42: 2207999999 | G42: 511 | H42: 548 | I42: 657 | J42: 759 | K42: 847 | L42: 935 | M42: 1022 | N42: 517 | O42: 640 | P42: 794 | Q42: 1044 | R42: 1184 | S42: 1362 | T42: 1539 | U42: 517 | V42: 640 | W42: 794 | X42: 969 | Y42: 1061 | Z42: 1152 | AA42: 1243 | AB42: 511 | AC42: 548 | AD42: 657 | AE42: 759 | AF42: 847 | AG42: 935 | AH42: 1022 | AI42: 655 | AJ42: 703 | AK42: 846 | AL42: 969 | AM42: 1061 | AN42: 1152 | AO42: 1243
A43: 22 | B43: LOUISIANA | C43: NCNTY22081N22081 | D43: Red River Parish, LA | E43: Red River | F43: 2208199999 | G43: 467 | H43: 501 | I43: 601 | J43: 694 | K43: 775 | L43: 855 | M43: 934 | N43: 604 | O43: 608 | P43: 763 | Q43: 951 | R43: 1034 | S43: 1189 | T43: 1344 | U43: 588 | V43: 608 | W43: 759 | X43: 869 | Y43: 950 | Z43: 1029 | AA43: 1109 | AB43: 467 | AC43: 501 | AD43: 601 | AE43: 694 | AF43: 775 | AG43: 855 | AH43: 934 | AI43: 588 | AJ43: 631 | AK43: 759 | AL43: 869 | AM43: 950 | AN43: 1029 | AO43: 1109
A44: 22 | B44: LOUISIANA | C44: NCNTY22083N22083 | D44: Richland Parish, LA | E44: Richland | F44: 2208399999 | G44: 446 | H44: 478 | I44: 573 | J44: 661 | K44: 738 | L44: 815 | M44: 890 | N44: 536 | O44: 539 | P44: 710 | Q44: 885 | R44: 1247 | S44: 1434 | T44: 1621 | U44: 536 | V44: 539 | W44: 710 | X44: 827 | Y44: 903 | Z44: 977 | AA44: 1053 | AB44: 446 | AC44: 478 | AD44: 573 | AE44: 661 | AF44: 738 | AG44: 815 | AH44: 890 | AI44: 560 | AJ44: 601 | AK44: 723 | AL44: 827 | AM44: 903 | AN44: 977 | AO44: 1053
A45: 22 | B45: LOUISIANA | C45: NCNTY22085N22085 | D45: Sabine Parish, LA | E45: Sabine | F45: 2208599999 | G45: 463 | H45: 538 | I45: 645 | J45: 745 | K45: 831 | L45: 917 | M45: 1002 | N45: 463 | O45: 539 | P45: 710 | Q45: 987 | R45: 1170 | S45: 1346 | T45: 1521 | U45: 463 | V45: 539 | W45: 710 | X45: 935 | Y45: 1024 | Z45: 1111 | AA45: 1198 | AB45: 502 | AC45: 538 | AD45: 645 | AE45: 745 | AF45: 831 | AG45: 917 | AH45: 1002 | AI45: 633 | AJ45: 679 | AK45: 817 | AL45: 935 | AM45: 1024 | AN45: 1111 | AO45: 1198
A46: 22 | B46: LOUISIANA | C46: METRO35380M35380 | D46: New Orleans-Metairie-Kenner, LA MSA | E46: St. Bernard | F46: 2208799999 | G46: 616 | H46: 660 | I46: 792 | J46: 915 | K46: 1021 | L46: 1126 | M46: 1232 | N46: 779 | O46: 908 | P46: 1078 | Q46: 1396 | R46: 1597 | S46: 1837 | T46: 2076 | U46: 779 | V46: 838 | W46: 1008 | X46: 1156 | Y46: 1270 | Z46: 1382 | AA46: 1495 | AB46: 616 | AC46: 660 | AD46: 792 | AE46: 915 | AF46: 1021 | AG46: 1126 | AH46: 1232 | AI46: 781 | AJ46: 838 | AK46: 1008 | AL46: 1156 | AM46: 1270 | AN46: 1382 | AO46: 1495
A47: 22 | B47: LOUISIANA | C47: METRO35380M35380 | D47: New Orleans-Metairie-Kenner, LA MSA | E47: St. Charles | F47: 2208999999 | G47: 616 | H47: 660 | I47: 792 | J47: 915 | K47: 1021 | L47: 1126 | M47: 1232 | N47: 779 | O47: 908 | P47: 1078 | Q47: 1396 | R47: 1597 | S47: 1837 | T47: 2076 | U47: 779 | V47: 838 | W47: 1008 | X47: 1156 | Y47: 1270 | Z47: 1382 | AA47: 1495 | AB47: 616 | AC47: 660 | AD47: 792 | AE47: 915 | AF47: 1021 | AG47: 1126 | AH47: 1232 | AI47: 781 | AJ47: 838 | AK47: 1008 | AL47: 1156 | AM47: 1270 | AN47: 1382 | AO47: 1495
A48: 22 | B48: LOUISIANA | C48: METRO12940M12940 | D48: Baton Rouge, LA HUD Metro FMR Area | E48: St. Helena | F48: 2209199999 | G48: 678 | H48: 736 | I48: 883 | J48: 1020 | K48: 1138 | L48: 1256 | M48: 1373 | N48: 678 | O48: 765 | P48: 894 | Q48: 1145 | R48: 1429 | S48: 1643 | T48: 1858 | U48: 678 | V48: 765 | W48: 894 | X48: 1145 | Y48: 1424 | Z48: 1552 | AA48: 1681 | AB48: 687 | AC48: 736 | AD48: 883 | AE48: 1020 | AF48: 1138 | AG48: 1256 | AH48: 1373 | AI48: 874 | AJ48: 938 | AK48: 1127 | AL48: 1294 | AM48: 1424 | AN48: 1552 | AO48: 1681
